Workbook

Sheet Zmeny
B1: Změna
A2: Datum | B2: Rev | C2: Popis
A3: 2019-10-29 | B3: 00 | C3: Surová nepřipomínkovaná verze
A4: 2019-11-03 | B4: 01 | C4: Korigované koeficienty soutěží
A5: 2019-11-05 | B5: 02 | C5: Nominace na PMČR 2020 neschválená
A6: 2019-12-01 | B6: 03 | C6: Schválená verze
A7: 2019-12-05 | B7: 04 | C7: Opraveno pořadí juniorů v RV 2020
A8: 2020-03-01 | B8: 05 | C8: Dodatečné nominace na PMČR, řádné nominace na PMRg a PMČRj 2020

Sheet Soutez
A1: Soutěž | B1: Stát | C1: Rok | D1: Místo | E1: Poč. disc. | F1: Poč. pilotů | G1: Ki | H1: Kn | I1: dKin | J1: Termín | K1: Web | L1: Results | M1: Poznámka
A2: Zařazené soutěže 2017:
A3: AZ Cup 2017 - Klub | B3: CZ | C3: 2017 | D3: Zbraslavice | E3: 3 | F3: 34 | G3: 0 | H3: 0 | I3: =H3-G3 -> 0 | J3: 14.4.-22.4.2017 | K3: http://www.azcup.cz/ | L3: https://www.soaringspot.com/cs/az-cup-2017-zbraslavice-2017/results/klub/task-4-on-2017-04-21/total | M3: Méně jak 4 platné disciplíny
A4: AZ Cup 2017 - Kombi | B4: CZ | C4: 2017 | D4: Zbraslavice | E4: 4 | F4: 21 | G4: 0.9 | H4: 0.92 | I4: 0.02 | J4: 14.4.-22.4.2017 | K4: http://www.azcup.cz/ | L4: https://www.soaringspot.com/cs/az-cup-2017-zbraslavice-2017/results/kombi/task-4-on-2017-04-21/total
A5: 13. JPJ 2017 - Klub | B5: CZ | C5: 2017 | D5: Šumperk | E5: 5 | F5: 39 | G5: 0.6 | H5: 0.63 | I5: 0.03 | J5: 29.4.-7.5.2017 | K5: http://www.jpj-sumperk.cz/ | L5: https://www.soaringspot.com/cs/13-jarni-pohar-jeseniku-2017-sumperk-2017/results/klubova-trida/task-7-on-2017-05-07/total
A6: 13. JPJ 2017 - Kombi | B6: CZ | C6: 2017 | D6: Šumperk | E6: 5 | F6: 29 | G6: 0.6 | H6: 0.6 | I6: 0 | J6: 29.4.-7.5.2017 | K6: http://www.jpj-sumperk.cz/ | L6: https://www.soaringspot.com/cs/13-jarni-pohar-jeseniku-2017-sumperk-2017/results/kombi-trida/task-7-on-2017-05-07/total
A7: Závody Šohajů 2017 - Klub | B7: CZ | C7: 2017 | D7: Raná | E7: 5 | F7: 10 | G7: 0.6 | H7: 0.6 | I7: 0 | J7: 20.5.-27.5.2017 | K7: http://sohaje.aeroklubrana.cz/ | L7: https://www.soaringspot.com/cs/zavody-sohaju-a-historickych-kluzaku-2017-rana-loumy-2017/results/club/task-8-on-2017-05-27/total
A8: 9. WGC Women 2017 - Klub | B8: CZ | C8: 2017 | D8: Zbraslavice | E8: 12 | F8: 23 | G8: 1 | H8: 1.01 | I8: 0.01 | J8: 21.5.-4.6.2017 | K8: https://www.wwgc2017.cz/ | L8: https://www.soaringspot.com/cs/9th-fai-womens-world-gliding-championship-2017-zbraslavice-2017/results/club/task-12-on-2017-06-03/total
A9: 9. WGC Women 2017 - Std | B9: CZ | C9: 2017 | D9: Zbraslavice | E9: 12 | F9: 14 | G9: 1 | H9: 1.025 | I9: 0.025 | J9: 21.5.-4.6.2017 | K9: https://www.wwgc2017.cz/ | L9: https://www.soaringspot.com/cs/9th-fai-womens-world-gliding-championship-2017-zbraslavice-2017/results/standard/task-12-on-2017-06-03/total
A10: 9. WGC Women 2017 - 18m | B10: CZ | C10: 2017 | D10: Zbraslavice | E10: 12 | F10: 11 | G10: 1 | H10: 1.01 | I10: 0.01 | J10: 21.5.-4.6.2017 | K10: https://www.wwgc2017.cz/ | L10: https://www.soaringspot.com/cs/9th-fai-womens-world-gliding-championship-2017-zbraslavice-2017/results/18m/task-12-on-2017-06-03/total
A11: PMČR CON 2017 - Klub | B11: CZ | C11: 2017 | D11: Příbram | E11: 6 | F11: 25 | G11: 1 | H11: 1.03 | I11: 0.03 | J11: 25.6.-7.7.2017 | K11: http://www.wgc2018.cz/ | L11: https://www.soaringspot.com/cs/czech-gliding-nationals-pre-worlds-2017-pribram-2017/results/club/task-10-on-2017-07-06/total
A12: PMČR CON 2017 - Kombi 15m | B12: CZ | C12: 2017 | D12: Příbram | E12: 7 | F12: 16 | G12: 1 | H12: 1.035 | I12: 0.035 | J12: 25.6.-7.7.2017 | K12: http://www.wgc2018.cz/ | L12: https://www.soaringspot.com/cs/czech-gliding-nationals-pre-worlds-2017-pribram-2017/results/15m-mixed/task-10-on-2017-07-06/total
A13: PMČR CON 2017 - Kombi Open | B13: CZ | C13: 2017 | D13: Příbram | E13: 7 | F13: 23 | G13: 1 | H13: 1.085 | I13: 0.085 | J13: 25.6.-7.7.2017 | K13: http://www.wgc2018.cz/ | L13: https://www.soaringspot.com/cs/czech-gliding-nationals-pre-worlds-2017-pribram-2017/results/open/task-10-on-2017-07-06/total
A14: FL 2017 - Kombi | B14: CZ | C14: 2017 | D14: Frýdlant n/Ostr. | E14: 5 | F14: 16 | G14: 0.6 | H14: 0.6 | I14: 0 | J14: 30.6.-8.7.2017 | K14: https://fl2017.akfrydlant.cz/ | L14: https://www.soaringspot.com/cs/fl-2017-adrenalin-grand-prix-frydlant-2017/results/fl/task-6-on-2017-07-06/total
A15: Adrenalin GP 2017 - Klub GP | B15: CZ | C15: 2017 | D15: Frýdlant n/Ostr. | E15: 6 | F15: 11 | G15: 0.6 | H15: 0.6 | I15: 0 | J15: 30.6.-8.7.2017 | K15: https://fl2017.akfrydlant.cz/ | L15: https://www.soaringspot.com/cs/fl-2017-adrenalin-grand-prix-frydlant-2017/results/agp/task-6-on-2017-07-06/total
A16: Safari 2017 - Duo Kombi | B16: CZ | C16: 2017 | D16: Dvůr Králové | E16: 4 | F16: 10 | G16: 0.6 | H16: 0.6 | I16: 0 | J16: 2.7.-14.7.2017 | K16: http://www.gliding.cz/souteze/2017/safari/ | L16: https://www.soaringspot.com/cs/20-safari-2017-dvur-kralove-nad-labem-2017/results/duo-blanik/task-8-on-2017-07-14/total
A17: Safari 2017 - Klub | B17: CZ | C17: 2017 | D17: Dvůr Králové | E17: 5 | F17: 28 | G17: 0.6 | H17: 0.6 | I17: 0 | J17: 2.7.-14.7.2017 | K17: http://www.gliding.cz/souteze/2017/safari/ | L17: https://www.soaringspot.com/cs/20-safari-2017-dvur-kralove-nad-labem-2017/results/klub/task-9-on-2017-07-14/total
A18: Safari 2017 - Kombi | B18: CZ | C18: 2017 | D18: Dvůr Králové | E18: 5 | F18: 11 | G18: 0.6 | H18: 0.6 | I18: 0 | J18: 2.7.-14.7.2017 | K18: http://www.gliding.cz/souteze/2017/safari/ | L18: https://www.soaringspot.com/cs/20-safari-2017-dvur-kralove-nad-labem-2017/results/volna
A19: Ranský Pohár 2017 - Klub | B19: CZ | C19: 2017 | D19: Raná | E19: 3 | F19: 14 | G19: 0 | H19: 0 | I19: 0 | J19: 8.7.-15.7.2017 | K19: http://pohar.aeroklubrana.cz/ | L19: https://www.soaringspot.com/cs/ransky-pohar-2017-rana-loumy-2017/results/club/task-3-on-2017-07-13/total | M19: Méně jak 4 platné disciplíny
A20: Toužim Cup 2017 - Klub | B20: CZ | C20: 2017 | D20: Toužim | E20: 2 | F20: 26 | G20: 0 | H20: 0 | I20: 0 | J20: 8.7.-15.7.2017 | K20: http://www.gliding.cz/souteze/2017/tcup/ | L20: https://www.soaringspot.com/cs/tcup2017/results/klub/task-3-on-2017-07-13/total | M20: Méně jak 4 platné disciplíny
A21: Toužim Cup 2017 - Kombi | B21: CZ | C21: 2017 | D21: Toužim | E21: 2 | F21: 12 | G21: 0 | H21: 0 | I21: 0 | J21: 8.7.-15.7.2017 | K21: http://www.gliding.cz/souteze/2017/tcup/ | L21: https://www.soaringspot.com/cs/tcup2017/results/kombi/task-4-on-2017-07-13/total | M21: Méně jak 4 platné disciplíny
A22: PMČRj 2017 - Klub | B22: CZ | C22: 2017 | D22: Jihlava | E22: 7 | F22: 31 | G22: 0.9 | H22: 0.905 | I22: 0.005 | J22: 9.7.-21.7.2017 | K22: http://www.gliding.cz/souteze/2017/pmcr_j/ | L22: https://www.soaringspot.com/cs/plachtarske-mistrovstvi-ceske-republiky-junioru-jihlava-2017/results/club/task-10-on-2017-07-21/total
A23: Pohár Vysočiny 2017 - Klub | B23: CZ | C23: 2017 | D23: Havlíčkův Brod | E23: 3 | F23: 47 | G23: 0 | H23: 0 | I23: 0 | J23: 22.7.-30.7.2017 | K23: http://www.gliding.cz/souteze/2017/ppv/ | L23: https://www.soaringspot.com/cs/plachtarsky-pohar-vysociny-2017-havlickuv-brod-2017/results/klub/task-4-on-2017-07-29/total | M23: Méně jak 4 platné disciplíny
A24: Pohár Vysočiny 2017 - Kombi | B24: CZ | C24: 2017 | D24: Havlíčkův Brod | E24: 3 | F24: 17 | G24: 0 | H24: 0 | I24: 0 | J24: 22.7.-30.7.2017 | K24: http://www.gliding.cz/souteze/2017/ppv/ | L24: https://www.soaringspot.com/cs/plachtarsky-pohar-vysociny-2017-havlickuv-brod-2017/results/kombi/task-5-on-2017-07-29/total | M24: Méně jak 4 platné disciplíny
A25: 19. EGC 2017 - Klub | B25: CZ | C25: 2017 | D25: Moravská Třebová | E25: 6 | F25: 31 | G25: 1 | H25: 1.075 | I25: 0.075 | J25: 23.7.-4.8.2017 | K25: http://www.egc2017.cz/ | L25: https://www.soaringspot.com/cs/19th-fai-european-gliding-championships-moravska-trebova-2017/results/club/task-10-on-2017-08-03/total
A26: 19. EGC 2017 - Std | B26: CZ | C26: 2017 | D26: Moravská Třebová | E26: 6 | F26: 27 | G26: 1 | H26: 1.09 | I26: 0.09 | J26: 23.7.-4.8.2017 | K26: http://www.egc2017.cz/ | L26: https://www.soaringspot.com/cs/19th-fai-european-gliding-championships-moravska-trebova-2017/results/standard/task-10-on-2017-08-03/total
A27: 19. EGC 2017 - Duo | B27: CZ | C27: 2017 | D27: Moravská Třebová | E27: 6 | F27: 16 | G27: 1 | H27: 1.01 | I27: 0.01 | J27: 23.7.-4.8.2017 | K27: http://www.egc2017.cz/ | L27: https://www.soaringspot.com/cs/19th-fai-european-gliding-championships-moravska-trebova-2017/results/double-seater/task-10-on-2017-08-03/total
A28: Pohár Českého Ráje 2017 - Kombi | B28: CZ | C28: 2017 | D28: Jičín | E28: 4 | F28: 10 | G28: 0.6 | H28: 0.6 | I28: 0 | J28: 29.7.-5.8.2017 | K28: http://aecr.cz/ud%C3%A1lost/pohar-ceskeho-raje-2017/ | L28: https://www.soaringspot.com/cs/pohar-ceskeho-raje-2017-jicin-2017/results/combi/task-5-on-2017-08-05/total
A29: PMRg 2017 - Klub | B29: CZ | C29: 2017 | D29: Křižanov | E29: 7 | F29: 47 | G29: 0.95 | H29: 0.975 | I29: 0.025 | J29: 6.8.-18.8.2017 | K29: http://lkka.cz/pmrg2017/ | L29: https://www.soaringspot.com/cs/plachtarske-mistrovstvi-regionu-krizanov-2017/results/klubova-trida/task-9-on-2017-08-18/total
A30: PMRg 2017 - Kombi | B30: CZ | C30: 2017 | D30: Křižanov | E30: 8 | F30: 19 | G30: 0.95 | H30: 0.965 | I30: =H30-G30 -> 0.015 | J30: 6.8.-18.8.2017 | K30: http://lkka.cz/pmrg2017/ | L30: https://www.soaringspot.com/cs/plachtarske-mistrovstvi-regionu-krizanov-2017/results/kombinovana-trida/task-9-on-2017-08-18/total
A31: 16. HOP 2017 - Klub | B31: CZ | C31: 2017 | D31: Hronov | E31: 4 | F31: 27 | G31: 0.6 | H31: 0.605 | I31: 0.005 | J31: 12.8.-19.8.2017 | K31: http://www.lkvp.cz/HOP-2017.html | L31: https://www.soaringspot.com/cs/16-hop-2017-velke-porici-2017/results/klub-hop/task-5-on-2017-08-18/total
A32: 16. HOP 2017 - Kombi | B32: CZ | C32: 2017 | D32: Hronov | E32: 4 | F32: 13 | G32: 0.6 | H32: 0.6 | I32: 0 | J32: 12.8.-19.8.2017 | K32: http://www.lkvp.cz/HOP-2017.html | L32: https://www.soaringspot.com/cs/16-hop-2017-velke-porici-2017/results/kombi-ppf/task-6-on-2017-08-18/total
A33: GGP MB 2017 - Gradient GP | B33: CZ | C33: 2017 | D33: Mladá Boleslav | E33: 3 | F33: 6 | G33: 0 | H33: 0 | I33: 0 | J33: 26.8.-2.9.2017 | K33: http://ggp.cpska.cz/public/index3.php | L33: https://www.soaringspot.com/cs/gradient-club-grand-prix-2017-mlada-boleslav-2017/results/gradient-gp/task-4-on-2017-08-29/total | M33: Méně jak 4 platné disciplíny
A34: GGP MB 2017 - Klub GP | B34: CZ | C34: 2017 | D34: Mladá Boleslav | E34: 2 | F34: 6 | G34: 0 | H34: 0 | I34: 0 | J34: 26.8.-2.9.2017 | K34: http://ggp.cpska.cz/public/index3.php | L34: https://www.soaringspot.com/cs/gradient-club-grand-prix-2017-mlada-boleslav-2017/results/club-gp/task-4-on-2017-08-29/total | M34: Méně jak 4 platné disciplíny
A35: GGP MB 2017 - Pohár MV - Kombi | B35: CZ | C35: 2017 | D35: Mladá Boleslav | E35: 4 | F35: 11 | G35: 0.6 | H35: 0.62 | I35: 0.02 | J35: 26.8.-2.9.2017 | K35: http://ggp.cpska.cz/public/index3.php | L35: https://www.soaringspot.com/cs/gradient-club-grand-prix-2017-mlada-boleslav-2017/results/pohar-metodeje-vlach/task-7-on-2017-09-02/total
A36: Pribina Cup 2017 - Klub | B36: SK | C36: 2017 | D36: Nitra | E36: 4 | F36: 45 | G36: 0.9 | H36: 0.94 | I36: 0.04 | J36: 14.4.-22.4.2017 | K36: www.pribinacup.sk/ | L36: https://www.soaringspot.com/cs/pribina-cup-2017-nitra-2017/results/unknown/task-5-on-2017-04-21/total
A37: Pribina Cup 2017 - Kombi 15m | B37: SK | C37: 2017 | D37: Nitra | E37: 5 | F37: 34 | G37: 0.9 | H37: 0.945 | I37: 0.045 | J37: 14.4.-22.4.2017 | K37: www.pribinacup.sk/ | L37: https://www.soaringspot.com/cs/pribina-cup-2017-nitra-2017/results/15-meter/task-5-on-2017-04-21/total
A38: Pribina Cup 2017 - Kombi Open | B38: SK | C38: 2017 | D38: Nitra | E38: 4 | F38: 32 | G38: 0.9 | H38: 0.975 | I38: 0.075 | J38: 14.4.-22.4.2017 | K38: www.pribinacup.sk/ | L38: https://www.soaringspot.com/cs/pribina-cup-2017-nitra-2017/results/open/task-5-on-2017-04-21/total
A39: Pribina Cup 2017 - Duo 20m | B39: SK | C39: 2017 | D39: Nitra | E39: 5 | F39: 25 | G39: 0.9 | H39: 0.905 | I39: 0.005 | J39: 14.4.-22.4.2017 | K39: www.pribinacup.sk/ | L39: https://www.soaringspot.com/cs/pribina-cup-2017-nitra-2017/results/20m-double-seater/task-5-on-2017-04-21/total
A40: FCC 2017 - Klub | B40: SK | C40: 2017 | D40: Prievidza | E40: 4 | F40: 43 | G40: 0.9 | H40: 0.935 | I40: 0.035 | J40: 23.4.-4.5.2017 | K40: http://www.fccgliding.sk/ | L40: https://www.soaringspot.com/cs/fcc-gliding-2017-prievidza-2017/results/club/task-6-on-2017-05-01/total
A41: FCC 2017 - Kombi 15m | B41: SK | C41: 2017 | D41: Prievidza | E41: 4 | F41: 32 | G41: 0.9 | H41: 0.93 | I41: 0.03 | J41: 23.4.-4.5.2017 | K41: http://www.fccgliding.sk/ | L41: https://www.soaringspot.com/cs/fcc-gliding-2017-prievidza-2017/results/15-m/task-6-on-2017-05-01/total
A42: FCC 2017 - Kombi Open | B42: SK | C42: 2017 | D42: Prievidza | E42: 4 | F42: 23 | G42: 0.9 | H42: 0.97 | I42: 0.07 | J42: 23.4.-4.5.2017 | K42: http://www.fccgliding.sk/ | L42: https://www.soaringspot.com/cs/fcc-gliding-2017-prievidza-2017/results/combi/task-6-on-2017-05-01/total
A43: PMSR 2017 - Klub | B43: SK | C43: 2017 | D43: Partizánske | E43: 9 | F43: 33 | G43: 0.9 | H43: 0.915 | I43: 0.015 | J43: 2.7.-16.7.2017 | K43: http://www.pmsr.sk/index.php?str=uvod&detail=86&od=0&language=sk&rocnik=2017 | L43: https://www.soaringspot.com/cs/pmsr-2017-a-memorial-a-makarenka-male-bielice1-2017/results/klub/task-11-on-2017-07-15/total
A44: PMSR 2017 - Kombi | B44: SK | C44: 2017 | D44: Partizánske | E44: 10 | F44: 16 | G44: 0.9 | H44: 0.905 | I44: 0.005 | J44: 2.7.-16.7.2017 | K44: http://www.pmsr.sk/index.php?str=uvod&detail=86&od=0&language=sk&rocnik=2017 | L44: https://www.soaringspot.com/cs/pmsr-2017-a-memorial-a-makarenka-male-bielice1-2017/results/kombi/task-11-on-2017-07-15/total
A45: SGP 2017 SK - 18m GP | B45: SK | C45: 2017 | D45: Partizánske | E45: 7 | F45: 15 | G45: 0.9 | H45: 0.935 | I45: 0.035 | J45: 27.7.-5.8.2017 | K45: http://www.sgp.aero/slovakia2017.aspx | L45: https://www.soaringspot.com/cs/slovakia-sgp-male-bielice-2017/results/18-meter/task-7-on-2017-08-04/total
A46: Oldtimer Pribina Star 2017 - Klub | B46: SK | C46: 2017 | D46: Nitra | E46: 5 | F46: 14 | G46: 0.6 | H46: 0.6 | I46: 0 | J46: 12.8.-19.8.2017 | K46: http://www.airportnitra.sk/sk/oldtimer-pribina-star.html | L46: https://www.soaringspot.com/cs/oldtimerpribina-star-2017-nitra-2017/results/veteran/task-5-on-2017-08-18/total
A47: 25. Alpe Adria Cup - Kombi | B47: AT | C47: 2017 | D47: Feldkirchen | E47: 6 | F47: 29 | G47: 0.6 | H47: 0.615 | I47: 0.015 | J47: 20.5.-27.5.2017 | K47: https://www.soaringspot.com/cs/aac2017/results/offene-klasse/task-6-on-2017-05-27/total | L47: https://www.soaringspot.com/cs/aac2017/results/offene-klasse/task-6-on-2017-05-27/total
A48: TAL 2017 - Kombi | B48: AT | C48: 2017 | D48: Dobersberg | E48: 4 | F48: 13 | G48: 0.6 | H48: 0.6 | I48: 0 | J48: 5.8.-12.8.2017 | K48: https://www.soaringspot.com/cs/dobersberg-tal-2017/results/allgemeine-klasse/task-4-on-2017-08-12/total | L48: https://www.soaringspot.com/cs/dobersberg-tal-2017/results/allgemeine-klasse/task-4-on-2017-08-12/total
A49: 10. WGC Juniors 2017 - Klub | B49: LT | C49: 2017 | D49: Pociunai | E49: 7 | F49: 38 | G49: 1 | H49: 1.01 | I49: 0.01 | J49: 30.7.-12.8.2017 | K49: http://jwgc2017.pociunai.lt/ | L49: https://www.soaringspot.com/en_gb/jwgc2017/results/club/task-8-on-2017-08-12/total
A50: 10. WGC Juniors 2017 - Std | B50: LT | C50: 2017 | D50: Pociunai | E50: 8 | F50: 32 | G50: 1 | H50: 1.02 | I50: 0.02 | J50: 30.7.-12.8.2017 | K50: http://jwgc2017.pociunai.lt/ | L50: https://www.soaringspot.com/en_gb/jwgc2017/results/standard/task-8-on-2017-08-12/total
A51: 19. EGC 2017 - 15m | B51: UK | C51: 2017 | D51: Lasham | E51: 9 | F51: 16 | G51: 1 | H51: 1.065 | I51: 0.065 | J51: 10.8.-26.8.2017 | K51: http://www.egc2017.co.uk/ | L51: http://www.egc2017.co.uk/overall15m
A52: 19. EGC 2017 - 18m | B52: UK | C52: 2017 | D52: Lasham | E52: 10 | F52: 25 | G52: 1 | H52: 1.095 | I52: 0.095 | J52: 10.8.-26.8.2017 | K52: http://www.egc2017.co.uk/ | L52: http://www.egc2017.co.uk/overall18m
A53: 19. EGC 2017 - Open | B53: UK | C53: 2017 | D53: Lasham | E53: 10 | F53: 18 | G53: 1 | H53: 1.09 | I53: 0.09 | J53: 10.8.-26.8.2017 | K53: http://www.egc2017.co.uk/ | L53: http://www.egc2017.co.uk/overallOpen
A54: Zařazené soutěže 2018:
A55: AZ Cup 2018 - Klub | B55: CZ | C55: 2018 | D55: Zbraslavice | E55: 8 | F55: 40 | G55: 0.9 | H55: 0.925 | I55: =H55-G55 -> 0.025 | J55: 28.4.-7.5.2018 | K55: http://www.azcup.cz/ | L55: https://www.soaringspot.com/cs/az-cup-2018-zbraslavice-2018/results/klub
A56: AZ Cup 2018 - Kombi | B56: CZ | C56: 2018 | D56: Zbraslavice | E56: 9 | F56: 29 | G56: 0.9 | H56: 0.95 | I56: 0.05 | J56: 28.4.-7.5.2018 | K56: http://www.azcup.cz/ | L56: https://www.soaringspot.com/cs/az-cup-2018-zbraslavice-2018/results/kombi
A57: 14. JPJ 2018 - Klub | B57: CZ | C57: 2018 | D57: Šumperk | E57: 2 | F57: 44 | G57: 0 | H57: =G57 -> 0 | I57: 0 | J57: 28.4.-7.5.2018 | K57: http://www.jpj-sumperk.cz/ | L57: https://www.soaringspot.com/cs/14-jarni-pohar-jeseniku-2018-sumperk-2018/results/klubova-trida | M57: Méně jak 4 platné disciplíny
A58: 14. JPJ 2018 - Kombi | B58: CZ | C58: 2018 | D58: Šumperk | E58: 2 | F58: 24 | G58: 0 | H58: =G58 -> 0 | I58: 0 | J58: 28.4.-7.5.2018 | K58: http://www.jpj-sumperk.cz/ | L58: https://www.soaringspot.com/cs/14-jarni-pohar-jeseniku-2018-sumperk-2018/results/kombi-trida | M58: Méně jak 4 platné disciplíny
A59: PMČR 2018 - Klub | B59: CZ | C59: 2018 | D59: Tábor | E59: 10 | F59: 29 | G59: 1 | H59: 1.055 | I59: 0.055 | J59: 27.5.-9.6.2018 | K59: http://www.gliding.cz/souteze/2018/pmcr/ | L59: https://www.soaringspot.com/cs/plachtarske-mistrovstvi-cr-2018-tabor-2018/results/klub
A60: PMČR 2018 - Kombi 15m | B60: CZ | C60: 2018 | D60: Tábor | E60: 9 | F60: 17 | G60: 1 | H60: 1.055 | I60: 0.055 | J60: 27.5.-9.6.2018 | K60: http://www.gliding.cz/souteze/2018/pmcr/ | L60: https://www.soaringspot.com/cs/plachtarske-mistrovstvi-cr-2018-tabor-2018/results/kombi-15
A61: PMČR 2018 - Kombi Open | B61: CZ | C61: 2018 | D61: Tábor | E61: 9 | F61: 14 | G61: 1 | H61: 1.025 | I61: 0.025 | J61: 27.5.-9.6.2018 | K61: http://www.gliding.cz/souteze/2018/pmcr/ | L61: https://www.soaringspot.com/cs/plachtarske-mistrovstvi-cr-2018-tabor-2018/results/kombi-open
A62: FL 2018 - Kombi | B62: CZ | C62: 2018 | D62: Frýdlant n/Ostr. | E62: 6 | F62: 15 | G62: 0.6 | H62: =G62 -> 0.6 | I62: 0 | J62: 29.6.-7.7.2018 | K62: https://fl2018.akfrydlant.cz/ | L62: https://www.soaringspot.com/cs/fl-2018-adrenalin-grand-prix-frydlant-2018/results/fl
A63: Adrenalin GP 2018 - Klub GP | B63: CZ | C63: 2018 | D63: Frýdlant n/Ostr. | E63: 7 | F63: 12 | G63: 0.6 | H63: 0.605 | I63: 0.005 | J63: 29.6.-7.7.2018 | K63: https://fl2018.akfrydlant.cz/ | L63: https://www.soaringspot.com/cs/fl-2018-adrenalin-grand-prix-frydlant-2018/results/agp
A64: Safari 2018 - Duo Kombi | B64: CZ | C64: 2018 | D64: Dvůr Králové | E64: 6 | F64: 11 | G64: 0.6 | H64: 0.6 | I64: 0 | J64: 30.6.-13.7.2018 | K64: http://www.gliding.cz/souteze/2018/safari/ | L64: https://www.soaringspot.com/cs/21-safari-pohar-dvur-kralove-nad-labem-2018/results/duo-blanik
A65: Safari 2018 - Klub | B65: CZ | C65: 2018 | D65: Dvůr Králové | E65: 8 | F65: 29 | G65: 0.6 | H65: 0.6 | I65: 0 | J65: 30.6.-13.7.2018 | K65: http://www.gliding.cz/souteze/2018/safari/ | L65: https://www.soaringspot.com/cs/21-safari-pohar-dvur-kralove-nad-labem-2018/results/klub
A66: Safari 2018 - Kombi | B66: CZ | C66: 2018 | D66: Dvůr Králové | E66: 8 | F66: 11 | G66: 0.6 | H66: 0.6 | I66: 0 | J66: 30.6.-13.7.2018 | K66: http://www.gliding.cz/souteze/2018/safari/ | L66: https://www.soaringspot.com/cs/21-safari-pohar-dvur-kralove-nad-labem-2018/results/volna
A67: Toužim Cup 2018 - Klub | B67: CZ | C67: 2018 | D67: Toužim | E67: 5 | F67: 29 | G67: 0.9 | H67: 0.905 | I67: 0.005 | J67: 14.7.-21.7.2018 | K67: http://www.gliding.cz/souteze/2018/tcup/ | L67: https://www.soaringspot.com/cs/touzim-cup-2018-touzim-2018/results/klub
A68: Toužim Cup 2018 - Kombi | B68: CZ | C68: 2018 | D68: Toužim | E68: 5 | F68: 19 | G68: 0.9 | H68: 0.905 | I68: 0.005 | J68: 14.7.-21.7.2018 | K68: http://www.gliding.cz/souteze/2018/tcup/ | L68: https://www.soaringspot.com/cs/touzim-cup-2018-touzim-2018/results/kombi
A69: PMČRj 2018 - Klub | B69: CZ | C69: 2018 | D69: Raná | E69: 10 | F69: 30 | G69: 0.9 | H69: 0.905 | I69: 0.005 | J69: 15.7.-27.7.2018 | K69: http://www.gliding.cz/souteze/2018/pmcr_j/ | L69: https://www.soaringspot.com/cs/plachtarske-mistrovstvi-cr-junioru-2018-rana-loumy-2018/results/club
A70: Ranský Pohár 2018 - Kombi | B70: CZ | C70: 2018 | D70: Raná | E70: 6 | F70: 19 | G70: 0.6 | H70: =G70 -> 0.6 | I70: 0 | J70: 21.7.-28.7.2018 | K70: http://pohar.aeroklubrana.cz/ | L70: https://www.soaringspot.com/cs/ransky-pohar-2018-rana-loumy-2018/results/combi
A71: PPV 2018 - Klub | B71: CZ | C71: 2018 | D71: Havlíčkův Brod | E71: 6 | F71: 44 | G71: 0.9 | H71: =G71 -> 0.9 | I71: 0 | J71: 21.7.-28.7.2018 | K71: http://www.gliding.cz/souteze/2018/ppv/ | L71: https://www.soaringspot.com/cs/plachtarsky-pohar-vysociny-2018-havlickuv-brod-2018/results/klubova-trida
A72: PPV 2018 - Kombi | B72: CZ | C72: 2018 | D72: Havlíčkův Brod | E72: 6 | F72: 17 | G72: 0.9 | H72: 0.9 | I72: 0 | J72: 21.7.-28.7.2018 | K72: http://www.gliding.cz/souteze/2018/ppv/ | L72: https://www.soaringspot.com/cs/plachtarsky-pohar-vysociny-2018-havlickuv-brod-2018/results/kombinovana-trida
A73: Pohár Českého Ráje 2018 - Kombi | B73: CZ | C73: 2018 | D73: Jičín | E73: 8 | F73: 10 | G73: 0.6 | H73: =G73 -> 0.6 | I73: 0 | J73: 28.7.-4.8.2018 | L73: https://www.soaringspot.com/cs/pohar-ceskeho-raje-2018-jicin-2018/results/unknown
A74: PMRg 2018 - Klub | B74: CZ | C74: 2018 | D74: Hodkovice | E74: 10 | F74: 36 | G74: 0.95 | H74: 0.965 | I74: 0.015 | J74: 29.7.-11.8.2018 | K74: http://www.gliding.cz/souteze/2018/pmrg/ | L74: https://www.soaringspot.com/cs/mistrovstvi-ceske-republiky-regionu-hodkovice-nad-mohelkou-2018/results/klub
A75: PMRg 2018 - Kombi | B75: CZ | C75: 2018 | D75: Hodkovice | E75: 10 | F75: 17 | G75: 0.95 | H75: 0.97 | I75: 0.02 | J75: 29.7.-11.8.2018 | K75: http://www.gliding.cz/souteze/2018/pmrg/ | L75: https://www.soaringspot.com/cs/mistrovstvi-ceske-republiky-regionu-hodkovice-nad-mohelkou-2018/results/kombi-open
A76: 35. WGC 2018 - Std | B76: PL | C76: 2018 | D76: Ostrow Wielkopolski | E76: 7 | F76: 47 | G76: 1 | H76: 1.105 | I76: 0.105 | J76: 8.7.-21.7.2018 | K76: https://ostrowglide.com/en/ | L76: https://www.soaringspot.com/cs/wgc2018pl/results/standard
A77: 35. WGC 2018 - 15m | B77: PL | C77: 2018 | D77: Ostrow Wielkopolski | E77: 7 | F77: 37 | G77: 1 | H77: 1.085 | I77: 0.085 | J77: 8.7.-21.7.2018 | K77: https://ostrowglide.com/en/ | L77: https://www.soaringspot.com/cs/wgc2018pl/results/15-meter
A78: 35. WGC 2018 - Klub | B78: PL | C78: 2018 | D78: Ostrow Wielkopolski | E78: 7 | F78: 48 | G78: 1 | H78: 1.09 | I78: 0.09 | J78: 8.7.-21.7.2018 | K78: https://ostrowglide.com/en/ | L78: https://www.soaringspot.com/cs/wgc2018pl/results/club
A79: 35. WGC 2018 - 18m | B79: CZ | C79: 2018 | D79: Hosím | E79: 12 | F79: 45 | G79: 1 | H79: 1.105 | I79: 0.105 | J79: 28.7.-11.8.2018 | K79: http://www.wgc2018.cz/ | L79: https://www.soaringspot.com/cs/35th-world-gliding-championships-hosin-2018/results/18-meter
A80: 35. WGC 2018 - Open | B80: CZ | C80: 2018 | D80: Hosím | E80: 12 | F80: 31 | G80: 1 | H80: 1.095 | I80: 0.095 | J80: 28.7.-11.8.2018 | K80: http://www.wgc2018.cz/ | L80: https://www.soaringspot.com/cs/35th-world-gliding-championships-hosin-2018/results/open
A81: 35. WGC 2018 - Duo 20m | B81: CZ | C81: 2018 | D81: Hosím | E81: 12 | F81: 18 | G81: 1 | H81: 1.07 | I81: 0.07 | J81: 28.7.-11.8.2018 | K81: http://www.wgc2018.cz/ | L81: https://www.soaringspot.com/cs/35th-world-gliding-championships-hosin-2018/results/double-seater
A82: 17. HOP 2018 - Klub | B82: CZ | C82: 2018 | D82: Hronov | E82: 6 | F82: 26 | G82: 0.6 | H82: =G82 -> 0.6 | I82: 0 | J82: 11.8.-18.8.2018 | K82: http://www.lkvp.cz/HOP-2018.html | L82: https://www.soaringspot.com/cs/17-hop-2018-velke-porici-2018/results/klub-hop
A83: 17. HOP 2018 - Kombi | B83: CZ | C83: 2018 | D83: Hronov | E83: 6 | F83: 15 | G83: 0.6 | H83: 0.6 | I83: 0 | J83: 11.8.-18.8.2018 | K83: http://www.lkvp.cz/HOP-2018.html | L83: https://www.soaringspot.com/cs/17-hop-2018-velke-porici-2018/results/kombi-ppf
A84: GGP MB 2018 - Gradient GP | B84: CZ | C84: 2018 | D84: Mladá Boleslav | E84: 6 | F84: 11 | G84: 0.6 | H84: =G84 -> 0.6 | I84: 0 | J84: 18.8.-25.8.2018 | K84: http://ggp.cpska.cz/public/index3.php | L84: https://www.soaringspot.com/cs/gradient-club-grand-prix-2018-mlada-boleslav-2018/results/gradient-gp
A85: GGP MB 2018 - Klub GP | B85: CZ | C85: 2018 | D85: Mladá Boleslav | E85: 6 | F85: 10 | G85: 0.6 | H85: 0.61 | I85: 0.01 | J85: 18.8.-25.8.2018 | K85: http://ggp.cpska.cz/public/index3.php | L85: https://www.soaringspot.com/cs/gradient-club-grand-prix-2018-mlada-boleslav-2018/results/club-gp
A86: GGP MB 2018 - Pohár MV - Kombi | B86: CZ | C86: 2018 | D86: Mladá Boleslav | E86: 6 | F86: 11 | G86: 0.6 | H86: 0.61 | I86: 0.01 | J86: 18.8.-25.8.2018 | K86: http://ggp.cpska.cz/public/index3.php | L86: https://www.soaringspot.com/cs/gradient-club-grand-prix-2018-mlada-boleslav-2018/results/pohar-metodeje-vlach
A87: Fatraglide 2018 - Kombi | B87: SK | C87: 2018 | D87: Martin | E87: 9 | F87: 14 | G87: 0.6 | H87: 0.6 | I87: 0 | J87: 28.4.-7.5.2018 | K87: http://www.fatraglide.sk/ | L87: https://www.soaringspot.com/en_gb/fatraglide18-martin-2018/results/combi
A88: Hahnweide 2018 - Duo 20m | B88: DE | C88: 2018 | D88: Kirchheim/Teck | E88: 6 | F88: 32 | G88: 0.6 | H88: 0.65 | I88: 0.05 | J88: 4.5.-12.5.2018 | K88: http://www.wettbewerb.wolf-hirth.de/ | L88: https://www.soaringspot.com/de/52-internationaler-hahnweide-wettbewerb-hahnweide-2018/results/dosi
A89: Flatland Cup 2018 - Klub | B89: HU | C89: 2018 | D89: Szeged | E89: 7 | F89: 35 | G89: 0.9 | H89: 0.905 | I89: 0.005 | J89: 3.8.-11.8.2018 | K89: http://flatlandcup.hu/2018/hu/ | L89: https://www.soaringspot.com/cs/xi-flatland-cup-szeged-2018/results/fai-club
A90: Flatland Cup 2018 - Kombi | B90: HU | C90: 2018 | D90: Szeged | E90: 9 | F90: 25 | G90: 0.9 | H90: 0.905 | I90: 0.005 | J90: 3.8.-11.8.2018 | K90: http://flatlandcup.hu/2018/hu/ | L90: https://www.soaringspot.com/cs/xi-flatland-cup-szeged-2018/results/open
A91: FCC 2018 - Klub | B91: SK | C91: 2018 | D91: Prievidza | E91: 8 | F91: 47 | G91: 0.9 | H91: 0.94 | I91: 0.04 | J91: 8.4.-19.4.2018 | K91: http://www.fccgliding.sk/ | L91: https://www.soaringspot.com/cs/fcc-gliding-2018-prievidza-2018/results/club
A92: FCC 2018 - Kombi 15m | B92: SK | C92: 2018 | D92: Prievidza | E92: 7 | F92: 33 | G92: 0.9 | H92: 0.98 | I92: 0.08 | J92: 8.4.-19.4.2018 | K92: http://www.fccgliding.sk/ | L92: https://www.soaringspot.com/cs/fcc-gliding-2018-prievidza-2018/results/15-m
A93: FCC 2018 - Kombi Open | B93: SK | C93: 2018 | D93: Prievidza | E93: 8 | F93: 25 | G93: 0.9 | H93: 0.96 | I93: 0.06 | J93: 8.4.-19.4.2018 | K93: http://www.fccgliding.sk/ | L93: https://www.soaringspot.com/cs/fcc-gliding-2018-prievidza-2018/results/combi
A94: Šariš Cup 2018 - Klub | B94: SK | C94: 2018 | D94: Ražňany | E94: 6 | F94: 19 | G94: 0.6 | H94: =G94 -> 0.6 | I94: 0 | J94: 26.5.-3.6.2018 | L94: https://www.soaringspot.com/cs/sariscup-gliding-2018-raznany-2018/results/club
A95: PMSR 2018 - Kombi | B95: SK | C95: 2018 | D95: Prievidza | E95: 9 | F95: 20 | G95: 0.9 | H95: 0.91 | I95: 0.01 | J95: 10.6.-22.6.2018 | L95: https://www.soaringspot.com/cs/61-majstrovstva-slovenska-v-bezmotorovom-lietani-prievidza-2018/results/volna-trieda
A96: SGP 2018 RU - Klub GP | B96: RU | C96: 2018 | D96: Usman | E96: 3 | F96: 17 | G96: 0 | H96: 0 | I96: 0 | J96: 19.5.-26.5.2018 | K96: http://sgp.aero/russia2018/event-information/event-schedule.aspx?contestID=31481 | L96: http://sgp.aero/russia2018/results-sgp/results.aspx?contestID=31527 | M96: Méně jak 4 platné disciplíny
A97: 8. WSGP Final 2018 - 18m GP | B97: CL | C97: 2018 | D97: Vitacura | E97: 6 | F97: 19 | G97: 1 | H97: 1.055 | I97: 0.055 | J97: 11.1.-20.1.2018 | K97: http://sgp.aero/finals2017.aspx | L97: http://sgp.aero/finals2017/results-sgp/results.aspx?contestID=28606
A98: 38. MAM 2018 - Kombi | B98: SK | C98: 2018 | D98: Partizánske | E98: 10 | F98: 9 | G98: 0 | H98: 0 | I98: 0 | J98: 1.7.-15.7.2018 | L98: https://www.soaringspot.com/cs/38-memorial-alexandra-makarenka-2018-male-bielice-2018/results/kombi-treida | M98: Méně jak 10 soutěžících pilotů
A99: Pribina Cup 2018 - Klub | B99: SK | C99: 2018 | D99: Nitra | E99: 2 | F99: 34 | G99: 0 | H99: =G99 -> 0 | I99: 0 | J99: 30.3.-7.4.2018 | K99: www.pribinacup.sk/ | L99: https://www.soaringspot.com/cs/pribina-cup-2018-nitra-2018/results/club | M99: Méně jak 4 platné disciplíny
A100: Pribina Cup 2018 - Kombi 15m | B100: SK | C100: 2018 | D100: Nitra | E100: 2 | F100: 26 | G100: 0 | H100: =G100 -> 0 | I100: 0 | J100: 30.3.-7.4.2018 | K100: www.pribinacup.sk/ | L100: https://www.soaringspot.com/cs/pribina-cup-2018-nitra-2018/results/15-meter | M100: Méně jak 4 platné disciplíny
A101: Pribina Cup 2018 - Kombi Open | B101: SK | C101: 2018 | D101: Nitra | E101: 2 | F101: 18 | G101: 0 | H101: =G101 -> 0 | I101: 0 | J101: 30.3.-7.4.2018 | K101: www.pribinacup.sk/ | L101: https://www.soaringspot.com/cs/pribina-cup-2018-nitra-2018/results/open | M101: Méně jak 4 platné disciplíny
A102: Pribina Cup 2018 - Duo 20m | B102: SK | C102: 2018 | D102: Nitra | E102: 2 | F102: 13 | G102: 0 | H102: =G102 -> 0 | I102: 0 | J102: 30.3.-7.4.2018 | K102: www.pribinacup.sk/ | L102: https://www.soaringspot.com/cs/pribina-cup-2018-nitra-2018/results/20m-multi-seat | M102: Méně jak 4 platné disciplíny
A103: Zařazené soutěže 2019:
A104: AZ Cup 2019 - Klub | B104: CZ | C104: 2019 | D104: Zbraslavice | E104: 6 | F104: 37 | G104: 0.9 | H104: 0.905 | I104: 0.005 | J104: 1.5.-11.5.19 | L104: https://www.soaringspot.com/cs/az-cup-2019-zbraslavice-2019/results/klubova-trida
A105: AZ Cup 2019 - Kombi | B105: CZ | C105: 2019 | D105: Zbraslavice | E105: 6 | F105: 30 | G105: 0.9 | H105: 0.925 | I105: 0.025 | J105: 1.5.-11.5.19 | L105: https://www.soaringspot.com/cs/az-cup-2019-zbraslavice-2019/results/kombinovana-trida
A106: 15. JPJ 2019 - Klub | B106: CZ | C106: 2019 | D106: Šumperk | E106: 4 | F106: 36 | G106: 0.9 | H106: 0.9 | I106: 0 | J106: 1.5.-11.5.19 | L106: https://www.soaringspot.com/cs/jpj2019/results/klubova-trida
A107: 15. JPJ 2019 - Kombi | B107: CZ | C107: 2019 | D107: Šumperk | E107: 5 | F107: 28 | G107: 0.9 | H107: 0.9 | I107: 0 | J107: 1.5.-11.5.19 | L107: https://www.soaringspot.com/cs/jpj2019/results/kombi-trida
A108: GGP MB 2019 - Klub GP | B108: CZ | C108: 2019 | D108: Mladá Boleslav | E108: 6 | F108: 9 | G108: 0 | H108: 0 | I108: 0 | J108: 29.6.-6.7.19 | L108: https://www.soaringspot.com/cs/gradient-club-grand-prix-2019-mlada-boleslav-2019/results/club-gp | M108: Méně jak 10 soutěžících ve třídě
A109: GGP MB 2019 - Pohár MV - Kombi | B109: CZ | C109: 2019 | D109: Mladá Boleslav | E109: 6 | F109: 6 | G109: 0 | H109: 0 | I109: 0 | J109: 29.6.-6.7.19 | L109: https://www.soaringspot.com/cs/gradient-club-grand-prix-2019-mlada-boleslav-2019/results/pohar-metodeje-vlach | M109: Méně jak 10 soutěžících ve třídě
A110: FL 2019 - Kombi | B110: CZ | C110: 2019 | D110: Frýdlant n/Ostr. | E110: 7 | F110: 14 | G110: 0.6 | H110: 0.6 | I110: 0 | J110: 28.6.-6.7.19 | L110: https://www.soaringspot.com/cs/fl-2019-adrenalin-grand-prix-frydlant-2019/results/fl
A111: Adrenalin GP 2019 - Klub GP | B111: CZ | C111: 2019 | D111: Frýdlant n/Ostr. | E111: 7 | F111: 12 | G111: 0.9 | H111: 0.9 | I111: 0 | J111: 28.6.-6.7.19 | L111: https://www.soaringspot.com/cs/fl-2019-adrenalin-grand-prix-frydlant-2019/results/unknown
A112: PMČRj 2019 - Klub | B112: CZ | C112: 2019 | D112: Jaroměř | E112: 7 | F112: 31 | G112: 0.9 | H112: 0.91 | I112: 0.01 | J112: 30.6.-12.7.19 | L112: https://www.soaringspot.com/cs/plachtarske-mistrovstvi-cr-junioru-a-akademiku-2019-jaromer-2019/results/club
A113: Safari 2019 - Duo Kombi | B113: CZ | C113: 2019 | D113: Dvůr Králové | E113: 7 | F113: 15 | G113: 0.6 | H113: 0.605 | I113: 0.005 | J113: 29.6.-13.7.19 | L113: https://www.soaringspot.com/cs/safari-cup-2019-dvur-kralove-nad-labem-2019/results/double-seater
A114: Safari 2019 - Klub | B114: CZ | C114: 2019 | D114: Dvůr Králové | E114: 7 | F114: 28 | G114: 0.6 | H114: 0.6 | I114: 0 | J114: 29.6.-13.7.19 | L114: https://www.soaringspot.com/cs/safari-cup-2019-dvur-kralove-nad-labem-2019/results/klub
A115: Safari 2019 - Kombi | B115: CZ | C115: 2019 | D115: Dvůr Králové | E115: 7 | F115: 11 | G115: 0.6 | H115: 0.605 | I115: 0.005 | J115: 29.6.-13.7.19 | L115: https://www.soaringspot.com/cs/safari-cup-2019-dvur-kralove-nad-labem-2019/results/volna
A116: PPV 2019 - Klub | B116: CZ | C116: 2019 | D116: Havlíčkův Brod | E116: 4 | F116: 47 | G116: 0.9 | H116: 0.9 | I116: 0 | J116: 13.7.-20.7.19 | L116: https://www.soaringspot.com/cs/plachtarsky-pohar-vysociny-2019-havlickuv-brod-2019/results/klubova-trida
A117: PPV 2019 - Kombi | B117: CZ | C117: 2019 | D117: Havlíčkův Brod | E117: 4 | F117: 19 | G117: 0.9 | H117: 0.905 | I117: 0.005 | J117: 13.7.-20.7.19 | L117: https://www.soaringspot.com/cs/plachtarsky-pohar-vysociny-2019-havlickuv-brod-2019/results/kombinovana-trida
A118: Toužim Cup 2019 - Klub | B118: CZ | C118: 2019 | D118: Toužim | E118: 5 | F118: 31 | G118: 0.9 | H118: 0.905 | I118: 0.005 | J118: 23.7.-21.7.19 | L118: https://www.soaringspot.com/cs/touzim-cup-2019-touzim1-2019/results/club
A119: Toužim Cup 2019 - Kombi | B119: CZ | C119: 2019 | D119: Toužim | E119: 5 | F119: 22 | G119: 0.9 | H119: 0.9 | I119: =H119-G119 -> 0 | J119: 23.7.-21.7.19 | L119: https://www.soaringspot.com/cs/touzim-cup-2019-touzim1-2019/results/kombi
A120: PMRg 2019 - Klub | B120: CZ | C120: 2019 | D120: Vysoké Mýto | E120: 8 | F120: 24 | G120: 0.95 | H120: 0.965 | I120: 0.015 | J120: 21.7.-3.8.19 | L120: https://www.soaringspot.com/cs/plachtarske-mistrovstvi-regionu-2019-vysoke-myto-2019/results/klubova-trida
A121: PMRg 2019 - Kombi | B121: CZ | C121: 2019 | D121: Vysoké Mýto | E121: 8 | F121: 13 | G121: 0.95 | H121: 0.965 | I121: 0.015 | J121: 21.7.-3.8.19 | L121: https://www.soaringspot.com/cs/plachtarske-mistrovstvi-regionu-2019-vysoke-myto-2019/results/kombinovana-trida
A122: Pohár Českého Ráje 2019 - Kombi | B122: CZ | C122: 2019 | D122: Jičín | E122: 3 | F122: 12 | G122: 0 | H122: 0 | I122: 0 | J122: 27.7.-3.8.19 | L122: https://www.soaringspot.com/cs/pohar-ceskeho-raje-2019-jicin-2019/results/unknown | M122: Méně jak 4 platné disciplíny
A123: Ranský Pohár 2019 - Kombi | B123: CZ | C123: 2019 | D123: Raná | E123: 3 | F123: 16 | G123: 0 | H123: 0 | I123: 0 | J123: 27.7.-4.8.19 | L123: https://www.soaringspot.com/cs/ransky-pohar-2019-rana-loumy-2019/results/club | M123: Méně jak 4 platné disciplíny
A124: 18. HOP 2019 - Klub | B124: CZ | C124: 2019 | D124: Hronov | E124: 2 | F124: 27 | G124: 0 | H124: 0 | I124: 0 | J124: 10.8.-17.8.19 | L124: https://www.soaringspot.com/cs/18-hop-2019-velke-porici-2019/results/klub-hop | M124: Méně jak 4 platné disciplíny
A125: 18. HOP 2019 - Kombi | B125: CZ | C125: 2019 | D125: Hronov | E125: 5 | F125: 16 | G125: 0.6 | H125: 0.6 | I125: 0 | J125: 10.8.-17.8.19 | L125: https://www.soaringspot.com/cs/18-hop-2019-velke-porici-2019/results/kombi-ppf
A126: PMCŘ 2019 - Klub | B126: CZ | C126: 2019 | D126: Moravská Třebová | E126: 7 | F126: 28 | G126: 1 | H126: 1.05 | I126: 0.05 | J126: 12.8.-24.8.19 | L126: https://www.soaringspot.com/cs/plachtarske-mistrovstvi-cr-2019-moravska-trebova-2019/results/15-meter
A127: PMCŘ 2019 - Kombi 15m | B127: CZ | C127: 2019 | D127: Moravská Třebová | E127: 6 | F127: 13 | G127: 1 | H127: 1.06 | I127: =H127-G127 -> 0.06 | J127: 12.8.-24.8.19 | L127: https://www.soaringspot.com/cs/plachtarske-mistrovstvi-cr-2019-moravska-trebova-2019/results/kombi-15m
A128: PMCŘ 2019 - Kombi Open | B128: CZ | C128: 2019 | D128: Moravská Třebová | E128: 7 | F128: 13 | G128: 1 | H128: 1.015 | I128: 0.015 | J128: 12.8.-24.8.19 | L128: https://www.soaringspot.com/cs/plachtarske-mistrovstvi-cr-2019-moravska-trebova-2019/results/kombi-open
A129: Zbraslavický bludišťák 2019 - Kombi | B129: CZ | C129: 2019 | D129: Zbraslavice | E129: 2 | F129: 19 | G129: 0 | H129: 0 | I129: 0 | J129: 31.8.-15.9.19 | L129: https://www.soaringspot.com/cs/zbraslavicky-bludistak-zbraslavice-2019/results/otevrena-trida | M129: Méně jak 4 platné disciplíny
A130: Pribina Cup 2019 - Klub | B130: SK | C130: 2019 | D130: Nitra | E130: 4 | F130: 43 | G130: 0.9 | H130: 0.945 | I130: 0.045 | J130: 19.4.-27.4.19 | L130: https://www.soaringspot.com/cs/pribina-cup-2019-nitra-2019/results/club
A131: Pribina Cup 2019 - Kombi 15m | B131: SK | C131: 2019 | D131: Nitra | E131: 5 | F131: 37 | G131: 0.9 | H131: 0.945 | I131: 0.045 | J131: 19.4.-27.4.19 | L131: https://www.soaringspot.com/cs/pribina-cup-2019-nitra-2019/results/15m
A132: Pribina Cup 2019 - Kombi Open | B132: SK | C132: 2019 | D132: Nitra | E132: 4 | F132: 36 | G132: 0.9 | H132: 0.965 | I132: 0.065 | J132: 19.4.-27.4.19 | L132: https://www.soaringspot.com/cs/pribina-cup-2019-nitra-2019/results/open
A133: Pribina Cup 2019 - Duo 20m | B133: SK | C133: 2019 | D133: Nitra | E133: 5 | F133: 13 | G133: 0.9 | H133: 0.915 | I133: 0.015 | J133: 19.4.-27.4.19 | L133: https://www.soaringspot.com/cs/pribina-cup-2019-nitra-2019/results/20m-double-seater
A134: FCC 2019 - Klub | B134: SK | C134: 2019 | D134: Prievidza | E134: 4 | F134: 39 | G134: 0.9 | H134: 0.965 | I134: 0.065 | J134: 28.4.-9.5.19 | L134: https://www.soaringspot.com/cs/fcc-gliding-2019-prievidza-2019/results/club
A135: FCC 2019 - Kombi 15m | B135: SK | C135: 2019 | D135: Prievidza | E135: 4 | F135: 38 | G135: 0.9 | H135: 0.98 | I135: 0.08 | J135: 28.4.-9.5.19 | L135: https://www.soaringspot.com/cs/fcc-gliding-2019-prievidza-2019/results/15-m
A136: FCC 2019 - Kombi Open | B136: SK | C136: 2019 | D136: Prievidza | E136: 4 | F136: 27 | G136: 0.9 | H136: 0.935 | I136: 0.035 | J136: 28.4.-9.5.19 | L136: https://www.soaringspot.com/cs/fcc-gliding-2019-prievidza-2019/results/combi
A137: Šariš Cup 2019 - Klub | B137: SK | C137: 2019 | D137: Ražňany | E137: 4 | F137: 14 | G137: 0.6 | H137: 0.6 | I137: 0 | J137: 1.6.-9.6.19 | L137: https://www.soaringspot.com/cs/sariscup2019/results/club
A138: Šariš Cup 2019 - Kombi | B138: SK | C138: 2019 | D138: Ražňany | E138: 5 | F138: 6 | G138: 0 | H138: 0 | I138: =H138-G138 -> 0 | J138: 1.6.-9.6.19 | L138: https://www.soaringspot.com/cs/sariscup2019/results/combi | M138: Méně jak 10 soutěžících ve třídě
A139: PMSR 2019 - Klub | B139: SK | C139: 2019 | D139: Martin | E139: 7 | F139: 24 | G139: 0.9 | H139: 0.905 | I139: 0.005 | J139: 16.6.-28.6.19 | L139: https://www.soaringspot.com/cs/62-majstrovstva-sr-vbezmotorovom-lietani-2019-martin-2019/results/klubova-trieda
A140: PMSR 2019 - Kombi 15m | B140: SK | C140: 2019 | D140: Martin | E140: 7 | F140: 10 | G140: 0.9 | H140: 0.915 | I140: =H140-G140 -> 0.015 | J140: 16.6.-28.6.19 | L140: https://www.soaringspot.com/cs/62-majstrovstva-sr-vbezmotorovom-lietani-2019-martin-2019/results/15m-standard-trieda
A141: PMSR 2019 - Kombi Open | B141: SK | C141: 2019 | D141: Martin | E141: 7 | F141: 14 | G141: 0.9 | H141: 0.905 | I141: =H141-G141 -> 0.005 | J141: 16.6.-28.6.19 | L141: https://www.soaringspot.com/cs/62-majstrovstva-sr-vbezmotorovom-lietani-2019-martin-2019/results/kombinovana-trieda
A142: 39. MAM 2019 - Klub | B142: SK | C142: 2019 | D142: Partizánske | E142: 9 | F142: 34 | G142: 0.6 | H142: 0.6 | I142: 0 | J142: 30.6.-11.7.19 | L142: https://www.soaringspot.com/cs/39-memorial-alexandra-makarenka-2019-male-bielice-2019/results/klubova-trieda
A143: 39. MAM 2019 - Kombi | B143: SK | C143: 2019 | D143: Partizánske | E143: 9 | F143: 10 | G143: 0.6 | H143: 0.6 | I143: =H143-G143 -> 0 | J143: 30.6.-11.7.19 | L143: https://www.soaringspot.com/cs/39-memorial-alexandra-makarenka-2019-male-bielice-2019/results/kombinovana-treida
A144: 20th EGC - Std | B144: SK | C144: 2019 | D144: Prievidza | E144: 12 | F144: 29 | G144: 1 | H144: 1.075 | I144: 0.075 | J144: 7.7.-20.7.19 | L144: https://www.soaringspot.com/cs/20th-fai-european-gliding-championship-2019-prievidza-2019/results/standard
A145: 20th EGC - Klub | B145: SK | C145: 2019 | D145: Prievidza | E145: 12 | F145: 31 | G145: 1 | H145: 1.075 | I145: =H145-G145 -> 0.075 | J145: 7.7.-20.7.19 | L145: https://www.soaringspot.com/cs/20th-fai-european-gliding-championship-2019-prievidza-2019/results/club
A146: 20th EGC - 15m | B146: SK | C146: 2019 | D146: Prievidza | E146: 12 | F146: 22 | G146: 1 | H146: 1.075 | I146: =H146-G146 -> 0.075 | J146: 7.7.-20.7.19 | L146: https://www.soaringspot.com/cs/20th-fai-european-gliding-championship-2019-prievidza-2019/results/15m
A147: Top Gun 2019 - Kombi | B147: SK | C147: 2019 | D147: Prievidza | E147: 3 | F147: 10 | G147: 0 | H147: 0 | I147: 0 | J147: 10.8.-17.8.19 | L147: https://www.soaringspot.com/cs/top-gun-prievidza-2019-prievidza-2019/results/top-gun | M147: Méně jak 4 platné disciplíny
A148: 20th EGC - Open | B148: PL | C148: 2019 | D148: Stalowa Wola-Turbia | E148: 5 | F148: 17 | G148: 1 | H148: 1.055 | I148: 0.055 | J148: 11.5.-25.5.19 | K148: https://egc2019.pl/ | L148: https://www.soaringspot.com/en_gb/egc019/results/open
A149: 20th EGC - 18m | B149: PL | C149: 2019 | D149: Stalowa Wola-Turbia | E149: 5 | F149: 28 | G149: 1 | H149: 1.085 | I149: =H149-G149 -> 0.085 | J149: 11.5.-25.5.19 | K149: https://egc2019.pl/ | L149: https://www.soaringspot.com/en_gb/egc019/results/18m
A150: 20th EGC - Duo 20m | B150: PL | C150: 2019 | D150: Stalowa Wola-Turbia | E150: 5 | F150: 14 | G150: 1 | H150: 1.06 | I150: =H150-G150 -> 0.06 | J150: 11.5.-25.5.19 | K150: https://egc2019.pl/ | L150: https://www.soaringspot.com/en_gb/egc019/results/20m-multi-seat
A151: 27. Alpe Adria Cup - Klub | B151: AT | C151: 2019 | D151: Feldkirchen | E151: 3 | F151: 20 | G151: 0 | H151: 0 | I151: 0 | J151: 25.5.-1.6.19 | L151: https://www.soaringspot.com/cs/aac2019/results/106er-klasse | M151: Méně jak 4 platné disciplíny
A152: 27. Alpe Adria Cup - Kombi | B152: AT | C152: 2019 | D152: Feldkirchen | E152: 3 | F152: 23 | G152: 0 | H152: 0 | I152: =H152-G152 -> 0 | J152: 25.5.-1.6.19 | L152: https://www.soaringspot.com/cs/aac2019/results/offene-klasse | M152: Méně jak 4 platné disciplíny
A153: OSS 2019 - Klub | B153: AT | C153: 2019 | D153: Dobersberg | E153: 4 | F153: 16 | G153: 0.9 | H153: 0.905 | I153: 0.005 | J153: 3.8.-10.8.19 | L153: https://www.soaringspot.com/cs/ssm2019/results/club
A154: OSS 2019 - 18m | B154: AT | C154: 2019 | D154: Dobersberg | E154: 4 | F154: 19 | G154: 0.9 | H154: 0.915 | I154: =H154-G154 -> 0.015 | J154: 3.8.-10.8.19 | L154: https://www.soaringspot.com/cs/ssm2019/results/18-meter
A155: OSS 2019 - Open | B155: AT | C155: 2019 | D155: Dobersberg | E155: 4 | F155: 8 | G155: 0 | H155: 0 | I155: =H155-G155 -> 0 | J155: 3.8.-10.8.19 | L155: https://www.soaringspot.com/cs/ssm2019/results/open | M155: Méně jak 10 soutěžících ve třídě
A156: OSS 2019 - Kombi | B156: AT | C156: 2019 | D156: Dobersberg | E156: 4 | F156: 11 | G156: 0.9 | H156: 0.9 | I156: 0 | J156: 3.8.-10.8.19 | L156: https://www.soaringspot.com/cs/ssm2019/results/mixed
A157: 11. WGC Juniors 2019 - Klub | B157: HU | C157: 2019 | D157: Szeged | E157: 11 | F157: 44 | G157: 1 | H157: 1.015 | I157: 0.015 | J157: 28.7.-10.8.19 | L157: https://www.soaringspot.com/cs/11th-fai-junior-world-gliding-championships-szeged-2019/results/club
A158: 11. WGC Juniors 2019 - Std | B158: HU | C158: 2019 | D158: Szeged | E158: 10 | F158: 36 | G158: 1 | H158: 1.04 | I158: 0.04 | J158: 28.7.-10.8.19 | L158: https://www.soaringspot.com/cs/11th-fai-junior-world-gliding-championships-szeged-2019/results/standard
A159: SGP 2019 BH - 18m GP | B159: BH | C159: 2019 | D159: Livno | E159: 6 | F159: 15 | G159: 0.9 | H159: 0.915 | I159: =H159-G159 -> 0.015 | J159: 27.7.-3.8.19 | L159: http://www.sgp.aero/bosnia2018/results-sgp/results.aspx?contestID=32417
A160: 9. WSGP Final 2019 - 18m GP | B160: SP | C160: 2019 | D160: La Cerdanya | E160: 6 | F160: 19 | G160: 1 | H160: 1.07 | I160: 0.07 | J160: 1.6.-8.6.19 | L160: http://www.sgp.aero/finals2019/results-sgp/results.aspx
A163: Schváleno Plachtařskou komisí AeČR dne 10.11.2019 ve Vysokém Mýtě

Sheet Region
A1: Aeroklub | B1: Region | C1: Počet | D1: =C70+C37+C2 -> 89
A2: Benešov | B2: CZ/C1 | C2: =COUNTIF(B2:B35,B2) -> 34
A3: Beroun | B3: CZ/C1
A4: Bystřice u Benešova | B4: CZ/C1
A5: Erpužice | B5: CZ/C1
A6: GAC Benešov | B6: CZ/C1
A7: Hořovice | B7: CZ/C1
A8: Hosín | B8: CZ/C1
A9: Jindřichův Hradec | B9: CZ/C1
A10: Karlovy Vary | B10: CZ/C1
A11: Karlštejn | B11: CZ/C1
A12: Kladno | B12: CZ/C1
A13: Klatovy | B13: CZ/C1
A14: Kolín | B14: CZ/C1
A15: Kralupy | B15: CZ/C1
A16: Letkov | B16: CZ/C1
A17: Letňany | B17: CZ/C1
A18: Mladá Boleslav | B18: CZ/C1
A19: Nesvačily | B19: CZ/C1
A20: Panenský Týnec | B20: CZ/C1
A21: Plasy | B21: CZ/C1
A22: Plzeň Bory | B22: CZ/C1
A23: Prachatice | B23: CZ/C1
A24: Příbram | B24: CZ/C1
A25: Rakovník | B25: CZ/C1
A26: Slaný | B26: CZ/C1
A27: Soběslav | B27: CZ/C1
A28: Staňkov | B28: CZ/C1
A29: Strakonice | B29: CZ/C1
A30: Tábor | B30: CZ/C1
A31: Tachov | B31: CZ/C1
A32: Točná | B32: CZ/C1
A33: Toužim | B33: CZ/C1
A34: Vlašim | B34: CZ/C1
A35: Zbraslavice | B35: CZ/C1
A36: - | B36: -
A37: Broumov | B37: CZ/C2 | C37: =COUNTIF(B37:B68,B37) -> 32
A38: Česká Lípa | B38: CZ/C2
A39: Dvůr Králové | B39: CZ/C2
A40: Havlíčkův Brod | B40: CZ/C2
A41: Hodkovice | B41: CZ/C2
A42: Hořice | B42: CZ/C2
A43: Hradčany | B43: CZ/C2
A44: Hronov | B44: CZ/C2
A45: Chomutov | B45: CZ/C2
A46: Chotěboř | B46: CZ/C2
A47: Chrudim | B47: CZ/C2
A48: Jaroměř | B48: CZ/C2
A49: Jičín | B49: CZ/C2
A50: Letecká společnost na Vysočině | B50: CZ/C2
A51: Liberec | B51: CZ/C2
A52: Mnichovo Hradiště | B52: CZ/C2
A53: Most | B53: CZ/C2
A54: Náchod | B54: CZ/C2
A55: Nové Město nad Metují | B55: CZ/C2
A56: Pardubice | B56: CZ/C2
A57: Podhořany | B57: CZ/C2
A58: Polička | B58: CZ/C2
A59: Přibyslav | B59: CZ/C2
A60: Raná | B60: CZ/C2
A61: Roudnice | B61: CZ/C2
A62: Skuteč | B62: CZ/C2
A63: Turnov | B63: CZ/C2
A64: Ústí nad Labem | B64: CZ/C2
A65: Ústí nad Orlicí | B65: CZ/C2
A66: Vrchlabí | B66: CZ/C2
A67: Vysoké Mýto | B67: CZ/C2
A68: Žamberk | B68: CZ/C2
A69: - | B69: -
A70: Bohuňovice | B70: CZ/M | C70: =COUNTIF(B70:B92,B70) -> 23
A71: Břeclav | B71: CZ/M
A72: LK Břeclav | B72: CZ/M
A73: Frýdlant | B73: CZ/M
A74: Hranice | B74: CZ/M
A75: Jeseník | B75: CZ/M
A76: Jihlava | B76: CZ/M
A77: Krnov | B77: CZ/M
A78: Kroměříž | B78: CZ/M
A79: Křižanov | B79: CZ/M
A80: Kunovice | B80: CZ/M
A81: Kyjov | B81: CZ/M
A82: Luhačovice | B82: CZ/M
A83: Medlánky | B83: CZ/M
A84: Moravská Třebová | B84: CZ/M
A85: Olomouc | B85: CZ/M
A86: Prostějov | B86: CZ/M
A87: Slatina | B87: CZ/M
A88: Slavičín | B88: CZ/M
A89: Stichovice | B89: CZ/M
A90: Šumperk | B90: CZ/M
A91: Vyškov | B91: CZ/M
A92: Zábřeh | B92: CZ/M
A94: Aalborg | B94: DK
A95: Air Sympatia | B95: SK
A96: Akaflieg Dresden | B96: DE
A97: Bad Nauheim | B97: DE
A98: Bratislava | B98: SK
A99: Dánsko | B99: DK
A100: Greiz | B100: DE
A101: Japonsko | B101: JP
A102: Jelenia Góra | B102: PL
A103: Martin | B103: SK
A104: Německo | B104: DE
A105: Nitra | B105: SK
A106: Novo Mesto | B106: SI
A107: Poprad | B107: SK
A108: Prešov | B108: SK
A109: Prievidza | B109: SK
A110: Rakousko | B110: AT
A111: Ružomberok | B111: SK
A112: SGC Martin | B112: SK
A113: Slovinsko | B113: SI
A114: Trenčín | B114: SK
A115: Trnava | B115: SK
A116: Žilina | B116: SK

Sheet Pilot
A1: Jmeno | B1: Rok nar. | C1: Aeroklub | D1: Region | E1: M/F | F1: Junior v roce | G1: 2020 | H1: Hranice pro juniory: / Poznámka: | I1: =G1-25 -> 1995 | J1: Počet jun: | K1: =COUNTIF(F3:F2099,"Junior v roce "&G1) -> 63 | L1: Počet F: | M1: =COUNTIF(E3:E2099,"F") -> 71 | N1: Počet M: | O1: =COUNTIF(E3:E2099,"M") -> 860 | P1: Počet celk: | Q1: =COUNTIF(A3:A2099,"<>") -> 931
A2: -
A3: Adam Jandora | B3: 1992 | C3: Medlánky | D3: =VLOOKUP(C3,Region,2,0) -> CZ/M | E3: M | F3: =IF(A3="(prázdné)","",IF(($G$1-B3)>25,"","Junior v roce "&$G$1)) -> 
A4: Adam Olejar | B4: 1991 | C4: Medlánky | D4: CZ/M | E4: M | F4: =IF(A4="(prázdné)","",IF(($G$1-B4)>25,"","Junior v roce "&$G$1)) -> 
A5: Adam Sostaric | B5: 1991 | C5: Chrudim | D5: CZ/C2 | E5: M
A6: Albrecht Beat | B6: 1953 | C6: Šumperk | D6: CZ/M | E6: M
A7: Alena Netusilova | B7: 1970 | C7: Zbraslavice | D7: CZ/C1 | E7: F
A8: Ales Cervenka | B8: 1981 | C8: Soběslav | D8: CZ/C1 | E8: M
A9: Ales Hajek | B9: 1958 | C9: Mladá Boleslav | D9: CZ/C1 | E9: M
A10: Ales Hala | B10: 1994 | C10: Tábor | D10: CZ/C1 | E10: M
A11: Ales Holoubek | B11: 1966 | C11: Jičín | D11: CZ/C2 | E11: M
A12: Ales Tresl | B12: 1958 | C12: Raná | D12: CZ/C2 | E12: M
A13: Ales Vorac | B13: 1985 | C13: Křižanov | D13: CZ/M | E13: M
A14: Ales Vyhnal | B14: 1989 | C14: Kralupy | D14: CZ/C1 | E14: M
A15: Alexander Nerandzic | B15: 1966 | C15: Raná | D15: CZ/C2 | E15: M
A16: Alois Cmajdalka | B16: 1963 | C16: Kunovice | D16: CZ/M | E16: M
A17: Alois Sohr | B17: 1939 | C17: Hranice | D17: CZ/M | E17: M
A18: Andrea Bensova | B18: 1978 | C18: Zbraslavice | D18: CZ/C1 | E18: F
A19: Aneta Prachtova | B19: 1991 | C19: Kralupy | D19: CZ/C1 | E19: F
A20: Anna Bordovska | B20: 1989 | C20: Mladá Boleslav | D20: CZ/C1 | E20: F
A21: Antonin Bordovsky | B21: 1951 | C21: Krnov | D21: CZ/M | E21: M
A22: Antonin Bruna | B22: 1945 | C22: GAC Benešov | D22: CZ/C1 | E22: M
A23: Antonin Burger | B23: 1943 | C23: Panenský Týnec | D23: CZ/C1 | E23: M
A24: Antonin Konicek | B24: 1973 | C24: Kunovice | D24: CZ/M | E24: M
A25: Antonin Kutalek | B25: 1943 | C25: Zábřeh | D25: CZ/M | E25: M
A26: Antonin Novotny | B26: 1972 | C26: Luhačovice | D26: CZ/M | E26: M
A27: Antonin Otrusina | B27: 1948 | C27: Křižanov | D27: CZ/M | E27: M
A28: Antonin Pilat | B28: 1971 | C28: Vyškov | D28: CZ/M | E28: M
A29: Antonin Teichmann | B29: 1965 | C29: Hronov | D29: CZ/C2 | E29: M
A30: Barbora Kubickova | B30: 1993 | C30: Medlánky | D30: CZ/M | E30: F
A31: Barbora Moravcova | B31: 1994 | C31: Zbraslavice | D31: CZ/C1 | E31: F
A32: Barbora Nahodilova | B32: 1989 | C32: Hosín | D32: CZ/C1 | E32: F
A33: Bedrich Honzicek | B33: 1972 | C33: Letňany | D33: =VLOOKUP(C33,Region,2,0) -> CZ/C1 | E33: M | F33: =IF(A33="(prázdné)","",IF(($G$1-B33)>25,"","Junior v roce "&$G$1)) -> 
A34: Bedrich Prochazka | B34: 1957 | C34: Rakovník | D34: CZ/C1 | E34: M
A35: Bohdan Sebestik | B35: 1957 | C35: Kroměříž | D35: CZ/M | E35: M
A36: Bohumil Kunc | B36: 1983 | C36: Kunovice | D36: CZ/M | E36: M
A37: Bohumil Rikal | B37: 1946 | C37: Hronov | D37: CZ/C2 | E37: M
A38: Bohumil Svec | B38: 1985 | C38: Roudnice | D38: CZ/C2 | E38: M
A39: Bohumir Zajdl | B39: 1950 | C39: Dvůr Králové | D39: CZ/C2 | E39: M
A40: Bohus Marcinik | B40: 1947 | C40: Příbram | D40: CZ/C1 | E40: M
A41: Boris Bachraty | B41: 1974 | C41: Břeclav | D41: CZ/M | E41: M
A42: Bronislav Smatana | B42: 1970 | C42: Zbraslavice | D42: CZ/C1 | E42: M
A43: Carsten Tietz | B43: 1966 | C43: Hronov | D43: =VLOOKUP(C43,Region,2,0) -> CZ/C2 | E43: M | F43: =IF(A43="(prázdné)","",IF(($G$1-B43)>25,"","Junior v roce "&$G$1)) -> 
A44: Christof Madoery | B44: 1958 | C44: Šumperk | D44: =VLOOKUP(C44,Region,2,0) -> CZ/M | E44: M | F44: =IF(A44="(prázdné)","",IF(($G$1-B44)>25,"","Junior v roce "&$G$1)) -> 
A45: Dalibor Daricek | B45: 1993 | C45: Kunovice | D45: CZ/M | E45: M
A46: Dalibor Fencl | B46: 1966 | C46: Zbraslavice | D46: CZ/C1 | E46: M
A47: Dalibor Pek | B47: 1968 | C47: Raná | D47: CZ/C2 | E47: M
A48: Dana Novakova | B48: 1965 | C48: Mladá Boleslav | D48: CZ/C1 | E48: F
A49: Danes Grula | B49: 1961 | C49: Medlánky | D49: CZ/M | E49: M
A50: Daniel Adamec | B50: 1977 | C50: Hranice | D50: CZ/M | E50: M
A51: Daniel Brichta | B51: 1962 | C51: GAC Benešov | D51: =VLOOKUP(C51,Region,2,0) -> CZ/C1 | E51: M | F51: =IF(A51="(prázdné)","",IF(($G$1-B51)>25,"","Junior v roce "&$G$1)) -> 
A52: Daniel Dvorak | B52: 1980 | C52: Letkov | D52: CZ/C1 | E52: M
A53: Daniel Krasnicky | B53: 1984 | C53: Příbram | D53: CZ/C1 | E53: M
A54: Daniel Moravek | B54: 1973 | C54: Hodkovice | D54: CZ/C2 | E54: M
A55: Daniel Novak | B55: 1971 | C55: Letkov | D55: CZ/C1 | E55: M
A56: Daniel Ryba | B56: 1994 | C56: Dvůr Králové | D56: CZ/C2 | E56: M
A57: Daniel Suchy | B57: 1995 | C57: Hranice | D57: CZ/M | E57: M | F57: Junior v roce 2020
A58: Daniela Frankova | B58: 1997 | C58: Hořice | D58: CZ/C2 | E58: M | F58: Junior v roce 2020
A59: Daniela Stepankova | B59: 1988 | C59: Hosín | D59: CZ/C1 | E59: F
A60: David Cisar | B60: 1987 | C60: Křižanov | D60: CZ/M | E60: M
A61: David Krcil | B61: 1976 | C61: Raná | D61: =VLOOKUP(C61,Region,2,0) -> CZ/C2 | E61: M | F61: =IF(A61="(prázdné)","",IF(($G$1-B61)>25,"","Junior v roce "&$G$1)) -> 
A62: David Londa | B62: 1973 | C62: Mladá Boleslav | D62: CZ/C1 | E62: M
A63: David Mach | B63: 1994 | C63: Hronov | D63: CZ/C2 | E63: M
A64: David Marek | B64: 1991 | C64: Křižanov | D64: CZ/M | E64: M
A65: David Novotny | B65: 1984 | C65: Polička | D65: CZ/C2 | E65: M
A66: David Popovsky | B66: 1976 | C66: Rakovník | D66: CZ/C1 | E66: M
A67: David Prihoda | B67: 1994 | C67: Hranice | D67: CZ/M | E67: M
A68: David Rozporka | B68: 1994 | C68: Hronov | D68: CZ/C2 | E68: M
A69: David Rytina | B69: 1983 | C69: Zbraslavice | D69: CZ/C1 | E69: M
A70: David Riha | B70: 1983 | C70: Vlašim | D70: CZ/C1 | E70: M
A71: David Sachl | B71: 1978 | C71: Kralupy | D71: CZ/C1 | E71: M
A72: David Tejnora | B72: 1982 | C72: Kolín | D72: CZ/C1 | E72: M
A73: David Trnecka | B73: 1979 | C73: Medlánky | D73: CZ/M | E73: M
A74: David Vrchota | B74: 1976 | C74: Jaroměř | D74: =VLOOKUP(C74,Region,2,0) -> CZ/C2 | E74: M | F74: =IF(A74="(prázdné)","",IF(($G$1-B74)>25,"","Junior v roce "&$G$1)) -> 
A75: David Zapletal | B75: 1970 | C75: Mladá Boleslav | D75: CZ/C1 | E75: M | F75: =IF(A75="(prázdné)","",IF(($G$1-B75)>25,"","Junior v roce "&$G$1)) -> 
A76: David Zatecka | B76: 1993 | C76: GAC Benešov | D76: =VLOOKUP(C76,Region,2,0) -> CZ/C1 | E76: M
A77: Dusan Gadas | B77: 1960 | C77: Hranice | D77: CZ/M | E77: M
A78: Dusan Kmet | B78: 1972 | C78: Křižanov | D78: CZ/M | E78: M
A79: Dusan Sys | B79: 1977 | C79: Šumperk | D79: CZ/M | E79: M
A80: Dusan Zerzan | B80: 1970 | C80: Šumperk | D80: CZ/M | E80: M
A81: Eduard Svoboda | B81: 1957 | C81: Raná | D81: CZ/C2 | E81: M
A82: Eliska Bohunovska | B82: 2001 | C82: Hranice | D82: =VLOOKUP(C82,Region,2,0) -> CZ/M | E82: F | F82: =IF(A82="(prázdné)","",IF(($G$1-B82)>25,"","Junior v roce "&$G$1)) -> Junior v roce 2020
A83: Eva Cerna | B83: 1964 | C83: Příbram | D83: CZ/C1 | E83: F
A84: Evzen Skala | B84: 1954 | C84: Vrchlabí | D84: CZ/C2 | E84: M
A85: Filip Graf | B85: 1981 | C85: Křižanov | D85: CZ/M | E85: M
A86: Filip Neumann | B86: 1977 | C86: GAC Benešov | D86: CZ/C1 | E86: M
A87: Filip Sklenar | B87: 1990 | C87: Žamberk | D87: CZ/C2 | E87: M
A88: Filip sirc | B88: 1993 | C88: Letňany | D88: CZ/C1 | E88: M
A89: Filip Vita | B89: 2001 | C89: Kroměříž | D89: CZ/M | E89: M | F89: Junior v roce 2020
A90: Frantisek Brozman | B90: 1960 | C90: Tachov | D90: CZ/C1 | E90: M
A91: Frantisek Filandr | B91: 1956 | C91: Most | D91: CZ/C2 | E91: M
A92: Frantisek Hubacek | B92: 1978 | C92: Točná | D92: CZ/C1 | E92: M
A93: Frantisek Komarek | B93: 1985 | C93: Zbraslavice | D93: CZ/C1 | E93: M
A94: Frantisek Kriz | B94: 1961 | C94: Toužim | D94: CZ/C1 | E94: M
A95: Frantisek Marek | B95: 1960 | C95: Křižanov | D95: CZ/M | E95: M
A96: Frantisek Matousek | B96: 1937 | C96: Nové Město nad Metují | D96: CZ/C2 | E96: M
A97: Frantisek Myska | B97: 1968 | C97: Most | D97: CZ/C2 | E97: M
A98: Frantisek Pycha | B98: 1972 | C98: Chrudim | D98: CZ/C2 | E98: M
A99: Frantisek Soucek | B99: 1945 | C99: Dvůr Králové | D99: CZ/C2 | E99: M
A100: Frantisek Sindelar | B100: 1954 | C100: Kralupy | D100: CZ/C1 | E100: M
A101: Frantisek Vancura | B101: 1966 | C101: Hranice | D101: CZ/M | E101: M
A102: Gabriela Cervena | B102: 1966 | C102: Jaroměř | D102: CZ/C2 | E102: F
A103: Gustav Vrbacky | B103: 1933 | C103: Medlánky | D103: CZ/M | E103: M
A104: Hana Treslova | B104: 1991 | C104: Raná | D104: CZ/C2 | E104: F
A105: Hana Vokrinkova | B105: 1958 | C105: Hodkovice | D105: CZ/C2 | E105: F
A106: Hynek Pokorny | B106: 1991 | C106: Letňany | D106: CZ/C1 | E106: M
A107: Christof Madory | B107: 1958 | C107: Šumperk | D107: CZ/M | E107: M
A108: Ilja Kopacek | B108: 1943 | C108: Jičín | D108: =VLOOKUP(C108,Region,2,0) -> CZ/C2 | E108: M | F108: =IF(A108="(prázdné)","",IF(($G$1-B108)>25,"","Junior v roce "&$G$1)) -> 
A109: Ivan Filakovsky | B109: 1965 | C109: Medlánky | D109: CZ/M | E109: M
A110: Ivan Harasta 65 | B110: 1965 | C110: Toužim | D110: CZ/C1 | E110: M
A111: Ivan Harasta 98 | B111: 1998 | C111: Toužim | D111: CZ/C1 | E111: M | F111: Junior v roce 2020
A112: Ivan Kuzelka | B112: 1945 | C112: Havlíčkův Brod | D112: CZ/C2 | E112: M
A113: Ivan Ladr | B113: 1940 | C113: Dvůr Králové | D113: CZ/C2 | E113: M
A114: Ivan Novak | B114: 1962 | C114: Mladá Boleslav | D114: CZ/C1 | E114: M
A115: Ivan Tvrdik | B115: 1997 | C115: Letňany | D115: CZ/C1 | E115: M | F115: Junior v roce 2020
A116: Ivo Burda | B116: 1962 | C116: Zbraslavice | D116: CZ/C1 | E116: M
A117: Ivo Nezval | B117: 1964 | C117: Šumperk | D117: CZ/M | E117: M
A118: Ivo Vudarcik | B118: 1994 | C118: Rakovník | D118: CZ/C1 | E118: M
A119: Jacek Kerum | B119: 1943 | C119: Příbram | D119: CZ/C1 | E119: M
A120: Jakub Brotanek | B120: 1985 | C120: Roudnice | D120: CZ/C2 | E120: M
A121: Jakub Hlavacek | B121: 1991 | C121: Letkov | D121: CZ/C1 | E121: M
A122: Jakub Kmosek | B122: 1978 | C122: Zbraslavice | D122: CZ/C1 | E122: M
A123: Jakub Kohn | B123: 1992 | C123: Prostějov | D123: CZ/M | E123: M
A124: Jakub Koudelka | B124: 2000 | C124: Křižanov | D124: =VLOOKUP(C124,Region,2,0) -> CZ/M | E124: M | F124: Junior v roce 2020
A125: Jakub Malik | B125: 1999 | C125: Letňany | D125: CZ/C1 | E125: M | F125: Junior v roce 2020
A126: Jakub Michalicka | B126: 1993 | C126: Rakovník | D126: CZ/C1 | E126: M
A127: Jakub Spanger | B127: 2002 | C127: Jeseník | D127: =VLOOKUP(C127,Region,2,0) -> CZ/M | E127: M | F127: =IF(A127="(prázdné)","",IF(($G$1-B127)>25,"","Junior v roce "&$G$1)) -> Junior v roce 2020
A128: Jakub Tiller | B128: 1987 | C128: Broumov | D128: CZ/C2 | E128: M
A129: Jakub Vimr | B129: 1975 | C129: GAC Benešov | D129: CZ/C1 | E129: M
A130: Jan Bejdl | B130: 1978 | C130: Zbraslavice | D130: =VLOOKUP(C130,Region,2,0) -> CZ/C1 | E130: M | F130: =IF(A130="(prázdné)","",IF(($G$1-B130)>25,"","Junior v roce "&$G$1)) -> 
A131: Jan Belina | B131: 1979 | C131: Hořice | D131: CZ/C2 | E131: M
A132: Jan Beran | B132: 1999 | C132: Kladno | D132: =VLOOKUP(C132,Region,2,0) -> CZ/C1 | E132: M | F132: Junior v roce 2020
A133: Jan Beranek | B133: 1976 | C133: Jihlava | D133: CZ/M | E133: M
A134: Jan Boruvka | B134: 1984 | C134: Jičín | D134: CZ/C2 | E134: M
A135: Jan Camr | B135: 2002 | C135: Jaroměř | D135: =VLOOKUP(C135,Region,2,0) -> CZ/C2 | E135: M | F135: =IF(A135="(prázdné)","",IF(($G$1-B135)>25,"","Junior v roce "&$G$1)) -> Junior v roce 2020
A136: Jan Cerveny | B136: 1984 | C136: Jaroměř | D136: CZ/C2 | E136: M
A137: Jan Dersak 69 | B137: 1969 | C137: Kralupy | D137: CZ/C1 | E137: M
A138: Jan Dersak 92 | B138: 1992 | C138: Kralupy | D138: CZ/C1 | E138: M
A139: Jan Drahota | B139: 1988 | C139: Rakovník | D139: CZ/C1 | E139: M
A140: Jan Drbohlav | B140: 1999 | C140: Hodkovice | D140: =VLOOKUP(C140,Region,2,0) -> CZ/C2 | E140: M | F140: =IF(A140="(prázdné)","",IF(($G$1-B140)>25,"","Junior v roce "&$G$1)) -> Junior v roce 2020
A141: Jan Florian | B141: 1992 | C141: Zbraslavice | D141: CZ/C1 | E141: M
A142: Jan Habermann | B142: 1975 | C142: Vlašim | D142: =VLOOKUP(C142,Region,2,0) -> CZ/C1 | E142: M | F142: =IF(A142="(prázdné)","",IF(($G$1-B142)>25,"","Junior v roce "&$G$1)) -> 
A143: Jan Hejret | B143: 1976 | C143: Jaroměř | D143: CZ/C2 | E143: M
A144: Jan Heroudek | B144: 1970 | C144: Rakovník | D144: =VLOOKUP(C144,Region,2,0) -> CZ/C1 | E144: M | F144: =IF(A144="(prázdné)","",IF(($G$1-B144)>25,"","Junior v roce "&$G$1)) -> 
A145: Jan Hlavacek | B145: 1965 | C145: Rakovník | D145: CZ/C1 | E145: M
A146: Jan Horak | B146: 1971 | C146: Zbraslavice | D146: CZ/C1 | E146: M
A147: Jan Horky | B147: 1968 | C147: Medlánky | D147: CZ/M | E147: M
A148: Jan Hrbatsch | B148: 1989 | C148: Hodkovice | D148: CZ/C2 | E148: M
A149: Jan Hruska | B149: 1988 | C149: Tábor | D149: CZ/C1 | E149: M | F149: =IF(A149="(prázdné)","",IF(($G$1-B149)>25,"","Junior v roce "&$G$1)) -> 
A150: Jan Hybner | B150: 1977 | C150: Liberec | D150: =VLOOKUP(C150,Region,2,0) -> CZ/C2 | E150: M
A151: Jan Jicha | B151: 1984 | C151: Podhořany | D151: CZ/C2 | E151: M
A152: Jan Jindra | B152: 1981 | C152: Roudnice | D152: CZ/C2 | E152: M
A153: Jan Kantor | B153: 1983 | C153: Letňany | D153: CZ/C1 | E153: M
A154: Jan Kapralek | B154: 1991 | C154: Kladno | D154: CZ/C1 | E154: M
A155: Jan Karabec | B155: 2000 | C155: Podhořany | D155: =VLOOKUP(C155,Region,2,0) -> CZ/C2 | E155: M | F155: =IF(A155="(prázdné)","",IF(($G$1-B155)>25,"","Junior v roce "&$G$1)) -> Junior v roce 2020
A156: Jan Kaspar | B156: 1994 | C156: Letňany | D156: =VLOOKUP(C156,Region,2,0) -> CZ/C1 | E156: M
A157: Jan Kohout | B157: 1970 | C157: Žamberk | D157: CZ/C2 | E157: M
A158: Jan Konecny | B158: 1972 | C158: Rakovník | D158: CZ/C1 | E158: M
A159: Jan Kostka | B159: 1996 | C159: Kladno | D159: CZ/C1 | E159: M | F159: Junior v roce 2020
A160: Jan Kotan | B160: 1982 | C160: Letňany | D160: CZ/C1 | E160: M
A161: Jan Kralik | B161: 1991 | C161: Letkov | D161: CZ/C1 | E161: M
A162: Jan Kristof | B162: 1962 | C162: Frýdlant | D162: CZ/M | E162: M
A163: Jan Kulistak | B163: 1990 | C163: Kunovice | D163: CZ/M | E163: M
A164: Jan Lancdorf | B164: 1988 | C164: Panenský Týnec | D164: CZ/C1 | E164: M
A165: Jan Louda | B165: 1986 | C165: Mladá Boleslav | D165: CZ/C1 | E165: M
A166: Jan Mareth | B166: 1979 | C166: Frýdlant | D166: CZ/M | E166: M
A167: Jan Masek | B167: 1977 | C167: Kladno | D167: CZ/C1 | E167: M
A168: Jan Matejovsky | B168: 1972 | C168: Hranice | D168: CZ/M | E168: M
A169: Jan Merta | B169: 1952 | C169: Šumperk | D169: CZ/M | E169: M
A170: Jan Mittner | B170: 1986 | C170: Zbraslavice | D170: =VLOOKUP(C170,Region,2,0) -> CZ/C1 | E170: M | F170: =IF(A170="(prázdné)","",IF(($G$1-B170)>25,"","Junior v roce "&$G$1)) -> 
A171: Jan Moravec | B171: 1979 | C171: Zábřeh | D171: CZ/M | E171: M
A172: Jan Nyc | B172: 1943 | C172: Dvůr Králové | D172: =VLOOKUP(C172,Region,2,0) -> CZ/C2 | E172: M | F172: =IF(A172="(prázdné)","",IF(($G$1-B172)>25,"","Junior v roce "&$G$1)) -> 
A173: Jan Obrucnik | B173: 1991 | C173: Kralupy | D173: CZ/C1 | E173: M
A174: Jan Oscatka | B174: 1990 | C174: Jaroměř | D174: =VLOOKUP(C174,Region,2,0) -> CZ/C2 | E174: M | F174: =IF(A174="(prázdné)","",IF(($G$1-B174)>25,"","Junior v roce "&$G$1)) -> 
A175: Jan Otrusina | B175: 1976 | C175: Křižanov | D175: CZ/M | E175: M
A176: Jan Ourada | B176: 1978 | C176: Točná | D176: CZ/C1 | E176: M
A177: Jan Pavlik | B177: 1987 | C177: Křižanov | D177: CZ/M | E177: M
A178: Jan Pazour | B178: 1979 | C178: Dvůr Králové | D178: =VLOOKUP(C178,Region,2,0) -> CZ/C2 | E178: M | F178: =IF(A178="(prázdné)","",IF(($G$1-B178)>25,"","Junior v roce "&$G$1)) -> 
A179: Jan Platenik | B179: 1981 | C179: Krnov | D179: CZ/M | E179: M
A180: Jan Podhrazsky | B180: 1976 | C180: Šumperk | D180: CZ/M | E180: M
A181: Jan Pokluda | B181: 1973 | C181: Šumperk | D181: CZ/M | E181: M
A182: Jan Pubec | B182: 1979 | C182: Plzeň Bory | D182: CZ/C1 | E182: M
A183: Jan Ratz | B183: 1987 | C183: Zbraslavice | D183: CZ/C1 | E183: M
A184: Jan Rensa | B184: 1980 | C184: Polička | D184: CZ/C2 | E184: M
A185: Jan Rolinek | B185: 1973 | C185: Luhačovice | D185: CZ/M | E185: M
A186: Jan Rott | B186: 1962 | C186: Plasy | D186: CZ/C1 | E186: M
A187: Jan Repka | B187: 1959 | C187: Liberec | D187: CZ/C2 | E187: M
A188: Jan Seifert | B188: 1948 | C188: Raná | D188: CZ/C2 | E188: M
A189: Jan Simon | B189: 1970 | C189: Kralupy | D189: CZ/C1 | E189: M
A190: Jan Sindelar | B190: 1946 | C190: Kunovice | D190: CZ/M | E190: M
A191: Jan Smaha | B191: 1958 | C191: Česká Lípa | D191: CZ/C2 | E191: M
A192: Jan Smekal | B192: 1976 | C192: Zbraslavice | D192: =VLOOKUP(C192,Region,2,0) -> CZ/C1 | E192: M | F192: =IF(A192="(prázdné)","",IF(($G$1-B192)>25,"","Junior v roce "&$G$1)) -> 
A193: Jan Sponer | B193: 1988 | C193: Medlánky | D193: CZ/M | E193: M
A194: Jan Stastny | B194: 2003 | C194: Medlánky | D194: =VLOOKUP(C194,Region,2,0) -> CZ/M | E194: M | F194: Junior v roce 2020
A195: Jan Stepan | B195: 1991 | C195: Hronov | D195: CZ/C2 | E195: M
A196: Jan Sustr 76 | B196: 1976 | C196: Raná | D196: CZ/C2 | E196: M
A197: Jan Sustr 77 | B197: 1977 | C197: Staňkov | D197: CZ/C1 | E197: M
A198: Jan Svarc | B198: 1977 | C198: Raná | D198: CZ/C2 | E198: M
A199: Jan Terrich | B199: 1978 | C199: Liberec | D199: CZ/C2 | E199: M
A200: Jan Tomasek | B200: 1970 | C200: Dvůr Králové | D200: CZ/C2 | E200: M
... 733 more rows

Sheet Temp
A1: Jméno | B1: Rok narození | C1: Aeroklub | D1: Region | E1: Soutěž | F1: Stát | G1: Pořadí ve třídě | H1: Body ve třídě | I1: Max. B ve třídě | J1: Ki | K1: Bi | L1: Bi×Ki | M1: Rok | N1: G | O1: W | P1: Typ | Q1: CN | R1: M/F | S1: Junior | T1: Poznámka

Sheet Data
M1: Počet: | N1: =SUBTOTAL(103,N7:N2322) -> 624 | O1: =SUBTOTAL(103,O7:O2322) -> 56
A2: * | M2: Počet pilot: | N2: =COUNTIFS(N$7:N$2322,"x",$A$7:$A$2322,$A$2) -> 624 | O2: =COUNTIFS(O$7:O$2322,"x",$A$7:$A$2322,$A$2) -> 56
M3: 2017 | N3: =COUNTIFS($M$7:$M$2322,$M3,N$7:N$2322,"x",$A$7:$A$2322,$A$2) -> 249 | O3: 22
M4: 2016 | N4: 0 | O4: 0
M5: 2015 | N5: 0 | O5: 0
A6: Jméno | B6: Rok narození | C6: Aeroklub | D6: Region | E6: Soutěž | F6: Stát | G6: Pořadí ve třídě | H6: Body ve třídě | I6: Max. B ve třídě | J6: Kn | K6: Bi | L6: Bi×Kn | M6: Rok | N6: G | O6: W | P6: Typ | Q6: CN | R6: M/F | S6: Junior | T6: Poznámka
A7: Ivan Harasta 65 | B7: =VLOOKUP(A7,Pilot,2,0) -> 1965 | C7: =VLOOKUP(A7,Pilot,3,0) -> Toužim | D7: =VLOOKUP(A7,Pilot,4,0) -> CZ/C1 | E7: AZ Cup 2017 - Klub | F7: CZ | G7: 1 | H7: 1466 | I7: 1466 | J7: =VLOOKUP(E7,Soutez,8,0) -> 0 | K7: =ROUND(H7/I7*10000*0.7+(MAX($G$7:$G$40)-G7)/(MAX($G$7:$G$40)-1)*10000*0.3,0) -> 10000 | L7: =ROUND(J7*K7,0) -> 0 | M7: 2017 | P7: ASW 15B | Q7: HI | R7: =VLOOKUP(A7,Pilot,5,0) -> M | S7: =IF(ISERROR(VLOOKUP(A7,Pilot,6,0)),"Není v databázi",VLOOKUP(A7,Pilot,6,0)) -> 
A8: Zdenek Boruvka 86 | B8: 1986 | C8: Jičín | D8: CZ/C2 | E8: AZ Cup 2017 - Klub | F8: CZ | G8: 2 | H8: 1298 | I8: 1466 | J8: 0 | K8: =ROUND(H8/I8*10000*0.7+(MAX($G$7:$G$40)-G8)/(MAX($G$7:$G$40)-1)*10000*0.3,0) -> 9107 | L8: =ROUND(J8*K8,0) -> 0 | M8: 2017 | P8: Std. Cirrus | Q8: BJ | R8: M
A9: Martin Urban | B9: 1971 | C9: Frýdlant | D9: CZ/M | E9: AZ Cup 2017 - Klub | F9: CZ | G9: 3 | H9: 1206 | I9: 1466 | J9: 0 | K9: 8577 | L9: 0 | M9: 2017 | P9: LS 3 15m | Q9: SJ | R9: M
A10: Eva Cerna | B10: 1964 | C10: Příbram | D10: CZ/C1 | E10: AZ Cup 2017 - Klub | F10: CZ | G10: 4 | H10: 1053 | I10: 1466 | J10: 0 | K10: 7755 | L10: 0 | M10: 2017 | P10: Std. Cirrus | Q10: CX | R10: F
A11: Katerina Vojtova | B11: 1983 | C11: Slaný | D11: CZ/C1 | E11: AZ Cup 2017 - Klub | F11: CZ | G11: 5 | H11: 1039 | I11: 1466 | J11: 0 | K11: 7597 | L11: 0 | M11: 2017 | P11: Std. Cirrus | Q11: SNI | R11: F
A12: Michal Kratochvil | B12: 1984 | C12: Slaný | D12: CZ/C1 | E12: AZ Cup 2017 - Klub | F12: CZ | G12: 6 | H12: 1034 | I12: 1466 | J12: 0 | K12: 7483 | L12: 0 | M12: 2017 | P12: Std. Cirrus | Q12: OMG | R12: M
A13: Jaroslav Tomana | B13: 1975 | C13: Zbraslavice | D13: CZ/C1 | E13: AZ Cup 2017 - Klub | F13: CZ | G13: 7 | H13: 1017 | I13: 1466 | J13: 0 | K13: 7311 | L13: 0 | M13: 2017 | P13: Std. Cirrus | Q13: SN | R13: M
A14: Radek Tobolka | B14: 1977 | C14: Jičín | D14: CZ/C2 | E14: AZ Cup 2017 - Klub | F14: CZ | G14: 8 | H14: 1008 | I14: 1466 | J14: 0 | K14: 7177 | L14: 0 | M14: 2017 | P14: Std. Cirrus | Q14: SC | R14: M
A15: Ladislav Jozsa | B15: 1981 | C15: Medlánky | D15: CZ/M | E15: AZ Cup 2017 - Klub | F15: CZ | G15: 9 | H15: 1000 | I15: 1466 | J15: 0 | K15: 7048 | L15: 0 | M15: 2017 | P15: Std. Cirrus | Q15: LJ | R15: M
A16: Richard Vlcek | B16: 1993 | C16: Kunovice | D16: CZ/M | E16: AZ Cup 2017 - Klub | F16: CZ | G16: 10 | H16: 998 | I16: 1466 | J16: =VLOOKUP(E16,Soutez,8,0) -> 0 | K16: 6947 | L16: 0 | M16: 2017 | P16: Std. Cirrus | Q16: XC | R16: M
A17: Viktor Becan | B17: 1979 | C17: GAC Benešov | D17: CZ/C1 | E17: AZ Cup 2017 - Klub | F17: CZ | G17: 11 | H17: 996 | I17: 1466 | J17: 0 | K17: 6847 | L17: =ROUND(J17*K17,0) -> 0 | M17: 2017 | P17: LS1d | Q17: VB | R17: M
A18: Jiri Hodan | B18: 1959 | C18: Zbraslavice | D18: CZ/C1 | E18: AZ Cup 2017 - Klub | F18: CZ | G18: 12 | H18: 963 | I18: 1466 | J18: 0 | K18: 6598 | L18: 0 | M18: 2017 | P18: G-103 Twin Astir | Q18: RB | R18: M
A19: Ales Holoubek | B19: 1966 | C19: Jičín | D19: CZ/C2 | E19: AZ Cup 2017 - Klub | F19: CZ | G19: 13 | H19: 952 | I19: 1466 | J19: 0 | K19: 6455 | L19: 0 | M19: 2017 | P19: ASW 15B | Q19: T | R19: M
A20: Lukas Plocek | B20: 1990 | C20: Mladá Boleslav | D20: CZ/C1 | E20: AZ Cup 2017 - Klub | F20: CZ | G20: 14 | H20: 922 | I20: 1466 | J20: 0 | K20: 6221 | L20: 0 | M20: 2017 | P20: ASW 19B | Q20: AH | R20: M
A21: David Popovsky | B21: 1976 | C21: Rakovník | D21: CZ/C1 | E21: AZ Cup 2017 - Klub | F21: CZ | G21: 15 | H21: 914 | I21: 1466 | J21: 0 | K21: 6092 | L21: 0 | M21: 2017 | P21: ASW 24A bez TN8 | Q21: 76 | R21: M
A22: Jakub Kmosek | B22: 1978 | C22: Zbraslavice | D22: CZ/C1 | E22: AZ Cup 2017 - Klub | F22: CZ | G22: 16 | H22: 885 | I22: 1466 | J22: 0 | K22: 5862 | L22: 0 | M22: 2017 | P22: Std. Cirrus | Q22: ST | R22: M
A23: Jan Matejovsky | B23: 1972 | C23: Hranice | D23: CZ/M | E23: AZ Cup 2017 - Klub | F23: CZ | G23: 17 | H23: 874 | I23: 1466 | J23: 0 | K23: 5719 | L23: 0 | M23: 2017 | P23: LS 3 15m | Q23: BT | R23: M
A24: Oldrich Houzvicka | B24: 1975 | C24: Frýdlant | D24: CZ/M | E24: AZ Cup 2017 - Klub | F24: CZ | G24: 18 | H24: 864 | I24: 1466 | J24: 0 | K24: 5580 | L24: 0 | M24: 2017 | P24: LS 4 | Q24: FP | R24: M
A25: Linda Vasatova | B25: 1990 | C25: Mladá Boleslav | D25: CZ/C1 | E25: AZ Cup 2017 - Klub | F25: CZ | G25: 19 | H25: 855 | I25: 1466 | J25: 0 | K25: 5446 | L25: 0 | M25: 2017 | P25: ASW 15B | Q25: MB | R25: F
A26: Marta Marszalek | C26: Glivice | D26: PL | E26: AZ Cup 2017 - Klub | F26: CZ | G26: 20 | H26: 804 | I26: 1466 | J26: 0 | K26: 5112 | L26: 0 | M26: 2017 | P26: Brawo | Q26: BI | R26: F | S26: Není v databázi
A27: Richard Jensen | B27: =VLOOKUP(A27,Pilot,2,0) -> 1965 | C27: =VLOOKUP(A27,Pilot,3,0) -> Zbraslavice | D27: =VLOOKUP(A27,Pilot,4,0) -> CZ/C1 | E27: AZ Cup 2017 - Klub | F27: CZ | G27: 21 | H27: 790 | I27: 1466 | J27: 0 | K27: 4954 | L27: 0 | M27: 2017 | P27: Std. Cirrus | Q27: P2 | R27: =VLOOKUP(A27,Pilot,5,0) -> M
A28: Klara Teichmannova | B28: 1993 | C28: Hronov | D28: CZ/C2 | E28: AZ Cup 2017 - Klub | F28: CZ | G28: 22 | H28: 744 | I28: 1466 | J28: 0 | K28: 4643 | L28: 0 | M28: 2017 | P28: Std. Cirrus | Q28: LY | R28: F
A29: Barbora Moravcova | B29: 1994 | C29: Zbraslavice | D29: CZ/C1 | E29: AZ Cup 2017 - Klub | F29: CZ | G29: 23 | H29: 730 | I29: 1466 | J29: 0 | K29: 4486 | L29: 0 | M29: 2017 | P29: ASW 19B | Q29: CF | R29: F
A30: Rudolf Jung | B30: 1954 | C30: Zbraslavice | D30: CZ/C1 | E30: AZ Cup 2017 - Klub | F30: CZ | G30: 24 | H30: 713 | I30: 1466 | J30: 0 | K30: 4314 | L30: 0 | M30: 2017 | P30: Std. Cirrus | Q30: C1 | R30: M
A31: Lukas Koukal | B31: 1991 | C31: Letkov | D31: CZ/C1 | E31: AZ Cup 2017 - Klub | F31: CZ | G31: 25 | H31: 702 | I31: 1466 | J31: 0 | K31: 4170 | L31: 0 | M31: 2017 | P31: ASW 15B | Q31: T1 | R31: M
A32: Tomas Jung | B32: 1950 | C32: Zbraslavice | D32: CZ/C1 | E32: AZ Cup 2017 - Klub | F32: CZ | G32: 26 | H32: 645 | I32: 1466 | J32: 0 | K32: 3807 | L32: 0 | M32: 2017 | P32: ASW 19B | Q32: O2 | R32: M
A33: Jan Ratz | B33: 1987 | C33: Zbraslavice | D33: CZ/C1 | E33: AZ Cup 2017 - Klub | F33: CZ | G33: 27 | H33: 628 | I33: 1466 | J33: 0 | K33: 3635 | L33: 0 | M33: 2017 | P33: Janus b | Q33: KG | R33: M
A34: Jindrich Hruska | B34: 1986 | C34: Soběslav | D34: CZ/C1 | E34: AZ Cup 2017 - Klub | F34: CZ | G34: 28 | H34: 595 | I34: 1466 | J34: 0 | K34: 3387 | L34: 0 | M34: 2017 | P34: Mosquito | Q34: UFO | R34: M
A35: Martin Chovan | B35: 1973 | C35: Zbraslavice | D35: CZ/C1 | E35: AZ Cup 2017 - Klub | F35: CZ | G35: 29 | H35: 589 | I35: 1466 | J35: 0 | K35: 3267 | L35: 0 | M35: 2017 | P35: ASW 19B | Q35: 19 | R35: M
A36: Tomas Malik | B36: 1972 | C36: Letňany | D36: CZ/C1 | E36: AZ Cup 2017 - Klub | F36: CZ | G36: 30 | H36: 577 | I36: 1466 | J36: 0 | K36: 3119 | L36: 0 | M36: 2017 | P36: VSO-10 | Q36: L5 | R36: M
A37: Dalibor Pek | B37: 1968 | C37: Raná | D37: CZ/C2 | E37: AZ Cup 2017 - Klub | F37: CZ | G37: 31 | H37: 463 | I37: 1466 | J37: 0 | K37: =ROUND(H37/I37*10000*0.7+(MAX($G$7:$G$40)-G37)/(MAX($G$7:$G$40)-1)*10000*0.3,0) -> 2484 | L37: 0 | M37: 2017 | P37: Std. Cirrus | Q37: A1 | R37: M
A38: Pavel Svrcek | B38: 1972 | C38: Frýdlant | D38: CZ/M | E38: AZ Cup 2017 - Klub | F38: CZ | G38: 32 | H38: 152 | I38: 1466 | J38: 0 | K38: 908 | L38: 0 | M38: 2017 | P38: DG 200 15m | Q38: AK | R38: M
A39: Martin Nejezchleb | B39: 1979 | C39: Plzeň Bory | D39: CZ/C1 | E39: AZ Cup 2017 - Klub | F39: CZ | G39: 33 | H39: 57 | I39: 1466 | J39: 0 | K39: 363 | L39: =ROUND(J39*K39,0) -> 0 | M39: 2017 | P39: ASW 15B | Q39: 90 | R39: M
A40: Frantisek Kriz | B40: 1961 | C40: Toužim | D40: CZ/C1 | E40: AZ Cup 2017 - Klub | F40: CZ | G40: 34 | H40: 18 | I40: 1466 | J40: 0 | K40: =ROUND(H40/I40*10000*0.7+(MAX($G$7:$G$40)-G40)/(MAX($G$7:$G$40)-1)*10000*0.3,0) -> 86 | L40: =ROUND(J40*K40,0) -> 0 | M40: 2017 | P40: G-102 Astir cs | Q40: PB | R40: M
A41: Alena Netusilova | B41: =VLOOKUP(A41,Pilot,2,0) -> 1970 | C41: =VLOOKUP(A41,Pilot,3,0) -> Zbraslavice | D41: =VLOOKUP(A41,Pilot,4,0) -> CZ/C1 | E41: AZ Cup 2017 - Kombi | F41: CZ | G41: 1 | H41: 2448 | I41: 2448 | J41: 0.92 | K41: =ROUND(H41/I41*10000*0.7+(MAX($G$41:$G$61)-G41)/(MAX($G$41:$G$61)-1)*10000*0.3,0) -> 10000 | L41: =ROUND(J41*K41,0) -> 9200 | M41: 2017 | N41: x | P41: JS-1C 18m EVO | Q41: JX | R41: =VLOOKUP(A41,Pilot,5,0) -> F | S41: =IF(ISERROR(VLOOKUP(A41,Pilot,6,0)),"Není v databázi",VLOOKUP(A41,Pilot,6,0)) -> 
A42: Tomas Suchanek | B42: 1964 | C42: GAC Benešov | D42: CZ/C1 | E42: AZ Cup 2017 - Kombi | F42: CZ | G42: 2 | H42: 2333 | I42: 2448 | J42: 0.92 | K42: =ROUND(H42/I42*10000*0.7+(MAX($G$41:$G$61)-G42)/(MAX($G$41:$G$61)-1)*10000*0.3,0) -> 9521 | L42: =ROUND(J42*K42,0) -> 8759 | M42: 2017 | P42: Ventus c 17,6m | Q42: UP | R42: M
A43: Lenka Kuthanova | B43: 1960 | C43: Tábor | D43: CZ/C1 | E43: AZ Cup 2017 - Kombi | F43: CZ | G43: 3 | H43: 2286 | I43: 2448 | J43: 0.92 | K43: 9237 | L43: 8498 | M43: 2017 | N43: x | O43: x | P43: JS-1C 18m EVO | Q43: LX | R43: F
A44: Petr Koutny | B44: 1971 | C44: Křižanov | D44: CZ/M | E44: AZ Cup 2017 - Kombi | F44: CZ | G44: 4 | H44: 2259 | I44: 2448 | J44: 0.92 | K44: 9010 | L44: 8289 | M44: 2017 | P44: LS 8b 18m | Q44: SK | R44: M
A45: Petr Starek | B45: 1974 | C45: Zbraslavice | D45: CZ/C1 | E45: AZ Cup 2017 - Kombi | F45: CZ | G45: 5 | H45: 2241 | I45: 2448 | J45: 0.92 | K45: =ROUND(H45/I45*10000*0.7+(MAX($G$41:$G$61)-G45)/(MAX($G$41:$G$61)-1)*10000*0.3,0) -> 8808 | L45: 8103 | M45: 2017 | N45: x | P45: HPH 304 SJ 18m 573 kg | Q45: 66 | R45: M
A46: Martin Hrivna | B46: 1978 | C46: Zbraslavice | D46: CZ/C1 | E46: AZ Cup 2017 - Kombi | F46: CZ | G46: 6 | H46: 2233 | I46: 2448 | J46: 0.92 | K46: 8635 | L46: 7944 | M46: 2017 | N46: x | P46: ASG 29E 18m 600kg | Q46: NX | R46: M
A47: Petr Tichy | B47: 1973 | C47: Zbraslavice | D47: CZ/C1 | E47: AZ Cup 2017 - Kombi | F47: CZ | G47: 7 | H47: 2097 | I47: 2448 | J47: 0.92 | K47: 8096 | L47: 7448 | M47: 2017 | P47: ASG 29E 18m 600kg | Q47: AJ | R47: M
A48: Martin Pekar | B48: 1973 | C48: Šumperk | D48: CZ/M | E48: AZ Cup 2017 - Kombi | F48: CZ | G48: 8 | H48: 1972 | I48: 2448 | J48: 0.92 | K48: 7589 | L48: 6982 | M48: 2017 | N48: x | P48: HPH 304e 18m 573kg | Q48: ES | R48: M
A49: Jiri Pajer | B49: 1977 | C49: Zbraslavice | D49: CZ/C1 | E49: AZ Cup 2017 - Kombi | F49: CZ | G49: 9 | H49: 1880 | I49: 2448 | J49: 0.92 | K49: 7176 | L49: 6602 | M49: 2017 | N49: x | P49: ASW-27B+W | Q49: K5 | R49: M
A50: Radek Zima 78 | B50: 1978 | C50: Hodkovice | D50: CZ/C2 | E50: AZ Cup 2017 - Kombi | F50: CZ | G50: 10 | H50: 1873 | I50: 2448 | J50: 0.92 | K50: =ROUND(H50/I50*10000*0.7+(MAX($G$41:$G$61)-G50)/(MAX($G$41:$G$61)-1)*10000*0.3,0) -> 7006 | L50: 6446 | M50: 2017 | P50: Ventus b 16,6 WL | Q50: 7F | R50: M
A51: Pavol Cerny | C51: SGC Martin | D51: SK | E51: AZ Cup 2017 - Kombi | F51: CZ | G51: 11 | H51: 1852 | I51: 2448 | J51: 0.92 | K51: 6796 | L51: 6252 | M51: 2017 | P51: Ventus 2cxt 18m 600kg | Q51: EK | R51: M | S51: Není v databázi
A52: Radek Kucirek | B52: =VLOOKUP(A52,Pilot,2,0) -> 1973 | C52: =VLOOKUP(A52,Pilot,3,0) -> Havlíčkův Brod | D52: =VLOOKUP(A52,Pilot,4,0) -> CZ/C2 | E52: AZ Cup 2017 - Kombi | F52: CZ | G52: 12 | H52: 1787 | I52: 2448 | J52: 0.92 | K52: 6460 | L52: 5943 | M52: 2017 | P52: Ventus 2b 15m | Q52: YA | R52: =VLOOKUP(A52,Pilot,5,0) -> M
A53: Karel Benisek 76 | B53: 1976 | C53: Toužim | D53: CZ/C1 | E53: AZ Cup 2017 - Kombi | F53: CZ | G53: 13 | H53: 1745 | I53: 2448 | J53: 0.92 | K53: 6190 | L53: 5695 | M53: 2017 | N53: x | P53: Ventus ct 17,6 | Q53: KB | R53: M
A54: Tomas Rendla | B54: 1973 | C54: Zbraslavice | D54: CZ/C1 | E54: AZ Cup 2017 - Kombi | F54: CZ | G54: 14 | H54: 1733 | I54: 2448 | J54: 0.92 | K54: 6005 | L54: 5525 | M54: 2017 | P54: Arcus M | Q54: EY | R54: M
A55: Jan Dersak 69 | B55: 1969 | C55: Kralupy | D55: CZ/C1 | E55: AZ Cup 2017 - Kombi | F55: CZ | G55: 15 | H55: 1623 | I55: 2448 | J55: 0.92 | K55: 5541 | L55: 5098 | M55: 2017 | P55: HPH 304CZ 17,4m | Q55: DJ | R55: M
A56: Zdenek Boruvka 54 | B56: 1954 | C56: Jičín | D56: CZ/C2 | E56: AZ Cup 2017 - Kombi | F56: CZ | G56: 16 | H56: 1593 | I56: 2448 | J56: 0.92 | K56: 5305 | L56: 4881 | M56: 2017 | P56: LS 8-18 18m | Q56: ZB | R56: M
A57: Jaromir Jedlicka | B57: 1972 | C57: Letňany | D57: CZ/C1 | E57: AZ Cup 2017 - Kombi | F57: CZ | G57: 17 | H57: 1352 | I57: 2448 | J57: 0.92 | K57: 4466 | L57: 4109 | M57: 2017 | N57: x | P57: Ventus 2 cM 18m 525kg | Q57: JT | R57: M
A58: Zdenek Schenk | B58: 1972 | C58: Hranice | D58: CZ/M | E58: AZ Cup 2017 - Kombi | F58: CZ | G58: 18 | H58: 1080 | I58: 2448 | J58: 0.92 | K58: 3538 | L58: 3255 | M58: 2017 | P58: Ventus ct 17.6m | Q58: SNK | R58: M
A59: Vladimir Spilka | B59: 1940 | C59: Hranice | D59: CZ/M | E59: AZ Cup 2017 - Kombi | F59: CZ | G59: 19 | H59: 565 | I59: 2448 | J59: 0.92 | K59: 1916 | L59: 1763 | M59: 2017 | P59: Nimbus 2b | Q59: AY | R59: M
A60: Bohus Marcinik | B60: 1947 | C60: Příbram | D60: CZ/C1 | E60: AZ Cup 2017 - Kombi | F60: CZ | G60: 20 | H60: 471 | I60: 2448 | J60: 0.92 | K60: 1497 | L60: 1377 | M60: 2017 | N60: x | P60: Ventus b 16,6m WL | Q60: XL | R60: M
A61: Petr Jiranek 63 | B61: 1962 | C61: Toužim | D61: CZ/C1 | E61: AZ Cup 2017 - Kombi | F61: CZ | G61: 21 | H61: 465 | I61: 2448 | J61: 0.92 | K61: =ROUND(H61/I61*10000*0.7+(MAX($G$41:$G$61)-G61)/(MAX($G$41:$G$61)-1)*10000*0.3,0) -> 1330 | L61: 1224 | M61: 2017 | P61: DG-500M 22m | Q61: SR | R61: M
A62: Radek Hybl | B62: =VLOOKUP(A62,Pilot,2,0) -> 1980 | C62: =VLOOKUP(A62,Pilot,3,0) -> Šumperk | D62: =VLOOKUP(A62,Pilot,4,0) -> CZ/M | E62: 13. JPJ 2017 - Klub | F62: CZ | G62: 1 | H62: 3121 | I62: 3121 | J62: 0.63 | K62: =ROUND(H62/I62*10000*0.7+(MAX($G$62:$G$100)-G62)/(MAX($G$62:$G$100)-1)*10000*0.3,0) -> 10000 | L62: =ROUND(J62*K62,0) -> 6300 | M62: 2017 | N62: x | P62: Std. Cirrus | Q62: AYz | R62: =VLOOKUP(A62,Pilot,5,0) -> M | S62: =IF(ISERROR(VLOOKUP(A62,Pilot,6,0)),"Není v databázi",VLOOKUP(A62,Pilot,6,0)) -> 
A63: Michal Lesinger | B63: =VLOOKUP(A63,Pilot,2,0) -> 1966 | C63: =VLOOKUP(A63,Pilot,3,0) -> Moravská Třebová | D63: =VLOOKUP(A63,Pilot,4,0) -> CZ/M | E63: 13. JPJ 2017 - Klub | F63: CZ | G63: 2 | H63: 3089 | I63: 3121 | J63: 0.63 | K63: =ROUND(H63/I63*10000*0.7+(MAX($G$62:$G$100)-G63)/(MAX($G$62:$G$100)-1)*10000*0.3,0) -> 9849 | L63: =ROUND(J63*K63,0) -> 6205 | M63: 2017 | P63: ASW-19B | Q63: LL | R63: =VLOOKUP(A63,Pilot,5,0) -> M
A64: Pavel Rericha | B64: =VLOOKUP(A64,Pilot,2,0) -> 1967 | C64: =VLOOKUP(A64,Pilot,3,0) -> Moravská Třebová | D64: =VLOOKUP(A64,Pilot,4,0) -> CZ/M | E64: 13. JPJ 2017 - Klub | F64: CZ | G64: 3 | H64: 2969 | I64: 3121 | J64: 0.63 | K64: 9501 | L64: 5986 | M64: 2017 | N64: x | P64: ASW-19B | Q64: NO | R64: =VLOOKUP(A64,Pilot,5,0) -> M
A65: Lubomir Motl | B65: =VLOOKUP(A65,Pilot,2,0) -> 1959 | C65: =VLOOKUP(A65,Pilot,3,0) -> Kyjov | D65: =VLOOKUP(A65,Pilot,4,0) -> CZ/M | E65: 13. JPJ 2017 - Klub | F65: CZ | G65: 4 | H65: 2953 | I65: 3121 | J65: 0.63 | K65: 9386 | L65: 5913 | M65: 2017 | P65: LS-1f | Q65: G2 | R65: =VLOOKUP(A65,Pilot,5,0) -> M
A66: Martin Ficnar | B66: =VLOOKUP(A66,Pilot,2,0) -> 1971 | C66: =VLOOKUP(A66,Pilot,3,0) -> Šumperk | D66: =VLOOKUP(A66,Pilot,4,0) -> CZ/M | E66: 13. JPJ 2017 - Klub | F66: CZ | G66: 5 | H66: 2833 | I66: 3121 | J66: 0.63 | K66: 9038 | L66: 5694 | M66: 2017 | N66: x | P66: LS-3a 15m | Q66: S20 | R66: =VLOOKUP(A66,Pilot,5,0) -> M
A67: Boris Zorz | C67: Lesce | D67: SL | E67: 13. JPJ 2017 - Klub | F67: CZ | G67: 6 | H67: 2688 | I67: 3121 | J67: 0.63 | K67: 8634 | L67: 5439 | M67: 2017 | P67: Std. Cirrus | Q67: IPF | R67: M | S67: Není v databázi
A68: Rene Hudak | B68: =VLOOKUP(A68,Pilot,2,0) -> 1972 | C68: =VLOOKUP(A68,Pilot,3,0) -> Kunovice | D68: =VLOOKUP(A68,Pilot,4,0) -> CZ/M | E68: 13. JPJ 2017 - Klub | F68: CZ | G68: 7 | H68: 2669 | I68: 3121 | J68: 0.63 | K68: 8513 | L68: 5363 | M68: 2017 | N68: x | P68: Std. Cirrus | Q68: NK | R68: =VLOOKUP(A68,Pilot,5,0) -> M
A69: Josef Novak | B69: 1981 | C69: Kunovice | D69: CZ/M | E69: 13. JPJ 2017 - Klub | F69: CZ | G69: 8 | H69: 2605 | I69: 3121 | J69: 0.63 | K69: 8290 | L69: 5223 | M69: 2017 | N69: x | P69: LS-1f | Q69: JT | R69: M
A70: Roman Schotli | B70: 1970 | C70: Hranice | D70: CZ/M | E70: 13. JPJ 2017 - Klub | F70: CZ | G70: 9 | H70: 2544 | I70: 3121 | J70: 0.63 | K70: 8074 | L70: 5087 | M70: 2017 | N70: x | P70: ASW-19B | Q70: 19 | R70: M
A71: Martin Urner | B71: 1974 | C71: Letňany | D71: CZ/C1 | E71: 13. JPJ 2017 - Klub | F71: CZ | G71: 10 | H71: 2448 | I71: 3121 | J71: 0.63 | K71: 7780 | L71: 4901 | M71: 2017 | P71: ASW-15B | Q71: JJ | R71: M
A72: Libor Bednarik | B72: 1972 | C72: Kunovice | D72: CZ/M | E72: 13. JPJ 2017 - Klub | F72: CZ | G72: 11 | H72: 2310 | I72: 3121 | J72: 0.63 | K72: 7392 | L72: 4657 | M72: 2017 | N72: x | P72: Std. Cirrus | Q72: PIF | R72: M
A73: Jiri Koudela | B73: 1974 | C73: Vyškov | D73: CZ/M | E73: 13. JPJ 2017 - Klub | F73: CZ | G73: 12 | H73: 2262 | I73: 3121 | J73: 0.63 | K73: 7205 | L73: 4539 | M73: 2017 | P73: G-102 Astir 77 | Q73: AS | R73: M
A74: Michal Cupak | B74: 1991 | C74: Medlánky | D74: CZ/M | E74: 13. JPJ 2017 - Klub | F74: CZ | G74: 13 | H74: 2207 | I74: 3121 | J74: 0.63 | K74: 7003 | L74: 4412 | M74: 2017 | N74: x | P74: Std. Cirrus | Q74: MP | R74: M
A75: Jan Zahradka | B75: 1981 | C75: Hodkovice | D75: CZ/C2 | E75: 13. JPJ 2017 - Klub | F75: CZ | G75: 14 | H75: 2163 | I75: 3121 | J75: 0.63 | K75: 6825 | L75: 4300 | M75: 2017 | P75: Std. Cirrus | Q75: UB | R75: M
A76: Jan Podhrazsky | B76: 1976 | C76: Šumperk | D76: CZ/M | E76: 13. JPJ 2017 - Klub | F76: CZ | G76: 15 | H76: 2158 | I76: 3121 | J76: 0.63 | K76: 6735 | L76: 4243 | M76: 2017 | N76: x | P76: Discus b | Q76: SJ | R76: M
A77: Matous Schmidt | B77: 1981 | C77: Letňany | D77: CZ/C1 | E77: 13. JPJ 2017 - Klub | F77: CZ | G77: 16 | H77: 2143 | I77: 3121 | J77: 0.63 | K77: 6622 | L77: 4172 | M77: 2017 | N77: x | P77: Std. Cirrus | Q77: IMI | R77: M
A78: Ladislav Jozsa | B78: 1981 | C78: Medlánky | D78: CZ/M | E78: 13. JPJ 2017 - Klub | F78: CZ | G78: 17 | H78: 2040 | I78: 3121 | J78: 0.63 | K78: 6312 | L78: 3977 | M78: 2017 | P78: Std. Cirrus | Q78: LJ | R78: M
A79: Tomas Prikryl | B79: 1973 | C79: Vyškov | D79: CZ/M | E79: 13. JPJ 2017 - Klub | F79: CZ | G79: 18 | H79: 2025 | I79: 3121 | J79: 0.63 | K79: 6200 | L79: 3906 | M79: 2017 | N79: x | P79: DG-101 G | Q79: JR | R79: M
A80: Vit Prokop | B80: 1987 | C80: Medlánky | D80: CZ/M | E80: 13. JPJ 2017 - Klub | F80: CZ | G80: 19 | H80: 1919 | I80: 3121 | J80: =VLOOKUP(E80,Soutez,8,0) -> 0.63 | K80: 5883 | L80: 3706 | M80: 2017 | P80: Std. Cirrus | Q80: MF | R80: M
A81: Martin Kriz | B81: 1968 | C81: Přibyslav | D81: CZ/C2 | E81: 13. JPJ 2017 - Klub | F81: CZ | G81: 20 | H81: 1916 | I81: 3121 | J81: 0.63 | K81: 5797 | L81: 3652 | M81: 2017 | P81: ASW-15B | Q81: BE | R81: M
A82: Petr Kolacek | B82: 1965 | C82: Šumperk | D82: CZ/M | E82: 13. JPJ 2017 - Klub | F82: CZ | G82: 21 | H82: 1904 | I82: 3121 | J82: 0.63 | K82: 5691 | L82: 3585 | M82: 2017 | N82: x | P82: Jantar std. 2 | Q82: SU | R82: M
A83: Martin Svarc | B83: 1981 | C83: Olomouc | D83: CZ/M | E83: 13. JPJ 2017 - Klub | F83: CZ | G83: 22 | H83: 1875 | I83: 3121 | J83: 0.63 | K83: 5547 | L83: 3495 | M83: 2017 | P83: DG-101 G | Q83: HE | R83: M
A84: Martin Hejny | B84: 1984 | C84: Šumperk | D84: CZ/M | E84: 13. JPJ 2017 - Klub | F84: CZ | G84: 23 | H84: 1865 | I84: 3121 | J84: 0.63 | K84: 5446 | L84: 3431 | M84: 2017 | N84: x | P84: ASW-15B | Q84: EZ | R84: M
A85: Jiri Vavrina | B85: 1958 | C85: Kyjov | D85: CZ/M | E85: 13. JPJ 2017 - Klub | F85: CZ | G85: 24 | H85: 1746 | I85: 3121 | J85: 0.63 | K85: 5100 | L85: 3213 | M85: 2017 | N85: x | P85: LS 1 f | Q85: BS | R85: M
A86: Tomas Prokop | B86: 1972 | C86: Šumperk | D86: CZ/M | E86: 13. JPJ 2017 - Klub | F86: CZ | G86: 25 | H86: 1643 | I86: 3121 | J86: 0.63 | K86: 4790 | L86: 3018 | M86: 2017 | N86: x | P86: ASW-15B | Q86: R5 | R86: M
A87: Petr Jedlicka | B87: 1987 | C87: Medlánky | D87: CZ/M | E87: 13. JPJ 2017 - Klub | F87: CZ | G87: 26 | H87: 1627 | I87: 3121 | J87: 0.63 | K87: 4675 | L87: 2945 | M87: 2017 | N87: x | P87: Phoebus A1 | Q87: NN | R87: M
A88: Jaromir Vlk | B88: 1959 | C88: Šumperk | D88: CZ/M | E88: 13. JPJ 2017 - Klub | F88: CZ | G88: 27 | H88: 1565 | I88: 3121 | J88: 0.63 | K88: 4457 | L88: 2808 | M88: 2017 | P88: VSO-10 | Q88: 4 | R88: M
A89: Jan Pokluda | B89: 1973 | C89: Šumperk | D89: CZ/M | E89: 13. JPJ 2017 - Klub | F89: CZ | G89: 28 | H89: 1532 | I89: 3121 | J89: 0.63 | K89: 4304 | L89: 2712 | M89: 2017 | N89: x | P89: ASW-15B WL | Q89: JG | R89: M
A90: Tomas Ondrisek | B90: 1970 | C90: Kunovice | D90: CZ/M | E90: 13. JPJ 2017 - Klub | F90: CZ | G90: 29 | H90: 1513 | I90: 3121 | J90: 0.63 | K90: 4183 | L90: 2635 | M90: 2017 | N90: x | P90: DG-400 15m | Q90: MR | R90: M
A91: Yvona Vyhnankova | B91: 1963 | C91: Olomouc | D91: CZ/M | E91: 13. JPJ 2017 - Klub | F91: CZ | G91: 30 | H91: 1505 | I91: 3121 | J91: 0.63 | K91: 4086 | L91: 2574 | M91: 2017 | P91: ASW-15 | Q91: YZ | R91: F
A92: Ondrej Dvorak 87 | B92: 1987 | C92: Raná | D92: CZ/C2 | E92: 13. JPJ 2017 - Klub | F92: CZ | G92: 31 | H92: 1483 | I92: 3121 | J92: 0.63 | K92: 3958 | L92: 2494 | M92: 2017 | N92: x | P92: Std. Cirrus | Q92: FW | R92: M
A93: Miroslav Mancik | B93: 1976 | C93: Kyjov | D93: CZ/M | E93: 13. JPJ 2017 - Klub | F93: CZ | G93: 32 | H93: 1372 | I93: 3121 | J93: 0.63 | K93: 3630 | L93: 2287 | M93: 2017 | N93: x | P93: G-103 Twin Astir | Q93: KW | R93: M
A94: Lubomir Papezik | B94: 1951 | C94: Luhačovice | D94: CZ/M | E94: 13. JPJ 2017 - Klub | F94: CZ | G94: 33 | H94: 1369 | I94: 3121 | J94: 0.63 | K94: 3544 | L94: 2233 | M94: 2017 | P94: LS-4 | Q94: FP | R94: M
A95: Petr Havrlant | B95: 1965 | C95: Šumperk | D95: CZ/M | E95: 13. JPJ 2017 - Klub | F95: CZ | G95: 34 | H95: 913 | I95: 3121 | J95: 0.63 | K95: 2442 | L95: 1538 | M95: 2017 | P95: SF-34 Delphin | Q95: 77 | R95: M
A96: Matej Plch | B96: 1987 | C96: Letkov | D96: CZ/C1 | E96: 13. JPJ 2017 - Klub | F96: CZ | G96: 35 | H96: 786 | I96: 3121 | J96: 0.63 | K96: 2079 | L96: 1310 | M96: 2017 | N96: x | P96: Std. Cirrus | Q96: AL | R96: M
A97: Petr Lonsky | B97: 1965 | C97: Toužim | D97: CZ/C1 | E97: 13. JPJ 2017 - Klub | F97: CZ | G97: 36 | H97: 673 | I97: 3121 | J97: 0.63 | K97: 1746 | L97: 1100 | M97: 2017 | P97: LS-1d | Q97: CL | R97: M
A98: Martin Suchy | B98: 1969 | C98: Hranice | D98: CZ/M | E98: 13. JPJ 2017 - Klub | F98: CZ | G98: 37 | H98: 636 | I98: 3121 | J98: 0.63 | K98: 1584 | L98: 998 | M98: 2017 | N98: x | P98: G-103 Twin Astir | Q98: EH | R98: M
A99: Filip Vita | B99: 2001 | C99: Kroměříž | D99: CZ/M | E99: 13. JPJ 2017 - Klub | F99: CZ | G99: 38 | H99: 493 | I99: 3121 | J99: 0.63 | K99: =ROUND(H99/I99*10000*0.7+(MAX($G$62:$G$100)-G99)/(MAX($G$62:$G$100)-1)*10000*0.3,0) -> 1185 | L99: =ROUND(J99*K99,0) -> 747 | M99: 2017 | P99: G-102 Astir Jeans | Q99: 2Y | R99: M | S99: Junior v roce 2020
A100: Libor Danhel | B100: 1966 | C100: Kunovice | D100: CZ/M | E100: 13. JPJ 2017 - Klub | F100: CZ | G100: 39 | H100: 374 | I100: 3121 | J100: 0.63 | K100: 839 | L100: 529 | M100: 2017 | P100: Std. Cirrus | Q100: OKc | R100: M
A101: Jiri Steiger | B101: =VLOOKUP(A101,Pilot,2,0) -> 1969 | C101: =VLOOKUP(A101,Pilot,3,0) -> Olomouc | D101: =VLOOKUP(A101,Pilot,4,0) -> CZ/M | E101: 13. JPJ 2017 - Kombi | F101: CZ | G101: 1 | H101: 3348 | I101: 3348 | J101: 0.6 | K101: =ROUND(H101/I101*10000*0.7+(MAX($G$101:$G$129)-G101)/(MAX($G$101:$G$129)-1)*10000*0.3,0) -> 10000 | L101: =ROUND(J101*K101,0) -> 6000 | M101: 2017 | P101: Ventus 2cxT/18m | Q101: JS | R101: =VLOOKUP(A101,Pilot,5,0) -> M | S101: =IF(ISERROR(VLOOKUP(A101,Pilot,6,0)),"Není v databázi",VLOOKUP(A101,Pilot,6,0)) -> 
A102: Pavel Zima | B102: 1979 | C102: Břeclav | D102: CZ/M | E102: 13. JPJ 2017 - Kombi | F102: CZ | G102: 2 | H102: 3293 | I102: 3348 | J102: 0.6 | K102: =ROUND(H102/I102*10000*0.7+(MAX($G$101:$G$129)-G102)/(MAX($G$101:$G$129)-1)*10000*0.3,0) -> 9778 | L102: =ROUND(J102*K102,0) -> 5867 | M102: 2017 | N102: x | P102: Ventus cm 17,6m | Q102: RK | R102: M
A103: Frantisek Vancura | B103: 1966 | C103: Hranice | D103: CZ/M | E103: 13. JPJ 2017 - Kombi | F103: CZ | G103: 3 | H103: 3154 | I103: 3348 | J103: 0.6 | K103: 9380 | L103: 5628 | M103: 2017 | P103: Nimbus 3T 24,5m WL | Q103: A1 | R103: M
A104: Jan Simon | B104: 1970 | C104: Kralupy | D104: CZ/C1 | E104: 13. JPJ 2017 - Kombi | F104: CZ | G104: 4 | H104: 2900 | I104: 3348 | J104: 0.6 | K104: 8742 | L104: 5245 | M104: 2017 | N104: x | P104: Nimbus 3 24,5m | Q104: HS | R104: M
A105: Zdenek Schenk | B105: 1972 | C105: Hranice | D105: CZ/M | E105: 13. JPJ 2017 - Kombi | F105: CZ | G105: 5 | H105: 2777 | I105: 3348 | J105: 0.6 | K105: 8378 | L105: 5027 | M105: 2017 | P105: Ventus ct 17,6m | Q105: ŠNeK | R105: M
A106: Marek Blatak | B106: 1969 | C106: Šumperk | D106: CZ/M | E106: 13. JPJ 2017 - Kombi | F106: CZ | G106: 6 | H106: 2758 | I106: 3348 | J106: 0.6 | K106: 8231 | L106: 4939 | M106: 2017 | N106: x | P106: Duo Discus T | Q106: ZS | R106: M
A107: Antonin Konicek | B107: 1973 | C107: Kunovice | D107: CZ/M | E107: 13. JPJ 2017 - Kombi | F107: CZ | G107: 7 | H107: 2725 | I107: 3348 | J107: 0.6 | K107: 8055 | L107: 4833 | M107: 2017 | P107: HpH 304M SHARK | Q107: KK | R107: M
A108: Boris Bachraty | B108: 1974 | C108: Břeclav | D108: CZ/M | E108: 13. JPJ 2017 - Kombi | F108: CZ | G108: 8 | H108: 2563 | I108: 3348 | J108: 0.6 | K108: 7609 | L108: 4565 | M108: 2017 | N108: x | P108: Jantar 2B | Q108: 25 | R108: M
A109: Vladimir Kamensky | B109: 1983 | C109: Břeclav | D109: CZ/M | E109: 13. JPJ 2017 - Kombi | F109: CZ | G109: 9 | H109: 2403 | I109: 3348 | J109: 0.6 | K109: 7167 | L109: 4300 | M109: 2017 | N109: x | P109: Nimbus 2b | Q109: IK | R109: M
A110: Jaroslav Buryan | B110: 1953 | C110: Zábřeh | D110: CZ/M | E110: 13. JPJ 2017 - Kombi | F110: CZ | G110: 10 | H110: 2359 | I110: 3348 | J110: 0.6 | K110: 6968 | L110: 4181 | M110: 2017 | P110: ASW-20 15m WL | Q110: NS | R110: M
A111: Roman Cerny | B111: 1971 | C111: Hranice | D111: CZ/M | E111: 13. JPJ 2017 - Kombi | F111: CZ | G111: 11 | H111: 2303 | I111: 3348 | J111: 0.6 | K111: 6744 | L111: 4046 | M111: 2017 | N111: x | P111: ASW-20 15m WL | Q111: 67 | R111: M
A112: Miroslav Koci | B112: 1961 | C112: Žamberk | D112: CZ/C2 | E112: 13. JPJ 2017 - Kombi | F112: CZ | G112: 12 | H112: 2254 | I112: 3348 | J112: 0.6 | K112: 6534 | L112: 3920 | M112: 2017 | P112: Ventus 2cxm 18m | Q112: E8 | R112: M
A113: Miroslav Sklenar | B113: 1964 | C113: Žamberk | D113: CZ/C2 | E113: 13. JPJ 2017 - Kombi | F113: CZ | G113: 13 | H113: 2217 | I113: 3348 | J113: 0.6 | K113: 6350 | L113: 3810 | M113: 2017 | N113: x | P113: Duo Discus | Q113: VP | R113: M
A114: Tomas Fiala 77 | B114: 1977 | C114: Luhačovice | D114: CZ/M | E114: 13. JPJ 2017 - Kombi | F114: CZ | G114: 14 | H114: 2188 | I114: 3348 | J114: 0.6 | K114: 6182 | L114: 3709 | M114: 2017 | N114: x | P114: Arcus | Q114: AR | R114: M
A115: Jan Matejovsky | B115: 1972 | C115: Hranice | D115: CZ/M | E115: 13. JPJ 2017 - Kombi | F115: CZ | G115: 15 | H115: 1985 | I115: 3348 | J115: 0.6 | K115: 5650 | L115: 3390 | M115: 2017 | N115: x | P115: Duo Discus | Q115: OK | R115: M
A116: Michal Cechmanek | B116: 1978 | C116: Luhačovice | D116: CZ/M | E116: 13. JPJ 2017 - Kombi | F116: CZ | G116: 16 | H116: 1934 | I116: 3348 | J116: 0.6 | K116: 5436 | L116: 3262 | M116: 2017 | P116: KKB-15 | Q116: N2 | R116: M
A117: Vladimir Spilka | B117: 1940 | C117: Hranice | D117: CZ/M | E117: 13. JPJ 2017 - Kombi | F117: CZ | G117: 17 | H117: 1909 | I117: 3348 | J117: 0.6 | K117: 5277 | L117: 3166 | M117: 2017 | N117: x | P117: Nimbus 2b | Q117: AY | R117: M
A118: Jaroslav Hot | B118: 1965 | C118: Toužim | D118: CZ/C1 | E118: 13. JPJ 2017 - Kombi | F118: CZ | G118: 18 | H118: 1772 | I118: 3348 | J118: 0.6 | K118: 4883 | L118: 2930 | M118: 2017 | N118: x | P118: Ventus ct 17,6m | Q118: EB | R118: M
A119: Jiri Prochazka | B119: 1971 | C119: Toužim | D119: CZ/C1 | E119: 13. JPJ 2017 - Kombi | F119: CZ | G119: 19 | H119: 1744 | I119: 3348 | J119: 0.6 | K119: 4718 | L119: 2831 | M119: 2017 | P119: DG-500 22m | Q119: SR | R119: M
A120: Antonin Kutalek | B120: 1943 | C120: Zábřeh | D120: CZ/M | E120: 13. JPJ 2017 - Kombi | F120: CZ | G120: 20 | H120: 1602 | I120: 3348 | J120: 0.6 | K120: 4314 | L120: 2588 | M120: 2017 | P120: Mini-Nimbus c | Q120: GLk | R120: M
A121: Dusan Sys | B121: 1977 | C121: Šumperk | D121: CZ/M | E121: 13. JPJ 2017 - Kombi | F121: CZ | G121: 21 | H121: 1533 | I121: 3348 | J121: 0.6 | K121: 4062 | L121: 2437 | M121: 2017 | N121: x | P121: DG-808 C WL | Q121: MS | R121: M
A122: David Zapletal | B122: 1970 | C122: Mladá Boleslav | D122: CZ/C1 | E122: 13. JPJ 2017 - Kombi | F122: CZ | G122: 22 | H122: 1515 | I122: 3348 | J122: 0.6 | K122: 3918 | L122: 2351 | M122: 2017 | P122: Ventus c 17,6m | Q122: PUP | R122: M
A123: Albrecht Beat | B123: 1953 | C123: Šumperk | D123: CZ/M | E123: 13. JPJ 2017 - Kombi | F123: CZ | G123: 23 | H123: 1502 | I123: 3348 | J123: 0.6 | K123: 3783 | L123: 2270 | M123: 2017 | N123: x | P123: LS-8-18 18m | Q123: GL | R123: M
A124: Petr Kapounek | B124: 1977 | C124: Kroměříž | D124: CZ/M | E124: 13. JPJ 2017 - Kombi | F124: CZ | G124: 24 | H124: 1393 | I124: 3348 | J124: 0.6 | K124: 3448 | L124: 2069 | M124: 2017 | N124: x | P124: ASW-20 15m WL | Q124: MK | R124: M
A125: Kamil Sohr | B125: 1973 | C125: Šumperk | D125: CZ/M | E125: 13. JPJ 2017 - Kombi | F125: CZ | G125: 25 | H125: 1232 | I125: 3348 | J125: 0.6 | K125: 3004 | L125: 1802 | M125: 2017 | N125: x | P125: SZD-55 Promyk | Q125: BC | R125: M
A126: Christof Madory | B126: 1958 | C126: Šumperk | D126: CZ/M | E126: 13. JPJ 2017 - Kombi | F126: CZ | G126: 26 | H126: 1204 | I126: 3348 | J126: 0.6 | K126: 2839 | L126: 1703 | M126: 2017 | N126: x | P126: ASH-25 | Q126: IQ | R126: M
A127: Pavel Haluza | B127: 1966 | C127: Prostějov | D127: CZ/M | E127: 13. JPJ 2017 - Kombi | F127: CZ | G127: 27 | H127: 1078 | I127: 3348 | J127: 0.6 | K127: 2468 | L127: 1481 | M127: 2017 | P127: Nimbus 2b | Q127: HT | R127: M
A128: Roman Michalek | B128: 1974 | C128: Toužim | D128: CZ/C1 | E128: 13. JPJ 2017 - Kombi | F128: CZ | G128: 28 | H128: 1018 | I128: 3348 | J128: 0.6 | K128: 2236 | L128: 1342 | M128: 2017 | N128: x | P128: DG-400 17m | Q128: TK | R128: M
A129: Martin Novak | B129: 1976 | C129: Slaný | D129: CZ/C1 | E129: 13. JPJ 2017 - Kombi | F129: CZ | G129: 29 | H129: 804 | I129: 3348 | J129: 0.6 | K129: 1681 | L129: 1009 | M129: 2017 | N129: x | P129: DG-400 17m | Q129: ZX | R129: M
A130: Jaromir Hendrych | B130: =VLOOKUP(A130,Pilot,2,0) -> 1954 | C130: =VLOOKUP(A130,Pilot,3,0) -> Raná | D130: =VLOOKUP(A130,Pilot,4,0) -> CZ/C2 | E130: Závody Šohajů 2017 - Klub | F130: CZ | G130: 1 | H130: 344 | I130: 344 | J130: 0.6 | K130: =ROUND(H130/I130*10000*0.7+(MAX($G$130:$G$139)-G130)/(MAX($G$130:$G$139)-1)*10000*0.3,0) -> 10000 | L130: =ROUND(J130*K130,0) -> 6000 | M130: 2017 | N130: x | P130: Ka 7 | Q130: K7 | R130: =VLOOKUP(A130,Pilot,5,0) -> M | S130: =IF(ISERROR(VLOOKUP(A130,Pilot,6,0)),"Není v databázi",VLOOKUP(A130,Pilot,6,0)) -> 
A131: Jiri Klicnar | B131: =VLOOKUP(A131,Pilot,2,0) -> 1965 | C131: =VLOOKUP(A131,Pilot,3,0) -> Medlánky | D131: =VLOOKUP(A131,Pilot,4,0) -> CZ/M | E131: Závody Šohajů 2017 - Klub | F131: CZ | G131: 2 | H131: 286 | I131: 344 | J131: 0.6 | K131: =ROUND(H131/I131*10000*0.7+(MAX($G$130:$G$139)-G131)/(MAX($G$130:$G$139)-1)*10000*0.3,0) -> 8486 | L131: =ROUND(J131*K131,0) -> 5092 | M131: 2017 | N131: x | P131: VT-125 Sohaj | Q131: S | R131: =VLOOKUP(A131,Pilot,5,0) -> M
A132: Vaclav Cerny | B132: =VLOOKUP(A132,Pilot,2,0) -> 1949 | C132: =VLOOKUP(A132,Pilot,3,0) -> Plasy | D132: =VLOOKUP(A132,Pilot,4,0) -> CZ/C1 | E132: Závody Šohajů 2017 - Klub | F132: CZ | G132: 3 | H132: 280 | I132: 344 | J132: 0.6 | K132: 8031 | L132: 4819 | M132: 2017 | N132: x | P132: VT-125 Sohaj | Q132: V | R132: =VLOOKUP(A132,Pilot,5,0) -> M
A133: Jiri Slouka | B133: =VLOOKUP(A133,Pilot,2,0) -> 1967 | C133: =VLOOKUP(A133,Pilot,3,0) -> Medlánky | D133: =VLOOKUP(A133,Pilot,4,0) -> CZ/M | E133: Závody Šohajů 2017 - Klub | F133: CZ | G133: 4 | H133: 274 | I133: 344 | J133: 0.6 | K133: 7576 | L133: 4546 | M133: 2017 | N133: x | P133: VT-125 Sohaj | Q133: I | R133: =VLOOKUP(A133,Pilot,5,0) -> M
A134: Jiri Lenik | B134: =VLOOKUP(A134,Pilot,2,0) -> 1947 | C134: =VLOOKUP(A134,Pilot,3,0) -> Raná | D134: =VLOOKUP(A134,Pilot,4,0) -> CZ/C2 | E134: Závody Šohajů 2017 - Klub | F134: CZ | G134: 5 | H134: 269 | I134: 344 | J134: 0.6 | K134: 7141 | L134: 4285 | M134: 2017 | N134: x | P134: Olympia 2b | Q134: BKK | R134: =VLOOKUP(A134,Pilot,5,0) -> M
A135: Tomas Mezera / Josef Mezera | C135: Raná | D135: CZ | E135: Závody Šohajů 2017 - Klub | F135: CZ | G135: 6 | H135: 258 | I135: 344 | J135: 0.6 | K135: 6583 | L135: 3950 | M135: 2017 | P135: VT-425 Sohaj | Q135: T | S135: Není v databázi
A136: Karel Lang | B136: =VLOOKUP(A136,Pilot,2,0) -> 1967 | C136: =VLOOKUP(A136,Pilot,3,0) -> Medlánky | D136: =VLOOKUP(A136,Pilot,4,0) -> CZ/M | E136: Závody Šohajů 2017 - Klub | F136: CZ | G136: 7 | H136: 214 | I136: 344 | J136: 0.6 | K136: 5355 | L136: 3213 | M136: 2017 | N136: x | P136: VT-425 Sohaj | Q136: 77 | R136: =VLOOKUP(A136,Pilot,5,0) -> M
A137: Ulf Kern | B137: =VLOOKUP(A137,Pilot,2,0) -> 1958 | C137: =VLOOKUP(A137,Pilot,3,0) -> Raná | D137: =VLOOKUP(A137,Pilot,4,0) -> CZ/C2 | E137: Závody Šohajů 2017 - Klub | F137: CZ | G137: 8 | H137: 206 | I137: 344 | J137: 0.6 | K137: 4859 | L137: 2915 | M137: 2017 | N137: x | P137: VT-125 Sohaj | Q137: L | R137: =VLOOKUP(A137,Pilot,5,0) -> M
A138: Vladimir Abraham | B138: =VLOOKUP(A138,Pilot,2,0) -> 1962 | C138: =VLOOKUP(A138,Pilot,3,0) -> Raná | D138: =VLOOKUP(A138,Pilot,4,0) -> CZ/C2 | E138: Závody Šohajů 2017 - Klub | F138: CZ | G138: 9 | H138: 184 | I138: 344 | J138: 0.6 | K138: 4078 | L138: 2447 | M138: 2017 | N138: x | P138: Ka 6 | Q138: YZ | R138: =VLOOKUP(A138,Pilot,5,0) -> M
A139: Vaclav Polivka / Miroslav Major | C139: GAC Benešov | D139: CZ | E139: Závody Šohajů 2017 - Klub | F139: CZ | G139: 10 | H139: 119 | I139: 344 | J139: 0.6 | K139: =ROUND(H139/I139*10000*0.7+(MAX($G$130:$G$139)-G139)/(MAX($G$130:$G$139)-1)*10000*0.3,0) -> 2422 | L139: 1453 | M139: 2017 | P139: VT-125 Sohaj | Q139: F | S139: Není v databázi
A140: Sabrina Vogt | C140: Germany | E140: 9. WGC Women 2017 - Klub | F140: CZ | G140: 1 | H140: 8662 | I140: 8662 | J140: 1.01 | K140: =ROUND(H140/I140*10000*0.7+(MAX($G$140:$G$162)-G140)/(MAX($G$140:$G$162)-1)*10000*0.3,0) -> 10000 | L140: =ROUND(J140*K140,0) -> 10100 | M140: 2017 | P140: Std. Libelle | Q140: MT | R140: F | S140: =IF(ISERROR(VLOOKUP(A140,Pilot,6,0)),"Není v databázi",VLOOKUP(A140,Pilot,6,0)) -> Není v databázi
A141: Sarah Arnold | C141: USA | E141: 9. WGC Women 2017 - Klub | F141: CZ | G141: 2 | H141: 8555 | I141: 8662 | J141: 1.01 | K141: =ROUND(H141/I141*10000*0.7+(MAX($G$140:$G$162)-G141)/(MAX($G$140:$G$162)-1)*10000*0.3,0) -> 9777 | L141: =ROUND(J141*K141,0) -> 9875 | M141: 2017 | P141: Std. Cirrus | Q141: FW | R141: F | S141: Není v databázi
A142: Sarah Drefenstedt | C142: Germany | E142: 9. WGC Women 2017 - Klub | F142: CZ | G142: 3 | H142: 8478 | I142: 8662 | J142: 1.01 | K142: 9579 | L142: 9675 | M142: 2017 | P142: Std. Cirrus | Q142: R | R142: F | S142: Není v databázi
A143: Elena Fergnani | C143: Italy | E143: 9. WGC Women 2017 - Klub | F143: CZ | G143: 4 | H143: 8329 | I143: 8662 | J143: 1.01 | K143: 9322 | L143: 9415 | M143: 2017 | P143: LS-1f | Q143: AM | R143: F | S143: Není v databázi
A144: Ailsa McMillan | C144: Australia | E144: 9. WGC Women 2017 - Klub | F144: CZ | G144: 5 | H144: 8204 | I144: 8662 | J144: =VLOOKUP(E144,Soutez,8,0) -> 1.01 | K144: 9084 | L144: 9175 | M144: 2017 | P144: Std. Cirrus | Q144: 75 | R144: F | S144: Není v databázi
A145: Annemiek Koers | C145: Netherlands | E145: 9. WGC Women 2017 - Klub | F145: CZ | G145: 6 | H145: 8108 | I145: 8662 | J145: 1.01 | K145: 8870 | L145: 8959 | M145: 2017 | P145: LS-4 | Q145: 8M | R145: F | S145: Není v databázi
A146: Ines Engelhardt | C146: Germany | E146: 9. WGC Women 2017 - Klub | F146: CZ | G146: 7 | H146: 8001 | I146: 8662 | J146: 1.01 | K146: 8648 | L146: 8734 | M146: 2017 | P146: LS-1f | Q146: EF | R146: F | S146: Není v databázi
A147: Aude Untersee | C147: France | E147: 9. WGC Women 2017 - Klub | F147: CZ | G147: 8 | H147: 7982 | I147: 8662 | J147: 1.01 | K147: 8496 | L147: 8581 | M147: 2017 | P147: Hornet H-206 | Q147: H1 | R147: F | S147: Není v databázi
A148: Claudia Hill | C148: United Kingdom | E148: 9. WGC Women 2017 - Klub | F148: CZ | G148: 9 | H148: 7978 | I148: 8662 | J148: 1.01 | K148: 8356 | L148: 8440 | M148: 2017 | P148: LS-1f | Q148: KC | R148: F | S148: Není v databázi
A149: Petra Piskata | B149: =VLOOKUP(A149,Pilot,2,0) -> 1989 | C149: =VLOOKUP(A149,Pilot,3,0) -> Hranice | D149: =VLOOKUP(A149,Pilot,4,0) -> CZ/M | E149: 9. WGC Women 2017 - Klub | F149: CZ | G149: 10 | H149: 7866 | I149: 8662 | J149: 1.01 | K149: =ROUND(H149/I149*10000*0.7+(MAX($G$140:$G$162)-G149)/(MAX($G$140:$G$162)-1)*10000*0.3,0) -> 8129 | L149: =ROUND(J149*K149,0) -> 8210 | M149: 2017 | O149: x | P149: Std. Cirrus | Q149: XC | R149: =VLOOKUP(A149,Pilot,5,0) -> F
A150: Paula Drazul | C150: Argentina | E150: 9. WGC Women 2017 - Klub | F150: CZ | G150: 11 | H150: 7839 | I150: 8662 | J150: 1.01 | K150: 7971 | L150: 8051 | M150: 2017 | P150: St.Libelle | Q150: PY | R150: F | S150: Není v databázi
A151: Elizabeth Sparrow | C151: United Kingdom | E151: 9. WGC Women 2017 - Klub | F151: CZ | G151: 12 | H151: 7667 | I151: 8662 | J151: 1.01 | K151: 7696 | L151: 7773 | M151: 2017 | P151: Std. Cirrus | Q151: 873 | R151: F | S151: Není v databázi
A152: Ayala Truelove | C152: United Kingdom | E152: 9. WGC Women 2017 - Klub | F152: CZ | G152: 13 | H152: 7615 | I152: 8662 | J152: 1.01 | K152: 7518 | L152: 7593 | M152: 2017 | P152: Std. Libelle | Q152: J34 | R152: F | S152: Není v databázi
A153: Eva Cerna | B153: =VLOOKUP(A153,Pilot,2,0) -> 1964 | C153: =VLOOKUP(A153,Pilot,3,0) -> Příbram | D153: =VLOOKUP(A153,Pilot,4,0) -> CZ/C1 | E153: 9. WGC Women 2017 - Klub | F153: CZ | G153: 14 | H153: 7489 | I153: 8662 | J153: 1.01 | K153: 7279 | L153: 7352 | M153: 2017 | O153: x | P153: Std. Cirrus | Q153: CX | R153: =VLOOKUP(A153,Pilot,5,0) -> F
A154: Monika Bobula | C154: Poland | E154: 9. WGC Women 2017 - Klub | F154: CZ | G154: 15 | H154: 7364 | I154: 8662 | J154: 1.01 | K154: 7042 | L154: 7112 | M154: 2017 | P154: SZD-48 Brawo | Q154: BZ | R154: F | S154: Není v databázi
A155: Klara Teichmannova | B155: =VLOOKUP(A155,Pilot,2,0) -> 1993 | C155: =VLOOKUP(A155,Pilot,3,0) -> Hronov | D155: =VLOOKUP(A155,Pilot,4,0) -> CZ/C2 | E155: 9. WGC Women 2017 - Klub | F155: CZ | G155: 16 | H155: 7250 | I155: 8662 | J155: 1.01 | K155: 6813 | L155: 6881 | M155: 2017 | P155: Std. Cirrus | Q155: LY | R155: =VLOOKUP(A155,Pilot,5,0) -> F
A156: Claire Scutter | C156: Australia | E156: 9. WGC Women 2017 - Klub | F156: CZ | G156: 17 | H156: 7117 | I156: 8662 | J156: 1.01 | K156: 6570 | L156: 6636 | M156: 2017 | P156: Std. Cirrus | Q156: YF | R156: F | S156: Není v databázi
A157: Jenny Ganderton | C157: Australia | E157: 9. WGC Women 2017 - Klub | F157: CZ | G157: 18 | H157: 7089 | I157: 8662 | J157: 1.01 | K157: 6411 | L157: 6475 | M157: 2017 | P157: Std. Cirrus | Q157: SN | R157: F | S157: Není v databázi
A158: Amelie Audier | C158: France | E158: 9. WGC Women 2017 - Klub | F158: CZ | G158: 19 | H158: 6484 | I158: 8662 | J158: 1.01 | K158: 5785 | L158: 5843 | M158: 2017 | P158: Std. Cirrus | Q158: SV | R158: F | S158: Není v databázi
A159: Marta Marszalek | C159: Poland | E159: 9. WGC Women 2017 - Klub | F159: CZ | G159: 20 | H159: 6479 | I159: 8662 | J159: 1.01 | K159: 5645 | L159: 5701 | M159: 2017 | P159: SZD-48 Brawo | Q159: BI | R159: F | S159: Není v databázi
A160: Lilian de Bruijn | C160: Netherlands | E160: 9. WGC Women 2017 - Klub | F160: CZ | G160: 21 | H160: 5857 | I160: 8662 | J160: 1.01 | K160: 5006 | L160: 5056 | M160: 2017 | P160: LS-4b | Q160: VR | R160: F | S160: Není v databázi
A161: Alicija Awirzen | C161: Poland | E161: 9. WGC Women 2017 - Klub | F161: CZ | G161: 22 | H161: 4821 | I161: 8662 | J161: 1.01 | K161: 4032 | L161: 4072 | M161: 2017 | P161: Jantar Std. 3 | Q161: MN | R161: F | S161: Není v databázi
A162: Angelika Mayr | C162: Germany | E162: 9. WGC Women 2017 - Klub | F162: CZ | G162: 23 | H162: 3606 | I162: 8662 | J162: 1.01 | K162: 2914 | L162: 2943 | M162: 2017 | P162: ASW-24 | Q162: LX | R162: F | S162: Není v databázi
A163: Aude Grangeray | C163: France | E163: 9. WGC Women 2017 - Std | F163: CZ | G163: 1 | H163: 8881 | I163: 8881 | J163: 1.025 | K163: =ROUND(H163/I163*10000*0.7+(MAX($G$163:$G$176)-G163)/(MAX($G$163:$G$176)-1)*10000*0.3,0) -> 10000 | L163: =ROUND(J163*K163,0) -> 10250 | M163: 2017 | P163: Discus 2A | Q163: ET | R163: F | S163: =IF(ISERROR(VLOOKUP(A163,Pilot,6,0)),"Není v databázi",VLOOKUP(A163,Pilot,6,0)) -> Není v databázi
A164: Cornelia Schaich | C164: Germany | E164: 9. WGC Women 2017 - Std | F164: CZ | G164: 2 | H164: 8736 | I164: 8881 | J164: 1.025 | K164: =ROUND(H164/I164*10000*0.7+(MAX($G$163:$G$176)-G164)/(MAX($G$163:$G$176)-1)*10000*0.3,0) -> 9655 | L164: =ROUND(J164*K164,0) -> 9896 | M164: 2017 | P164: LS-8 | Q164: 3S | R164: F | S164: Není v databázi
A165: Jana Veprekova | B165: =VLOOKUP(A165,Pilot,2,0) -> 1961 | C165: =VLOOKUP(A165,Pilot,3,0) -> Dvůr Králové | D165: =VLOOKUP(A165,Pilot,4,0) -> CZ/C2 | E165: 9. WGC Women 2017 - Std | F165: CZ | G165: 3 | H165: 8686 | I165: 8881 | J165: 1.025 | K165: 9385 | L165: 9620 | M165: 2017 | O165: x | P165: LS-8 | Q165: W8 | R165: =VLOOKUP(A165,Pilot,5,0) -> F
A166: Ulrike Teichmann | C166: Germany | E166: 9. WGC Women 2017 - Std | F166: CZ | G166: 4 | H166: 8489 | I166: 8881 | J166: 1.025 | K166: 8999 | L166: 9224 | M166: 2017 | P166: LS-8 | Q166: C | R166: F | S166: Není v databázi
A167: Judyta Czyż | C167: Poland | E167: 9. WGC Women 2017 - Std | F167: CZ | G167: 5 | H167: 8369 | I167: 8881 | J167: 1.025 | K167: 8673 | L167: 8890 | M167: 2017 | P167: LS-8 18 | Q167: LOT | R167: F | S167: Není v databázi
A168: Magali De Cachard | C168: France | E168: 9. WGC Women 2017 - Std | F168: CZ | G168: 6 | H168: 8318 | I168: 8881 | J168: 1.025 | K168: 8402 | L168: 8612 | M168: 2017 | P168: Discus 2A | Q168: CFM1 | R168: F | S168: Není v databázi
A169: Dana Novakova | B169: =VLOOKUP(A169,Pilot,2,0) -> 1965 | C169: =VLOOKUP(A169,Pilot,3,0) -> Mladá Boleslav | D169: =VLOOKUP(A169,Pilot,4,0) -> CZ/C1 | E169: 9. WGC Women 2017 - Std | F169: CZ | G169: 7 | H169: 8207 | I169: 8881 | J169: 1.025 | K169: 8084 | L169: 8286 | M169: 2017 | P169: LS-8 | Q169: FX | R169: =VLOOKUP(A169,Pilot,5,0) -> F
A170: Hana Treslova | B170: =VLOOKUP(A170,Pilot,2,0) -> 1991 | C170: =VLOOKUP(A170,Pilot,3,0) -> Raná | D170: =VLOOKUP(A170,Pilot,4,0) -> CZ/C2 | E170: 9. WGC Women 2017 - Std | F170: CZ | G170: 8 | H170: 8109 | I170: 8881 | J170: 1.025 | K170: 7776 | L170: 7970 | M170: 2017 | P170: Discus 2A | Q170: GX | R170: =VLOOKUP(A170,Pilot,5,0) -> F
A171: Doortje Grunder | C171: Netherlands | E171: 9. WGC Women 2017 - Std | F171: CZ | G171: 9 | H171: 7931 | I171: 8881 | J171: 1.025 | K171: 7405 | L171: 7590 | M171: 2017 | P171: LS-8 | Q171: XK | R171: F | S171: Není v databázi
A172: Orsolya Diofasi | C172: Hungary | E172: 9. WGC Women 2017 - Std | F172: CZ | G172: 10 | H172: 7914 | I172: 8881 | J172: 1.025 | K172: 7161 | L172: 7340 | M172: 2017 | P172: Discus 2A | Q172: HUN | R172: F | S172: Není v databázi
A173: Anna Michalak | C173: Poland | E173: 9. WGC Women 2017 - Std | F173: CZ | G173: 11 | H173: 5859 | I173: 8881 | J173: 1.025 | K173: 5310 | L173: 5443 | M173: 2017 | P173: Discus 2A | Q173: Y | R173: F | S173: Není v databázi
A174: Viktoria Vadaszi | C174: Hungary | E174: 9. WGC Women 2017 - Std | F174: CZ | G174: 12 | H174: 5373 | I174: 8881 | J174: 1.025 | K174: =ROUND(H174/I174*10000*0.7+(MAX($G$163:$G$176)-G174)/(MAX($G$163:$G$176)-1)*10000*0.3,0) -> 4697 | L174: 4814 | M174: 2017 | P174: Discus 2A | Q174: HAL | R174: F | S174: Není v databázi
A175: Halina Rynkiewicz | C175: Poland | E175: 9. WGC Women 2017 - Std | F175: CZ | G175: 13 | H175: 4990 | I175: 8881 | J175: 1.025 | K175: 4164 | L175: 4268 | M175: 2017 | P175: Discus 2A | Q175: I | R175: F | S175: Není v databázi
A176: Sue Kussbach | C176: Germany | E176: 9. WGC Women 2017 - Std | F176: CZ | G176: 14 | H176: 351 | I176: 8881 | J176: 1.025 | K176: 277 | L176: 284 | M176: 2017 | P176: LS-8 | Q176: KS | R176: F | S176: Není v databázi
A177: Katrin Senne | C177: Germany | E177: 9. WGC Women 2017 - 18m | F177: CZ | G177: 1 | H177: 9297 | I177: 9297 | J177: 1.01 | K177: =ROUND(H177/I177*10000*0.7+(MAX($G$177:$G$187)-G177)/(MAX($G$177:$G$187)-1)*10000*0.3,0) -> 10000 | L177: =ROUND(J177*K177,0) -> 10100 | M177: 2017 | P177: ASG-29E | Q177: BK | R177: F | S177: =IF(ISERROR(VLOOKUP(A177,Pilot,6,0)),"Není v databázi",VLOOKUP(A177,Pilot,6,0)) -> Není v databázi
A178: Alena Netusilova | B178: =VLOOKUP(A178,Pilot,2,0) -> 1970 | C178: =VLOOKUP(A178,Pilot,3,0) -> Zbraslavice | D178: =VLOOKUP(A178,Pilot,4,0) -> CZ/C1 | E178: 9. WGC Women 2017 - 18m | F178: CZ | G178: 2 | H178: 9275 | I178: 9297 | J178: 1.01 | K178: =ROUND(H178/I178*10000*0.7+(MAX($G$177:$G$187)-G178)/(MAX($G$177:$G$187)-1)*10000*0.3,0) -> 9683 | L178: =ROUND(J178*K178,0) -> 9780 | M178: 2017 | O178: x | P178: JS-1C EVO | Q178: JX | R178: =VLOOKUP(A178,Pilot,5,0) -> F
A179: Anne Ducarouge | C179: France | E179: 9. WGC Women 2017 - 18m | F179: CZ | G179: 3 | H179: 9161 | I179: 9297 | J179: 1.01 | K179: 9298 | L179: 9391 | M179: 2017 | P179: JS-1C EVO | Q179: EVO | R179: F | S179: Není v databázi
A180: Marilyne Abadie-Berard | C180: France | E180: 9. WGC Women 2017 - 18m | F180: CZ | G180: 4 | H180: 9135 | I180: 9297 | J180: 1.01 | K180: 8978 | L180: 9068 | M180: 2017 | P180: ASG-29E | Q180: 2L | R180: F | S180: Není v databázi
A181: Melanie Gadoulet | C181: France | E181: 9. WGC Women 2017 - 18m | F181: CZ | G181: 5 | H181: 9127 | I181: 9297 | J181: 1.01 | K181: 8672 | L181: 8759 | M181: 2017 | P181: JS-1C EVO | Q181: FD | R181: F | S181: Není v databázi
A182: Joanna Biedermann | C182: Poland | E182: 9. WGC Women 2017 - 18m | F182: CZ | G182: 6 | H182: 8876 | I182: 9297 | J182: 1.01 | K182: 8183 | L182: 8265 | M182: 2017 | P182: ASG-29 | Q182: PL | R182: F | S182: Není v databázi
A183: Jana Treslova | B183: =VLOOKUP(A183,Pilot,2,0) -> 1963 | C183: =VLOOKUP(A183,Pilot,3,0) -> Raná | D183: =VLOOKUP(A183,Pilot,4,0) -> CZ/C2 | E183: 9. WGC Women 2017 - 18m | F183: CZ | G183: 7 | H183: 7962 | I183: 9297 | J183: 1.01 | K183: 7195 | L183: 7267 | M183: 2017 | P183: ASG-29E | Q183: QZ | R183: =VLOOKUP(A183,Pilot,5,0) -> F
A184: Lenka Kuthanova | B184: =VLOOKUP(A184,Pilot,2,0) -> 1960 | C184: =VLOOKUP(A184,Pilot,3,0) -> Tábor | D184: =VLOOKUP(A184,Pilot,4,0) -> CZ/C1 | E184: 9. WGC Women 2017 - 18m | F184: CZ | G184: 8 | H184: 7436 | I184: 9297 | J184: 1.01 | K184: =ROUND(H184/I184*10000*0.7+(MAX($G$177:$G$187)-G184)/(MAX($G$177:$G$187)-1)*10000*0.3,0) -> 6499 | L184: =ROUND(J184*K184,0) -> 6564 | M184: 2017 | P184: JS-1C | Q184: LXI | R184: =VLOOKUP(A184,Pilot,5,0) -> F
A185: Sandra Malzacher | C185: Germany | E185: 9. WGC Women 2017 - 18m | F185: CZ | G185: 9 | H185: 5863 | I185: 9297 | J185: 1.01 | K185: 5014 | L185: 5064 | M185: 2017 | P185: Ventus 2c/18m | Q185: DR | R185: F | S185: Není v databázi
A186: Christin Nielsen | C186: Denmark | E186: 9. WGC Women 2017 - 18m | F186: CZ | G186: 10 | H186: 1726 | I186: 9297 | J186: 1.01 | K186: 1600 | L186: 1616 | M186: 2017 | P186: Ventus 2 cxt | Q186: MO | R186: F | S186: Není v databázi
A187: Christine Grote | C187: Germany | E187: 9. WGC Women 2017 - 18m | F187: CZ | G187: 11 | H187: 1372 | I187: 9297 | J187: 1.01 | K187: 1033 | L187: 1043 | M187: 2017 | P187: JS-1 | Q187: YE | R187: F | S187: Není v databázi
A188: Jaroslav Tomana | B188: =VLOOKUP(A188,Pilot,2,0) -> 1975 | C188: =VLOOKUP(A188,Pilot,3,0) -> Zbraslavice | D188: =VLOOKUP(A188,Pilot,4,0) -> CZ/C1 | E188: PMČR CON 2017 - Klub | F188: CZ | G188: 1 | H188: 4209 | I188: 4209 | J188: 1.03 | K188: =ROUND(H188/I188*10000*0.7+(MAX($G$188:$G$212)-G188)/(MAX($G$188:$G$212)-1)*10000*0.3,0) -> 10000 | L188: =ROUND(J188*K188,0) -> 10300 | M188: 2017 | N188: x | P188: Std. Cirrus | Q188: SN | R188: =VLOOKUP(A188,Pilot,5,0) -> M | S188: =IF(ISERROR(VLOOKUP(A188,Pilot,6,0)),"Není v databázi",VLOOKUP(A188,Pilot,6,0)) -> 
A189: Ivan Novak | B189: 1962 | C189: Mladá Boleslav | D189: CZ/C1 | E189: PMČR CON 2017 - Klub | F189: CZ | G189: 2 | H189: 4045 | I189: 4209 | J189: 1.03 | K189: =ROUND(H189/I189*10000*0.7+(MAX($G$188:$G$212)-G189)/(MAX($G$188:$G$212)-1)*10000*0.3,0) -> 9602 | L189: =ROUND(J189*K189,0) -> 9890 | M189: 2017 | P189: Std. Cirrus | Q189: DI | R189: M
A190: Petr Stepanek | B190: 1989 | C190: Moravská Třebová | D190: CZ/M | E190: PMČR CON 2017 - Klub | F190: CZ | G190: 3 | H190: 3946 | I190: 4209 | J190: 1.03 | K190: 9313 | L190: 9592 | M190: 2017 | N190: x | P190: ASW-19B | Q190: AE | R190: M
A191: Michal Lesinger | B191: 1966 | C191: Moravská Třebová | D191: CZ/M | E191: PMČR CON 2017 - Klub | F191: CZ | G191: 4 | H191: 3902 | I191: 4209 | J191: 1.03 | K191: 9114 | L191: 9387 | M191: 2017 | N191: x | P191: ASW-19B | Q191: LL | R191: M
A192: Jan Pavlik | B192: 1987 | C192: Křižanov | D192: CZ/M | E192: PMČR CON 2017 - Klub | F192: CZ | G192: 5 | H192: 3784 | I192: 4209 | J192: 1.03 | K192: 8793 | L192: 9057 | M192: 2017 | N192: x | P192: Std. Cirrus | Q192: ICQ | R192: M
A193: Richard Vlcek | B193: 1993 | C193: Kunovice | D193: CZ/M | E193: PMČR CON 2017 - Klub | F193: CZ | G193: 6 | H193: 3561 | I193: 4209 | J193: 1.03 | K193: 8297 | L193: 8546 | M193: 2017 | P193: Std. Cirrus | Q193: XC | R193: M
A194: Zdenek Balcarek | B194: 1967 | C194: Kroměříž | D194: CZ/M | E194: PMČR CON 2017 - Klub | F194: CZ | G194: 7 | H194: 3433 | I194: 4209 | J194: 1.03 | K194: 7959 | L194: 8198 | M194: 2017 | P194: Std. Cirrus | Q194: ZL | R194: M
A195: Barbora Moravcova | B195: 1994 | C195: Zbraslavice | D195: CZ/C1 | E195: PMČR CON 2017 - Klub | F195: CZ | G195: 8 | H195: 3403 | I195: 4209 | J195: 1.03 | K195: 7785 | L195: 8019 | M195: 2017 | P195: ASW-19B | Q195: CF | R195: F
A196: Klara Teichmannova | B196: 1993 | C196: Hronov | D196: CZ/C2 | E196: PMČR CON 2017 - Klub | F196: CZ | G196: 9 | H196: 3318 | I196: 4209 | J196: 1.03 | K196: 7518 | L196: 7744 | M196: 2017 | N196: x | O196: x | P196: Std. Cirrus | Q196: LY | R196: F
A197: Ondrej Sindelar | B197: 1979 | C197: Mladá Boleslav | D197: CZ/C1 | E197: PMČR CON 2017 - Klub | F197: CZ | G197: 10 | H197: 3295 | I197: 4209 | J197: 1.03 | K197: 7355 | L197: 7576 | M197: 2017 | N197: x | P197: ASW-19B | Q197: OI | R197: M
A198: Jiri Fousek | B198: 1990 | C198: Raná | D198: CZ/C2 | E198: PMČR CON 2017 - Klub | F198: CZ | G198: 11 | H198: 3292 | I198: 4209 | J198: 1.03 | K198: 7225 | L198: 7442 | M198: 2017 | N198: x | P198: Std. Cirrus | Q198: LW | R198: M
A199: Jan Vavrin | B199: 1987 | C199: Vysoké Mýto | D199: CZ/C2 | E199: PMČR CON 2017 - Klub | F199: CZ | G199: 12 | H199: 3246 | I199: 4209 | J199: 1.03 | K199: 7023 | L199: 7234 | M199: 2017 | P199: ASW-15B | Q199: IG | R199: M
A200: Lubor Zeleny | B200: 1957 | C200: Přibyslav | D200: CZ/C2 | E200: PMČR CON 2017 - Klub | F200: CZ | G200: 13 | H200: 3235 | I200: 4209 | J200: 1.03 | K200: 6880 | L200: 7086 | M200: 2017 | N200: x | P200: Std. Cirrus | Q200: AW | R200: M
... 3426 more rows

Sheet Zebrik G
B1: ="Všeobecný Žebřík pilotů plachtařů PK AeČR "&A6 -> Všeobecný Žebřík pilotů plachtařů PK AeČR 2019 | G1: =Zmeny!A8 -> 2020-03-01 | H1: Rev. | I1: =Zmeny!B8 -> 05 | J1: =Zmeny!C8 -> Dodatečné nominace na PMČR, řádné nominace na PMRg a PMČRj 2020
B3: G | C3: x | I3: Junior v roce: | J3: Junior v roce: | K3: ="Repre družstvo "&I4 -> Repre družstvo 2020 | L3: ="Repre výběr "&I4 -> Repre výběr 2020 | M3: ="W "&L3 -> W Repre výběr 2020 | N3: Poznámka
I4: 2020 | J4: 2021 | K4: (RD) | L4: (RV) | M4: (WRV)
A5: Pořadí | G5: Data | I5: =COUNTIF(I7:I1000,"Junior v roce "&$I$4) -> 38 | J5: =COUNTIF(J7:J1000,"Junior v roce "&$J$4) -> 33 | K5: =COUNTIF(K7:K1000,"RD "&$I$4) -> 11 | L5: =COUNTIF(L7:L1000,"RV "&$I$4) -> 35 | M5: =COUNTIF(M7:M1000,"WRV "&$I$4) -> 10 | N5: =COUNTIF(N7:N1000,"<>") -> 11
A6: 2019 | B6: Jméno | C6: Rok narození | D6: Aeroklub | E6: Region | F6: M/F | G6: Počet G | H6: Součet z Bi×Kn
A7: =RANK(H7,H:H) -> 1 | B7: Pavel Louzecky | C7: 1957 | D7: Přibyslav | E7: CZ/C2 | F7: M | G7: 3 | H7: 31934 | I7: =IF(C7="(prázdné)","",IF(($I$4-C7)>25,"","Junior v roce "&$I$4)) ->  | J7: =IF(C7="(prázdné)","",IF(($J$4-C7)>25,"","Junior v roce "&$J$4)) ->  | K7: RD 2020 | L7: RV 2020 | M7: =IF(ISERROR(VLOOKUP(B7,'Zebrik W'!$B$7:$L$1002,11,0)),"",IF(VLOOKUP(B7,'Zebrik W'!$B$7:$L$1002,11,0)=0,"--",VLOOKUP(B7,'Zebrik W'!$B$7:$L$1002,11,0))) ->  | N7: WGC 2020 Std
A8: =RANK(H8,H:H) -> 2 | B8: Miloslav Cink | C8: 1987 | D8: Letkov | E8: CZ/C1 | F8: M | G8: 3 | H8: 31771 | I8: =IF(C8="(prázdné)","",IF(($I$4-C8)>25,"","Junior v roce "&$I$4)) ->  | J8: =IF(C8="(prázdné)","",IF(($J$4-C8)>25,"","Junior v roce "&$J$4)) ->  | K8: RD 2020 | L8: RV 2020 | M8: =IF(ISERROR(VLOOKUP(B8,'Zebrik W'!$B$7:$L$1002,11,0)),"",IF(VLOOKUP(B8,'Zebrik W'!$B$7:$L$1002,11,0)=0,"--",VLOOKUP(B8,'Zebrik W'!$B$7:$L$1002,11,0))) ->  | N8: WGC 2020 Std
A9: 3 | B9: Jaroslav Tomana | C9: 1975 | D9: Zbraslavice | E9: CZ/C1 | F9: M | G9: 3 | H9: 31458 | K9: RD 2020 | L9: RV 2020 | M9: =IF(ISERROR(VLOOKUP(B9,'Zebrik W'!$B$7:$L$1002,11,0)),"",IF(VLOOKUP(B9,'Zebrik W'!$B$7:$L$1002,11,0)=0,"--",VLOOKUP(B9,'Zebrik W'!$B$7:$L$1002,11,0))) ->  | N9: WGC 2020 Club
A10: 4 | B10: Petr Tichy | C10: 1973 | D10: Zbraslavice | E10: CZ/C1 | F10: M | G10: 3 | H10: 31160 | K10: RD 2020 | L10: RV 2020 | M10: =IF(ISERROR(VLOOKUP(B10,'Zebrik W'!$B$7:$L$1002,11,0)),"",IF(VLOOKUP(B10,'Zebrik W'!$B$7:$L$1002,11,0)=0,"--",VLOOKUP(B10,'Zebrik W'!$B$7:$L$1002,11,0))) ->  | N10: WGC 2020 Open
A11: 5 | B11: Ivan Novak | C11: 1962 | D11: Mladá Boleslav | E11: CZ/C1 | F11: M | G11: 3 | H11: 31019 | K11: RD 2020 | L11: RV 2020 | M11: =IF(ISERROR(VLOOKUP(B11,'Zebrik W'!$B$7:$L$1002,11,0)),"",IF(VLOOKUP(B11,'Zebrik W'!$B$7:$L$1002,11,0)=0,"--",VLOOKUP(B11,'Zebrik W'!$B$7:$L$1002,11,0))) ->  | N11: WGC 2020 Club
A12: 6 | B12: Roman Mracek | C12: 1980 | D12: Letkov | E12: CZ/C1 | F12: M | G12: 3 | H12: 30833 | K12: RD 2020 | L12: RV 2020 | M12: =IF(ISERROR(VLOOKUP(B12,'Zebrik W'!$B$7:$L$1002,11,0)),"",IF(VLOOKUP(B12,'Zebrik W'!$B$7:$L$1002,11,0)=0,"--",VLOOKUP(B12,'Zebrik W'!$B$7:$L$1002,11,0))) ->  | N12: WGC 2020 18m
A13: 7 | B13: Tomas Suchanek | C13: 1964 | D13: GAC Benešov | E13: CZ/C1 | F13: M | G13: 3 | H13: 30361 | K13: RD 2020 | L13: RV 2020 | M13: =IF(ISERROR(VLOOKUP(B13,'Zebrik W'!$B$7:$L$1002,11,0)),"",IF(VLOOKUP(B13,'Zebrik W'!$B$7:$L$1002,11,0)=0,"--",VLOOKUP(B13,'Zebrik W'!$B$7:$L$1002,11,0))) ->  | N13: WGC 2020 18m
A14: 8 | B14: David Mach | C14: 1994 | D14: Hronov | E14: CZ/C2 | F14: M | G14: 3 | H14: 30313 | K14: RD 2020 | L14: RV 2020 | M14: =IF(ISERROR(VLOOKUP(B14,'Zebrik W'!$B$7:$L$1002,11,0)),"",IF(VLOOKUP(B14,'Zebrik W'!$B$7:$L$1002,11,0)=0,"--",VLOOKUP(B14,'Zebrik W'!$B$7:$L$1002,11,0))) ->  | N14: WGC 2020 15m
A15: 9 | B15: Karel Novak | C15: 1993 | D15: Mladá Boleslav | E15: CZ/C1 | F15: M | G15: 3 | H15: 29328 | K15: RD 2020 | L15: RV 2020 | M15: =IF(ISERROR(VLOOKUP(B15,'Zebrik W'!$B$7:$L$1002,11,0)),"",IF(VLOOKUP(B15,'Zebrik W'!$B$7:$L$1002,11,0)=0,"--",VLOOKUP(B15,'Zebrik W'!$B$7:$L$1002,11,0))) ->  | N15: WGC 2020 15m
A16: 10 | B16: Radek Krejcirik | C16: 1991 | D16: Hranice | E16: CZ/M | F16: M | G16: 3 | H16: 29308 | K16: RD 2020 | L16: RV 2020 | M16: =IF(ISERROR(VLOOKUP(B16,'Zebrik W'!$B$7:$L$1002,11,0)),"",IF(VLOOKUP(B16,'Zebrik W'!$B$7:$L$1002,11,0)=0,"--",VLOOKUP(B16,'Zebrik W'!$B$7:$L$1002,11,0))) ->  | N16: WGC 2020 Open
A17: 11 | B17: Jan Louda | C17: 1986 | D17: Mladá Boleslav | E17: CZ/C1 | F17: M | G17: 3 | H17: 29074 | L17: RV 2020 | M17: =IF(ISERROR(VLOOKUP(B17,'Zebrik W'!$B$7:$L$1002,11,0)),"",IF(VLOOKUP(B17,'Zebrik W'!$B$7:$L$1002,11,0)=0,"--",VLOOKUP(B17,'Zebrik W'!$B$7:$L$1002,11,0))) -> 
A18: 12 | B18: Michal Lesinger | C18: 1966 | D18: Moravská Třebová | E18: CZ/M | F18: M | G18: 3 | H18: 28546 | K18: RD 2020 | L18: RV 2020 | M18: =IF(ISERROR(VLOOKUP(B18,'Zebrik W'!$B$7:$L$1002,11,0)),"",IF(VLOOKUP(B18,'Zebrik W'!$B$7:$L$1002,11,0)=0,"--",VLOOKUP(B18,'Zebrik W'!$B$7:$L$1002,11,0))) ->  | N18: WGC 2020 Duo 20m
A19: 13 | B19: Petr Koutny | C19: 1971 | D19: Křižanov | E19: CZ/M | F19: M | G19: 3 | H19: 28123 | L19: RV 2020 | M19: =IF(ISERROR(VLOOKUP(B19,'Zebrik W'!$B$7:$L$1002,11,0)),"",IF(VLOOKUP(B19,'Zebrik W'!$B$7:$L$1002,11,0)=0,"--",VLOOKUP(B19,'Zebrik W'!$B$7:$L$1002,11,0))) -> 
A20: 14 | B20: Karel Mares | C20: 1974 | D20: Slaný | E20: CZ/C1 | F20: M | G20: 3 | H20: 28101 | L20: RV 2020 | M20: =IF(ISERROR(VLOOKUP(B20,'Zebrik W'!$B$7:$L$1002,11,0)),"",IF(VLOOKUP(B20,'Zebrik W'!$B$7:$L$1002,11,0)=0,"--",VLOOKUP(B20,'Zebrik W'!$B$7:$L$1002,11,0))) -> 
A21: 15 | B21: Alena Netusilova | C21: 1970 | D21: Zbraslavice | E21: CZ/C1 | F21: F | G21: 3 | H21: 27775 | L21: RV 2020 | M21: =IF(ISERROR(VLOOKUP(B21,'Zebrik W'!$B$7:$L$1002,11,0)),"",IF(VLOOKUP(B21,'Zebrik W'!$B$7:$L$1002,11,0)=0,"--",VLOOKUP(B21,'Zebrik W'!$B$7:$L$1002,11,0))) -> WRV 2020
A22: 16 | B22: Ondrej Dupal | C22: 1966 | D22: GAC Benešov | E22: CZ/C1 | F22: M | G22: 3 | H22: 27640 | L22: RV 2020 | M22: =IF(ISERROR(VLOOKUP(B22,'Zebrik W'!$B$7:$L$1002,11,0)),"",IF(VLOOKUP(B22,'Zebrik W'!$B$7:$L$1002,11,0)=0,"--",VLOOKUP(B22,'Zebrik W'!$B$7:$L$1002,11,0))) -> 
A23: 17 | B23: Danes Grula | C23: 1961 | D23: Medlánky | E23: CZ/M | F23: M | G23: 3 | H23: 27595 | L23: RV 2020 | M23: =IF(ISERROR(VLOOKUP(B23,'Zebrik W'!$B$7:$L$1002,11,0)),"",IF(VLOOKUP(B23,'Zebrik W'!$B$7:$L$1002,11,0)=0,"--",VLOOKUP(B23,'Zebrik W'!$B$7:$L$1002,11,0))) -> 
A24: 18 | B24: Marek Pechanec | C24: 1970 | D24: Luhačovice | E24: CZ/M | F24: M | G24: 3 | H24: 27496 | L24: RV 2020 | M24: =IF(ISERROR(VLOOKUP(B24,'Zebrik W'!$B$7:$L$1002,11,0)),"",IF(VLOOKUP(B24,'Zebrik W'!$B$7:$L$1002,11,0)=0,"--",VLOOKUP(B24,'Zebrik W'!$B$7:$L$1002,11,0))) -> 
A25: 19 | B25: Petr Krejcirik | C25: 1960 | D25: Hranice | E25: CZ/M | F25: M | G25: 3 | H25: 27459 | L25: RV 2020 | M25: =IF(ISERROR(VLOOKUP(B25,'Zebrik W'!$B$7:$L$1002,11,0)),"",IF(VLOOKUP(B25,'Zebrik W'!$B$7:$L$1002,11,0)=0,"--",VLOOKUP(B25,'Zebrik W'!$B$7:$L$1002,11,0))) -> 
A26: 20 | B26: Zdenek Boruvka 86 | C26: 1986 | D26: Jičín | E26: CZ/C2 | F26: M | G26: 3 | H26: 27300 | L26: RV 2020 | M26: =IF(ISERROR(VLOOKUP(B26,'Zebrik W'!$B$7:$L$1002,11,0)),"",IF(VLOOKUP(B26,'Zebrik W'!$B$7:$L$1002,11,0)=0,"--",VLOOKUP(B26,'Zebrik W'!$B$7:$L$1002,11,0))) -> 
A27: 21 | B27: Daniel Ryba | C27: 1994 | D27: Dvůr Králové | E27: CZ/C2 | F27: M | G27: 3 | H27: 27288 | M27: =IF(ISERROR(VLOOKUP(B27,'Zebrik W'!$B$7:$L$1002,11,0)),"",IF(VLOOKUP(B27,'Zebrik W'!$B$7:$L$1002,11,0)=0,"--",VLOOKUP(B27,'Zebrik W'!$B$7:$L$1002,11,0))) -> 
A28: 22 | B28: Hana Treslova | C28: 1991 | D28: Raná | E28: CZ/C2 | F28: F | G28: 3 | H28: 27160 | L28: RV 2020 | M28: =IF(ISERROR(VLOOKUP(B28,'Zebrik W'!$B$7:$L$1002,11,0)),"",IF(VLOOKUP(B28,'Zebrik W'!$B$7:$L$1002,11,0)=0,"--",VLOOKUP(B28,'Zebrik W'!$B$7:$L$1002,11,0))) -> WRV 2020
A29: 23 | B29: Jan Pavlik | C29: 1987 | D29: Křižanov | E29: CZ/M | F29: M | G29: 3 | H29: 27089 | M29: =IF(ISERROR(VLOOKUP(B29,'Zebrik W'!$B$7:$L$1002,11,0)),"",IF(VLOOKUP(B29,'Zebrik W'!$B$7:$L$1002,11,0)=0,"--",VLOOKUP(B29,'Zebrik W'!$B$7:$L$1002,11,0))) -> 
A30: 24 | B30: Jan Boruvka | C30: 1984 | D30: Jičín | E30: CZ/C2 | F30: M | G30: 3 | H30: 26996 | M30: =IF(ISERROR(VLOOKUP(B30,'Zebrik W'!$B$7:$L$1002,11,0)),"",IF(VLOOKUP(B30,'Zebrik W'!$B$7:$L$1002,11,0)=0,"--",VLOOKUP(B30,'Zebrik W'!$B$7:$L$1002,11,0))) -> 
A31: 25 | B31: Jana Veprekova | C31: 1961 | D31: Dvůr Králové | E31: CZ/C2 | F31: F | G31: 3 | H31: 26827 | L31: RV 2020 | M31: =IF(ISERROR(VLOOKUP(B31,'Zebrik W'!$B$7:$L$1002,11,0)),"",IF(VLOOKUP(B31,'Zebrik W'!$B$7:$L$1002,11,0)=0,"--",VLOOKUP(B31,'Zebrik W'!$B$7:$L$1002,11,0))) -> WRV 2020
A32: 26 | B32: Jan Viskot | C32: 1995 | D32: Břeclav | E32: CZ/M | F32: M | G32: 3 | H32: 26310 | I32: Junior v roce 2020 | L32: RV 2020 | M32: =IF(ISERROR(VLOOKUP(B32,'Zebrik W'!$B$7:$L$1002,11,0)),"",IF(VLOOKUP(B32,'Zebrik W'!$B$7:$L$1002,11,0)=0,"--",VLOOKUP(B32,'Zebrik W'!$B$7:$L$1002,11,0))) -> 
A33: 27 | B33: Zdenek Balcarek | C33: 1967 | D33: Kroměříž | E33: CZ/M | F33: M | G33: 3 | H33: 26302 | M33: =IF(ISERROR(VLOOKUP(B33,'Zebrik W'!$B$7:$L$1002,11,0)),"",IF(VLOOKUP(B33,'Zebrik W'!$B$7:$L$1002,11,0)=0,"--",VLOOKUP(B33,'Zebrik W'!$B$7:$L$1002,11,0))) -> 
A34: 28 | B34: Jaromir Macoun | C34: 1999 | D34: Jičín | E34: CZ/C2 | F34: M | G34: 3 | H34: 26075 | I34: Junior v roce 2020 | J34: Junior v roce 2021 | L34: RV 2020 | M34: =IF(ISERROR(VLOOKUP(B34,'Zebrik W'!$B$7:$L$1002,11,0)),"",IF(VLOOKUP(B34,'Zebrik W'!$B$7:$L$1002,11,0)=0,"--",VLOOKUP(B34,'Zebrik W'!$B$7:$L$1002,11,0))) -> 
A35: 29 | B35: Ondrej Bordovsky | C35: 1983 | D35: Krnov | E35: CZ/M | F35: M | G35: 3 | H35: 26050 | M35: =IF(ISERROR(VLOOKUP(B35,'Zebrik W'!$B$7:$L$1002,11,0)),"",IF(VLOOKUP(B35,'Zebrik W'!$B$7:$L$1002,11,0)=0,"--",VLOOKUP(B35,'Zebrik W'!$B$7:$L$1002,11,0))) -> 
A36: 30 | B36: Ivan Harasta 65 | C36: 1965 | D36: Toužim | E36: CZ/C1 | F36: M | G36: 3 | H36: 26038 | M36: =IF(ISERROR(VLOOKUP(B36,'Zebrik W'!$B$7:$L$1002,11,0)),"",IF(VLOOKUP(B36,'Zebrik W'!$B$7:$L$1002,11,0)=0,"--",VLOOKUP(B36,'Zebrik W'!$B$7:$L$1002,11,0))) -> 
A37: 31 | B37: Zdenek Boruvka 54 | C37: 1954 | D37: Jičín | E37: CZ/C2 | F37: M | G37: 3 | H37: 26011 | M37: =IF(ISERROR(VLOOKUP(B37,'Zebrik W'!$B$7:$L$1002,11,0)),"",IF(VLOOKUP(B37,'Zebrik W'!$B$7:$L$1002,11,0)=0,"--",VLOOKUP(B37,'Zebrik W'!$B$7:$L$1002,11,0))) -> 
A38: 32 | B38: Dana Novakova | C38: 1965 | D38: Mladá Boleslav | E38: CZ/C1 | F38: F | G38: 3 | H38: 25980 | L38: RV 2020 | M38: =IF(ISERROR(VLOOKUP(B38,'Zebrik W'!$B$7:$L$1002,11,0)),"",IF(VLOOKUP(B38,'Zebrik W'!$B$7:$L$1002,11,0)=0,"--",VLOOKUP(B38,'Zebrik W'!$B$7:$L$1002,11,0))) -> WRV 2020
A39: 33 | B39: Lubomir Motl | C39: 1959 | D39: Kyjov | E39: CZ/M | F39: M | G39: 3 | H39: 25848 | M39: =IF(ISERROR(VLOOKUP(B39,'Zebrik W'!$B$7:$L$1002,11,0)),"",IF(VLOOKUP(B39,'Zebrik W'!$B$7:$L$1002,11,0)=0,"--",VLOOKUP(B39,'Zebrik W'!$B$7:$L$1002,11,0))) -> 
A40: 34 | B40: Jan Ratz | C40: 1987 | D40: Zbraslavice | E40: CZ/C1 | F40: M | G40: 3 | H40: 25777 | M40: =IF(ISERROR(VLOOKUP(B40,'Zebrik W'!$B$7:$L$1002,11,0)),"",IF(VLOOKUP(B40,'Zebrik W'!$B$7:$L$1002,11,0)=0,"--",VLOOKUP(B40,'Zebrik W'!$B$7:$L$1002,11,0))) -> 
A41: 35 | B41: Jiri Kusbach | C41: 1959 | D41: Luhačovice | E41: CZ/M | F41: M | G41: 3 | H41: 25768 | M41: =IF(ISERROR(VLOOKUP(B41,'Zebrik W'!$B$7:$L$1002,11,0)),"",IF(VLOOKUP(B41,'Zebrik W'!$B$7:$L$1002,11,0)=0,"--",VLOOKUP(B41,'Zebrik W'!$B$7:$L$1002,11,0))) -> 
A42: 36 | B42: Barbora Moravcova | C42: 1994 | D42: Zbraslavice | E42: CZ/C1 | F42: F | G42: 3 | H42: 25476 | L42: RV 2020 | M42: =IF(ISERROR(VLOOKUP(B42,'Zebrik W'!$B$7:$L$1002,11,0)),"",IF(VLOOKUP(B42,'Zebrik W'!$B$7:$L$1002,11,0)=0,"--",VLOOKUP(B42,'Zebrik W'!$B$7:$L$1002,11,0))) -> WRV 2020
A43: 37 | B43: Jan Zapletal | C43: 1997 | D43: Kroměříž | E43: CZ/M | F43: M | G43: 3 | H43: 25457 | I43: Junior v roce 2020 | J43: Junior v roce 2021 | L43: RV 2020 | M43: =IF(ISERROR(VLOOKUP(B43,'Zebrik W'!$B$7:$L$1002,11,0)),"",IF(VLOOKUP(B43,'Zebrik W'!$B$7:$L$1002,11,0)=0,"--",VLOOKUP(B43,'Zebrik W'!$B$7:$L$1002,11,0))) -> 
A44: 38 | B44: Klara Teichmannova | C44: 1993 | D44: Hronov | E44: CZ/C2 | F44: F | G44: 3 | H44: 25293 | I44: =IF(C44="(prázdné)","",IF(($I$4-C44)>25,"","Junior v roce "&$I$4)) ->  | J44: =IF(C44="(prázdné)","",IF(($J$4-C44)>25,"","Junior v roce "&$J$4)) ->  | L44: RV 2020 | M44: =IF(ISERROR(VLOOKUP(B44,'Zebrik W'!$B$7:$L$1002,11,0)),"",IF(VLOOKUP(B44,'Zebrik W'!$B$7:$L$1002,11,0)=0,"--",VLOOKUP(B44,'Zebrik W'!$B$7:$L$1002,11,0))) -> WRV 2020
A45: 39 | B45: Petr Panek | C45: 1975 | D45: Dvůr Králové | E45: CZ/C2 | F45: M | G45: 3 | H45: 25263 | M45: =IF(ISERROR(VLOOKUP(B45,'Zebrik W'!$B$7:$L$1002,11,0)),"",IF(VLOOKUP(B45,'Zebrik W'!$B$7:$L$1002,11,0)=0,"--",VLOOKUP(B45,'Zebrik W'!$B$7:$L$1002,11,0))) -> 
A46: 40 | B46: Jana Treslova | C46: 1963 | D46: Raná | E46: CZ/C2 | F46: F | G46: 3 | H46: 25199 | L46: RV 2020 | M46: =IF(ISERROR(VLOOKUP(B46,'Zebrik W'!$B$7:$L$1002,11,0)),"",IF(VLOOKUP(B46,'Zebrik W'!$B$7:$L$1002,11,0)=0,"--",VLOOKUP(B46,'Zebrik W'!$B$7:$L$1002,11,0))) -> WRV 2020
A47: 41 | B47: Vaclav Marel | C47: 1974 | D47: Jaroměř | E47: CZ/C2 | F47: M | G47: 3 | H47: 25153 | M47: =IF(ISERROR(VLOOKUP(B47,'Zebrik W'!$B$7:$L$1002,11,0)),"",IF(VLOOKUP(B47,'Zebrik W'!$B$7:$L$1002,11,0)=0,"--",VLOOKUP(B47,'Zebrik W'!$B$7:$L$1002,11,0))) -> 
A48: 42 | B48: Tomas Rendla | C48: 1973 | D48: Zbraslavice | E48: CZ/C1 | F48: M | G48: 3 | H48: 24959 | M48: =IF(ISERROR(VLOOKUP(B48,'Zebrik W'!$B$7:$L$1002,11,0)),"",IF(VLOOKUP(B48,'Zebrik W'!$B$7:$L$1002,11,0)=0,"--",VLOOKUP(B48,'Zebrik W'!$B$7:$L$1002,11,0))) -> 
A49: 43 | B49: Petr Hotovy | C49: 1958 | D49: Česká Lípa | E49: CZ/C2 | F49: M | G49: 3 | H49: 24953 | M49: =IF(ISERROR(VLOOKUP(B49,'Zebrik W'!$B$7:$L$1002,11,0)),"",IF(VLOOKUP(B49,'Zebrik W'!$B$7:$L$1002,11,0)=0,"--",VLOOKUP(B49,'Zebrik W'!$B$7:$L$1002,11,0))) -> 
A50: 44 | B50: Radek Kucirek | C50: 1973 | D50: Havlíčkův Brod | E50: CZ/C2 | F50: M | G50: 3 | H50: 24789 | M50: =IF(ISERROR(VLOOKUP(B50,'Zebrik W'!$B$7:$L$1002,11,0)),"",IF(VLOOKUP(B50,'Zebrik W'!$B$7:$L$1002,11,0)=0,"--",VLOOKUP(B50,'Zebrik W'!$B$7:$L$1002,11,0))) -> 
A51: 45 | B51: Pavel Trybenekr | C51: 1990 | D51: Hořice | E51: CZ/C2 | F51: M | G51: 3 | H51: 24728 | M51: =IF(ISERROR(VLOOKUP(B51,'Zebrik W'!$B$7:$L$1002,11,0)),"",IF(VLOOKUP(B51,'Zebrik W'!$B$7:$L$1002,11,0)=0,"--",VLOOKUP(B51,'Zebrik W'!$B$7:$L$1002,11,0))) -> 
A52: 46 | B52: Jan Zahradka | C52: 1981 | D52: Hodkovice | E52: CZ/C2 | F52: M | G52: 3 | H52: 24600 | M52: =IF(ISERROR(VLOOKUP(B52,'Zebrik W'!$B$7:$L$1002,11,0)),"",IF(VLOOKUP(B52,'Zebrik W'!$B$7:$L$1002,11,0)=0,"--",VLOOKUP(B52,'Zebrik W'!$B$7:$L$1002,11,0))) -> 
A53: 47 | B53: Vojtech Novotny | C53: 1992 | D53: Kralupy | E53: CZ/C1 | F53: M | G53: 3 | H53: 24546 | M53: =IF(ISERROR(VLOOKUP(B53,'Zebrik W'!$B$7:$L$1002,11,0)),"",IF(VLOOKUP(B53,'Zebrik W'!$B$7:$L$1002,11,0)=0,"--",VLOOKUP(B53,'Zebrik W'!$B$7:$L$1002,11,0))) -> 
A54: 48 | B54: Lukas Koukal | C54: 1991 | D54: Letkov | E54: CZ/C1 | F54: M | G54: 3 | H54: 24407 | M54: =IF(ISERROR(VLOOKUP(B54,'Zebrik W'!$B$7:$L$1002,11,0)),"",IF(VLOOKUP(B54,'Zebrik W'!$B$7:$L$1002,11,0)=0,"--",VLOOKUP(B54,'Zebrik W'!$B$7:$L$1002,11,0))) -> 
A55: 49 | B55: David Sachl | C55: 1978 | D55: Kralupy | E55: CZ/C1 | F55: M | G55: 3 | H55: 24321 | M55: =IF(ISERROR(VLOOKUP(B55,'Zebrik W'!$B$7:$L$1002,11,0)),"",IF(VLOOKUP(B55,'Zebrik W'!$B$7:$L$1002,11,0)=0,"--",VLOOKUP(B55,'Zebrik W'!$B$7:$L$1002,11,0))) -> 
A56: 50 | B56: Petr Stepanek | C56: 1989 | D56: Moravská Třebová | E56: CZ/M | F56: M | G56: 3 | H56: 24293 | M56: =IF(ISERROR(VLOOKUP(B56,'Zebrik W'!$B$7:$L$1002,11,0)),"",IF(VLOOKUP(B56,'Zebrik W'!$B$7:$L$1002,11,0)=0,"--",VLOOKUP(B56,'Zebrik W'!$B$7:$L$1002,11,0))) -> 
A57: 51 | B57: Jiri Stepanek | C57: 1956 | D57: Moravská Třebová | E57: CZ/M | F57: M | G57: 3 | H57: 24151 | M57: =IF(ISERROR(VLOOKUP(B57,'Zebrik W'!$B$7:$L$1002,11,0)),"",IF(VLOOKUP(B57,'Zebrik W'!$B$7:$L$1002,11,0)=0,"--",VLOOKUP(B57,'Zebrik W'!$B$7:$L$1002,11,0))) -> 
A58: 52 | B58: Lenka Kuthanova | C58: 1960 | D58: Tábor | E58: CZ/C1 | F58: F | G58: 3 | H58: 23705 | L58: RV 2020 | M58: =IF(ISERROR(VLOOKUP(B58,'Zebrik W'!$B$7:$L$1002,11,0)),"",IF(VLOOKUP(B58,'Zebrik W'!$B$7:$L$1002,11,0)=0,"--",VLOOKUP(B58,'Zebrik W'!$B$7:$L$1002,11,0))) -> WRV 2020
A59: 53 | B59: Michal Krupicka | C59: 1975 | D59: Most | E59: CZ/C2 | F59: M | G59: 3 | H59: 23449 | M59: =IF(ISERROR(VLOOKUP(B59,'Zebrik W'!$B$7:$L$1002,11,0)),"",IF(VLOOKUP(B59,'Zebrik W'!$B$7:$L$1002,11,0)=0,"--",VLOOKUP(B59,'Zebrik W'!$B$7:$L$1002,11,0))) -> 
A60: 54 | B60: Pavel Rericha | C60: 1967 | D60: Moravská Třebová | E60: CZ/M | F60: M | G60: 3 | H60: 23394 | M60: =IF(ISERROR(VLOOKUP(B60,'Zebrik W'!$B$7:$L$1002,11,0)),"",IF(VLOOKUP(B60,'Zebrik W'!$B$7:$L$1002,11,0)=0,"--",VLOOKUP(B60,'Zebrik W'!$B$7:$L$1002,11,0))) -> 
A61: 55 | B61: Jan Vavrin | C61: 1987 | D61: Vysoké Mýto | E61: CZ/C2 | F61: M | G61: 3 | H61: 23390 | M61: =IF(ISERROR(VLOOKUP(B61,'Zebrik W'!$B$7:$L$1002,11,0)),"",IF(VLOOKUP(B61,'Zebrik W'!$B$7:$L$1002,11,0)=0,"--",VLOOKUP(B61,'Zebrik W'!$B$7:$L$1002,11,0))) -> 
A62: 56 | B62: Martin Hrivna | C62: 1978 | D62: Zbraslavice | E62: CZ/C1 | F62: M | G62: 3 | H62: 23128 | M62: =IF(ISERROR(VLOOKUP(B62,'Zebrik W'!$B$7:$L$1002,11,0)),"",IF(VLOOKUP(B62,'Zebrik W'!$B$7:$L$1002,11,0)=0,"--",VLOOKUP(B62,'Zebrik W'!$B$7:$L$1002,11,0))) -> 
A63: 57 | B63: Jiri Fousek | C63: 1990 | D63: Raná | E63: CZ/C2 | F63: M | G63: 3 | H63: 22855 | M63: =IF(ISERROR(VLOOKUP(B63,'Zebrik W'!$B$7:$L$1002,11,0)),"",IF(VLOOKUP(B63,'Zebrik W'!$B$7:$L$1002,11,0)=0,"--",VLOOKUP(B63,'Zebrik W'!$B$7:$L$1002,11,0))) -> 
A64: 58 | B64: Zdenek Schenk | C64: 1972 | D64: Hranice | E64: CZ/M | F64: M | G64: 3 | H64: 22679 | M64: =IF(ISERROR(VLOOKUP(B64,'Zebrik W'!$B$7:$L$1002,11,0)),"",IF(VLOOKUP(B64,'Zebrik W'!$B$7:$L$1002,11,0)=0,"--",VLOOKUP(B64,'Zebrik W'!$B$7:$L$1002,11,0))) -> 
A65: 59 | B65: Karel Benisek 76 | C65: 1976 | D65: Toužim | E65: CZ/C1 | F65: M | G65: 3 | H65: 22412 | M65: =IF(ISERROR(VLOOKUP(B65,'Zebrik W'!$B$7:$L$1002,11,0)),"",IF(VLOOKUP(B65,'Zebrik W'!$B$7:$L$1002,11,0)=0,"--",VLOOKUP(B65,'Zebrik W'!$B$7:$L$1002,11,0))) -> 
A66: 60 | B66: Lukas Capek | C66: 1992 | D66: Letňany | E66: CZ/C1 | F66: M | G66: 3 | H66: 22393 | M66: =IF(ISERROR(VLOOKUP(B66,'Zebrik W'!$B$7:$L$1002,11,0)),"",IF(VLOOKUP(B66,'Zebrik W'!$B$7:$L$1002,11,0)=0,"--",VLOOKUP(B66,'Zebrik W'!$B$7:$L$1002,11,0))) -> 
A67: 61 | B67: Antonin Konicek | C67: 1973 | D67: Kunovice | E67: CZ/M | F67: M | G67: 3 | H67: 22281 | M67: =IF(ISERROR(VLOOKUP(B67,'Zebrik W'!$B$7:$L$1002,11,0)),"",IF(VLOOKUP(B67,'Zebrik W'!$B$7:$L$1002,11,0)=0,"--",VLOOKUP(B67,'Zebrik W'!$B$7:$L$1002,11,0))) -> 
A68: 62 | B68: Petr Starek | C68: 1974 | D68: Zbraslavice | E68: CZ/C1 | F68: M | G68: 3 | H68: 22207 | M68: =IF(ISERROR(VLOOKUP(B68,'Zebrik W'!$B$7:$L$1002,11,0)),"",IF(VLOOKUP(B68,'Zebrik W'!$B$7:$L$1002,11,0)=0,"--",VLOOKUP(B68,'Zebrik W'!$B$7:$L$1002,11,0))) -> 
A69: 63 | B69: Martin Svarc | C69: 1981 | D69: Olomouc | E69: CZ/M | F69: M | G69: 3 | H69: 22107 | M69: =IF(ISERROR(VLOOKUP(B69,'Zebrik W'!$B$7:$L$1002,11,0)),"",IF(VLOOKUP(B69,'Zebrik W'!$B$7:$L$1002,11,0)=0,"--",VLOOKUP(B69,'Zebrik W'!$B$7:$L$1002,11,0))) -> 
A70: 64 | B70: Petr Valenta 94 | C70: 1994 | D70: Kunovice | E70: CZ/M | F70: M | G70: 3 | H70: 22026 | M70: =IF(ISERROR(VLOOKUP(B70,'Zebrik W'!$B$7:$L$1002,11,0)),"",IF(VLOOKUP(B70,'Zebrik W'!$B$7:$L$1002,11,0)=0,"--",VLOOKUP(B70,'Zebrik W'!$B$7:$L$1002,11,0))) -> 
A71: 65 | B71: Slavomir Piskaty 84 | C71: 1984 | D71: Kunovice | E71: CZ/M | F71: M | G71: 3 | H71: 21941 | M71: =IF(ISERROR(VLOOKUP(B71,'Zebrik W'!$B$7:$L$1002,11,0)),"",IF(VLOOKUP(B71,'Zebrik W'!$B$7:$L$1002,11,0)=0,"--",VLOOKUP(B71,'Zebrik W'!$B$7:$L$1002,11,0))) -> 
A72: =RANK(H72,H:H) -> 66 | B72: Rene Hudak | C72: 1972 | D72: Kunovice | E72: CZ/M | F72: M | G72: 3 | H72: 21940 | M72: =IF(ISERROR(VLOOKUP(B72,'Zebrik W'!$B$7:$L$1002,11,0)),"",IF(VLOOKUP(B72,'Zebrik W'!$B$7:$L$1002,11,0)=0,"--",VLOOKUP(B72,'Zebrik W'!$B$7:$L$1002,11,0))) -> 
A73: 67 | B73: Martin Fric | C73: 1967 | D73: Raná | E73: CZ/C2 | F73: M | G73: 3 | H73: 21921 | M73: =IF(ISERROR(VLOOKUP(B73,'Zebrik W'!$B$7:$L$1002,11,0)),"",IF(VLOOKUP(B73,'Zebrik W'!$B$7:$L$1002,11,0)=0,"--",VLOOKUP(B73,'Zebrik W'!$B$7:$L$1002,11,0))) -> 
A74: 68 | B74: Petra Piskata | C74: 1989 | D74: Hranice | E74: CZ/M | F74: F | G74: 3 | H74: 21899 | L74: RV 2020 | M74: =IF(ISERROR(VLOOKUP(B74,'Zebrik W'!$B$7:$L$1002,11,0)),"",IF(VLOOKUP(B74,'Zebrik W'!$B$7:$L$1002,11,0)=0,"--",VLOOKUP(B74,'Zebrik W'!$B$7:$L$1002,11,0))) -> WRV 2020
A75: 69 | B75: Martin Urner | C75: 1974 | D75: Letňany | E75: CZ/C1 | F75: M | G75: 3 | H75: 21664 | M75: =IF(ISERROR(VLOOKUP(B75,'Zebrik W'!$B$7:$L$1002,11,0)),"",IF(VLOOKUP(B75,'Zebrik W'!$B$7:$L$1002,11,0)=0,"--",VLOOKUP(B75,'Zebrik W'!$B$7:$L$1002,11,0))) -> 
A76: 70 | B76: Antonin Novotny | C76: 1972 | D76: Luhačovice | E76: CZ/M | F76: M | G76: 3 | H76: 21616 | M76: =IF(ISERROR(VLOOKUP(B76,'Zebrik W'!$B$7:$L$1002,11,0)),"",IF(VLOOKUP(B76,'Zebrik W'!$B$7:$L$1002,11,0)=0,"--",VLOOKUP(B76,'Zebrik W'!$B$7:$L$1002,11,0))) -> 
A77: 71 | B77: Michal Drab | C77: 1969 | D77: Letkov | E77: CZ/C1 | F77: M | G77: 3 | H77: 21519 | M77: =IF(ISERROR(VLOOKUP(B77,'Zebrik W'!$B$7:$L$1002,11,0)),"",IF(VLOOKUP(B77,'Zebrik W'!$B$7:$L$1002,11,0)=0,"--",VLOOKUP(B77,'Zebrik W'!$B$7:$L$1002,11,0))) -> 
A78: 72 | B78: Ivan Tvrdik | C78: 1997 | D78: Letňany | E78: CZ/C1 | F78: M | G78: 3 | H78: 21376 | I78: Junior v roce 2020 | J78: Junior v roce 2021 | L78: RV 2020 | M78: =IF(ISERROR(VLOOKUP(B78,'Zebrik W'!$B$7:$L$1002,11,0)),"",IF(VLOOKUP(B78,'Zebrik W'!$B$7:$L$1002,11,0)=0,"--",VLOOKUP(B78,'Zebrik W'!$B$7:$L$1002,11,0))) -> 
A79: 73 | B79: Jan Vozeh | C79: 1995 | D79: Rakovník | E79: CZ/C1 | F79: M | G79: 3 | H79: 21335 | I79: Junior v roce 2020 | L79: RV 2020 | M79: =IF(ISERROR(VLOOKUP(B79,'Zebrik W'!$B$7:$L$1002,11,0)),"",IF(VLOOKUP(B79,'Zebrik W'!$B$7:$L$1002,11,0)=0,"--",VLOOKUP(B79,'Zebrik W'!$B$7:$L$1002,11,0))) -> 
A80: 74 | B80: Pavel Zima | C80: 1979 | D80: Břeclav | E80: CZ/M | F80: M | G80: 3 | H80: 21273 | M80: =IF(ISERROR(VLOOKUP(B80,'Zebrik W'!$B$7:$L$1002,11,0)),"",IF(VLOOKUP(B80,'Zebrik W'!$B$7:$L$1002,11,0)=0,"--",VLOOKUP(B80,'Zebrik W'!$B$7:$L$1002,11,0))) -> 
A81: 75 | B81: Jiri Steiger | C81: 1969 | D81: Olomouc | E81: CZ/M | F81: M | G81: 3 | H81: 20966 | M81: =IF(ISERROR(VLOOKUP(B81,'Zebrik W'!$B$7:$L$1002,11,0)),"",IF(VLOOKUP(B81,'Zebrik W'!$B$7:$L$1002,11,0)=0,"--",VLOOKUP(B81,'Zebrik W'!$B$7:$L$1002,11,0))) -> 
A82: 76 | B82: Jan Simon | C82: 1970 | D82: Kralupy | E82: CZ/C1 | F82: M | G82: 3 | H82: 20801 | M82: =IF(ISERROR(VLOOKUP(B82,'Zebrik W'!$B$7:$L$1002,11,0)),"",IF(VLOOKUP(B82,'Zebrik W'!$B$7:$L$1002,11,0)=0,"--",VLOOKUP(B82,'Zebrik W'!$B$7:$L$1002,11,0))) -> 
A83: 77 | B83: Martin Pekar | C83: 1973 | D83: Šumperk | E83: CZ/M | F83: M | G83: 3 | H83: 20725 | M83: =IF(ISERROR(VLOOKUP(B83,'Zebrik W'!$B$7:$L$1002,11,0)),"",IF(VLOOKUP(B83,'Zebrik W'!$B$7:$L$1002,11,0)=0,"--",VLOOKUP(B83,'Zebrik W'!$B$7:$L$1002,11,0))) -> 
A84: 78 | B84: Marek Svancara | C84: 1976 | D84: GAC Benešov | E84: CZ/C1 | F84: M | G84: 3 | H84: 20704 | M84: =IF(ISERROR(VLOOKUP(B84,'Zebrik W'!$B$7:$L$1002,11,0)),"",IF(VLOOKUP(B84,'Zebrik W'!$B$7:$L$1002,11,0)=0,"--",VLOOKUP(B84,'Zebrik W'!$B$7:$L$1002,11,0))) -> 
A85: 79 | B85: Frantisek Vancura | C85: 1966 | D85: Hranice | E85: CZ/M | F85: M | G85: 3 | H85: 20646 | M85: =IF(ISERROR(VLOOKUP(B85,'Zebrik W'!$B$7:$L$1002,11,0)),"",IF(VLOOKUP(B85,'Zebrik W'!$B$7:$L$1002,11,0)=0,"--",VLOOKUP(B85,'Zebrik W'!$B$7:$L$1002,11,0))) -> 
A86: 80 | B86: Jan Smaha | C86: 1958 | D86: Česká Lípa | E86: CZ/C2 | F86: M | G86: 3 | H86: 20598 | M86: =IF(ISERROR(VLOOKUP(B86,'Zebrik W'!$B$7:$L$1002,11,0)),"",IF(VLOOKUP(B86,'Zebrik W'!$B$7:$L$1002,11,0)=0,"--",VLOOKUP(B86,'Zebrik W'!$B$7:$L$1002,11,0))) -> 
A87: 81 | B87: Milan Svoboda 80 | C87: 1980 | D87: Havlíčkův Brod | E87: CZ/C2 | F87: M | G87: 3 | H87: 20558 | M87: =IF(ISERROR(VLOOKUP(B87,'Zebrik W'!$B$7:$L$1002,11,0)),"",IF(VLOOKUP(B87,'Zebrik W'!$B$7:$L$1002,11,0)=0,"--",VLOOKUP(B87,'Zebrik W'!$B$7:$L$1002,11,0))) -> 
A88: 82 | B88: Tereza Koubkova | C88: 1999 | D88: Letňany | E88: CZ/C1 | F88: F | G88: 3 | H88: 20483 | I88: Junior v roce 2020 | J88: Junior v roce 2021 | L88: RV 2020 | M88: =IF(ISERROR(VLOOKUP(B88,'Zebrik W'!$B$7:$L$1002,11,0)),"",IF(VLOOKUP(B88,'Zebrik W'!$B$7:$L$1002,11,0)=0,"--",VLOOKUP(B88,'Zebrik W'!$B$7:$L$1002,11,0))) -> --
A89: 83 | B89: Tomas Jilek | C89: 1995 | D89: Raná | E89: CZ/C2 | F89: M | G89: 3 | H89: 20456 | I89: Junior v roce 2020 | M89: =IF(ISERROR(VLOOKUP(B89,'Zebrik W'!$B$7:$L$1002,11,0)),"",IF(VLOOKUP(B89,'Zebrik W'!$B$7:$L$1002,11,0)=0,"--",VLOOKUP(B89,'Zebrik W'!$B$7:$L$1002,11,0))) -> 
A90: 84 | B90: Jan Horak | C90: 1971 | D90: Zbraslavice | E90: CZ/C1 | F90: M | G90: 3 | H90: 20437 | M90: =IF(ISERROR(VLOOKUP(B90,'Zebrik W'!$B$7:$L$1002,11,0)),"",IF(VLOOKUP(B90,'Zebrik W'!$B$7:$L$1002,11,0)=0,"--",VLOOKUP(B90,'Zebrik W'!$B$7:$L$1002,11,0))) -> 
A91: 85 | B91: Anna Bordovska | C91: 1989 | D91: Mladá Boleslav | E91: CZ/C1 | F91: F | G91: 3 | H91: 20344 | M91: =IF(ISERROR(VLOOKUP(B91,'Zebrik W'!$B$7:$L$1002,11,0)),"",IF(VLOOKUP(B91,'Zebrik W'!$B$7:$L$1002,11,0)=0,"--",VLOOKUP(B91,'Zebrik W'!$B$7:$L$1002,11,0))) -> --
A92: 86 | B92: Ladislav Jozsa | C92: 1981 | D92: Medlánky | E92: CZ/M | F92: M | G92: 3 | H92: 20139 | M92: =IF(ISERROR(VLOOKUP(B92,'Zebrik W'!$B$7:$L$1002,11,0)),"",IF(VLOOKUP(B92,'Zebrik W'!$B$7:$L$1002,11,0)=0,"--",VLOOKUP(B92,'Zebrik W'!$B$7:$L$1002,11,0))) -> 
A93: 87 | B93: Frantisek Filandr | C93: 1956 | D93: Most | E93: CZ/C2 | F93: M | G93: 3 | H93: 20136 | M93: =IF(ISERROR(VLOOKUP(B93,'Zebrik W'!$B$7:$L$1002,11,0)),"",IF(VLOOKUP(B93,'Zebrik W'!$B$7:$L$1002,11,0)=0,"--",VLOOKUP(B93,'Zebrik W'!$B$7:$L$1002,11,0))) -> 
A94: 88 | B94: Jan Dersak 69 | C94: 1969 | D94: Kralupy | E94: CZ/C1 | F94: M | G94: 3 | H94: 19962 | M94: =IF(ISERROR(VLOOKUP(B94,'Zebrik W'!$B$7:$L$1002,11,0)),"",IF(VLOOKUP(B94,'Zebrik W'!$B$7:$L$1002,11,0)=0,"--",VLOOKUP(B94,'Zebrik W'!$B$7:$L$1002,11,0))) -> 
A95: 89 | B95: Vit Morkovsky | C95: 2000 | D95: Polička | E95: CZ/C2 | F95: M | G95: 3 | H95: 19878 | I95: Junior v roce 2020 | J95: Junior v roce 2021 | M95: =IF(ISERROR(VLOOKUP(B95,'Zebrik W'!$B$7:$L$1002,11,0)),"",IF(VLOOKUP(B95,'Zebrik W'!$B$7:$L$1002,11,0)=0,"--",VLOOKUP(B95,'Zebrik W'!$B$7:$L$1002,11,0))) -> 
A96: 90 | B96: Pavlina Horackova | C96: 1965 | D96: Šumperk | E96: CZ/M | F96: F | G96: 3 | H96: 19876 | M96: =IF(ISERROR(VLOOKUP(B96,'Zebrik W'!$B$7:$L$1002,11,0)),"",IF(VLOOKUP(B96,'Zebrik W'!$B$7:$L$1002,11,0)=0,"--",VLOOKUP(B96,'Zebrik W'!$B$7:$L$1002,11,0))) -> --
A97: 91 | B97: Jaroslav Buryan | C97: 1953 | D97: Zábřeh | E97: CZ/M | F97: M | G97: 3 | H97: 19863 | M97: =IF(ISERROR(VLOOKUP(B97,'Zebrik W'!$B$7:$L$1002,11,0)),"",IF(VLOOKUP(B97,'Zebrik W'!$B$7:$L$1002,11,0)=0,"--",VLOOKUP(B97,'Zebrik W'!$B$7:$L$1002,11,0))) -> 
A98: 92 | B98: Leos Strnadek | C98: 1983 | D98: Hodkovice | E98: CZ/C2 | F98: M | G98: 3 | H98: 19641 | M98: =IF(ISERROR(VLOOKUP(B98,'Zebrik W'!$B$7:$L$1002,11,0)),"",IF(VLOOKUP(B98,'Zebrik W'!$B$7:$L$1002,11,0)=0,"--",VLOOKUP(B98,'Zebrik W'!$B$7:$L$1002,11,0))) -> 
A99: 93 | B99: Radek Zima 78 | C99: 1978 | D99: Hodkovice | E99: CZ/C2 | F99: M | G99: 3 | H99: 19420 | M99: =IF(ISERROR(VLOOKUP(B99,'Zebrik W'!$B$7:$L$1002,11,0)),"",IF(VLOOKUP(B99,'Zebrik W'!$B$7:$L$1002,11,0)=0,"--",VLOOKUP(B99,'Zebrik W'!$B$7:$L$1002,11,0))) -> 
A100: 94 | B100: Tomas Talanda | C100: 1988 | D100: Křižanov | E100: CZ/M | F100: M | G100: 3 | H100: 19198 | M100: =IF(ISERROR(VLOOKUP(B100,'Zebrik W'!$B$7:$L$1002,11,0)),"",IF(VLOOKUP(B100,'Zebrik W'!$B$7:$L$1002,11,0)=0,"--",VLOOKUP(B100,'Zebrik W'!$B$7:$L$1002,11,0))) -> 
A101: 95 | B101: Slavomir Valecko | C101: 1960 | D101: Hranice | E101: CZ/M | F101: M | G101: 3 | H101: 19092 | M101: =IF(ISERROR(VLOOKUP(B101,'Zebrik W'!$B$7:$L$1002,11,0)),"",IF(VLOOKUP(B101,'Zebrik W'!$B$7:$L$1002,11,0)=0,"--",VLOOKUP(B101,'Zebrik W'!$B$7:$L$1002,11,0))) -> 
A102: 96 | B102: Lumir Motyka | C102: 1955 | D102: Frýdlant | E102: CZ/M | F102: M | G102: 3 | H102: 18745 | M102: =IF(ISERROR(VLOOKUP(B102,'Zebrik W'!$B$7:$L$1002,11,0)),"",IF(VLOOKUP(B102,'Zebrik W'!$B$7:$L$1002,11,0)=0,"--",VLOOKUP(B102,'Zebrik W'!$B$7:$L$1002,11,0))) -> 
A103: 97 | B103: Matej Krestes | C103: 1986 | D103: Slaný | E103: CZ/C1 | F103: M | G103: 3 | H103: 18735 | M103: =IF(ISERROR(VLOOKUP(B103,'Zebrik W'!$B$7:$L$1002,11,0)),"",IF(VLOOKUP(B103,'Zebrik W'!$B$7:$L$1002,11,0)=0,"--",VLOOKUP(B103,'Zebrik W'!$B$7:$L$1002,11,0))) -> 
A104: 98 | B104: Jan Pubec | C104: 1979 | D104: Plzeň Bory | E104: CZ/C1 | F104: M | G104: 3 | H104: 18656 | M104: =IF(ISERROR(VLOOKUP(B104,'Zebrik W'!$B$7:$L$1002,11,0)),"",IF(VLOOKUP(B104,'Zebrik W'!$B$7:$L$1002,11,0)=0,"--",VLOOKUP(B104,'Zebrik W'!$B$7:$L$1002,11,0))) -> 
A105: 99 | B105: Jiri Prochazka | C105: 1971 | D105: Toužim | E105: CZ/C1 | F105: M | G105: 3 | H105: 18333 | M105: =IF(ISERROR(VLOOKUP(B105,'Zebrik W'!$B$7:$L$1002,11,0)),"",IF(VLOOKUP(B105,'Zebrik W'!$B$7:$L$1002,11,0)=0,"--",VLOOKUP(B105,'Zebrik W'!$B$7:$L$1002,11,0))) -> 
A106: 100 | B106: Josef Novotny | C106: 1983 | D106: Přibyslav | E106: CZ/C2 | F106: M | G106: 2 | H106: 18272 | M106: =IF(ISERROR(VLOOKUP(B106,'Zebrik W'!$B$7:$L$1002,11,0)),"",IF(VLOOKUP(B106,'Zebrik W'!$B$7:$L$1002,11,0)=0,"--",VLOOKUP(B106,'Zebrik W'!$B$7:$L$1002,11,0))) -> 
A107: 101 | B107: Jindrich Hruska | C107: 1986 | D107: Soběslav | E107: CZ/C1 | F107: M | G107: 3 | H107: 18245 | M107: =IF(ISERROR(VLOOKUP(B107,'Zebrik W'!$B$7:$L$1002,11,0)),"",IF(VLOOKUP(B107,'Zebrik W'!$B$7:$L$1002,11,0)=0,"--",VLOOKUP(B107,'Zebrik W'!$B$7:$L$1002,11,0))) -> 
A108: 102 | B108: Miroslav Koci | C108: 1961 | D108: Žamberk | E108: CZ/C2 | F108: M | G108: 3 | H108: 18201 | I108: =IF(C108="(prázdné)","",IF(($I$4-C108)>25,"","Junior v roce "&$I$4)) ->  | J108: =IF(C108="(prázdné)","",IF(($J$4-C108)>25,"","Junior v roce "&$J$4)) ->  | M108: =IF(ISERROR(VLOOKUP(B108,'Zebrik W'!$B$7:$L$1002,11,0)),"",IF(VLOOKUP(B108,'Zebrik W'!$B$7:$L$1002,11,0)=0,"--",VLOOKUP(B108,'Zebrik W'!$B$7:$L$1002,11,0))) -> 
A109: 103 | B109: Pavel Liska | C109: 1965 | D109: Roudnice | E109: CZ/C2 | F109: M | G109: 3 | H109: 18023 | M109: =IF(ISERROR(VLOOKUP(B109,'Zebrik W'!$B$7:$L$1002,11,0)),"",IF(VLOOKUP(B109,'Zebrik W'!$B$7:$L$1002,11,0)=0,"--",VLOOKUP(B109,'Zebrik W'!$B$7:$L$1002,11,0))) -> 
A110: 104 | B110: Martin Picka | C110: 1974 | D110: Tábor | E110: CZ/C1 | F110: M | G110: 3 | H110: 17991 | M110: =IF(ISERROR(VLOOKUP(B110,'Zebrik W'!$B$7:$L$1002,11,0)),"",IF(VLOOKUP(B110,'Zebrik W'!$B$7:$L$1002,11,0)=0,"--",VLOOKUP(B110,'Zebrik W'!$B$7:$L$1002,11,0))) -> 
A111: 105 | B111: Lukas Plocek | C111: 1990 | D111: Mladá Boleslav | E111: CZ/C1 | F111: M | G111: 3 | H111: 17899 | M111: =IF(ISERROR(VLOOKUP(B111,'Zebrik W'!$B$7:$L$1002,11,0)),"",IF(VLOOKUP(B111,'Zebrik W'!$B$7:$L$1002,11,0)=0,"--",VLOOKUP(B111,'Zebrik W'!$B$7:$L$1002,11,0))) -> 
A112: 106 | B112: Jiri Koudela | C112: 1974 | D112: Vyškov | E112: CZ/M | F112: M | G112: 3 | H112: 17881 | M112: =IF(ISERROR(VLOOKUP(B112,'Zebrik W'!$B$7:$L$1002,11,0)),"",IF(VLOOKUP(B112,'Zebrik W'!$B$7:$L$1002,11,0)=0,"--",VLOOKUP(B112,'Zebrik W'!$B$7:$L$1002,11,0))) -> 
A113: 107 | B113: Marek Kornec | C113: 1957 | D113: Dvůr Králové | E113: CZ/C2 | F113: M | G113: 3 | H113: 17782 | M113: =IF(ISERROR(VLOOKUP(B113,'Zebrik W'!$B$7:$L$1002,11,0)),"",IF(VLOOKUP(B113,'Zebrik W'!$B$7:$L$1002,11,0)=0,"--",VLOOKUP(B113,'Zebrik W'!$B$7:$L$1002,11,0))) -> 
A114: 108 | B114: Petr Bartak | C114: 1984 | D114: Letkov | E114: CZ/C1 | F114: M | G114: 3 | H114: 17557 | M114: =IF(ISERROR(VLOOKUP(B114,'Zebrik W'!$B$7:$L$1002,11,0)),"",IF(VLOOKUP(B114,'Zebrik W'!$B$7:$L$1002,11,0)=0,"--",VLOOKUP(B114,'Zebrik W'!$B$7:$L$1002,11,0))) -> 
A115: 109 | B115: Vojtech Pivonka | C115: 1976 | D115: Vrchlabí | E115: CZ/C2 | F115: M | G115: 3 | H115: 17257 | M115: =IF(ISERROR(VLOOKUP(B115,'Zebrik W'!$B$7:$L$1002,11,0)),"",IF(VLOOKUP(B115,'Zebrik W'!$B$7:$L$1002,11,0)=0,"--",VLOOKUP(B115,'Zebrik W'!$B$7:$L$1002,11,0))) -> 
A116: 110 | B116: Martin Grmela | C116: 1989 | D116: Zbraslavice | E116: CZ/C1 | F116: M | G116: 3 | H116: 17256 | M116: =IF(ISERROR(VLOOKUP(B116,'Zebrik W'!$B$7:$L$1002,11,0)),"",IF(VLOOKUP(B116,'Zebrik W'!$B$7:$L$1002,11,0)=0,"--",VLOOKUP(B116,'Zebrik W'!$B$7:$L$1002,11,0))) -> 
A117: 111 | B117: Jan Kohout | C117: 1970 | D117: Žamberk | E117: CZ/C2 | F117: M | G117: 3 | H117: 17208 | M117: =IF(ISERROR(VLOOKUP(B117,'Zebrik W'!$B$7:$L$1002,11,0)),"",IF(VLOOKUP(B117,'Zebrik W'!$B$7:$L$1002,11,0)=0,"--",VLOOKUP(B117,'Zebrik W'!$B$7:$L$1002,11,0))) -> 
A118: 112 | B118: Michal Kodousek | C118: 1983 | D118: Jaroměř | E118: CZ/C2 | F118: M | G118: 2 | H118: 17199 | M118: =IF(ISERROR(VLOOKUP(B118,'Zebrik W'!$B$7:$L$1002,11,0)),"",IF(VLOOKUP(B118,'Zebrik W'!$B$7:$L$1002,11,0)=0,"--",VLOOKUP(B118,'Zebrik W'!$B$7:$L$1002,11,0))) -> 
A119: 113 | B119: Jaromir Jedlicka | C119: 1972 | D119: Letňany | E119: CZ/C1 | F119: M | G119: 3 | H119: 17167 | M119: =IF(ISERROR(VLOOKUP(B119,'Zebrik W'!$B$7:$L$1002,11,0)),"",IF(VLOOKUP(B119,'Zebrik W'!$B$7:$L$1002,11,0)=0,"--",VLOOKUP(B119,'Zebrik W'!$B$7:$L$1002,11,0))) -> 
A120: 114 | B120: Eva Cerna | C120: 1964 | D120: Příbram | E120: CZ/C1 | F120: F | G120: 3 | H120: 17150 | L120: RV 2020 | M120: =IF(ISERROR(VLOOKUP(B120,'Zebrik W'!$B$7:$L$1002,11,0)),"",IF(VLOOKUP(B120,'Zebrik W'!$B$7:$L$1002,11,0)=0,"--",VLOOKUP(B120,'Zebrik W'!$B$7:$L$1002,11,0))) -> WRV 2020
A121: 115 | B121: Jan Sindelar | C121: 1946 | D121: Kunovice | E121: CZ/M | F121: M | G121: 3 | H121: 17087 | M121: =IF(ISERROR(VLOOKUP(B121,'Zebrik W'!$B$7:$L$1002,11,0)),"",IF(VLOOKUP(B121,'Zebrik W'!$B$7:$L$1002,11,0)=0,"--",VLOOKUP(B121,'Zebrik W'!$B$7:$L$1002,11,0))) -> 
A122: 116 | B122: Wolfgang Sluka | C122: 1942 | D122: Liberec | E122: CZ/C2 | F122: M | G122: 3 | H122: 17048 | M122: =IF(ISERROR(VLOOKUP(B122,'Zebrik W'!$B$7:$L$1002,11,0)),"",IF(VLOOKUP(B122,'Zebrik W'!$B$7:$L$1002,11,0)=0,"--",VLOOKUP(B122,'Zebrik W'!$B$7:$L$1002,11,0))) -> 
A123: 117 | B123: Jiri Slemr | C123: 1979 | D123: Vysoké Mýto | E123: CZ/C2 | F123: M | G123: 3 | H123: 17038 | M123: =IF(ISERROR(VLOOKUP(B123,'Zebrik W'!$B$7:$L$1002,11,0)),"",IF(VLOOKUP(B123,'Zebrik W'!$B$7:$L$1002,11,0)=0,"--",VLOOKUP(B123,'Zebrik W'!$B$7:$L$1002,11,0))) -> 
A124: 118 | B124: Ondrej Blaha | C124: 1976 | D124: Letňany | E124: CZ/C1 | F124: M | G124: 3 | H124: 16988 | M124: =IF(ISERROR(VLOOKUP(B124,'Zebrik W'!$B$7:$L$1002,11,0)),"",IF(VLOOKUP(B124,'Zebrik W'!$B$7:$L$1002,11,0)=0,"--",VLOOKUP(B124,'Zebrik W'!$B$7:$L$1002,11,0))) -> 
A125: 119 | B125: Lukas Maly | C125: 1998 | D125: Vysoké Mýto | E125: CZ/C2 | F125: M | G125: 3 | H125: 16984 | I125: Junior v roce 2020 | J125: Junior v roce 2021 | M125: =IF(ISERROR(VLOOKUP(B125,'Zebrik W'!$B$7:$L$1002,11,0)),"",IF(VLOOKUP(B125,'Zebrik W'!$B$7:$L$1002,11,0)=0,"--",VLOOKUP(B125,'Zebrik W'!$B$7:$L$1002,11,0))) -> 
A126: 120 | B126: Karel Knotek | C126: 1961 | D126: Soběslav | E126: CZ/C1 | F126: M | G126: 3 | H126: 16894 | M126: =IF(ISERROR(VLOOKUP(B126,'Zebrik W'!$B$7:$L$1002,11,0)),"",IF(VLOOKUP(B126,'Zebrik W'!$B$7:$L$1002,11,0)=0,"--",VLOOKUP(B126,'Zebrik W'!$B$7:$L$1002,11,0))) -> 
A127: 121 | B127: Petr Hofman | C127: 1984 | D127: Letňany | E127: CZ/C1 | F127: M | G127: 2 | H127: 16848 | M127: =IF(ISERROR(VLOOKUP(B127,'Zebrik W'!$B$7:$L$1002,11,0)),"",IF(VLOOKUP(B127,'Zebrik W'!$B$7:$L$1002,11,0)=0,"--",VLOOKUP(B127,'Zebrik W'!$B$7:$L$1002,11,0))) -> 
A128: 122 | B128: Milan Dvorak | C128: 1965 | D128: Liberec | E128: CZ/C2 | F128: M | G128: 3 | H128: 16821 | M128: =IF(ISERROR(VLOOKUP(B128,'Zebrik W'!$B$7:$L$1002,11,0)),"",IF(VLOOKUP(B128,'Zebrik W'!$B$7:$L$1002,11,0)=0,"--",VLOOKUP(B128,'Zebrik W'!$B$7:$L$1002,11,0))) -> 
A129: 123 | B129: Jan Zezula | C129: 1979 | D129: Letňany | E129: CZ/C1 | F129: M | G129: 3 | H129: 16750 | M129: =IF(ISERROR(VLOOKUP(B129,'Zebrik W'!$B$7:$L$1002,11,0)),"",IF(VLOOKUP(B129,'Zebrik W'!$B$7:$L$1002,11,0)=0,"--",VLOOKUP(B129,'Zebrik W'!$B$7:$L$1002,11,0))) -> 
A130: 124 | B130: Petr Jiranek 63 | C130: 1962 | D130: Toužim | E130: CZ/C1 | F130: M | G130: 3 | H130: 16713 | M130: =IF(ISERROR(VLOOKUP(B130,'Zebrik W'!$B$7:$L$1002,11,0)),"",IF(VLOOKUP(B130,'Zebrik W'!$B$7:$L$1002,11,0)=0,"--",VLOOKUP(B130,'Zebrik W'!$B$7:$L$1002,11,0))) -> 
A131: 125 | B131: Jan Hruska | C131: 1988 | D131: Tábor | E131: CZ/C1 | F131: M | G131: 3 | H131: 16679 | M131: =IF(ISERROR(VLOOKUP(B131,'Zebrik W'!$B$7:$L$1002,11,0)),"",IF(VLOOKUP(B131,'Zebrik W'!$B$7:$L$1002,11,0)=0,"--",VLOOKUP(B131,'Zebrik W'!$B$7:$L$1002,11,0))) -> 
A132: 126 | B132: Vaclav Kult | C132: 1973 | D132: Broumov | E132: CZ/C2 | F132: M | G132: 3 | H132: 16553 | M132: =IF(ISERROR(VLOOKUP(B132,'Zebrik W'!$B$7:$L$1002,11,0)),"",IF(VLOOKUP(B132,'Zebrik W'!$B$7:$L$1002,11,0)=0,"--",VLOOKUP(B132,'Zebrik W'!$B$7:$L$1002,11,0))) -> 
A133: 127 | B133: Ondrej Sindelar | C133: 1979 | D133: Mladá Boleslav | E133: CZ/C1 | F133: M | G133: 3 | H133: 16482 | M133: =IF(ISERROR(VLOOKUP(B133,'Zebrik W'!$B$7:$L$1002,11,0)),"",IF(VLOOKUP(B133,'Zebrik W'!$B$7:$L$1002,11,0)=0,"--",VLOOKUP(B133,'Zebrik W'!$B$7:$L$1002,11,0))) -> 
A134: 128 | B134: Pavel Trojan | C134: 1960 | D134: Chrudim | E134: CZ/C2 | F134: M | G134: 3 | H134: 16457 | M134: =IF(ISERROR(VLOOKUP(B134,'Zebrik W'!$B$7:$L$1002,11,0)),"",IF(VLOOKUP(B134,'Zebrik W'!$B$7:$L$1002,11,0)=0,"--",VLOOKUP(B134,'Zebrik W'!$B$7:$L$1002,11,0))) -> 
A135: 129 | B135: Jindrich Svorc | C135: 1978 | D135: Letňany | E135: CZ/C1 | F135: M | G135: 2 | H135: 16380 | M135: =IF(ISERROR(VLOOKUP(B135,'Zebrik W'!$B$7:$L$1002,11,0)),"",IF(VLOOKUP(B135,'Zebrik W'!$B$7:$L$1002,11,0)=0,"--",VLOOKUP(B135,'Zebrik W'!$B$7:$L$1002,11,0))) -> 
A136: =RANK(H136,H:H) -> 130 | B136: Petr Jiranek 91 | C136: 1991 | D136: Toužim | E136: CZ/C1 | F136: M | G136: 2 | H136: 16274 | M136: =IF(ISERROR(VLOOKUP(B136,'Zebrik W'!$B$7:$L$1002,11,0)),"",IF(VLOOKUP(B136,'Zebrik W'!$B$7:$L$1002,11,0)=0,"--",VLOOKUP(B136,'Zebrik W'!$B$7:$L$1002,11,0))) -> 
A137: 131 | B137: Jakub Kohn | C137: 1992 | D137: Prostějov | E137: CZ/M | F137: M | G137: 3 | H137: 16205 | M137: =IF(ISERROR(VLOOKUP(B137,'Zebrik W'!$B$7:$L$1002,11,0)),"",IF(VLOOKUP(B137,'Zebrik W'!$B$7:$L$1002,11,0)=0,"--",VLOOKUP(B137,'Zebrik W'!$B$7:$L$1002,11,0))) -> 
A138: 132 | B138: Jaroslav Sima | C138: 1972 | D138: Chomutov | E138: CZ/C2 | F138: M | G138: 3 | H138: 16196 | M138: =IF(ISERROR(VLOOKUP(B138,'Zebrik W'!$B$7:$L$1002,11,0)),"",IF(VLOOKUP(B138,'Zebrik W'!$B$7:$L$1002,11,0)=0,"--",VLOOKUP(B138,'Zebrik W'!$B$7:$L$1002,11,0))) -> 
A139: 133 | B139: Martin Piskacek | C139: 1991 | D139: Křižanov | E139: CZ/M | F139: M | G139: 3 | H139: 16136 | M139: =IF(ISERROR(VLOOKUP(B139,'Zebrik W'!$B$7:$L$1002,11,0)),"",IF(VLOOKUP(B139,'Zebrik W'!$B$7:$L$1002,11,0)=0,"--",VLOOKUP(B139,'Zebrik W'!$B$7:$L$1002,11,0))) -> 
A140: 134 | B140: Roman Lanzendorf | C140: 1964 | D140: Letkov | E140: CZ/C1 | F140: M | G140: 3 | H140: 16014 | M140: =IF(ISERROR(VLOOKUP(B140,'Zebrik W'!$B$7:$L$1002,11,0)),"",IF(VLOOKUP(B140,'Zebrik W'!$B$7:$L$1002,11,0)=0,"--",VLOOKUP(B140,'Zebrik W'!$B$7:$L$1002,11,0))) -> 
A141: 135 | B141: Marek Pechar | C141: 1995 | D141: Chrudim | E141: CZ/C2 | F141: M | G141: 3 | H141: 15989 | I141: Junior v roce 2020 | M141: =IF(ISERROR(VLOOKUP(B141,'Zebrik W'!$B$7:$L$1002,11,0)),"",IF(VLOOKUP(B141,'Zebrik W'!$B$7:$L$1002,11,0)=0,"--",VLOOKUP(B141,'Zebrik W'!$B$7:$L$1002,11,0))) -> 
A142: 136 | B142: Jaromir Pauer | C142: 1974 | D142: Hosín | E142: CZ/C1 | F142: M | G142: 2 | H142: 15823 | M142: =IF(ISERROR(VLOOKUP(B142,'Zebrik W'!$B$7:$L$1002,11,0)),"",IF(VLOOKUP(B142,'Zebrik W'!$B$7:$L$1002,11,0)=0,"--",VLOOKUP(B142,'Zebrik W'!$B$7:$L$1002,11,0))) -> 
A143: 137 | B143: Josef Hlusek | C143: 1993 | D143: Kunovice | E143: CZ/M | F143: M | G143: 3 | H143: 15804 | M143: =IF(ISERROR(VLOOKUP(B143,'Zebrik W'!$B$7:$L$1002,11,0)),"",IF(VLOOKUP(B143,'Zebrik W'!$B$7:$L$1002,11,0)=0,"--",VLOOKUP(B143,'Zebrik W'!$B$7:$L$1002,11,0))) -> 
A144: 138 | B144: Rostislav Stryk | C144: 1972 | D144: Frýdlant | E144: CZ/M | F144: M | G144: 3 | H144: 15750 | M144: =IF(ISERROR(VLOOKUP(B144,'Zebrik W'!$B$7:$L$1002,11,0)),"",IF(VLOOKUP(B144,'Zebrik W'!$B$7:$L$1002,11,0)=0,"--",VLOOKUP(B144,'Zebrik W'!$B$7:$L$1002,11,0))) -> 
A145: 139 | B145: Daniel Novak | C145: 1971 | D145: Letkov | E145: CZ/C1 | F145: M | G145: 2 | H145: 15745 | M145: =IF(ISERROR(VLOOKUP(B145,'Zebrik W'!$B$7:$L$1002,11,0)),"",IF(VLOOKUP(B145,'Zebrik W'!$B$7:$L$1002,11,0)=0,"--",VLOOKUP(B145,'Zebrik W'!$B$7:$L$1002,11,0))) -> 
A146: 140 | B146: Tomas Moravec | C146: 2000 | D146: Žamberk | E146: CZ/C2 | F146: M | G146: 3 | H146: 15625 | I146: Junior v roce 2020 | J146: Junior v roce 2021 | M146: =IF(ISERROR(VLOOKUP(B146,'Zebrik W'!$B$7:$L$1002,11,0)),"",IF(VLOOKUP(B146,'Zebrik W'!$B$7:$L$1002,11,0)=0,"--",VLOOKUP(B146,'Zebrik W'!$B$7:$L$1002,11,0))) -> 
A147: 141 | B147: Katerina Vojtova | C147: 1983 | D147: Slaný | E147: CZ/C1 | F147: F | G147: 3 | H147: 15619 | M147: =IF(ISERROR(VLOOKUP(B147,'Zebrik W'!$B$7:$L$1002,11,0)),"",IF(VLOOKUP(B147,'Zebrik W'!$B$7:$L$1002,11,0)=0,"--",VLOOKUP(B147,'Zebrik W'!$B$7:$L$1002,11,0))) -> --
A148: 142 | B148: Oldrich Houzvicka | C148: 1975 | D148: Frýdlant | E148: CZ/M | F148: M | G148: 3 | H148: 15615 | M148: =IF(ISERROR(VLOOKUP(B148,'Zebrik W'!$B$7:$L$1002,11,0)),"",IF(VLOOKUP(B148,'Zebrik W'!$B$7:$L$1002,11,0)=0,"--",VLOOKUP(B148,'Zebrik W'!$B$7:$L$1002,11,0))) -> 
A149: 143 | B149: Milos Matejka | C149: 1956 | D149: Beroun | E149: CZ/C1 | F149: M | G149: 3 | H149: 15516 | M149: =IF(ISERROR(VLOOKUP(B149,'Zebrik W'!$B$7:$L$1002,11,0)),"",IF(VLOOKUP(B149,'Zebrik W'!$B$7:$L$1002,11,0)=0,"--",VLOOKUP(B149,'Zebrik W'!$B$7:$L$1002,11,0))) -> 
A150: 144 | B150: Miroslav Sklenar | C150: 1964 | D150: Žamberk | E150: CZ/C2 | F150: M | G150: 3 | H150: 15504 | M150: =IF(ISERROR(VLOOKUP(B150,'Zebrik W'!$B$7:$L$1002,11,0)),"",IF(VLOOKUP(B150,'Zebrik W'!$B$7:$L$1002,11,0)=0,"--",VLOOKUP(B150,'Zebrik W'!$B$7:$L$1002,11,0))) -> 
A151: 145 | B151: Pavel Jiranek | C151: 1993 | D151: Toužim | E151: CZ/C1 | F151: M | G151: 2 | H151: 15333 | M151: =IF(ISERROR(VLOOKUP(B151,'Zebrik W'!$B$7:$L$1002,11,0)),"",IF(VLOOKUP(B151,'Zebrik W'!$B$7:$L$1002,11,0)=0,"--",VLOOKUP(B151,'Zebrik W'!$B$7:$L$1002,11,0))) -> 
A152: 146 | B152: Josef Busek | C152: 1967 | D152: Hosín | E152: CZ/C1 | F152: M | G152: 2 | H152: 15243 | M152: =IF(ISERROR(VLOOKUP(B152,'Zebrik W'!$B$7:$L$1002,11,0)),"",IF(VLOOKUP(B152,'Zebrik W'!$B$7:$L$1002,11,0)=0,"--",VLOOKUP(B152,'Zebrik W'!$B$7:$L$1002,11,0))) -> 
A153: 147 | B153: Libor Bednarik | C153: 1972 | D153: Kunovice | E153: CZ/M | F153: M | G153: 3 | H153: 15207 | M153: =IF(ISERROR(VLOOKUP(B153,'Zebrik W'!$B$7:$L$1002,11,0)),"",IF(VLOOKUP(B153,'Zebrik W'!$B$7:$L$1002,11,0)=0,"--",VLOOKUP(B153,'Zebrik W'!$B$7:$L$1002,11,0))) -> 
A154: 148 | B154: Lukas Hynek | C154: 1979 | D154: Dvůr Králové | E154: CZ/C2 | F154: M | G154: 3 | H154: 15184 | M154: =IF(ISERROR(VLOOKUP(B154,'Zebrik W'!$B$7:$L$1002,11,0)),"",IF(VLOOKUP(B154,'Zebrik W'!$B$7:$L$1002,11,0)=0,"--",VLOOKUP(B154,'Zebrik W'!$B$7:$L$1002,11,0))) -> 
A155: 149 | B155: Pavel Derda | C155: 1952 | D155: Dvůr Králové | E155: CZ/C2 | F155: M | G155: 3 | H155: 15175 | M155: =IF(ISERROR(VLOOKUP(B155,'Zebrik W'!$B$7:$L$1002,11,0)),"",IF(VLOOKUP(B155,'Zebrik W'!$B$7:$L$1002,11,0)=0,"--",VLOOKUP(B155,'Zebrik W'!$B$7:$L$1002,11,0))) -> 
A156: 150 | B156: Tomas Hulmak | C156: 1999 | D156: Hosín | E156: CZ/C1 | F156: M | G156: 3 | H156: 15166 | I156: Junior v roce 2020 | J156: Junior v roce 2021 | M156: =IF(ISERROR(VLOOKUP(B156,'Zebrik W'!$B$7:$L$1002,11,0)),"",IF(VLOOKUP(B156,'Zebrik W'!$B$7:$L$1002,11,0)=0,"--",VLOOKUP(B156,'Zebrik W'!$B$7:$L$1002,11,0))) -> 
A157: 151 | B157: Josef Kolman | C157: 1983 | D157: Letňany | E157: CZ/C1 | F157: M | G157: 2 | H157: 14996 | M157: =IF(ISERROR(VLOOKUP(B157,'Zebrik W'!$B$7:$L$1002,11,0)),"",IF(VLOOKUP(B157,'Zebrik W'!$B$7:$L$1002,11,0)=0,"--",VLOOKUP(B157,'Zebrik W'!$B$7:$L$1002,11,0))) -> 
A158: 152 | B158: Milan Meisner | C158: 1961 | D158: Dvůr Králové | E158: CZ/C2 | F158: M | G158: 3 | H158: 14975 | M158: =IF(ISERROR(VLOOKUP(B158,'Zebrik W'!$B$7:$L$1002,11,0)),"",IF(VLOOKUP(B158,'Zebrik W'!$B$7:$L$1002,11,0)=0,"--",VLOOKUP(B158,'Zebrik W'!$B$7:$L$1002,11,0))) -> 
A159: 153 | B159: Ivan Kuzelka | C159: 1945 | D159: Havlíčkův Brod | E159: CZ/C2 | F159: M | G159: 3 | H159: 14963 | M159: =IF(ISERROR(VLOOKUP(B159,'Zebrik W'!$B$7:$L$1002,11,0)),"",IF(VLOOKUP(B159,'Zebrik W'!$B$7:$L$1002,11,0)=0,"--",VLOOKUP(B159,'Zebrik W'!$B$7:$L$1002,11,0))) -> 
A160: 154 | B160: Ondrej Dvorak 98 | C160: 1998 | D160: Mladá Boleslav | E160: CZ/C1 | F160: M | G160: 3 | H160: 14937 | I160: Junior v roce 2020 | J160: Junior v roce 2021 | M160: =IF(ISERROR(VLOOKUP(B160,'Zebrik W'!$B$7:$L$1002,11,0)),"",IF(VLOOKUP(B160,'Zebrik W'!$B$7:$L$1002,11,0)=0,"--",VLOOKUP(B160,'Zebrik W'!$B$7:$L$1002,11,0))) -> 
A161: 155 | B161: David Zapletal | C161: 1970 | D161: Mladá Boleslav | E161: CZ/C1 | F161: M | G161: 3 | H161: 14872 | M161: =IF(ISERROR(VLOOKUP(B161,'Zebrik W'!$B$7:$L$1002,11,0)),"",IF(VLOOKUP(B161,'Zebrik W'!$B$7:$L$1002,11,0)=0,"--",VLOOKUP(B161,'Zebrik W'!$B$7:$L$1002,11,0))) -> 
A162: 156 | B162: Martin Urban | C162: 1971 | D162: Frýdlant | E162: CZ/M | F162: M | G162: 3 | H162: 14531 | M162: =IF(ISERROR(VLOOKUP(B162,'Zebrik W'!$B$7:$L$1002,11,0)),"",IF(VLOOKUP(B162,'Zebrik W'!$B$7:$L$1002,11,0)=0,"--",VLOOKUP(B162,'Zebrik W'!$B$7:$L$1002,11,0))) -> 
A163: 157 | B163: Martin Ficnar | C163: 1971 | D163: Šumperk | E163: CZ/M | F163: M | G163: 2 | H163: 14501 | M163: =IF(ISERROR(VLOOKUP(B163,'Zebrik W'!$B$7:$L$1002,11,0)),"",IF(VLOOKUP(B163,'Zebrik W'!$B$7:$L$1002,11,0)=0,"--",VLOOKUP(B163,'Zebrik W'!$B$7:$L$1002,11,0))) -> 
A164: 158 | B164: Jiri Holcman | C164: 1976 | D164: Hosín | E164: CZ/C1 | F164: M | G164: 2 | H164: 14455 | M164: =IF(ISERROR(VLOOKUP(B164,'Zebrik W'!$B$7:$L$1002,11,0)),"",IF(VLOOKUP(B164,'Zebrik W'!$B$7:$L$1002,11,0)=0,"--",VLOOKUP(B164,'Zebrik W'!$B$7:$L$1002,11,0))) -> 
A165: 159 | B165: Vladimir Prihoda | C165: 1953 | D165: Kralupy | E165: CZ/C1 | F165: M | G165: 3 | H165: 14415 | M165: =IF(ISERROR(VLOOKUP(B165,'Zebrik W'!$B$7:$L$1002,11,0)),"",IF(VLOOKUP(B165,'Zebrik W'!$B$7:$L$1002,11,0)=0,"--",VLOOKUP(B165,'Zebrik W'!$B$7:$L$1002,11,0))) -> 
A166: 160 | B166: Ladislav Prokes | C166: 1954 | D166: Vrchlabí | E166: CZ/C2 | F166: M | G166: 3 | H166: 14361 | M166: =IF(ISERROR(VLOOKUP(B166,'Zebrik W'!$B$7:$L$1002,11,0)),"",IF(VLOOKUP(B166,'Zebrik W'!$B$7:$L$1002,11,0)=0,"--",VLOOKUP(B166,'Zebrik W'!$B$7:$L$1002,11,0))) -> 
A167: 161 | B167: Slavomir Piskaty 58 | C167: 1958 | D167: Kunovice | E167: CZ/M | F167: M | G167: 3 | H167: 14356 | M167: =IF(ISERROR(VLOOKUP(B167,'Zebrik W'!$B$7:$L$1002,11,0)),"",IF(VLOOKUP(B167,'Zebrik W'!$B$7:$L$1002,11,0)=0,"--",VLOOKUP(B167,'Zebrik W'!$B$7:$L$1002,11,0))) -> 
A168: 162 | B168: Roman Jokl | C168: 1979 | D168: Letkov | E168: CZ/C1 | F168: M | G168: 2 | H168: 14245 | M168: =IF(ISERROR(VLOOKUP(B168,'Zebrik W'!$B$7:$L$1002,11,0)),"",IF(VLOOKUP(B168,'Zebrik W'!$B$7:$L$1002,11,0)=0,"--",VLOOKUP(B168,'Zebrik W'!$B$7:$L$1002,11,0))) -> 
A169: 163 | B169: Martin Koci | C169: 1975 | D169: Ústí nad Orlicí | E169: CZ/C2 | F169: M | G169: 3 | H169: 14210 | M169: =IF(ISERROR(VLOOKUP(B169,'Zebrik W'!$B$7:$L$1002,11,0)),"",IF(VLOOKUP(B169,'Zebrik W'!$B$7:$L$1002,11,0)=0,"--",VLOOKUP(B169,'Zebrik W'!$B$7:$L$1002,11,0))) -> 
A170: 164 | B170: Jan Beranek | C170: 1976 | D170: Jihlava | E170: CZ/M | F170: M | G170: 2 | H170: 14156 | M170: =IF(ISERROR(VLOOKUP(B170,'Zebrik W'!$B$7:$L$1002,11,0)),"",IF(VLOOKUP(B170,'Zebrik W'!$B$7:$L$1002,11,0)=0,"--",VLOOKUP(B170,'Zebrik W'!$B$7:$L$1002,11,0))) -> 
A171: 165 | B171: Petr Babak 73 | C171: 1973 | D171: Hořice | E171: CZ/C2 | F171: M | G171: 3 | H171: 14052 | M171: =IF(ISERROR(VLOOKUP(B171,'Zebrik W'!$B$7:$L$1002,11,0)),"",IF(VLOOKUP(B171,'Zebrik W'!$B$7:$L$1002,11,0)=0,"--",VLOOKUP(B171,'Zebrik W'!$B$7:$L$1002,11,0))) -> 
A172: 166 | B172: David Vrchota | C172: 1976 | D172: Jaroměř | E172: CZ/C2 | F172: M | G172: 2 | H172: 14028 | I172: =IF(C172="(prázdné)","",IF(($I$4-C172)>25,"","Junior v roce "&$I$4)) ->  | J172: =IF(C172="(prázdné)","",IF(($J$4-C172)>25,"","Junior v roce "&$J$4)) ->  | M172: =IF(ISERROR(VLOOKUP(B172,'Zebrik W'!$B$7:$L$1002,11,0)),"",IF(VLOOKUP(B172,'Zebrik W'!$B$7:$L$1002,11,0)=0,"--",VLOOKUP(B172,'Zebrik W'!$B$7:$L$1002,11,0))) -> 
A173: 167 | B173: Martin Kriz | C173: 1968 | D173: Přibyslav | E173: CZ/C2 | F173: M | G173: 3 | H173: 13981 | M173: =IF(ISERROR(VLOOKUP(B173,'Zebrik W'!$B$7:$L$1002,11,0)),"",IF(VLOOKUP(B173,'Zebrik W'!$B$7:$L$1002,11,0)=0,"--",VLOOKUP(B173,'Zebrik W'!$B$7:$L$1002,11,0))) -> 
A174: 168 | B174: Miloslav Hulmak | C174: 1963 | D174: Hosín | E174: CZ/C1 | F174: M | G174: 2 | H174: 13936 | M174: =IF(ISERROR(VLOOKUP(B174,'Zebrik W'!$B$7:$L$1002,11,0)),"",IF(VLOOKUP(B174,'Zebrik W'!$B$7:$L$1002,11,0)=0,"--",VLOOKUP(B174,'Zebrik W'!$B$7:$L$1002,11,0))) -> 
A175: 169 | B175: Jakub Kmosek | C175: 1978 | D175: Zbraslavice | E175: CZ/C1 | F175: M | G175: 2 | H175: 13933 | M175: =IF(ISERROR(VLOOKUP(B175,'Zebrik W'!$B$7:$L$1002,11,0)),"",IF(VLOOKUP(B175,'Zebrik W'!$B$7:$L$1002,11,0)=0,"--",VLOOKUP(B175,'Zebrik W'!$B$7:$L$1002,11,0))) -> 
A176: 170 | B176: Jaromir Vlk | C176: 1959 | D176: Šumperk | E176: CZ/M | F176: M | G176: 3 | H176: 13902 | M176: =IF(ISERROR(VLOOKUP(B176,'Zebrik W'!$B$7:$L$1002,11,0)),"",IF(VLOOKUP(B176,'Zebrik W'!$B$7:$L$1002,11,0)=0,"--",VLOOKUP(B176,'Zebrik W'!$B$7:$L$1002,11,0))) -> 
A177: 171 | B177: Martin Zahalka | C177: 1987 | D177: Staňkov | E177: CZ/C1 | F177: M | G177: 2 | H177: 13845 | M177: =IF(ISERROR(VLOOKUP(B177,'Zebrik W'!$B$7:$L$1002,11,0)),"",IF(VLOOKUP(B177,'Zebrik W'!$B$7:$L$1002,11,0)=0,"--",VLOOKUP(B177,'Zebrik W'!$B$7:$L$1002,11,0))) -> 
A178: 172 | B178: Josef Novak | C178: 1981 | D178: Kunovice | E178: CZ/M | F178: M | G178: 2 | H178: 13732 | M178: =IF(ISERROR(VLOOKUP(B178,'Zebrik W'!$B$7:$L$1002,11,0)),"",IF(VLOOKUP(B178,'Zebrik W'!$B$7:$L$1002,11,0)=0,"--",VLOOKUP(B178,'Zebrik W'!$B$7:$L$1002,11,0))) -> 
A179: 173 | B179: Jaroslav Cempirek 77 | C179: 1977 | D179: Jihlava | E179: CZ/M | F179: M | G179: 2 | H179: 13719 | M179: =IF(ISERROR(VLOOKUP(B179,'Zebrik W'!$B$7:$L$1002,11,0)),"",IF(VLOOKUP(B179,'Zebrik W'!$B$7:$L$1002,11,0)=0,"--",VLOOKUP(B179,'Zebrik W'!$B$7:$L$1002,11,0))) -> 
A180: 174 | B180: Martin Vnoucek | C180: 1972 | D180: Vlašim | E180: CZ/C1 | F180: M | G180: 2 | H180: 13629 | M180: =IF(ISERROR(VLOOKUP(B180,'Zebrik W'!$B$7:$L$1002,11,0)),"",IF(VLOOKUP(B180,'Zebrik W'!$B$7:$L$1002,11,0)=0,"--",VLOOKUP(B180,'Zebrik W'!$B$7:$L$1002,11,0))) -> 
A181: 175 | B181: Martin Cicvarek | C181: 1966 | D181: Liberec | E181: CZ/C2 | F181: M | G181: 3 | H181: 13616 | M181: =IF(ISERROR(VLOOKUP(B181,'Zebrik W'!$B$7:$L$1002,11,0)),"",IF(VLOOKUP(B181,'Zebrik W'!$B$7:$L$1002,11,0)=0,"--",VLOOKUP(B181,'Zebrik W'!$B$7:$L$1002,11,0))) -> 
A182: 176 | B182: Petr Frycek | C182: 1960 | D182: Most | E182: CZ/C2 | F182: M | G182: 3 | H182: 13603 | M182: =IF(ISERROR(VLOOKUP(B182,'Zebrik W'!$B$7:$L$1002,11,0)),"",IF(VLOOKUP(B182,'Zebrik W'!$B$7:$L$1002,11,0)=0,"--",VLOOKUP(B182,'Zebrik W'!$B$7:$L$1002,11,0))) -> 
A183: 177 | B183: Radoslav Pur | C183: 1973 | D183: Hosín | E183: CZ/C1 | F183: M | G183: 2 | H183: 13565 | M183: =IF(ISERROR(VLOOKUP(B183,'Zebrik W'!$B$7:$L$1002,11,0)),"",IF(VLOOKUP(B183,'Zebrik W'!$B$7:$L$1002,11,0)=0,"--",VLOOKUP(B183,'Zebrik W'!$B$7:$L$1002,11,0))) -> 
A184: 178 | B184: Milos Pajr | C184: 1966 | D184: Jičín | E184: CZ/C2 | F184: M | G184: 2 | H184: 13438 | M184: =IF(ISERROR(VLOOKUP(B184,'Zebrik W'!$B$7:$L$1002,11,0)),"",IF(VLOOKUP(B184,'Zebrik W'!$B$7:$L$1002,11,0)=0,"--",VLOOKUP(B184,'Zebrik W'!$B$7:$L$1002,11,0))) -> 
A185: 179 | B185: Jan Kantor | C185: 1983 | D185: Letňany | E185: CZ/C1 | F185: M | G185: 2 | H185: 13429 | M185: =IF(ISERROR(VLOOKUP(B185,'Zebrik W'!$B$7:$L$1002,11,0)),"",IF(VLOOKUP(B185,'Zebrik W'!$B$7:$L$1002,11,0)=0,"--",VLOOKUP(B185,'Zebrik W'!$B$7:$L$1002,11,0))) -> 
A186: 180 | B186: Radek Zima 75 | C186: 1975 | D186: Břeclav | E186: CZ/M | F186: M | G186: 2 | H186: 13369 | M186: =IF(ISERROR(VLOOKUP(B186,'Zebrik W'!$B$7:$L$1002,11,0)),"",IF(VLOOKUP(B186,'Zebrik W'!$B$7:$L$1002,11,0)=0,"--",VLOOKUP(B186,'Zebrik W'!$B$7:$L$1002,11,0))) -> 
A187: 181 | B187: Jan Hybner | C187: 1977 | D187: Liberec | E187: CZ/C2 | F187: M | G187: 3 | H187: 13360 | M187: =IF(ISERROR(VLOOKUP(B187,'Zebrik W'!$B$7:$L$1002,11,0)),"",IF(VLOOKUP(B187,'Zebrik W'!$B$7:$L$1002,11,0)=0,"--",VLOOKUP(B187,'Zebrik W'!$B$7:$L$1002,11,0))) -> 
A188: 182 | B188: Vit Prokop | C188: 1987 | D188: Medlánky | E188: CZ/M | F188: M | G188: 3 | H188: 13309 | M188: =IF(ISERROR(VLOOKUP(B188,'Zebrik W'!$B$7:$L$1002,11,0)),"",IF(VLOOKUP(B188,'Zebrik W'!$B$7:$L$1002,11,0)=0,"--",VLOOKUP(B188,'Zebrik W'!$B$7:$L$1002,11,0))) -> 
A189: 183 | B189: Marek Blatak | C189: 1969 | D189: Šumperk | E189: CZ/M | F189: M | G189: 2 | H189: 13269 | M189: =IF(ISERROR(VLOOKUP(B189,'Zebrik W'!$B$7:$L$1002,11,0)),"",IF(VLOOKUP(B189,'Zebrik W'!$B$7:$L$1002,11,0)=0,"--",VLOOKUP(B189,'Zebrik W'!$B$7:$L$1002,11,0))) -> 
A190: 184 | B190: Radim Vadasz | C190: 1989 | D190: Soběslav | E190: CZ/C1 | F190: M | G190: 2 | H190: 13224 | M190: =IF(ISERROR(VLOOKUP(B190,'Zebrik W'!$B$7:$L$1002,11,0)),"",IF(VLOOKUP(B190,'Zebrik W'!$B$7:$L$1002,11,0)=0,"--",VLOOKUP(B190,'Zebrik W'!$B$7:$L$1002,11,0))) -> 
A191: 185 | B191: Josef Rydl | C191: 1940 | D191: Turnov | E191: CZ/C2 | F191: M | G191: 3 | H191: 13188 | M191: =IF(ISERROR(VLOOKUP(B191,'Zebrik W'!$B$7:$L$1002,11,0)),"",IF(VLOOKUP(B191,'Zebrik W'!$B$7:$L$1002,11,0)=0,"--",VLOOKUP(B191,'Zebrik W'!$B$7:$L$1002,11,0))) -> 
A192: 186 | B192: Ivan Harasta 98 | C192: 1998 | D192: Toužim | E192: CZ/C1 | F192: M | G192: 2 | H192: 13172 | I192: Junior v roce 2020 | J192: Junior v roce 2021 | M192: =IF(ISERROR(VLOOKUP(B192,'Zebrik W'!$B$7:$L$1002,11,0)),"",IF(VLOOKUP(B192,'Zebrik W'!$B$7:$L$1002,11,0)=0,"--",VLOOKUP(B192,'Zebrik W'!$B$7:$L$1002,11,0))) -> 
A193: 187 | B193: Ondrej Teichman | C193: 1984 | D193: Dvůr Králové | E193: CZ/C2 | F193: M | G193: 3 | H193: 13093 | M193: =IF(ISERROR(VLOOKUP(B193,'Zebrik W'!$B$7:$L$1002,11,0)),"",IF(VLOOKUP(B193,'Zebrik W'!$B$7:$L$1002,11,0)=0,"--",VLOOKUP(B193,'Zebrik W'!$B$7:$L$1002,11,0))) -> 
A194: 188 | B194: Martin Valenta | C194: 1969 | D194: Toužim | E194: CZ/C1 | F194: M | G194: 2 | H194: 13025 | M194: =IF(ISERROR(VLOOKUP(B194,'Zebrik W'!$B$7:$L$1002,11,0)),"",IF(VLOOKUP(B194,'Zebrik W'!$B$7:$L$1002,11,0)=0,"--",VLOOKUP(B194,'Zebrik W'!$B$7:$L$1002,11,0))) -> 
A195: 189 | B195: Tomas Ptacovsky | C195: 1981 | D195: Letňany | E195: CZ/C1 | F195: M | G195: 2 | H195: 12846 | M195: =IF(ISERROR(VLOOKUP(B195,'Zebrik W'!$B$7:$L$1002,11,0)),"",IF(VLOOKUP(B195,'Zebrik W'!$B$7:$L$1002,11,0)=0,"--",VLOOKUP(B195,'Zebrik W'!$B$7:$L$1002,11,0))) -> 
A196: 190 | B196: Roman Schotli | C196: 1970 | D196: Hranice | E196: CZ/M | F196: M | G196: 2 | H196: 12791 | M196: =IF(ISERROR(VLOOKUP(B196,'Zebrik W'!$B$7:$L$1002,11,0)),"",IF(VLOOKUP(B196,'Zebrik W'!$B$7:$L$1002,11,0)=0,"--",VLOOKUP(B196,'Zebrik W'!$B$7:$L$1002,11,0))) -> 
A197: 191 | B197: Jiri Pelucha | C197: 1984 | D197: Frýdlant | E197: CZ/M | F197: M | G197: 3 | H197: 12780 | M197: =IF(ISERROR(VLOOKUP(B197,'Zebrik W'!$B$7:$L$1002,11,0)),"",IF(VLOOKUP(B197,'Zebrik W'!$B$7:$L$1002,11,0)=0,"--",VLOOKUP(B197,'Zebrik W'!$B$7:$L$1002,11,0))) -> 
A198: 192 | B198: Filip Vita | C198: 2001 | D198: Kroměříž | E198: CZ/M | F198: M | G198: 3 | H198: 12774 | I198: Junior v roce 2020 | J198: Junior v roce 2021 | M198: =IF(ISERROR(VLOOKUP(B198,'Zebrik W'!$B$7:$L$1002,11,0)),"",IF(VLOOKUP(B198,'Zebrik W'!$B$7:$L$1002,11,0)=0,"--",VLOOKUP(B198,'Zebrik W'!$B$7:$L$1002,11,0))) -> 
A199: 193 | B199: Jan Oscatka | C199: 1990 | D199: Jaroměř | E199: CZ/C2 | F199: M | G199: 2 | H199: 12582 | M199: =IF(ISERROR(VLOOKUP(B199,'Zebrik W'!$B$7:$L$1002,11,0)),"",IF(VLOOKUP(B199,'Zebrik W'!$B$7:$L$1002,11,0)=0,"--",VLOOKUP(B199,'Zebrik W'!$B$7:$L$1002,11,0))) -> 
A200: =RANK(H200,H:H) -> 194 | B200: Michal Hemrle | C200: 1974 | D200: Česká Lípa | E200: CZ/C2 | F200: M | G200: 3 | H200: 12560 | M200: =IF(ISERROR(VLOOKUP(B200,'Zebrik W'!$B$7:$L$1002,11,0)),"",IF(VLOOKUP(B200,'Zebrik W'!$B$7:$L$1002,11,0)=0,"--",VLOOKUP(B200,'Zebrik W'!$B$7:$L$1002,11,0))) -> 
A201: 195 | B201: Jan Rott | C201: 1962 | D201: Plasy | E201: CZ/C1 | F201: M | G201: 3 | H201: 12454 | M201: =IF(ISERROR(VLOOKUP(B201,'Zebrik W'!$B$7:$L$1002,11,0)),"",IF(VLOOKUP(B201,'Zebrik W'!$B$7:$L$1002,11,0)=0,"--",VLOOKUP(B201,'Zebrik W'!$B$7:$L$1002,11,0))) -> 
... 284 more rows

Sheet Zebrik W
B1: ="Ženský Žebřík pilotek plachtařek PK AeČR "&A6 -> Ženský Žebřík pilotek plachtařek PK AeČR 2019 | G1: ='Zebrik G'!G1 -> 2020-03-01 | H1: Rev. | I1: ='Zebrik G'!I1 -> 05 | J1: ='Zebrik G'!J1 -> Dodatečné nominace na PMČR, řádné nominace na PMRg a PMČRj 2020
B3: W | C3: x | I3: Juniorka v roce: | J3: Juniorka v roce: | K3: ="W Repre družstvo "&I4 -> W Repre družstvo 2020 | L3: ="W Repre výběr "&I4 -> W Repre výběr 2020 | M3: Poznámka
I4: =A6+1 -> 2020 | J4: =A6+2 -> 2021 | K4: (WRD) | L4: (WRV)
A5: Pořadí | G5: Data | I5: =COUNTIF(I7:I499,"Juniorka v roce "&$I$4) -> 7 | J5: =COUNTIF(J7:J499,"Juniorka v roce "&$J$4) -> 7 | K5: =COUNTIF(K7:K499,"WRD "&$I$4) -> 9 | L5: =COUNTIF(L7:L499,"WRV "&$I$4) -> 10 | M5: =COUNTIF(M7:M499,"<>") -> 9
A6: ='Zebrik G'!A6 -> 2019 | B6: Jméno | C6: Rok narození | D6: Aeroklub | E6: Region | F6: M/F | G6: Počet W | H6: Součet z Bi×Kn
A7: =RANK(H7,H:H) -> 1 | B7: Alena Netusilova | C7: 1970 | D7: Zbraslavice | E7: CZ/C1 | F7: F | G7: 3 | H7: 28355 | I7: =IF(C7="(prázdné)","",IF(($I$4-C7)>25,"","Juniorka v roce "&$I$4)) ->  | J7: =IF(C7="(prázdné)","",IF(($J$4-C7)>25,"","Juniorka v roce "&$J$4)) ->  | K7: WRD 2020 | L7: WRV 2020 | M7: WWGC 2020 18m
A8: 2 | B8: Jana Veprekova | C8: 1961 | D8: Dvůr Králové | E8: CZ/C2 | F8: F | G8: 3 | H8: 27518 | I8: =IF(C8="(prázdné)","",IF(($I$4-C8)>25,"","Juniorka v roce "&$I$4)) ->  | J8: =IF(C8="(prázdné)","",IF(($J$4-C8)>25,"","Juniorka v roce "&$J$4)) ->  | K8: WRD 2020 | L8: WRV 2020 | M8: WWGC 2020 Std
A9: 3 | B9: Hana Treslova | C9: 1991 | D9: Raná | E9: CZ/C2 | F9: F | G9: 3 | H9: 27160 | K9: WRD 2020 | L9: WRV 2020 | M9: WWGC 2020 Std
A10: 4 | B10: Dana Novakova | C10: 1965 | D10: Mladá Boleslav | E10: CZ/C1 | F10: F | G10: 3 | H10: 25980 | K10: WRD 2020 | L10: WRV 2020 | M10: WWGC 2020 Std
A11: 5 | B11: Barbora Moravcova | C11: 1994 | D11: Zbraslavice | E11: CZ/C1 | F11: F | G11: 3 | H11: 25476 | K11: WRD 2020 | L11: WRV 2020 | M11: WWGC 2020 Club
A12: 6 | B12: Klara Teichmannova | C12: 1993 | D12: Hronov | E12: CZ/C2 | F12: F | G12: 3 | H12: 25293 | K12: WRD 2020 | L12: WRV 2020 | M12: WWGC 2020 Club
A13: 7 | B13: Jana Treslova | C13: 1963 | D13: Raná | E13: CZ/C2 | F13: F | G13: 3 | H13: 25199 | K13: WRD 2020 | L13: WRV 2020 | M13: WWGC 2020 18m
A14: 8 | B14: Lenka Kuthanova | C14: 1960 | D14: Tábor | E14: CZ/C1 | F14: F | G14: 3 | H14: 23705 | L14: WRV 2020
A15: 9 | B15: Petra Piskata | C15: 1989 | D15: Hranice | E15: CZ/M | F15: F | G15: 3 | H15: 22955 | K15: WRD 2020 | L15: WRV 2020 | M15: WWGC 2020 Club
A16: 10 | B16: Tereza Koubkova | C16: 1999 | D16: Letňany | E16: CZ/C1 | F16: F | G16: 3 | H16: 20483 | I16: Juniorka v roce 2020 | J16: Juniorka v roce 2021
A17: 11 | B17: Anna Bordovska | C17: 1989 | D17: Mladá Boleslav | E17: CZ/C1 | F17: F | G17: 3 | H17: 20344
A18: 12 | B18: Pavlina Horackova | C18: 1965 | D18: Šumperk | E18: CZ/M | F18: F | G18: 3 | H18: 19876
A19: 13 | B19: Eva Cerna | C19: 1964 | D19: Příbram | E19: CZ/C1 | F19: F | G19: 3 | H19: 19399 | K19: WRD 2020 | L19: WRV 2020 | M19: WWGC 2020 18m
A20: 14 | B20: Katerina Vojtova | C20: 1983 | D20: Slaný | E20: CZ/C1 | F20: F | G20: 3 | H20: 15619
A21: 15 | B21: Yvona Vyhnankova | C21: 1963 | D21: Olomouc | E21: CZ/M | F21: F | G21: 3 | H21: 12144
A22: 16 | B22: Barbora Kubickova | C22: 1993 | D22: Medlánky | E22: CZ/M | F22: F | G22: 2 | H22: 11260
A23: 17 | B23: Sarka Lochova | C23: 1966 | D23: Šumperk | E23: CZ/M | F23: F | G23: 3 | H23: 10604
A24: 18 | B24: Olga Mokosova | C24: 1970 | D24: Jihlava | E24: CZ/M | F24: F | G24: 3 | H24: 9967
A25: 19 | B25: Jarmila Zatykova | C25: 1959 | D25: Kralupy | E25: CZ/C1 | F25: F | G25: 3 | H25: 9171
A26: 20 | B26: Michaela Krizova | C26: 2001 | D26: Přibyslav | E26: CZ/C2 | F26: F | G26: 2 | H26: 8838 | I26: Juniorka v roce 2020 | J26: Juniorka v roce 2021
A27: 21 | B27: Sabina Vitova | C27: 1998 | D27: Kroměříž | E27: CZ/M | F27: F | G27: 3 | H27: 8009 | I27: Juniorka v roce 2020 | J27: Juniorka v roce 2021
A28: 22 | B28: Jana Mezerova | C28: 1975 | D28: Raná | E28: CZ/C2 | F28: F | G28: 3 | H28: 7516
A29: 23 | B29: Kristina Santruckova | C29: 1996 | D29: Podhořany | E29: CZ/C2 | F29: F | G29: 3 | H29: 7437 | I29: Juniorka v roce 2020 | J29: Juniorka v roce 2021
A30: 24 | B30: Tereza Novakova | C30: 1993 | D30: Chrudim | E30: CZ/C2 | F30: F | G30: 3 | H30: 7350
A31: 25 | B31: Linda Vasatova | C31: 1990 | D31: Mladá Boleslav | E31: CZ/C1 | F31: F | G31: 2 | H31: 5953
A32: 26 | B32: Radmila Horacek Filakovska | C32: 1963 | D32: Dvůr Králové | E32: CZ/C2 | F32: F | G32: 2 | H32: 5903
A33: 27 | B33: Petra Diepoldova | C33: 1978 | D33: Vysoké Mýto | E33: CZ/C2 | F33: F | G33: 2 | H33: 5446
A34: 28 | B34: Zuzana Kutilkova | C34: 1993 | D34: Křižanov | E34: CZ/M | F34: F | G34: 2 | H34: 5324
A35: 29 | B35: Michaela Sirmerova | C35: 2000 | D35: Jihlava | E35: CZ/M | F35: F | G35: 2 | H35: 5067 | I35: Juniorka v roce 2020 | J35: Juniorka v roce 2021
A36: 30 | B36: Monika Jiraskova | C36: 1994 | D36: Hronov | E36: CZ/C2 | F36: F | G36: 1 | H36: 4679
A37: 31 | B37: Veronika Ambrozova | C37: 1984 | D37: Křižanov | E37: CZ/M | F37: F | G37: 1 | H37: 4397
A38: 32 | B38: Jana Krejcova | C38: 1972 | D38: Křižanov | E38: CZ/M | F38: F | G38: 1 | H38: 4331
A39: 33 | B39: Milada Moudra | C39: 1991 | D39: Hodkovice | E39: CZ/C2 | F39: F | G39: 1 | H39: 2801
A40: 34 | B40: Zuzana Markesova | C40: 2001 | D40: Medlánky | E40: CZ/M | F40: F | G40: 1 | H40: 2409 | I40: Juniorka v roce 2020 | J40: Juniorka v roce 2021
A41: 35 | B41: Tereza Jirsakova | C41: 1997 | D41: Hronov | E41: CZ/C2 | F41: F | G41: 1 | H41: 2173 | I41: Juniorka v roce 2020 | J41: Juniorka v roce 2021
A42: 36 | B42: Eliska Bohunovska | C42: 2001 | D42: Hranice | E42: CZ/M | F42: F | G42: 1 | H42: 2039
A43: 37 | B43: Stanislava Zemlickova | C43: 2000 | D43: Vyškov | E43: CZ/M | F43: F | G43: 1 | H43: 1246
A44: 38 | B44: Petra Retamozova | C44: 1990 | D44: Kralupy | E44: CZ/C1 | F44: F | G44: 1 | H44: 1094
A47: =Soutez!A163 -> Schváleno Plachtařskou komisí AeČR dne 10.11.2019 ve Vysokém Mýtě

Sheet KB PMRg 2017
A1: PMRg 2017 - Křižanov - Korigované body
A2: Pořadí v KB | B2: Jméno | C2: Rok narození | D2: Aeroklub | E2: Region | F2: Soutěž | G2: Pořadí ve třídě | H2: Body ve třídě | I2: Max. B ve třídě | J2: Bi | K2: Typ | L2: CN | M2: M/F | N2: Junior
A3: =RANK(J3,J:J) -> 1 | B3: Ivan Novak | C3: =VLOOKUP(B3,Pilot,2,0) -> 1962 | D3: =VLOOKUP(B3,Pilot,3,0) -> Mladá Boleslav | E3: =VLOOKUP(B3,Pilot,4,0) -> CZ/C1 | F3: PMRg 2017 - Klub | G3: 1 | H3: 5132 | I3: 5132 | J3: =ROUND(H3/I3*10000,0) -> 10000 | K3: Std. Cirrus | L3: DI | M3: =VLOOKUP(B3,Pilot,5,0) -> M | N3: =IF(ISERROR(VLOOKUP(B3,Pilot,6,0)),"Není v databázi",VLOOKUP(B3,Pilot,6,0)) -> 
A4: 1 | B4: Karel Mares | C4: 1974 | D4: Slaný | E4: CZ/C1 | F4: PMRg 2017 - Kombi | G4: 1 | H4: 5750 | I4: 5750 | J4: 10000 | K4: Ventus c /17,6m (voda) | L4: 7F | M4: M
A5: 3 | B5: Hana Treslova | C5: 1991 | D5: Raná | E5: CZ/C2 | F5: PMRg 2017 - Klub | G5: 2 | H5: 5049 | I5: 5132 | J5: 9838 | K5: Std. Cirrus | L5: CI | M5: F
A6: 4 | B6: Daniel Ryba | C6: 1994 | D6: Dvůr Králové | E6: CZ/C2 | F6: PMRg 2017 - Klub | G6: 3 | H6: 5030 | I6: 5132 | J6: 9801 | K6: ASW-19B | L6: L7 | M6: M
A7: 5 | B7: Josef Novotny | C7: 1983 | D7: Přibyslav | E7: CZ/C2 | F7: PMRg 2017 - Klub | G7: 4 | H7: 4967 | I7: 5132 | J7: 9678 | K7: Std. Cirrus | L7: AW | M7: M
A8: 6 | B8: Leos Strnadek | C8: 1983 | D8: Hodkovice | E8: CZ/C2 | F8: PMRg 2017 - Klub | G8: 5 | H8: 4958 | I8: 5132 | J8: 9661 | K8: ASW-19B | L8: XZ | M8: M
A9: 7 | B9: Zdenek Boruvka 54 | C9: 1954 | D9: Jičín | E9: CZ/C2 | F9: PMRg 2017 - Kombi | G9: 2 | H9: 5538 | I9: 5750 | J9: 9631 | K9: LS 8,a,b,s,st,18 /15m (voda) | L9: ZB | M9: M
A10: 8 | B10: Marek Svancara | C10: 1976 | D10: GAC Benešov | E10: CZ/C1 | F10: PMRg 2017 - Klub | G10: 6 | H10: 4925 | I10: 5132 | J10: 9597 | K10: Std. Cirrus | L10: GT | M10: M
A11: 9 | B11: Zdenek Balcarek | C11: 1967 | D11: Kroměříž | E11: CZ/M | F11: PMRg 2017 - Klub | G11: 7 | H11: 4908 | I11: 5132 | J11: 9564 | K11: Std. Cirrus | L11: ZL | M11: M
A12: 10 | B12: Lubomir Motl | C12: 1959 | D12: Kyjov | E12: CZ/M | F12: PMRg 2017 - Klub | G12: 8 | H12: 4863 | I12: 5132 | J12: 9476 | K12: LS-1f | L12: G2 | M12: M
A13: 11 | B13: Zdenek Boruvka 86 | C13: 1986 | D13: Jičín | E13: CZ/C2 | F13: PMRg 2017 - Klub | G13: 9 | H13: 4830 | I13: 5132 | J13: 9412 | K13: Std. Cirrus | L13: BJ | M13: M
A14: 12 | B14: Jana Veprekova | C14: 1961 | D14: Dvůr Králové | E14: CZ/C2 | F14: PMRg 2017 - Kombi | G14: 3 | H14: 5410 | I14: 5750 | J14: 9409 | K14: LS 8,a,b,s,st,18 /15m (voda) | L14: AU | M14: F
A15: 13 | B15: Frantisek Marek | C15: 1960 | D15: Křižanov | E15: CZ/M | F15: PMRg 2017 - Kombi | G15: 4 | H15: 5355 | I15: 5750 | J15: 9313 | K15: T-59D Kestrel 19m (voda) | L15: XJ | M15: M
A16: 14 | B16: Petr Hotovy | C16: 1958 | D16: Česká Lípa | E16: CZ/C2 | F16: PMRg 2017 - Kombi | G16: 5 | H16: 5341 | I16: 5750 | J16: 9289 | K16: HpH 304M SHARK (600kg) /18m (voda) | L16: MH | M16: M
A17: 15 | B17: Dana Novakova | C17: 1965 | D17: Mladá Boleslav | E17: CZ/C1 | F17: PMRg 2017 - Kombi | G17: 6 | H17: 5307 | I17: 5750 | J17: 9230 | K17: LS 8,a,b,s,st,18 /15m (voda) | L17: EU | M17: F
A18: 16 | B18: Michal Navratil | C18: 1985 | D18: Křižanov | E18: CZ/M | F18: PMRg 2017 - Klub | G18: 10 | H18: 4718 | I18: 5132 | J18: 9193 | K18: Std. Cirrus | L18: IJ | M18: M
A19: 17 | B19: Jana Treslova | C19: 1963 | D19: Raná | E19: CZ/C2 | F19: PMRg 2017 - Kombi | G19: 7 | H19: 5212 | I19: 5750 | J19: 9064 | K19: Ventus bt /16,6m (voda) | L19: VT | M19: F
A20: 18 | B20: Matej Krestes | C20: 1986 | D20: Slaný | E20: CZ/C1 | F20: PMRg 2017 - Klub | G20: 11 | H20: 4435 | I20: 5132 | J20: 8642 | K20: Centrair C-201B Marianne | L20: II | M20: M
A21: 19 | B21: Michal Krupicka | C21: 1975 | D21: Most | E21: CZ/C2 | F21: PMRg 2017 - Klub | G21: 12 | H21: 4320 | I21: 5132 | J21: 8418 | K21: Std. Cirrus | L21: K | M21: M
A22: 20 | B22: David Sachl | C22: 1978 | D22: Kralupy | E22: CZ/C1 | F22: PMRg 2017 - Klub | G22: 13 | H22: 4288 | I22: 5132 | J22: 8355 | K22: DG-200 15m | L22: RZ | M22: M
A23: 21 | B23: Antonin Novotny | C23: 1972 | D23: Luhačovice | E23: CZ/M | F23: PMRg 2017 - Klub | G23: 14 | H23: 4237 | I23: 5132 | J23: 8256 | K23: Std. Cirrus | L23: SP | M23: M
A24: 22 | B24: Petr Panek | C24: 1975 | D24: Dvůr Králové | E24: CZ/C2 | F24: PMRg 2017 - Klub | G24: 15 | H24: 4216 | I24: 5132 | J24: 8215 | K24: Std. Cirrus | L24: YU | M24: M
A25: 23 | B25: Jan Smaha | C25: 1958 | D25: Česká Lípa | E25: CZ/C2 | F25: PMRg 2017 - Klub | G25: 16 | H25: 4189 | I25: 5132 | J25: 8163 | K25: ASW-15B | L25: CW | M25: M
A26: 24 | B26: Karel Knotek | C26: 1961 | D26: Soběslav | E26: CZ/C1 | F26: PMRg 2017 - Klub | G26: 17 | H26: 4171 | I26: 5132 | J26: 8127 | K26: ASW-19B | L26: SO | M26: M
A27: 25 | B27: Vaclav Marel | C27: 1974 | D27: Jaroměř | E27: CZ/C2 | F27: PMRg 2017 - Klub | G27: 18 | H27: 4162 | I27: 5132 | J27: 8110 | K27: Std. Cirrus | L27: IF | M27: M
A28: 26 | B28: Jaroslav Buryan | C28: 1953 | D28: Zábřeh | E28: CZ/M | F28: PMRg 2017 - Kombi | G28: 8 | H28: 4600 | I28: 5750 | J28: 8000 | K28: ASW-20 (A)+F /15m WL (voda) | L28: NS | M28: M
A29: 27 | B29: Radek Zima 78 | C29: 1978 | D29: Hodkovice | E29: CZ/C2 | F29: PMRg 2017 - Kombi | G29: 9 | H29: 4578 | I29: 5750 | J29: 7962 | K29: Ventus b /16,6m WL (voda) | L29: 7E | M29: M
A30: 28 | B30: Radim Vadasz | C30: 1989 | D30: Soběslav | E30: CZ/C1 | F30: PMRg 2017 - Klub | G30: 19 | H30: 4066 | I30: 5132 | J30: 7923 | K30: ASW-15 | L30: ASW | M30: M
A31: 29 | B31: Barbora Moravcova | C31: 1994 | D31: Zbraslavice | E31: CZ/C1 | F31: PMRg 2017 - Klub | G31: 20 | H31: 4020 | I31: 5132 | J31: 7833 | K31: ASW-19B | L31: CF | M31: F
A32: 30 | B32: Jan Vozeh | C32: 1995 | D32: Rakovník | E32: CZ/C1 | F32: PMRg 2017 - Klub | G32: 21 | H32: 3978 | I32: 5132 | J32: 7751 | K32: Std. Cirrus | L32: OG | M32: M | N32: Junior v roce 2020
A33: 31 | B33: Dusan Gadas | C33: 1960 | D33: Hranice | E33: CZ/M | F33: PMRg 2017 - Kombi | G33: 10 | H33: 4309 | I33: 5750 | J33: 7494 | K33: LAK 17B FES /21m (voda) | L33: TF | M33: M
A34: 32 | B34: Zdenek Schenk | C34: 1972 | D34: Hranice | E34: CZ/M | F34: PMRg 2017 - Kombi | G34: 11 | H34: 4269 | I34: 5750 | J34: 7424 | K34: Ventus ct /17,6m (voda) | L34: ŠNeK | M34: M
A35: =RANK(J35,J:J) -> 33 | B35: Jan Zapletal | C35: 1997 | D35: Kroměříž | E35: CZ/M | F35: PMRg 2017 - Kombi | G35: 12 | H35: 4267 | I35: 5750 | J35: =ROUND(H35/I35*10000,0) -> 7421 | K35: Discus 2b /15m (voda) | L35: SH | M35: M | N35: =IF(ISERROR(VLOOKUP(B35,Pilot,6,0)),"Není v databázi",VLOOKUP(B35,Pilot,6,0)) -> Junior v roce 2020
A36: 34 | B36: Jan Zahradka | C36: 1981 | D36: Hodkovice | E36: CZ/C2 | F36: PMRg 2017 - Klub | G36: 22 | H36: 3792 | I36: 5132 | J36: 7389 | K36: Std. Cirrus | L36: UB | M36: M
A37: 35 | B37: Ivan Bajana | D37: Martin | E37: SK | F37: PMRg 2017 - Klub | G37: 23 | H37: 3775 | I37: 5132 | J37: 7356 | K37: Std. Cirrus WL | L37: DZ | M37: M | N37: Není v databázi
A38: 36 | B38: Petr Rajda | C38: =VLOOKUP(B38,Pilot,2,0) -> 1970 | D38: =VLOOKUP(B38,Pilot,3,0) -> Křižanov | E38: =VLOOKUP(B38,Pilot,4,0) -> CZ/M | F38: PMRg 2017 - Klub | G38: 24 | H38: 3773 | I38: 5132 | J38: 7352 | K38: DG-200 15m | L38: CK | M38: =VLOOKUP(B38,Pilot,5,0) -> M
A39: 37 | B39: Miroslav Kudlacek | C39: 1986 | D39: Polička | E39: CZ/C2 | F39: PMRg 2017 - Klub | G39: 25 | H39: 3650 | I39: 5132 | J39: 7112 | K39: ASW-24("A") WL (-bez modif TN8) | L39: SM | M39: M
A40: 38 | B40: Pavel Koudelka | C40: 1973 | D40: Křižanov | E40: CZ/M | F40: PMRg 2017 - Klub | G40: 26 | H40: 3529 | I40: 5132 | J40: 6876 | K40: LS-1f | L40: R7 | M40: M
A41: 39 | B41: Marek Pechanec | C41: 1970 | D41: Luhačovice | E41: CZ/M | F41: PMRg 2017 - Klub | G41: 27 | H41: 3510 | I41: 5132 | J41: 6839 | K41: Std. Cirrus | L41: SJ | M41: M
A42: 40 | B42: Ivan Tvrdik | C42: 1997 | D42: Letňany | E42: CZ/C1 | F42: PMRg 2017 - Klub | G42: 28 | H42: 3476 | I42: 5132 | J42: 6773 | K42: ASW-19B | L42: IHD | M42: M | N42: Junior v roce 2020
A43: 41 | B43: Jiri Peterka | C43: 1951 | D43: Křižanov | E43: CZ/M | F43: PMRg 2017 - Klub | G43: 29 | H43: 3414 | I43: 5132 | J43: 6652 | K43: Std. Cirrus | L43: M | M43: M
A44: 42 | B44: Miroslav Cervenka | C44: 1980 | D44: Křižanov | E44: CZ/M | F44: PMRg 2017 - Klub | G44: 30 | H44: 3412 | I44: 5132 | J44: 6648 | K44: LS-1f | L44: AF | M44: M
A45: 43 | B45: Jindrich Hruska | C45: 1986 | D45: Soběslav | E45: CZ/C1 | F45: PMRg 2017 - Klub | G45: 31 | H45: 3389 | I45: 5132 | J45: 6604 | K45: 303 Mosquito | L45: UFO | M45: M
A46: 44 | B46: Slavomir Piskaty 58 | C46: 1958 | D46: Kunovice | E46: CZ/M | F46: PMRg 2017 - Kombi | G46: 13 | H46: 3761 | I46: 5750 | J46: 6541 | K46: Discus b WL (voda) | L46: KAL | M46: M
A47: 45 | B47: Rene Gabris | D47: Partizánské | E47: SK | F47: PMRg 2017 - Klub | G47: 32 | H47: 3340 | I47: 5132 | J47: 6508 | K47: Std. Cirrus | L47: 2C | M47: M | N47: Není v databázi
A48: 46 | B48: Tomas Jilek | C48: =VLOOKUP(B48,Pilot,2,0) -> 1995 | D48: =VLOOKUP(B48,Pilot,3,0) -> Raná | E48: =VLOOKUP(B48,Pilot,4,0) -> CZ/C2 | F48: PMRg 2017 - Klub | G48: 33 | H48: 3305 | I48: 5132 | J48: 6440 | K48: Cirrus VTC | L48: 1W | M48: =VLOOKUP(B48,Pilot,5,0) -> M | N48: Junior v roce 2020
A49: 47 | B49: Daniel Suchy | C49: =VLOOKUP(B49,Pilot,2,0) -> 1995 | D49: =VLOOKUP(B49,Pilot,3,0) -> Hranice | E49: =VLOOKUP(B49,Pilot,4,0) -> CZ/M | F49: PMRg 2017 - Klub | G49: 34 | H49: 3296 | I49: 5132 | J49: 6422 | K49: G-102 Astir cs | L49: W7 | M49: =VLOOKUP(B49,Pilot,5,0) -> M | N49: Junior v roce 2020
A50: 48 | B50: Petr Frycek | C50: =VLOOKUP(B50,Pilot,2,0) -> 1960 | D50: =VLOOKUP(B50,Pilot,3,0) -> Most | E50: =VLOOKUP(B50,Pilot,4,0) -> CZ/C2 | F50: PMRg 2017 - Kombi | G50: 14 | H50: 3684 | I50: 5750 | J50: 6407 | K50: Nimbus 3 /25,5m - 700kg (voda) | L50: F | M50: =VLOOKUP(B50,Pilot,5,0) -> M
A51: 49 | B51: Jan Ratz | C51: =VLOOKUP(B51,Pilot,2,0) -> 1987 | D51: =VLOOKUP(B51,Pilot,3,0) -> Zbraslavice | E51: =VLOOKUP(B51,Pilot,4,0) -> CZ/C1 | F51: PMRg 2017 - Kombi | G51: 15 | H51: 3653 | I51: 5750 | J51: 6353 | K51: Ventus b /16,6m WL (voda) | L51: JET | M51: =VLOOKUP(B51,Pilot,5,0) -> M
A52: 50 | B52: Miroslav Beliansky | D52: Partizánské | E52: SK | F52: PMRg 2017 - Klub | G52: 35 | H52: 3132 | I52: 5132 | J52: 6103 | K52: Std. Cirrus | L52: SZ | M52: M | N52: Není v databázi
A53: 51 | B53: Miroslav Koci | C53: =VLOOKUP(B53,Pilot,2,0) -> 1961 | D53: =VLOOKUP(B53,Pilot,3,0) -> Žamberk | E53: =VLOOKUP(B53,Pilot,4,0) -> CZ/C2 | F53: PMRg 2017 - Kombi | G53: 16 | H53: 3478 | I53: 5750 | J53: 6049 | K53: Ventus 2cxm /18m - 565 kg (voda) | L53: E8 | M53: =VLOOKUP(B53,Pilot,5,0) -> M
A54: 52 | B54: Jan Hruska | C54: 1988 | D54: Tábor | E54: CZ/C1 | F54: PMRg 2017 - Klub | G54: 36 | H54: 3086 | I54: 5132 | J54: 6013 | K54: ASW-15B | L54: LittleFo | M54: M
A55: 53 | B55: Barbora Kubickova | C55: 1993 | D55: Medlánky | E55: CZ/M | F55: PMRg 2017 - Klub | G55: 37 | H55: 3042 | I55: 5132 | J55: 5928 | K55: ASW-15B | L55: Y | M55: F
A56: 54 | B56: Tomas Talanda | C56: 1988 | D56: Křižanov | E56: CZ/M | F56: PMRg 2017 - Klub | G56: 38 | H56: 3007 | I56: 5132 | J56: 5859 | K56: ASW-19B | L56: A1 | M56: M
A57: 55 | B57: Veronika Ambrozova | C57: 1984 | D57: Křižanov | E57: CZ/M | F57: PMRg 2017 - Klub | G57: 39 | H57: 2924 | I57: 5132 | J57: 5698 | K57: ASW-15B | L57: 17 | M57: F
A58: 56 | B58: Jana Krejcova | C58: 1972 | D58: Křižanov | E58: CZ/M | F58: PMRg 2017 - Klub | G58: 40 | H58: 2922 | I58: 5132 | J58: 5694 | K58: Std. Cirrus | L58: ICQ | M58: F
A59: 57 | B59: Martin Kriz | C59: 1968 | D59: Přibyslav | E59: CZ/C2 | F59: PMRg 2017 - Klub | G59: 41 | H59: 2898 | I59: 5132 | J59: 5647 | K59: ASW-15B | L59: BE | M59: M
A60: 58 | B60: Jan Kotan | C60: 1982 | D60: Letňany | E60: CZ/C1 | F60: PMRg 2017 - Klub | G60: 42 | H60: 2766 | I60: 5132 | J60: 5390 | K60: ASW-19 | L60: WT | M60: M
A61: 59 | B61: Lukas Plocek | C61: 1990 | D61: Mladá Boleslav | E61: CZ/C1 | F61: PMRg 2017 - Klub | G61: 43 | H61: 2632 | I61: 5132 | J61: 5129 | K61: ASW-19B | L61: AH | M61: M
A62: 60 | B62: Vladimir Spilka | C62: 1940 | D62: Hranice | E62: CZ/M | F62: PMRg 2017 - Kombi | G62: 17 | H62: 2343 | I62: 5750 | J62: 4075 | K62: Nimbus 2, 2b, 2M (voda) | L62: AY | M62: M
A63: 61 | B63: Antonin Kutalek | C63: 1943 | D63: Zábřeh | E63: CZ/M | F63: PMRg 2017 - Kombi | G63: 18 | H63: 2200 | I63: 5750 | J63: 3826 | K63: Mini-Nimbus c (voda) | L63: GL | M63: M
A64: 62 | B64: Tomas Laso | D64: Martin | E64: SK | F64: PMRg 2017 - Klub | G64: 44 | H64: 1927 | I64: 5132 | J64: 3755 | K64: H-201b Std. Libelle WL | L64: 48 | M64: M | N64: Není v databázi
A65: 63 | B65: Petr Lonsky | C65: =VLOOKUP(B65,Pilot,2,0) -> 1965 | D65: =VLOOKUP(B65,Pilot,3,0) -> Toužim | E65: =VLOOKUP(B65,Pilot,4,0) -> CZ/C1 | F65: PMRg 2017 - Klub | G65: 45 | H65: 1765 | I65: 5132 | J65: 3439 | K65: Std. Cirrus WL | L65: FD | M65: =VLOOKUP(B65,Pilot,5,0) -> M
A66: 64 | B66: Olga Mokosova | C66: =VLOOKUP(B66,Pilot,2,0) -> 1970 | D66: =VLOOKUP(B66,Pilot,3,0) -> Jihlava | E66: =VLOOKUP(B66,Pilot,4,0) -> CZ/M | F66: PMRg 2017 - Kombi | G66: 19 | H66: 1971 | I66: 5750 | J66: 3428 | K66: LS 6c /18m WL (voda) | L66: MM | M66: =VLOOKUP(B66,Pilot,5,0) -> F
A67: 65 | B67: Petr Havrlant | C67: =VLOOKUP(B67,Pilot,2,0) -> 1965 | D67: =VLOOKUP(B67,Pilot,3,0) -> Šumperk | E67: =VLOOKUP(B67,Pilot,4,0) -> CZ/M | F67: PMRg 2017 - Klub | G67: 46 | H67: 1729 | I67: 5132 | J67: =ROUND(H67/I67*10000,0) -> 3369 | K67: ASW-15B | L67: Q1 | M67: =VLOOKUP(B67,Pilot,5,0) -> M
A68: 66 | B68: Martin Kozina | C68: =VLOOKUP(B68,Pilot,2,0) -> 1970 | D68: =VLOOKUP(B68,Pilot,3,0) -> Křižanov | E68: =VLOOKUP(B68,Pilot,4,0) -> CZ/M | F68: PMRg 2017 - Klub | G68: 47 | H68: 1583 | I68: 5132 | J68: =ROUND(H68/I68*10000,0) -> 3085 | K68: LS-1f | L68: PK | M68: =VLOOKUP(B68,Pilot,5,0) -> M
A71: Schváleno Plachtařskou komisí AeČR dne 29.10.2017 ve Vysokém Mýtě

Sheet KB PMRg 2018
A1: PMRg 2018 - Hodkovice - Korigované body
A2: Pořadí v KB | B2: Jméno | C2: Rok narození | D2: Aeroklub | E2: Region | F2: Soutěž | G2: Pořadí ve třídě | H2: Body ve třídě | I2: Max. B ve třídě | J2: Bi | K2: Typ | L2: CN | M2: M/F | N2: Junior
A3: =RANK(J3,J:J) -> 1 | B3: Marek Pechanec | C3: =VLOOKUP(B3,Pilot,2,0) -> 1970 | D3: =VLOOKUP(B3,Pilot,3,0) -> Luhačovice | E3: =VLOOKUP(B3,Pilot,4,0) -> CZ/M | F3: PMRg 2018 - Klub | G3: 1 | H3: 6509 | I3: 6509 | J3: 10000 | K3: std. cirrus | L3: SJ | M3: =VLOOKUP(B3,Pilot,5,0) -> M | N3: =IF(ISERROR(VLOOKUP(B3,Pilot,6,0)),"Není v databázi",VLOOKUP(B3,Pilot,6,0)) -> 
A4: 1 | B4: Jan Louda | C4: 1986 | D4: Mladá Boleslav | E4: CZ/C1 | F4: PMRg 2018 - Kombi | G4: 1 | H4: 7195 | I4: 7195 | J4: 10000 | K4: Ventus a 15m WL 500kg (voda) | L4: FW | M4: M
A5: 3 | B5: Zdenek Boruvka 86 | C5: 1986 | D5: Jičín | E5: CZ/C2 | F5: PMRg 2018 - Klub | G5: 2 | H5: 6377 | I5: 6509 | J5: 9772 | K5: Std. Cirrus | L5: BJ | M5: M
A6: 4 | B6: Karel Novak | C6: 1993 | D6: Mladá Boleslav | E6: CZ/C1 | F6: PMRg 2018 - Klub | G6: 3 | H6: 6342 | I6: 6509 | J6: 9649 | K6: std. cirrus | L6: DI | M6: M
A7: 5 | B7: Karel Mares | C7: 1974 | D7: Slaný | E7: CZ/C1 | F7: PMRg 2018 - Kombi | G7: 2 | H7: 6865 | I7: 7195 | J7: 9491 | K7: LS-8b, LS-8-18, LS-8t /18m | L7: YF | M7: M
A8: 6 | B8: Daniel Ryba | C8: 1994 | D8: Dvůr Králové | E8: CZ/C2 | F8: PMRg 2018 - Klub | G8: 4 | H8: 6268 | I8: 6509 | J8: 9484 | K8: ASW-19B | L8: L7 | M8: M
A9: 7 | B9: Petr Panek | C9: 1975 | D9: Dvůr Králové | E9: CZ/C2 | F9: PMRg 2018 - Klub | G9: 5 | H9: 6208 | I9: 6509 | J9: 9333 | K9: std. cirrus | L9: YU | M9: M
A10: 8 | B10: Jana Veprekova | C10: 1961 | D10: Dvůr Králové | E10: CZ/C2 | F10: PMRg 2018 - Kombi | G10: 3 | H10: 6818 | I10: 7195 | J10: 9258 | K10: LS 8,a,b,s,st,18 15m (voda) | L10: W8 | M10: F
A11: 9 | B11: Hana Treslova | C11: 1991 | D11: Raná | E11: CZ/C2 | F11: PMRg 2018 - Kombi | G11: 4 | H11: 6765 | I11: 7195 | J11: 9019 | K11: LS 8,a,b,s,st,18 15m (voda) | L11: FX | M11: F
A12: 10 | B12: Vaclav Marel | C12: 1974 | D12: Jaroměř | E12: CZ/C2 | F12: PMRg 2018 - Klub | G12: 6 | H12: 5949 | I12: 6509 | J12: 8969 | K12: Std. Cirrus | L12: IF | M12: M
A13: 11 | B13: Dana Novakova | C13: 1965 | D13: Mladá Boleslav | E13: CZ/C1 | F13: PMRg 2018 - Kombi | G13: 5 | H13: 6742 | I13: 7195 | J13: 8809 | K13: LS 8,a,b,s,st,18 15m (voda) | L13: AU | M13: F
A14: 12 | B14: Jan Ratz | C14: 1987 | D14: Zbraslavice | E14: CZ/C1 | F14: PMRg 2018 - Klub | G14: 7 | H14: 5857 | I14: 6509 | J14: 8785 | K14: Std. Cirrus | L14: REX | M14: M
A15: 13 | B15: Jana Treslova | C15: 1963 | D15: Raná | E15: CZ/C2 | F15: PMRg 2018 - Kombi | G15: 6 | H15: 6716 | I15: 7195 | J15: 8596 | K15: LS 8,a,b,s,st,18 15m (voda) | L15: EU | M15: F
A16: 14 | B16: Lukas Koukal | C16: 1991 | D16: Letkov | E16: CZ/C1 | F16: PMRg 2018 - Klub | G16: 8 | H16: 5526 | I16: 6509 | J16: 8343 | K16: ASW-15B | L16: T1 | M16: M
A17: 15 | B17: Jiri Kusbach | C17: 1959 | D17: Luhačovice | E17: CZ/M | F17: PMRg 2018 - Kombi | G17: 7 | H17: 6510 | I17: 7195 | J17: 8209 | K17: KKB-18E FES (voda) | L17: B | M17: M
A18: 16 | B18: Jan Vavrin | C18: 1987 | D18: Vysoké Mýto | E18: CZ/C2 | F18: PMRg 2018 - Klub | G18: 9 | H18: 5438 | I18: 6509 | J18: 8162 | K18: ASW-15B | L18: IG | M18: M
A19: 17 | B19: Vojtech Novotny | C19: 1992 | D19: Kralupy | E19: CZ/C1 | F19: PMRg 2018 - Klub | G19: 10 | H19: 5418 | I19: 6509 | J19: 8055 | K19: LS-1f | L19: EF | M19: M
A20: 18 | B20: Radek Zima 78 | C20: 1978 | D20: Hodkovice | E20: CZ/C2 | F20: PMRg 2018 - Kombi | G20: 8 | H20: 6481 | I20: 7195 | J20: 7993 | K20: Ventus b /15m WL -500 kg | L20: 7F | M20: M
A21: 19 | B21: Lukas Plocek | C21: 1990 | D21: Mladá Boleslav | E21: CZ/C1 | F21: PMRg 2018 - Klub | G21: 11 | H21: 5400 | I21: 6509 | J21: 7950 | K21: ASW-19B | L21: AH | M21: M
A22: 20 | B22: Michal Krupicka | C22: 1975 | D22: Most | E22: CZ/C2 | F22: PMRg 2018 - Klub | G22: 12 | H22: 5390 | I22: 6509 | J22: 7854 | K22: Std. Cirrus | L22: K | M22: M
A23: 21 | B23: Marek Svancara | C23: 1976 | D23: GAC Benešov | E23: CZ/C1 | F23: PMRg 2018 - Klub | G23: 13 | H23: 5343 | I23: 6509 | J23: 7717 | K23: Std. Cirrus | L23: GT | M23: M
A24: 22 | B24: Jan Zahradka | C24: 1981 | D24: Hodkovice | E24: CZ/C2 | F24: PMRg 2018 - Klub | G24: 14 | H24: 5324 | I24: 6509 | J24: 7611 | K24: Std. Cirrus | L24: AR | M24: M
A25: 23 | B25: Jan Smaha | C25: 1958 | D25: Česká Lípa | E25: CZ/C2 | F25: PMRg 2018 - Klub | G25: 15 | H25: 5255 | I25: 6509 | J25: 7451 | K25: ASW-15B | L25: CW | M25: M
A26: 24 | B26: Petr Hotovy | C26: 1958 | D26: Česká Lípa | E26: CZ/C2 | F26: PMRg 2018 - Kombi | G26: 9 | H26: 6061 | I26: 7195 | J26: 7397 | K26: JS-1A,B,C,BTJ,CTJ 18m (voda) | L26: IGC | M26: M
A27: 25 | B27: Jan Hruska | C27: 1988 | D27: Tábor | E27: CZ/C1 | F27: PMRg 2018 - Klub | G27: 16 | H27: 5175 | I27: 6509 | J27: 7280 | K27: ASW-15B | L27: LF | M27: M
A28: 26 | B28: Vojtech Hajek | C28: 1987 | D28: Mladá Boleslav | E28: CZ/C1 | F28: PMRg 2018 - Klub | G28: 17 | H28: 5122 | I28: 6509 | J28: 7137 | K28: Std. Cirrus | L28: BW | M28: M
A29: 27 | B29: Ladislav Prokes | C29: 1954 | D29: Vrchlabí | E29: CZ/C2 | F29: PMRg 2018 - Kombi | G29: 10 | H29: 5935 | I29: 7195 | J29: 7087 | K29: Discus b | L29: VR | M29: M
A30: 28 | B30: Antonin Novotny | C30: 1972 | D30: Luhačovice | E30: CZ/M | F30: PMRg 2018 - Klub | G30: 18 | H30: 5057 | I30: 6509 | J30: 6981 | K30: Std. Cirrus | L30: SP | M30: M
A31: 29 | B31: Jaroslav Buryan | C31: 1953 | D31: Zábřeh | E31: CZ/M | F31: PMRg 2018 - Kombi | G31: 11 | H31: 5901 | I31: 7195 | J31: 6866 | K31: ASW-20(A)+F 15m+W (voda) | L31: NS | M31: M
A32: 30 | B32: Ondrej Sindelar | C32: 1979 | D32: Mladá Boleslav | E32: CZ/C1 | F32: PMRg 2018 - Klub | G32: 19 | H32: 4881 | I32: 6509 | J32: 6706 | K32: ASW-19B | L32: OI | M32: M
A33: 31 | B33: Jakub Kohn | C33: 1992 | D33: Prostějov | E33: CZ/M | F33: PMRg 2018 - Klub | G33: 20 | H33: 4714 | I33: 6509 | J33: 6441 | K33: ASW-15B | L33: FK | M33: M
A34: 32 | B34: Ladislav Jozsa | C34: 1981 | D34: Medlánky | E34: CZ/M | F34: PMRg 2018 - Klub | G34: 21 | H34: 4708 | I34: 6509 | J34: 6349 | K34: Std. Cirrus | L34: LJ | M34: M
A35: =RANK(J35,J:J) -> 33 | B35: Jindrich Hruska | C35: 1986 | D35: Soběslav | E35: CZ/C1 | F35: PMRg 2018 - Klub | G35: 22 | H35: 4616 | I35: 6509 | J35: 6164 | K35: ASW-15 | L35: ASW | M35: =VLOOKUP(B35,Pilot,5,0) -> M | N35: =IF(ISERROR(VLOOKUP(B35,Pilot,6,0)),"Není v databázi",VLOOKUP(B35,Pilot,6,0)) -> 
A36: 34 | B36: Pavlina Horackova | C36: 1965 | D36: Šumperk | E36: CZ/M | F36: PMRg 2018 - Klub | G36: 23 | H36: 4590 | I36: 6509 | J36: 6051 | K36: SZD-48 Jantar Std. 2(3) | L36: SU | M36: F
A37: 35 | B37: Jan Vozeh | C37: 1995 | D37: Rakovník | E37: CZ/C1 | F37: PMRg 2018 - Klub | G37: 24 | H37: 4499 | I37: 6509 | J37: 5867 | K37: std. cirrus | L37: OG | M37: M | N37: Junior v roce 2020
A38: 36 | B38: Miroslav Koci | C38: 1961 | D38: Žamberk | E38: CZ/C2 | F38: PMRg 2018 - Kombi | G38: 12 | H38: 4877 | I38: 7195 | J38: 5682 | K38: Ventusy: 2cx, 2cxm, 2cxt /18m -600 kg | L38: E8 | M38: M
A39: 37 | B39: David Sachl | C39: 1978 | D39: Kralupy | E39: CZ/C1 | F39: PMRg 2018 - Klub | G39: 25 | H39: 4374 | I39: 6509 | J39: 5647 | K39: DG-300 | L39: BK | M39: M
A40: 38 | B40: Vilem Riha | C40: 1990 | D40: Letňany | E40: CZ/C1 | F40: PMRg 2018 - Klub | G40: 26 | H40: 4300 | I40: 6509 | J40: 5482 | K40: Std. Cirrus | L40: UB | M40: M
A41: 39 | B41: Karel Knotek | C41: 1961 | D41: Soběslav | E41: CZ/C1 | F41: PMRg 2018 - Klub | G41: 27 | H41: 4163 | I41: 6509 | J41: 5248 | K41: ASW-19 | L41: SO | M41: M
A42: 40 | B42: Martin Kriz | C42: 1968 | D42: Přibyslav | E42: CZ/C2 | F42: PMRg 2018 - Klub | G42: 28 | H42: 4085 | I42: 6509 | J42: 5079 | K42: ASW-15B | L42: BE | M42: M
A43: 41 | B43: Slavomir Piskaty 58 | C43: 1958 | D43: Kunovice | E43: CZ/M | F43: PMRg 2018 - Kombi | G43: 13 | H43: 4380 | I43: 7195 | J43: 5011 | K43: Discus b +W(voda) | L43: KAL | M43: M
A44: 42 | B44: Martin Cicvarek | C44: 1966 | D44: Liberec | E44: CZ/C2 | F44: PMRg 2018 - Kombi | G44: 14 | H44: 4248 | I44: 7195 | J44: 4695 | K44: DG-400 17m | L44: AC | M44: M
A45: 43 | B45: Pavel Liska | C45: 1965 | D45: Roudnice | E45: CZ/C2 | F45: PMRg 2018 - Klub | G45: 29 | H45: 3725 | I45: 6509 | J45: 4606 | K45: ASW-19B | L45: RCE | M45: M
A46: 44 | B46: Tereza Koubkova | C46: 1999 | D46: Letňany | E46: CZ/C1 | F46: PMRg 2018 - Klub | G46: 30 | H46: 3668 | I46: 6509 | J46: 4459 | K46: Std. Cirrus | L46: WY | M46: F | N46: Junior v roce 2020
A47: 45 | B47: Karel Policky | C47: 1950 | D47: Kolín | E47: CZ/C1 | F47: PMRg 2018 - Klub | G47: 31 | H47: 3427 | I47: 6509 | J47: 4114 | K47: VSO-10 | L47: 47 | M47: M
A48: 46 | B48: Petr Frycek | C48: 1960 | D48: Most | E48: CZ/C2 | F48: PMRg 2018 - Kombi | G48: 15 | H48: 3737 | I48: 7195 | J48: 4011 | K48: Nimbus 3 (25,5m,700kg)(voda) | L48: F | M48: M
A49: 47 | B49: Ondrej Dvorak 98 | C49: 1998 | D49: Mladá Boleslav | E49: CZ/C1 | F49: PMRg 2018 - Klub | G49: 32 | H49: 3377 | I49: 6509 | J49: 3975 | K49: ASW-15B | L49: MB | M49: M | N49: Junior v roce 2020
A50: 48 | B50: Pavel Sulc | C50: 1976 | D50: Hodkovice | E50: CZ/C2 | F50: PMRg 2018 - Klub | G50: 33 | H50: 3096 | I50: 6509 | J50: 3587 | K50: Std. Cirrus | L50: AC | M50: M
A51: 49 | B51: Milada Moudra | C51: 1991 | D51: Hodkovice | E51: CZ/C2 | F51: PMRg 2018 - Klub | G51: 34 | H51: 2540 | I51: 6509 | J51: 2903 | K51: ASW-19B | L51: XP | M51: F
A52: 50 | B52: Antonin Kutalek | C52: 1943 | D52: Zábřeh | E52: CZ/M | F52: PMRg 2018 - Kombi | G52: 16 | H52: 2610 | I52: 7195 | J52: 2727 | K52: Mini-Nimbus c (voda) | L52: GL | M52: M
A53: 51 | B53: Leos Strnadek | C53: 1983 | D53: Hodkovice | E53: CZ/C2 | F53: PMRg 2018 - Klub | G53: 35 | H53: 2113 | I53: 6509 | J53: 2358 | K53: ASW-19B | L53: XZ | M53: M
A54: 52 | B54: Olga Mokosova | C54: 1970 | D54: Jihlava | E54: CZ/M | F54: PMRg 2018 - Kombi | G54: 17 | H54: 2309 | I54: 7195 | J54: 2246 | K54: LS 6c 18m+W (voda) | L54: MM | M54: F
A55: 53 | B55: Petr Lonsky | C55: 1965 | D55: Toužim | E55: CZ/C1 | F55: PMRg 2018 - Klub | G55: 36 | H55: 638 | I55: 6509 | J55: 686 | K55: Cirrus VTC | L55: JP | M55: M
A58: Schváleno Plachtařskou komisí AeČR dne 4.11.2018 ve Vysokém Mýtě

Sheet KB PMRg 2019
A1: PMRg 2019 - Vysoké Mýto - Korigované body
A2: Pořadí v KB | B2: Jméno | C2: Rok narození | D2: Aeroklub | E2: Region | F2: Soutěž | G2: Pořadí ve třídě | H2: Body ve třídě | I2: Max. B ve třídě | J2: Bi | K2: Typ | L2: CN | M2: M/F | N2: Junior
A3: =RANK(J3,J:J) -> 1 | B3: Karel Novak | C3: =VLOOKUP(B3,Pilot,2,0) -> 1993 | D3: =VLOOKUP(B3,Pilot,3,0) -> Mladá Boleslav | E3: =VLOOKUP(B3,Pilot,4,0) -> CZ/C1 | F3: PMRg 2019 - Klub | G3: 1 | H3: 7016 | I3: 7016 | J3: 10000 | K3: Std. Cirrus | L3: DI | M3: =VLOOKUP(B3,Pilot,5,0) -> M | N3: =IF(ISERROR(VLOOKUP(B3,Pilot,6,0)),"Není v databázi",VLOOKUP(B3,Pilot,6,0)) -> 
A4: 1 | B4: Jan Louda | C4: 1986 | D4: Mladá Boleslav | E4: CZ/C1 | F4: PMRg 2019 - Kombi | G4: 1 | H4: 6191 | I4: 6191 | J4: 10000 | K4: Ventus a 15m WL 500kg (voda) | L4: FW | M4: M
A5: 3 | B5: Karel Mares | C5: 1974 | D5: Slaný | E5: CZ/C1 | F5: PMRg 2019 - Kombi | G5: 2 | H5: 6041 | I5: 6191 | J5: 9580 | K5: Ventus b 16.6m WL | L5: 7F | M5: M
A6: 4 | B6: Michal Lesinger | C6: 1966 | D6: Moravská Třebová | E6: CZ/M | F6: PMRg 2019 - Klub | G6: 2 | H6: 6536 | I6: 7016 | J6: 9391 | K6: ASW-19B | L6: LL | M6: M
A7: 5 | B7: Vojtech Novotny | C7: 1992 | D7: Kralupy | E7: CZ/C1 | F7: PMRg 2019 - Klub | G7: 3 | H7: 6445 | I7: 7016 | J7: 9169 | K7: LS 1f | L7: EF | M7: M
A8: 6 | B8: Hana Treslova | C8: 1991 | D8: Raná | E8: CZ/C2 | F8: PMRg 2019 - Kombi | G8: 3 | H8: 5887 | I8: 6191 | J8: 9156 | K8: LS 8 15m (voda) | L8: AU | M8: F
A9: 7 | B9: Jiri Stepanek | C9: 1956 | D9: Moravská Třebová | E9: CZ/M | F9: PMRg 2019 - Klub | G9: 4 | H9: 6307 | I9: 7016 | J9: 8901 | K9: ASW-15B | L9: LE | M9: M
A10: 8 | B10: Zdenek Boruvka 54 | C10: 1954 | D10: Jičín | E10: CZ/C2 | F10: PMRg 2019 - Kombi | G10: 4 | H10: 5813 | I10: 6191 | J10: 8823 | K10: LS 8 15m (voda) | L10: ZB | M10: M
A11: 9 | B11: Jan Zahradka | C11: 1981 | D11: Hodkovice | E11: CZ/C2 | F11: PMRg 2019 - Klub | G11: 5 | H11: 6168 | I11: 7016 | J11: 8632 | K11: Std. Cirrus | L11: AR | M11: M
A12: 10 | B12: Dana Novakova | C12: 1965 | D12: Mladá Boleslav | E12: CZ/C1 | F12: PMRg 2019 - Kombi | G12: 5 | H12: 5693 | I12: 6191 | J12: 8437 | K12: LS 8 15m (voda) | L12: FX | M12: F
A13: 11 | B13: Zdenek Boruvka 86 | C13: 1986 | D13: Jičín | E13: CZ/C2 | F13: PMRg 2019 - Klub | G13: 6 | H13: 6082 | I13: 7016 | J13: 8416 | K13: Std. Cirrus | L13: BJ | M13: M
A14: 12 | B14: Michal Krupicka | C14: 1975 | D14: Most | E14: CZ/C2 | F14: PMRg 2019 - Klub | G14: 7 | H14: 5981 | I14: 7016 | J14: 8185 | K14: Std. Cirrus | L14: K | M14: M
A15: 13 | B15: Jan Vavrin | C15: 1987 | D15: Vysoké Mýto | E15: CZ/C2 | F15: PMRg 2019 - Klub | G15: 8 | H15: 5958 | I15: 7016 | J15: 8031 | K15: ASW-15B | L15: IG | M15: M
A16: 14 | B16: Miroslav Koci | C16: 1961 | D16: Žamberk | E16: CZ/C2 | F16: PMRg 2019 - Kombi | G16: 6 | H16: 5213 | I16: 6191 | J16: 7644 | K16: Ventus 2cxm 18m 565kg (voda) | L16: E8 | M16: M
A17: 15 | B17: Tereza Koubkova | C17: 1999 | D17: Letňany | E17: CZ/C1 | F17: PMRg 2019 - Klub | G17: 9 | H17: 5495 | I17: 7016 | J17: 7439 | K17: Std. Cirrus | L17: WY | M17: F | N17: Junior v roce 2020
A18: 16 | B18: Vaclav Marel | C18: 1974 | D18: Jaroměř | E18: CZ/C2 | F18: PMRg 2019 - Klub | G18: 10 | H18: 5399 | I18: 7016 | J18: 7213 | K18: Std. Cirrus | L18: IF | M18: M
A19: 17 | B19: Jana Treslova | C19: 1963 | D19: Raná | E19: CZ/C2 | F19: PMRg 2019 - Kombi | G19: 7 | H19: 5029 | I19: 6191 | J19: 7186 | K19: JS-3, TJ 18m (voda) | L19: ZE | M19: F
A20: 18 | B20: Jindrich Hruska | C20: 1986 | D20: Soběslav | E20: CZ/C1 | F20: PMRg 2019 - Klub | G20: 11 | H20: 5336 | I20: 7016 | J20: 7019 | K20: 303 Mosquito | L20: UFO | M20: M
A21: 19 | B21: Jan Vozeh | C21: 1995 | D21: Rakovník | E21: CZ/C1 | F21: PMRg 2019 - Klub | G21: 12 | H21: 5287 | I21: 7016 | J21: 6840 | K21: Std. Cirrus | L21: OG | M21: M | N21: Junior v roce 2020
A22: 20 | B22: Jiri Slemr | C22: 1979 | D22: Vysoké Mýto | E22: CZ/C2 | F22: PMRg 2019 - Kombi | G22: 8 | H22: 4840 | I22: 6191 | J22: 6722 | K22: Discus b (voda) | L22: 65 | M22: M
A23: 21 | B23: Lukas Plocek | C23: 1990 | D23: Mladá Boleslav | E23: CZ/C1 | F23: PMRg 2019 - Klub | G23: 13 | H23: 5284 | I23: 7016 | J23: 6707 | K23: ASW-19B | L23: AH | M23: M
A24: 22 | B24: Pavlina Horackova | C24: 1965 | D24: Šumperk | E24: CZ/M | F24: PMRg 2019 - Klub | G24: 14 | H24: 5256 | I24: 7016 | J24: 6548 | K24: SZD-48 Jantar Std. 2(3) | L24: SU | M24: F
A25: 23 | B25: Lenka Kuthanova | C25: 1960 | D25: Tábor | E25: CZ/C1 | F25: PMRg 2019 - Kombi | G25: 9 | H25: 4767 | I25: 6191 | J25: 6390 | K25: JS-1C (TJ) 18m EVO | L25: LX | M25: F
A26: 24 | B26: Jan Smaha | C26: 1958 | D26: Česká Lípa | E26: CZ/C2 | F26: PMRg 2019 - Klub | G26: 15 | H26: 4916 | I26: 7016 | J26: 6079 | K26: ASW-15B | L26: CW | M26: M
A27: 25 | B27: Martin Stepanek | C27: 1987 | D27: Moravská Třebová | E27: CZ/M | F27: PMRg 2019 - Klub | G27: 16 | H27: 4840 | I27: 7016 | J27: 5872 | K27: ASW-15B | L27: ZP | M27: M
A28: 26 | B28: Barbora Kubickova | C28: 1993 | D28: Medlánky | E28: CZ/M | F28: PMRg 2019 - Kombi | G28: 10 | H28: 4477 | I28: 6191 | J28: 5812 | K28: LAK 17 A 18m WL | L28: BI | M28: F
A29: 27 | B29: Lukas Maly | C29: 1998 | D29: Vysoké Mýto | E29: CZ/C2 | F29: PMRg 2019 - Klub | G29: 17 | H29: 4697 | I29: 7016 | J29: 5599 | K29: ASW-15B | L29: AM | M29: M | N29: Junior v roce 2020
A30: 28 | B30: Ladislav Jozsa | C30: 1981 | D30: Medlánky | E30: CZ/M | F30: PMRg 2019 - Klub | G30: 18 | H30: 4541 | I30: 7016 | J30: 5313 | K30: Std. Cirrus | L30: LJ | M30: M
A31: 29 | B31: Vaclav Zak | C31: 1962 | D31: GAC Benešov | E31: CZ/C1 | F31: PMRg 2019 - Klub | G31: 19 | H31: 4256 | I31: 7016 | J31: 4898 | K31: Std. Cirrus | L31: TS | M31: M
A32: 30 | B32: Petr Frycek | C32: 1960 | D32: Most | E32: CZ/C2 | F32: PMRg 2019 - Kombi | G32: 11 | H32: 3755 | I32: 6191 | J32: 4746 | K32: Nimbus 3 (25,5m, 700kg) (voda) | L32: F | M32: M
A33: 31 | B33: Karel Knotek | C33: 1961 | D33: Soběslav | E33: CZ/C1 | F33: PMRg 2019 - Klub | G33: 20 | H33: 4021 | I33: 7016 | J33: 4534 | K33: ASW-19 | L33: SO | M33: M
A34: 32 | B34: Slavomir Piskaty 58 | C34: 1958 | D34: Kunovice | E34: CZ/M | F34: PMRg 2019 - Kombi | G34: 12 | H34: 3547 | I34: 6191 | J34: 4260 | K34: Discus b (voda) WL | L34: KAL | M34: M
A35: 33 | B35: Josef Hlusek | C35: 1993 | D35: Kunovice | E35: CZ/M | F35: PMRg 2019 - Klub | G35: 21 | H35: 3831 | I35: 7016 | J35: 4214 | K35: Std. Cirrus G | L35: WO | M35: M
A36: 34 | B36: Jan Florian | C36: 1992 | D36: Zbraslavice | E36: CZ/C1 | F36: PMRg 2019 - Klub | G36: 22 | H36: 3824 | I36: 7016 | J36: 4076 | K36: Std. Cirrus | L36: C1 | M36: M
A37: 35 | B37: Ladislav Prokes | C37: 1954 | D37: Vrchlabí | E37: CZ/C2 | F37: PMRg 2019 - Kombi | G37: 13 | H37: 3314 | I37: 6191 | J37: 3747 | K37: Discus b (voda) | L37: VR | M37: M
A38: 36 | B38: Petr Velek | C38: 1975 | D38: GAC Benešov | E38: CZ/C1 | F38: PMRg 2019 - Klub | G38: 23 | H38: 3398 | I38: 7016 | J38: 3521 | K38: LS 1c | L38: I | M38: M
A39: 37 | B39: Kristina Santruckova | C39: 1996 | D39: Podhořany | E39: CZ/C2 | F39: PMRg 2019 - Klub | G39: 24 | H39: 2941 | I39: 7016 | J39: 2934 | K39: ASW-15B WL | L39: KS | M39: F | N39: Junior v roce 2020
A42: Schváleno Plachtařskou komisí AeČR dne 10.11.2019 ve Vysokém Mýtě

Sheet N PMČR 2020
B1: Nominace na PMČR 2020 | H1: Kontrola: | I1: Počet | J1: Počet | K1: Nominace | L1: Počet | M1: Nominace | N1: M: | O1: F: | P1: M+F:
A2: No | B2: Jméno | C2: Aeroklub | D2: Rok narození | E2: M/F | F2: Junior | G2: No | I2: PMČR | J2: PMRg | K2: PMRg | L2: PMČRj | M2: PMČRj | N2: =COUNTIF(E:E,"M") -> 73 | O2: =COUNTIF(E:E,"F") -> 14 | P2: =N2+O2 -> 87 | Q2: S náhradníky
A3: 6.6.5. | B3: Nominace na PMČR - všeobecně (dle SŘ ZM8) | M3: Celkem řádně nominováno: | N3: =N2-COUNTIF(E66:E70,"M")-COUNTIF(E111:E119,"M") -> 69 | O3: =O2-COUNTIF(E66:E70,"F")-COUNTIF(E111:E119,"F") -> 14 | P3: =N3+O3 -> 83 | Q3: Bez náhradníků
B4: Na PMČR nominuje PK minimálně 80 pilotů/pilotek a příslušný počet náhradníků pro stanovená nominační kritéria.
B5: PMČR se mohou zúčastnit pouze soutěžící nominovaní dle jednotlivých bodů odstavců 6.6.6., 6.6.7. a 6.6.8.
B6: Pořadatel soutěže nemůže doplnit soutěžící na základě jiných kritérií.
A7: 6.6.6. | B7: Řádná nominace - Na PMČR jsou nominováni
A8: 6.6.6.1. | B8: všichni členové reprezentačního výběru (RV) ČR stanoveného pro daný soutěžní ročník (bez náhradníků)
A9: 1 | B9: Pavel Louzecky | C9: =VLOOKUP(B9,Pilot!A:C,3,0) -> Přibyslav | D9: =VLOOKUP(B9,Pilot!A:B,2,0) -> 1957 | E9: =VLOOKUP(B9,Pilot!A:E,5,0) -> M | F9: =VLOOKUP(B9,Pilot!A:F,6,0) ->  | G9: =A9 -> 1 | I9: =COUNTIF(B:B,B9) -> 1 | J9: =IF(COUNTIF('N PMRg 2020'!B:B,B9)=0,"-",COUNTIF('N PMRg 2020'!B:B,B9)) -> - | K9: =IF(ISERROR(VLOOKUP(B9,'N PMRg 2020'!B:G,6,0)),"-",VLOOKUP(B9,'N PMRg 2020'!B:G,6,0)) -> - | L9: =IF(COUNTIF('N PMČRj 2020'!B:B,B9)=0,"-",COUNTIF('N PMČRj 2020'!B:B,B9)) -> - | M9: =IF(ISERROR(VLOOKUP(B9,'N PMČRj 2020'!B:G,6,0)),"-",VLOOKUP(B9,'N PMČRj 2020'!B:G,6,0)) -> -
A10: =A9+1 -> 2 | B10: Miloslav Cink | C10: =VLOOKUP(B10,Pilot!A:C,3,0) -> Letkov | D10: =VLOOKUP(B10,Pilot!A:B,2,0) -> 1987 | E10: =VLOOKUP(B10,Pilot!A:E,5,0) -> M | F10: =VLOOKUP(B10,Pilot!A:F,6,0) ->  | G10: =A10 -> 2 | I10: 1 | J10: =IF(COUNTIF('N PMRg 2020'!B:B,B10)=0,"-",COUNTIF('N PMRg 2020'!B:B,B10)) -> - | K10: =IF(ISERROR(VLOOKUP(B10,'N PMRg 2020'!B:G,6,0)),"-",VLOOKUP(B10,'N PMRg 2020'!B:G,6,0)) -> - | L10: =IF(COUNTIF('N PMČRj 2020'!B:B,B10)=0,"-",COUNTIF('N PMČRj 2020'!B:B,B10)) -> - | M10: =IF(ISERROR(VLOOKUP(B10,'N PMČRj 2020'!B:G,6,0)),"-",VLOOKUP(B10,'N PMČRj 2020'!B:G,6,0)) -> -
A11: =A10+1 -> 3 | B11: Jaroslav Tomana | C11: =VLOOKUP(B11,Pilot!A:C,3,0) -> Zbraslavice | D11: =VLOOKUP(B11,Pilot!A:B,2,0) -> 1975 | E11: =VLOOKUP(B11,Pilot!A:E,5,0) -> M | F11: =VLOOKUP(B11,Pilot!A:F,6,0) ->  | G11: 3 | I11: 1 | J11: =IF(COUNTIF('N PMRg 2020'!B:B,B11)=0,"-",COUNTIF('N PMRg 2020'!B:B,B11)) -> - | K11: =IF(ISERROR(VLOOKUP(B11,'N PMRg 2020'!B:G,6,0)),"-",VLOOKUP(B11,'N PMRg 2020'!B:G,6,0)) -> - | L11: =IF(COUNTIF('N PMČRj 2020'!B:B,B11)=0,"-",COUNTIF('N PMČRj 2020'!B:B,B11)) -> - | M11: =IF(ISERROR(VLOOKUP(B11,'N PMČRj 2020'!B:G,6,0)),"-",VLOOKUP(B11,'N PMČRj 2020'!B:G,6,0)) -> -
A12: 4 | B12: Petr Tichy | C12: =VLOOKUP(B12,Pilot!A:C,3,0) -> Zbraslavice | D12: =VLOOKUP(B12,Pilot!A:B,2,0) -> 1973 | E12: =VLOOKUP(B12,Pilot!A:E,5,0) -> M | F12: =VLOOKUP(B12,Pilot!A:F,6,0) ->  | G12: 4 | I12: 1 | J12: =IF(COUNTIF('N PMRg 2020'!B:B,B12)=0,"-",COUNTIF('N PMRg 2020'!B:B,B12)) -> - | K12: =IF(ISERROR(VLOOKUP(B12,'N PMRg 2020'!B:G,6,0)),"-",VLOOKUP(B12,'N PMRg 2020'!B:G,6,0)) -> - | L12: =IF(COUNTIF('N PMČRj 2020'!B:B,B12)=0,"-",COUNTIF('N PMČRj 2020'!B:B,B12)) -> - | M12: =IF(ISERROR(VLOOKUP(B12,'N PMČRj 2020'!B:G,6,0)),"-",VLOOKUP(B12,'N PMČRj 2020'!B:G,6,0)) -> -
A13: 5 | B13: Ivan Novak | C13: =VLOOKUP(B13,Pilot!A:C,3,0) -> Mladá Boleslav | D13: =VLOOKUP(B13,Pilot!A:B,2,0) -> 1962 | E13: =VLOOKUP(B13,Pilot!A:E,5,0) -> M | F13: =VLOOKUP(B13,Pilot!A:F,6,0) ->  | G13: 5 | I13: 1 | J13: =IF(COUNTIF('N PMRg 2020'!B:B,B13)=0,"-",COUNTIF('N PMRg 2020'!B:B,B13)) -> - | K13: =IF(ISERROR(VLOOKUP(B13,'N PMRg 2020'!B:G,6,0)),"-",VLOOKUP(B13,'N PMRg 2020'!B:G,6,0)) -> - | L13: =IF(COUNTIF('N PMČRj 2020'!B:B,B13)=0,"-",COUNTIF('N PMČRj 2020'!B:B,B13)) -> - | M13: =IF(ISERROR(VLOOKUP(B13,'N PMČRj 2020'!B:G,6,0)),"-",VLOOKUP(B13,'N PMČRj 2020'!B:G,6,0)) -> -
A14: 6 | B14: Roman Mracek | C14: =VLOOKUP(B14,Pilot!A:C,3,0) -> Letkov | D14: =VLOOKUP(B14,Pilot!A:B,2,0) -> 1980 | E14: =VLOOKUP(B14,Pilot!A:E,5,0) -> M | F14: =VLOOKUP(B14,Pilot!A:F,6,0) ->  | G14: 6 | I14: 1 | J14: =IF(COUNTIF('N PMRg 2020'!B:B,B14)=0,"-",COUNTIF('N PMRg 2020'!B:B,B14)) -> - | K14: =IF(ISERROR(VLOOKUP(B14,'N PMRg 2020'!B:G,6,0)),"-",VLOOKUP(B14,'N PMRg 2020'!B:G,6,0)) -> - | L14: =IF(COUNTIF('N PMČRj 2020'!B:B,B14)=0,"-",COUNTIF('N PMČRj 2020'!B:B,B14)) -> - | M14: =IF(ISERROR(VLOOKUP(B14,'N PMČRj 2020'!B:G,6,0)),"-",VLOOKUP(B14,'N PMČRj 2020'!B:G,6,0)) -> -
A15: 7 | B15: Tomas Suchanek | C15: =VLOOKUP(B15,Pilot!A:C,3,0) -> GAC Benešov | D15: =VLOOKUP(B15,Pilot!A:B,2,0) -> 1964 | E15: =VLOOKUP(B15,Pilot!A:E,5,0) -> M | F15: =VLOOKUP(B15,Pilot!A:F,6,0) ->  | G15: 7 | I15: 1 | J15: =IF(COUNTIF('N PMRg 2020'!B:B,B15)=0,"-",COUNTIF('N PMRg 2020'!B:B,B15)) -> - | K15: =IF(ISERROR(VLOOKUP(B15,'N PMRg 2020'!B:G,6,0)),"-",VLOOKUP(B15,'N PMRg 2020'!B:G,6,0)) -> - | L15: =IF(COUNTIF('N PMČRj 2020'!B:B,B15)=0,"-",COUNTIF('N PMČRj 2020'!B:B,B15)) -> - | M15: =IF(ISERROR(VLOOKUP(B15,'N PMČRj 2020'!B:G,6,0)),"-",VLOOKUP(B15,'N PMČRj 2020'!B:G,6,0)) -> -
A16: 8 | B16: David Mach | C16: =VLOOKUP(B16,Pilot!A:C,3,0) -> Hronov | D16: =VLOOKUP(B16,Pilot!A:B,2,0) -> 1994 | E16: =VLOOKUP(B16,Pilot!A:E,5,0) -> M | F16: =VLOOKUP(B16,Pilot!A:F,6,0) ->  | G16: 8 | I16: 1 | J16: =IF(COUNTIF('N PMRg 2020'!B:B,B16)=0,"-",COUNTIF('N PMRg 2020'!B:B,B16)) -> - | K16: =IF(ISERROR(VLOOKUP(B16,'N PMRg 2020'!B:G,6,0)),"-",VLOOKUP(B16,'N PMRg 2020'!B:G,6,0)) -> - | L16: =IF(COUNTIF('N PMČRj 2020'!B:B,B16)=0,"-",COUNTIF('N PMČRj 2020'!B:B,B16)) -> - | M16: =IF(ISERROR(VLOOKUP(B16,'N PMČRj 2020'!B:G,6,0)),"-",VLOOKUP(B16,'N PMČRj 2020'!B:G,6,0)) -> -
A17: 9 | B17: Radek Krejcirik | C17: =VLOOKUP(B17,Pilot!A:C,3,0) -> Hranice | D17: =VLOOKUP(B17,Pilot!A:B,2,0) -> 1991 | E17: =VLOOKUP(B17,Pilot!A:E,5,0) -> M | F17: =VLOOKUP(B17,Pilot!A:F,6,0) ->  | G17: 9 | I17: 1 | J17: =IF(COUNTIF('N PMRg 2020'!B:B,B17)=0,"-",COUNTIF('N PMRg 2020'!B:B,B17)) -> - | K17: =IF(ISERROR(VLOOKUP(B17,'N PMRg 2020'!B:G,6,0)),"-",VLOOKUP(B17,'N PMRg 2020'!B:G,6,0)) -> - | L17: =IF(COUNTIF('N PMČRj 2020'!B:B,B17)=0,"-",COUNTIF('N PMČRj 2020'!B:B,B17)) -> - | M17: =IF(ISERROR(VLOOKUP(B17,'N PMČRj 2020'!B:G,6,0)),"-",VLOOKUP(B17,'N PMČRj 2020'!B:G,6,0)) -> -
A18: 10 | B18: Karel Novak | C18: =VLOOKUP(B18,Pilot!A:C,3,0) -> Mladá Boleslav | D18: =VLOOKUP(B18,Pilot!A:B,2,0) -> 1993 | E18: =VLOOKUP(B18,Pilot!A:E,5,0) -> M | F18: =VLOOKUP(B18,Pilot!A:F,6,0) ->  | G18: =A18 -> 10 | I18: 1 | J18: =IF(COUNTIF('N PMRg 2020'!B:B,B18)=0,"-",COUNTIF('N PMRg 2020'!B:B,B18)) -> - | K18: =IF(ISERROR(VLOOKUP(B18,'N PMRg 2020'!B:G,6,0)),"-",VLOOKUP(B18,'N PMRg 2020'!B:G,6,0)) -> - | L18: =IF(COUNTIF('N PMČRj 2020'!B:B,B18)=0,"-",COUNTIF('N PMČRj 2020'!B:B,B18)) -> - | M18: =IF(ISERROR(VLOOKUP(B18,'N PMČRj 2020'!B:G,6,0)),"-",VLOOKUP(B18,'N PMČRj 2020'!B:G,6,0)) -> -
A19: 11 | B19: Jan Louda | C19: =VLOOKUP(B19,Pilot!A:C,3,0) -> Mladá Boleslav | D19: =VLOOKUP(B19,Pilot!A:B,2,0) -> 1986 | E19: =VLOOKUP(B19,Pilot!A:E,5,0) -> M | F19: =VLOOKUP(B19,Pilot!A:F,6,0) ->  | G19: 11 | I19: 1 | J19: =IF(COUNTIF('N PMRg 2020'!B:B,B19)=0,"-",COUNTIF('N PMRg 2020'!B:B,B19)) -> - | K19: =IF(ISERROR(VLOOKUP(B19,'N PMRg 2020'!B:G,6,0)),"-",VLOOKUP(B19,'N PMRg 2020'!B:G,6,0)) -> - | L19: =IF(COUNTIF('N PMČRj 2020'!B:B,B19)=0,"-",COUNTIF('N PMČRj 2020'!B:B,B19)) -> - | M19: =IF(ISERROR(VLOOKUP(B19,'N PMČRj 2020'!B:G,6,0)),"-",VLOOKUP(B19,'N PMČRj 2020'!B:G,6,0)) -> -
A20: 12 | B20: Michal Lesinger | C20: =VLOOKUP(B20,Pilot!A:C,3,0) -> Moravská Třebová | D20: =VLOOKUP(B20,Pilot!A:B,2,0) -> 1966 | E20: =VLOOKUP(B20,Pilot!A:E,5,0) -> M | F20: =VLOOKUP(B20,Pilot!A:F,6,0) ->  | G20: 12 | I20: 1 | J20: =IF(COUNTIF('N PMRg 2020'!B:B,B20)=0,"-",COUNTIF('N PMRg 2020'!B:B,B20)) -> - | K20: =IF(ISERROR(VLOOKUP(B20,'N PMRg 2020'!B:G,6,0)),"-",VLOOKUP(B20,'N PMRg 2020'!B:G,6,0)) -> - | L20: =IF(COUNTIF('N PMČRj 2020'!B:B,B20)=0,"-",COUNTIF('N PMČRj 2020'!B:B,B20)) -> - | M20: =IF(ISERROR(VLOOKUP(B20,'N PMČRj 2020'!B:G,6,0)),"-",VLOOKUP(B20,'N PMČRj 2020'!B:G,6,0)) -> -
A21: 13 | B21: Karel Mares | C21: =VLOOKUP(B21,Pilot!A:C,3,0) -> Slaný | D21: =VLOOKUP(B21,Pilot!A:B,2,0) -> 1974 | E21: =VLOOKUP(B21,Pilot!A:E,5,0) -> M | F21: =VLOOKUP(B21,Pilot!A:F,6,0) ->  | G21: =A21 -> 13 | I21: 1 | J21: =IF(COUNTIF('N PMRg 2020'!B:B,B21)=0,"-",COUNTIF('N PMRg 2020'!B:B,B21)) -> - | K21: =IF(ISERROR(VLOOKUP(B21,'N PMRg 2020'!B:G,6,0)),"-",VLOOKUP(B21,'N PMRg 2020'!B:G,6,0)) -> - | L21: =IF(COUNTIF('N PMČRj 2020'!B:B,B21)=0,"-",COUNTIF('N PMČRj 2020'!B:B,B21)) -> - | M21: =IF(ISERROR(VLOOKUP(B21,'N PMČRj 2020'!B:G,6,0)),"-",VLOOKUP(B21,'N PMČRj 2020'!B:G,6,0)) -> -
A22: 14 | B22: Petr Koutny | C22: =VLOOKUP(B22,Pilot!A:C,3,0) -> Křižanov | D22: =VLOOKUP(B22,Pilot!A:B,2,0) -> 1971 | E22: =VLOOKUP(B22,Pilot!A:E,5,0) -> M | F22: =VLOOKUP(B22,Pilot!A:F,6,0) ->  | G22: 14 | I22: 1 | J22: =IF(COUNTIF('N PMRg 2020'!B:B,B22)=0,"-",COUNTIF('N PMRg 2020'!B:B,B22)) -> - | K22: =IF(ISERROR(VLOOKUP(B22,'N PMRg 2020'!B:G,6,0)),"-",VLOOKUP(B22,'N PMRg 2020'!B:G,6,0)) -> - | L22: =IF(COUNTIF('N PMČRj 2020'!B:B,B22)=0,"-",COUNTIF('N PMČRj 2020'!B:B,B22)) -> - | M22: =IF(ISERROR(VLOOKUP(B22,'N PMČRj 2020'!B:G,6,0)),"-",VLOOKUP(B22,'N PMČRj 2020'!B:G,6,0)) -> -
A23: 15 | B23: Alena Netusilova | C23: =VLOOKUP(B23,Pilot!A:C,3,0) -> Zbraslavice | D23: =VLOOKUP(B23,Pilot!A:B,2,0) -> 1970 | E23: =VLOOKUP(B23,Pilot!A:E,5,0) -> F | F23: =VLOOKUP(B23,Pilot!A:F,6,0) ->  | G23: 15 | I23: 1 | J23: =IF(COUNTIF('N PMRg 2020'!B:B,B23)=0,"-",COUNTIF('N PMRg 2020'!B:B,B23)) -> - | K23: =IF(ISERROR(VLOOKUP(B23,'N PMRg 2020'!B:G,6,0)),"-",VLOOKUP(B23,'N PMRg 2020'!B:G,6,0)) -> - | L23: =IF(COUNTIF('N PMČRj 2020'!B:B,B23)=0,"-",COUNTIF('N PMČRj 2020'!B:B,B23)) -> - | M23: =IF(ISERROR(VLOOKUP(B23,'N PMČRj 2020'!B:G,6,0)),"-",VLOOKUP(B23,'N PMČRj 2020'!B:G,6,0)) -> -
A24: 16 | B24: Ondrej Dupal | C24: =VLOOKUP(B24,Pilot!A:C,3,0) -> GAC Benešov | D24: =VLOOKUP(B24,Pilot!A:B,2,0) -> 1966 | E24: =VLOOKUP(B24,Pilot!A:E,5,0) -> M | F24: =VLOOKUP(B24,Pilot!A:F,6,0) ->  | G24: 16 | I24: 1 | J24: =IF(COUNTIF('N PMRg 2020'!B:B,B24)=0,"-",COUNTIF('N PMRg 2020'!B:B,B24)) -> - | K24: =IF(ISERROR(VLOOKUP(B24,'N PMRg 2020'!B:G,6,0)),"-",VLOOKUP(B24,'N PMRg 2020'!B:G,6,0)) -> - | L24: =IF(COUNTIF('N PMČRj 2020'!B:B,B24)=0,"-",COUNTIF('N PMČRj 2020'!B:B,B24)) -> - | M24: =IF(ISERROR(VLOOKUP(B24,'N PMČRj 2020'!B:G,6,0)),"-",VLOOKUP(B24,'N PMČRj 2020'!B:G,6,0)) -> -
A25: 17 | B25: Danes Grula | C25: =VLOOKUP(B25,Pilot!A:C,3,0) -> Medlánky | D25: =VLOOKUP(B25,Pilot!A:B,2,0) -> 1961 | E25: =VLOOKUP(B25,Pilot!A:E,5,0) -> M | F25: =VLOOKUP(B25,Pilot!A:F,6,0) ->  | G25: 17 | I25: 1 | J25: =IF(COUNTIF('N PMRg 2020'!B:B,B25)=0,"-",COUNTIF('N PMRg 2020'!B:B,B25)) -> - | K25: =IF(ISERROR(VLOOKUP(B25,'N PMRg 2020'!B:G,6,0)),"-",VLOOKUP(B25,'N PMRg 2020'!B:G,6,0)) -> - | L25: =IF(COUNTIF('N PMČRj 2020'!B:B,B25)=0,"-",COUNTIF('N PMČRj 2020'!B:B,B25)) -> - | M25: =IF(ISERROR(VLOOKUP(B25,'N PMČRj 2020'!B:G,6,0)),"-",VLOOKUP(B25,'N PMČRj 2020'!B:G,6,0)) -> -
A26: 18 | B26: Marek Pechanec | C26: =VLOOKUP(B26,Pilot!A:C,3,0) -> Luhačovice | D26: =VLOOKUP(B26,Pilot!A:B,2,0) -> 1970 | E26: =VLOOKUP(B26,Pilot!A:E,5,0) -> M | F26: =VLOOKUP(B26,Pilot!A:F,6,0) ->  | G26: 18 | I26: 1 | J26: =IF(COUNTIF('N PMRg 2020'!B:B,B26)=0,"-",COUNTIF('N PMRg 2020'!B:B,B26)) -> - | K26: =IF(ISERROR(VLOOKUP(B26,'N PMRg 2020'!B:G,6,0)),"-",VLOOKUP(B26,'N PMRg 2020'!B:G,6,0)) -> - | L26: =IF(COUNTIF('N PMČRj 2020'!B:B,B26)=0,"-",COUNTIF('N PMČRj 2020'!B:B,B26)) -> - | M26: =IF(ISERROR(VLOOKUP(B26,'N PMČRj 2020'!B:G,6,0)),"-",VLOOKUP(B26,'N PMČRj 2020'!B:G,6,0)) -> -
A27: 19 | B27: Petr Krejcirik | C27: =VLOOKUP(B27,Pilot!A:C,3,0) -> Hranice | D27: =VLOOKUP(B27,Pilot!A:B,2,0) -> 1960 | E27: =VLOOKUP(B27,Pilot!A:E,5,0) -> M | F27: =VLOOKUP(B27,Pilot!A:F,6,0) ->  | G27: 19 | I27: 1 | J27: =IF(COUNTIF('N PMRg 2020'!B:B,B27)=0,"-",COUNTIF('N PMRg 2020'!B:B,B27)) -> - | K27: =IF(ISERROR(VLOOKUP(B27,'N PMRg 2020'!B:G,6,0)),"-",VLOOKUP(B27,'N PMRg 2020'!B:G,6,0)) -> - | L27: =IF(COUNTIF('N PMČRj 2020'!B:B,B27)=0,"-",COUNTIF('N PMČRj 2020'!B:B,B27)) -> - | M27: =IF(ISERROR(VLOOKUP(B27,'N PMČRj 2020'!B:G,6,0)),"-",VLOOKUP(B27,'N PMČRj 2020'!B:G,6,0)) -> -
A28: 20 | B28: Daniel Ryba | C28: =VLOOKUP(B28,Pilot!A:C,3,0) -> Dvůr Králové | D28: =VLOOKUP(B28,Pilot!A:B,2,0) -> 1994 | E28: =VLOOKUP(B28,Pilot!A:E,5,0) -> M | F28: =VLOOKUP(B28,Pilot!A:F,6,0) ->  | G28: 20 | I28: 1 | J28: =IF(COUNTIF('N PMRg 2020'!B:B,B28)=0,"-",COUNTIF('N PMRg 2020'!B:B,B28)) -> - | K28: =IF(ISERROR(VLOOKUP(B28,'N PMRg 2020'!B:G,6,0)),"-",VLOOKUP(B28,'N PMRg 2020'!B:G,6,0)) -> - | L28: =IF(COUNTIF('N PMČRj 2020'!B:B,B28)=0,"-",COUNTIF('N PMČRj 2020'!B:B,B28)) -> - | M28: =IF(ISERROR(VLOOKUP(B28,'N PMČRj 2020'!B:G,6,0)),"-",VLOOKUP(B28,'N PMČRj 2020'!B:G,6,0)) -> -
A29: 21 | B29: Hana Treslova | C29: =VLOOKUP(B29,Pilot!A:C,3,0) -> Raná | D29: =VLOOKUP(B29,Pilot!A:B,2,0) -> 1991 | E29: =VLOOKUP(B29,Pilot!A:E,5,0) -> F | F29: =VLOOKUP(B29,Pilot!A:F,6,0) ->  | G29: 21 | I29: 1 | J29: =IF(COUNTIF('N PMRg 2020'!B:B,B29)=0,"-",COUNTIF('N PMRg 2020'!B:B,B29)) -> - | K29: =IF(ISERROR(VLOOKUP(B29,'N PMRg 2020'!B:G,6,0)),"-",VLOOKUP(B29,'N PMRg 2020'!B:G,6,0)) -> - | L29: =IF(COUNTIF('N PMČRj 2020'!B:B,B29)=0,"-",COUNTIF('N PMČRj 2020'!B:B,B29)) -> - | M29: =IF(ISERROR(VLOOKUP(B29,'N PMČRj 2020'!B:G,6,0)),"-",VLOOKUP(B29,'N PMČRj 2020'!B:G,6,0)) -> -
A30: 22 | B30: Jana Veprekova | C30: =VLOOKUP(B30,Pilot!A:C,3,0) -> Dvůr Králové | D30: =VLOOKUP(B30,Pilot!A:B,2,0) -> 1961 | E30: =VLOOKUP(B30,Pilot!A:E,5,0) -> F | F30: =VLOOKUP(B30,Pilot!A:F,6,0) ->  | G30: 22 | I30: 1 | J30: =IF(COUNTIF('N PMRg 2020'!B:B,B30)=0,"-",COUNTIF('N PMRg 2020'!B:B,B30)) -> - | K30: =IF(ISERROR(VLOOKUP(B30,'N PMRg 2020'!B:G,6,0)),"-",VLOOKUP(B30,'N PMRg 2020'!B:G,6,0)) -> - | L30: =IF(COUNTIF('N PMČRj 2020'!B:B,B30)=0,"-",COUNTIF('N PMČRj 2020'!B:B,B30)) -> - | M30: =IF(ISERROR(VLOOKUP(B30,'N PMČRj 2020'!B:G,6,0)),"-",VLOOKUP(B30,'N PMČRj 2020'!B:G,6,0)) -> -
A31: 23 | B31: Jan Viskot | C31: =VLOOKUP(B31,Pilot!A:C,3,0) -> Břeclav | D31: =VLOOKUP(B31,Pilot!A:B,2,0) -> 1995 | E31: =VLOOKUP(B31,Pilot!A:E,5,0) -> M | F31: =VLOOKUP(B31,Pilot!A:F,6,0) -> Junior v roce 2020 | G31: 23 | I31: 1 | J31: =IF(COUNTIF('N PMRg 2020'!B:B,B31)=0,"-",COUNTIF('N PMRg 2020'!B:B,B31)) -> - | K31: =IF(ISERROR(VLOOKUP(B31,'N PMRg 2020'!B:G,6,0)),"-",VLOOKUP(B31,'N PMRg 2020'!B:G,6,0)) -> - | L31: =IF(COUNTIF('N PMČRj 2020'!B:B,B31)=0,"-",COUNTIF('N PMČRj 2020'!B:B,B31)) -> 1 | M31: =IF(ISERROR(VLOOKUP(B31,'N PMČRj 2020'!B:G,6,0)),"-",VLOOKUP(B31,'N PMČRj 2020'!B:G,6,0)) -> 1
A32: 24 | B32: Jaromir Macoun | C32: =VLOOKUP(B32,Pilot!A:C,3,0) -> Jičín | D32: =VLOOKUP(B32,Pilot!A:B,2,0) -> 1999 | E32: =VLOOKUP(B32,Pilot!A:E,5,0) -> M | F32: =VLOOKUP(B32,Pilot!A:F,6,0) -> Junior v roce 2020 | G32: 24 | I32: 1 | J32: =IF(COUNTIF('N PMRg 2020'!B:B,B32)=0,"-",COUNTIF('N PMRg 2020'!B:B,B32)) -> - | K32: =IF(ISERROR(VLOOKUP(B32,'N PMRg 2020'!B:G,6,0)),"-",VLOOKUP(B32,'N PMRg 2020'!B:G,6,0)) -> - | L32: =IF(COUNTIF('N PMČRj 2020'!B:B,B32)=0,"-",COUNTIF('N PMČRj 2020'!B:B,B32)) -> 1 | M32: =IF(ISERROR(VLOOKUP(B32,'N PMČRj 2020'!B:G,6,0)),"-",VLOOKUP(B32,'N PMČRj 2020'!B:G,6,0)) -> 2
A33: 25 | B33: Dana Novakova | C33: =VLOOKUP(B33,Pilot!A:C,3,0) -> Mladá Boleslav | D33: =VLOOKUP(B33,Pilot!A:B,2,0) -> 1965 | E33: =VLOOKUP(B33,Pilot!A:E,5,0) -> F | F33: =VLOOKUP(B33,Pilot!A:F,6,0) ->  | G33: 25 | I33: 1 | J33: =IF(COUNTIF('N PMRg 2020'!B:B,B33)=0,"-",COUNTIF('N PMRg 2020'!B:B,B33)) -> - | K33: =IF(ISERROR(VLOOKUP(B33,'N PMRg 2020'!B:G,6,0)),"-",VLOOKUP(B33,'N PMRg 2020'!B:G,6,0)) -> - | L33: =IF(COUNTIF('N PMČRj 2020'!B:B,B33)=0,"-",COUNTIF('N PMČRj 2020'!B:B,B33)) -> - | M33: =IF(ISERROR(VLOOKUP(B33,'N PMČRj 2020'!B:G,6,0)),"-",VLOOKUP(B33,'N PMČRj 2020'!B:G,6,0)) -> -
A34: 26 | B34: Barbora Moravcova | C34: =VLOOKUP(B34,Pilot!A:C,3,0) -> Zbraslavice | D34: =VLOOKUP(B34,Pilot!A:B,2,0) -> 1994 | E34: =VLOOKUP(B34,Pilot!A:E,5,0) -> F | F34: =VLOOKUP(B34,Pilot!A:F,6,0) ->  | G34: =A34 -> 26 | I34: 1 | J34: =IF(COUNTIF('N PMRg 2020'!B:B,B34)=0,"-",COUNTIF('N PMRg 2020'!B:B,B34)) -> - | K34: =IF(ISERROR(VLOOKUP(B34,'N PMRg 2020'!B:G,6,0)),"-",VLOOKUP(B34,'N PMRg 2020'!B:G,6,0)) -> - | L34: =IF(COUNTIF('N PMČRj 2020'!B:B,B34)=0,"-",COUNTIF('N PMČRj 2020'!B:B,B34)) -> - | M34: =IF(ISERROR(VLOOKUP(B34,'N PMČRj 2020'!B:G,6,0)),"-",VLOOKUP(B34,'N PMČRj 2020'!B:G,6,0)) -> -
A35: 27 | B35: Jan Zapletal | C35: =VLOOKUP(B35,Pilot!A:C,3,0) -> Kroměříž | D35: =VLOOKUP(B35,Pilot!A:B,2,0) -> 1997 | E35: =VLOOKUP(B35,Pilot!A:E,5,0) -> M | F35: =VLOOKUP(B35,Pilot!A:F,6,0) -> Junior v roce 2020 | G35: 27 | I35: 1 | J35: =IF(COUNTIF('N PMRg 2020'!B:B,B35)=0,"-",COUNTIF('N PMRg 2020'!B:B,B35)) -> - | K35: =IF(ISERROR(VLOOKUP(B35,'N PMRg 2020'!B:G,6,0)),"-",VLOOKUP(B35,'N PMRg 2020'!B:G,6,0)) -> - | L35: =IF(COUNTIF('N PMČRj 2020'!B:B,B35)=0,"-",COUNTIF('N PMČRj 2020'!B:B,B35)) -> 1 | M35: =IF(ISERROR(VLOOKUP(B35,'N PMČRj 2020'!B:G,6,0)),"-",VLOOKUP(B35,'N PMČRj 2020'!B:G,6,0)) -> 3
A36: 28 | B36: Klara Teichmannova | C36: =VLOOKUP(B36,Pilot!A:C,3,0) -> Hronov | D36: =VLOOKUP(B36,Pilot!A:B,2,0) -> 1993 | E36: =VLOOKUP(B36,Pilot!A:E,5,0) -> F | F36: =VLOOKUP(B36,Pilot!A:F,6,0) ->  | G36: 28 | I36: 1 | J36: =IF(COUNTIF('N PMRg 2020'!B:B,B36)=0,"-",COUNTIF('N PMRg 2020'!B:B,B36)) -> - | K36: =IF(ISERROR(VLOOKUP(B36,'N PMRg 2020'!B:G,6,0)),"-",VLOOKUP(B36,'N PMRg 2020'!B:G,6,0)) -> - | L36: =IF(COUNTIF('N PMČRj 2020'!B:B,B36)=0,"-",COUNTIF('N PMČRj 2020'!B:B,B36)) -> - | M36: =IF(ISERROR(VLOOKUP(B36,'N PMČRj 2020'!B:G,6,0)),"-",VLOOKUP(B36,'N PMČRj 2020'!B:G,6,0)) -> -
A37: 29 | B37: Jana Treslova | C37: =VLOOKUP(B37,Pilot!A:C,3,0) -> Raná | D37: =VLOOKUP(B37,Pilot!A:B,2,0) -> 1963 | E37: =VLOOKUP(B37,Pilot!A:E,5,0) -> F | F37: =VLOOKUP(B37,Pilot!A:F,6,0) ->  | G37: 29 | I37: 1 | J37: =IF(COUNTIF('N PMRg 2020'!B:B,B37)=0,"-",COUNTIF('N PMRg 2020'!B:B,B37)) -> - | K37: =IF(ISERROR(VLOOKUP(B37,'N PMRg 2020'!B:G,6,0)),"-",VLOOKUP(B37,'N PMRg 2020'!B:G,6,0)) -> - | L37: =IF(COUNTIF('N PMČRj 2020'!B:B,B37)=0,"-",COUNTIF('N PMČRj 2020'!B:B,B37)) -> - | M37: =IF(ISERROR(VLOOKUP(B37,'N PMČRj 2020'!B:G,6,0)),"-",VLOOKUP(B37,'N PMČRj 2020'!B:G,6,0)) -> -
A38: 30 | B38: Lenka Kuthanova | C38: =VLOOKUP(B38,Pilot!A:C,3,0) -> Tábor | D38: =VLOOKUP(B38,Pilot!A:B,2,0) -> 1960 | E38: =VLOOKUP(B38,Pilot!A:E,5,0) -> F | F38: =VLOOKUP(B38,Pilot!A:F,6,0) ->  | G38: 30 | I38: 1 | J38: =IF(COUNTIF('N PMRg 2020'!B:B,B38)=0,"-",COUNTIF('N PMRg 2020'!B:B,B38)) -> - | K38: =IF(ISERROR(VLOOKUP(B38,'N PMRg 2020'!B:G,6,0)),"-",VLOOKUP(B38,'N PMRg 2020'!B:G,6,0)) -> - | L38: =IF(COUNTIF('N PMČRj 2020'!B:B,B38)=0,"-",COUNTIF('N PMČRj 2020'!B:B,B38)) -> - | M38: =IF(ISERROR(VLOOKUP(B38,'N PMČRj 2020'!B:G,6,0)),"-",VLOOKUP(B38,'N PMČRj 2020'!B:G,6,0)) -> -
A39: 31 | B39: Petra Piskata | C39: =VLOOKUP(B39,Pilot!A:C,3,0) -> Hranice | D39: =VLOOKUP(B39,Pilot!A:B,2,0) -> 1989 | E39: =VLOOKUP(B39,Pilot!A:E,5,0) -> F | F39: =VLOOKUP(B39,Pilot!A:F,6,0) ->  | G39: =A39 -> 31 | I39: 1 | J39: =IF(COUNTIF('N PMRg 2020'!B:B,B39)=0,"-",COUNTIF('N PMRg 2020'!B:B,B39)) -> - | K39: =IF(ISERROR(VLOOKUP(B39,'N PMRg 2020'!B:G,6,0)),"-",VLOOKUP(B39,'N PMRg 2020'!B:G,6,0)) -> - | L39: =IF(COUNTIF('N PMČRj 2020'!B:B,B39)=0,"-",COUNTIF('N PMČRj 2020'!B:B,B39)) -> - | M39: =IF(ISERROR(VLOOKUP(B39,'N PMČRj 2020'!B:G,6,0)),"-",VLOOKUP(B39,'N PMČRj 2020'!B:G,6,0)) -> -
A40: 32 | B40: Ivan Tvrdik | C40: =VLOOKUP(B40,Pilot!A:C,3,0) -> Letňany | D40: =VLOOKUP(B40,Pilot!A:B,2,0) -> 1997 | E40: =VLOOKUP(B40,Pilot!A:E,5,0) -> M | F40: =VLOOKUP(B40,Pilot!A:F,6,0) -> Junior v roce 2020 | G40: 32 | I40: 1 | J40: =IF(COUNTIF('N PMRg 2020'!B:B,B40)=0,"-",COUNTIF('N PMRg 2020'!B:B,B40)) -> - | K40: =IF(ISERROR(VLOOKUP(B40,'N PMRg 2020'!B:G,6,0)),"-",VLOOKUP(B40,'N PMRg 2020'!B:G,6,0)) -> - | L40: =IF(COUNTIF('N PMČRj 2020'!B:B,B40)=0,"-",COUNTIF('N PMČRj 2020'!B:B,B40)) -> 1 | M40: =IF(ISERROR(VLOOKUP(B40,'N PMČRj 2020'!B:G,6,0)),"-",VLOOKUP(B40,'N PMČRj 2020'!B:G,6,0)) -> 4
A41: 33 | B41: Jan Vozeh | C41: =VLOOKUP(B41,Pilot!A:C,3,0) -> Rakovník | D41: =VLOOKUP(B41,Pilot!A:B,2,0) -> 1995 | E41: =VLOOKUP(B41,Pilot!A:E,5,0) -> M | F41: =VLOOKUP(B41,Pilot!A:F,6,0) -> Junior v roce 2020 | G41: 33 | I41: 1 | J41: =IF(COUNTIF('N PMRg 2020'!B:B,B41)=0,"-",COUNTIF('N PMRg 2020'!B:B,B41)) -> - | K41: =IF(ISERROR(VLOOKUP(B41,'N PMRg 2020'!B:G,6,0)),"-",VLOOKUP(B41,'N PMRg 2020'!B:G,6,0)) -> - | L41: =IF(COUNTIF('N PMČRj 2020'!B:B,B41)=0,"-",COUNTIF('N PMČRj 2020'!B:B,B41)) -> 1 | M41: =IF(ISERROR(VLOOKUP(B41,'N PMČRj 2020'!B:G,6,0)),"-",VLOOKUP(B41,'N PMČRj 2020'!B:G,6,0)) -> 5
A42: 34 | B42: Tomas Jilek | C42: =VLOOKUP(B42,Pilot!A:C,3,0) -> Raná | D42: =VLOOKUP(B42,Pilot!A:B,2,0) -> 1995 | E42: =VLOOKUP(B42,Pilot!A:E,5,0) -> M | F42: =VLOOKUP(B42,Pilot!A:F,6,0) -> Junior v roce 2020 | G42: 34 | I42: 1 | J42: =IF(COUNTIF('N PMRg 2020'!B:B,B42)=0,"-",COUNTIF('N PMRg 2020'!B:B,B42)) -> - | K42: =IF(ISERROR(VLOOKUP(B42,'N PMRg 2020'!B:G,6,0)),"-",VLOOKUP(B42,'N PMRg 2020'!B:G,6,0)) -> - | L42: =IF(COUNTIF('N PMČRj 2020'!B:B,B42)=0,"-",COUNTIF('N PMČRj 2020'!B:B,B42)) -> 1 | M42: =IF(ISERROR(VLOOKUP(B42,'N PMČRj 2020'!B:G,6,0)),"-",VLOOKUP(B42,'N PMČRj 2020'!B:G,6,0)) -> 6
A43: 35 | B43: Eva Cerna | C43: =VLOOKUP(B43,Pilot!A:C,3,0) -> Příbram | D43: =VLOOKUP(B43,Pilot!A:B,2,0) -> 1964 | E43: =VLOOKUP(B43,Pilot!A:E,5,0) -> F | F43: =VLOOKUP(B43,Pilot!A:F,6,0) ->  | G43: =A43 -> 35 | I43: 1 | J43: =IF(COUNTIF('N PMRg 2020'!B:B,B43)=0,"-",COUNTIF('N PMRg 2020'!B:B,B43)) -> - | K43: =IF(ISERROR(VLOOKUP(B43,'N PMRg 2020'!B:G,6,0)),"-",VLOOKUP(B43,'N PMRg 2020'!B:G,6,0)) -> - | L43: =IF(COUNTIF('N PMČRj 2020'!B:B,B43)=0,"-",COUNTIF('N PMČRj 2020'!B:B,B43)) -> - | M43: =IF(ISERROR(VLOOKUP(B43,'N PMČRj 2020'!B:G,6,0)),"-",VLOOKUP(B43,'N PMČRj 2020'!B:G,6,0)) -> -
A44: 6.6.6.2. | B44: další soutěžící, kteří se umístili v konečném pořadí na posledním platném PMČR ve své třídě nejhůře v první polovině celkového pořadí (bez náhradníků)
B45: PMČR 2019 - Moravská Třebová - Klub
A46: =MAX(A9:A44)+1 -> 36 | B46: Petr Stepanek | C46: =VLOOKUP(B46,Pilot!A:C,3,0) -> Moravská Třebová | D46: =VLOOKUP(B46,Pilot!A:B,2,0) -> 1989 | E46: =VLOOKUP(B46,Pilot!A:E,5,0) -> M | F46: =VLOOKUP(B46,Pilot!A:F,6,0) ->  | G46: =A46 -> 36 | I46: =COUNTIF(B:B,B46) -> 1 | J46: =IF(COUNTIF('N PMRg 2020'!B:B,B46)=0,"-",COUNTIF('N PMRg 2020'!B:B,B46)) -> - | K46: =IF(ISERROR(VLOOKUP(B46,'N PMRg 2020'!B:G,6,0)),"-",VLOOKUP(B46,'N PMRg 2020'!B:G,6,0)) -> - | L46: =IF(COUNTIF('N PMČRj 2020'!B:B,B46)=0,"-",COUNTIF('N PMČRj 2020'!B:B,B46)) -> - | M46: =IF(ISERROR(VLOOKUP(B46,'N PMČRj 2020'!B:G,6,0)),"-",VLOOKUP(B46,'N PMČRj 2020'!B:G,6,0)) -> -
A47: =A46+1 -> 37 | B47: Lubomir Motl | C47: =VLOOKUP(B47,Pilot!A:C,3,0) -> Kyjov | D47: =VLOOKUP(B47,Pilot!A:B,2,0) -> 1959 | E47: =VLOOKUP(B47,Pilot!A:E,5,0) -> M | F47: =VLOOKUP(B47,Pilot!A:F,6,0) ->  | G47: =A47 -> 37 | I47: 1 | J47: =IF(COUNTIF('N PMRg 2020'!B:B,B47)=0,"-",COUNTIF('N PMRg 2020'!B:B,B47)) -> - | K47: =IF(ISERROR(VLOOKUP(B47,'N PMRg 2020'!B:G,6,0)),"-",VLOOKUP(B47,'N PMRg 2020'!B:G,6,0)) -> - | L47: =IF(COUNTIF('N PMČRj 2020'!B:B,B47)=0,"-",COUNTIF('N PMČRj 2020'!B:B,B47)) -> - | M47: =IF(ISERROR(VLOOKUP(B47,'N PMČRj 2020'!B:G,6,0)),"-",VLOOKUP(B47,'N PMČRj 2020'!B:G,6,0)) -> -
A48: =A47+1 -> 38 | B48: Pavel Trybenekr | C48: =VLOOKUP(B48,Pilot!A:C,3,0) -> Hořice | D48: =VLOOKUP(B48,Pilot!A:B,2,0) -> 1990 | E48: =VLOOKUP(B48,Pilot!A:E,5,0) -> M | F48: =VLOOKUP(B48,Pilot!A:F,6,0) ->  | G48: =A48 -> 38 | I48: 1 | J48: =IF(COUNTIF('N PMRg 2020'!B:B,B48)=0,"-",COUNTIF('N PMRg 2020'!B:B,B48)) -> - | K48: =IF(ISERROR(VLOOKUP(B48,'N PMRg 2020'!B:G,6,0)),"-",VLOOKUP(B48,'N PMRg 2020'!B:G,6,0)) -> - | L48: =IF(COUNTIF('N PMČRj 2020'!B:B,B48)=0,"-",COUNTIF('N PMČRj 2020'!B:B,B48)) -> - | M48: =IF(ISERROR(VLOOKUP(B48,'N PMČRj 2020'!B:G,6,0)),"-",VLOOKUP(B48,'N PMČRj 2020'!B:G,6,0)) -> -
A49: =A48+1 -> 39 | B49: David Sachl | C49: =VLOOKUP(B49,Pilot!A:C,3,0) -> Kralupy | D49: =VLOOKUP(B49,Pilot!A:B,2,0) -> 1978 | E49: =VLOOKUP(B49,Pilot!A:E,5,0) -> M | F49: =VLOOKUP(B49,Pilot!A:F,6,0) ->  | G49: =A49 -> 39 | I49: 1 | J49: =IF(COUNTIF('N PMRg 2020'!B:B,B49)=0,"-",COUNTIF('N PMRg 2020'!B:B,B49)) -> - | K49: =IF(ISERROR(VLOOKUP(B49,'N PMRg 2020'!B:G,6,0)),"-",VLOOKUP(B49,'N PMRg 2020'!B:G,6,0)) -> - | L49: =IF(COUNTIF('N PMČRj 2020'!B:B,B49)=0,"-",COUNTIF('N PMČRj 2020'!B:B,B49)) -> - | M49: =IF(ISERROR(VLOOKUP(B49,'N PMČRj 2020'!B:G,6,0)),"-",VLOOKUP(B49,'N PMČRj 2020'!B:G,6,0)) -> -
A50: =A49+1 -> 40 | B50: Slavomir Piskaty 84 | C50: =VLOOKUP(B50,Pilot!A:C,3,0) -> Kunovice | D50: =VLOOKUP(B50,Pilot!A:B,2,0) -> 1984 | E50: =VLOOKUP(B50,Pilot!A:E,5,0) -> M | F50: =VLOOKUP(B50,Pilot!A:F,6,0) ->  | G50: =A50 -> 40 | I50: 1 | J50: =IF(COUNTIF('N PMRg 2020'!B:B,B50)=0,"-",COUNTIF('N PMRg 2020'!B:B,B50)) -> - | K50: =IF(ISERROR(VLOOKUP(B50,'N PMRg 2020'!B:G,6,0)),"-",VLOOKUP(B50,'N PMRg 2020'!B:G,6,0)) -> - | L50: =IF(COUNTIF('N PMČRj 2020'!B:B,B50)=0,"-",COUNTIF('N PMČRj 2020'!B:B,B50)) -> - | M50: =IF(ISERROR(VLOOKUP(B50,'N PMČRj 2020'!B:G,6,0)),"-",VLOOKUP(B50,'N PMČRj 2020'!B:G,6,0)) -> -
A51: =A50+1 -> 41 | B51: Jan Ratz | C51: =VLOOKUP(B51,Pilot!A:C,3,0) -> Zbraslavice | D51: =VLOOKUP(B51,Pilot!A:B,2,0) -> 1987 | E51: =VLOOKUP(B51,Pilot!A:E,5,0) -> M | F51: =VLOOKUP(B51,Pilot!A:F,6,0) ->  | G51: =A51 -> 41 | I51: 1 | J51: =IF(COUNTIF('N PMRg 2020'!B:B,B51)=0,"-",COUNTIF('N PMRg 2020'!B:B,B51)) -> - | K51: =IF(ISERROR(VLOOKUP(B51,'N PMRg 2020'!B:G,6,0)),"-",VLOOKUP(B51,'N PMRg 2020'!B:G,6,0)) -> - | L51: =IF(COUNTIF('N PMČRj 2020'!B:B,B51)=0,"-",COUNTIF('N PMČRj 2020'!B:B,B51)) -> - | M51: =IF(ISERROR(VLOOKUP(B51,'N PMČRj 2020'!B:G,6,0)),"-",VLOOKUP(B51,'N PMČRj 2020'!B:G,6,0)) -> -
A52: 42 | B52: Tereza Koubkova | C52: =VLOOKUP(B52,Pilot!A:C,3,0) -> Letňany | D52: =VLOOKUP(B52,Pilot!A:B,2,0) -> 1999 | E52: =VLOOKUP(B52,Pilot!A:E,5,0) -> F | F52: =VLOOKUP(B52,Pilot!A:F,6,0) -> Junior v roce 2020 | G52: 42 | I52: 1 | J52: =IF(COUNTIF('N PMRg 2020'!B:B,B52)=0,"-",COUNTIF('N PMRg 2020'!B:B,B52)) -> - | K52: =IF(ISERROR(VLOOKUP(B52,'N PMRg 2020'!B:G,6,0)),"-",VLOOKUP(B52,'N PMRg 2020'!B:G,6,0)) -> - | L52: =IF(COUNTIF('N PMČRj 2020'!B:B,B52)=0,"-",COUNTIF('N PMČRj 2020'!B:B,B52)) -> 1 | M52: =IF(ISERROR(VLOOKUP(B52,'N PMČRj 2020'!B:G,6,0)),"-",VLOOKUP(B52,'N PMČRj 2020'!B:G,6,0)) -> 7
A53: 43 | B53: Ivan Harasta 65 | C53: =VLOOKUP(B53,Pilot!A:C,3,0) -> Toužim | D53: =VLOOKUP(B53,Pilot!A:B,2,0) -> 1965 | E53: =VLOOKUP(B53,Pilot!A:E,5,0) -> M | F53: =VLOOKUP(B53,Pilot!A:F,6,0) ->  | G53: 43 | I53: 1 | J53: =IF(COUNTIF('N PMRg 2020'!B:B,B53)=0,"-",COUNTIF('N PMRg 2020'!B:B,B53)) -> - | K53: =IF(ISERROR(VLOOKUP(B53,'N PMRg 2020'!B:G,6,0)),"-",VLOOKUP(B53,'N PMRg 2020'!B:G,6,0)) -> - | L53: =IF(COUNTIF('N PMČRj 2020'!B:B,B53)=0,"-",COUNTIF('N PMČRj 2020'!B:B,B53)) -> - | M53: =IF(ISERROR(VLOOKUP(B53,'N PMČRj 2020'!B:G,6,0)),"-",VLOOKUP(B53,'N PMČRj 2020'!B:G,6,0)) -> -
B54: PMČR 2019 - Moravská Třebová - Kombi 15m
A55: =MAX(A46:A54)+1 -> 44 | B55: Jiri Kusbach | C55: =VLOOKUP(B55,Pilot!A:C,3,0) -> Luhačovice | D55: =VLOOKUP(B55,Pilot!A:B,2,0) -> 1959 | E55: =VLOOKUP(B55,Pilot!A:E,5,0) -> M | F55: =VLOOKUP(B55,Pilot!A:F,6,0) ->  | G55: =A55 -> 44 | I55: =COUNTIF(B:B,B55) -> 1 | J55: =IF(COUNTIF('N PMRg 2020'!B:B,B55)=0,"-",COUNTIF('N PMRg 2020'!B:B,B55)) -> - | K55: =IF(ISERROR(VLOOKUP(B55,'N PMRg 2020'!B:G,6,0)),"-",VLOOKUP(B55,'N PMRg 2020'!B:G,6,0)) -> - | L55: =IF(COUNTIF('N PMČRj 2020'!B:B,B55)=0,"-",COUNTIF('N PMČRj 2020'!B:B,B55)) -> - | M55: =IF(ISERROR(VLOOKUP(B55,'N PMČRj 2020'!B:G,6,0)),"-",VLOOKUP(B55,'N PMČRj 2020'!B:G,6,0)) -> -
B56: PMČR 2019 - Moravská Třebová - Kombi Open
A57: =MAX(A55:A56)+1 -> 45 | B57: Tomas Rendla | C57: =VLOOKUP(B57,Pilot!A:C,3,0) -> Zbraslavice | D57: =VLOOKUP(B57,Pilot!A:B,2,0) -> 1973 | E57: =VLOOKUP(B57,Pilot!A:E,5,0) -> M | F57: =VLOOKUP(B57,Pilot!A:F,6,0) ->  | G57: =A57 -> 45 | I57: =COUNTIF(B:B,B57) -> 1 | J57: =IF(COUNTIF('N PMRg 2020'!B:B,B57)=0,"-",COUNTIF('N PMRg 2020'!B:B,B57)) -> - | K57: =IF(ISERROR(VLOOKUP(B57,'N PMRg 2020'!B:G,6,0)),"-",VLOOKUP(B57,'N PMRg 2020'!B:G,6,0)) -> - | L57: =IF(COUNTIF('N PMČRj 2020'!B:B,B57)=0,"-",COUNTIF('N PMČRj 2020'!B:B,B57)) -> - | M57: =IF(ISERROR(VLOOKUP(B57,'N PMČRj 2020'!B:G,6,0)),"-",VLOOKUP(B57,'N PMČRj 2020'!B:G,6,0)) -> -
A58: =A57+1 -> 46 | B58: Radek Kucirek | C58: =VLOOKUP(B58,Pilot!A:C,3,0) -> Havlíčkův Brod | D58: =VLOOKUP(B58,Pilot!A:B,2,0) -> 1973 | E58: =VLOOKUP(B58,Pilot!A:E,5,0) -> M | F58: =VLOOKUP(B58,Pilot!A:F,6,0) ->  | G58: =A58 -> 46 | I58: =COUNTIF(B:B,B58) -> 1 | J58: =IF(COUNTIF('N PMRg 2020'!B:B,B58)=0,"-",COUNTIF('N PMRg 2020'!B:B,B58)) -> - | K58: =IF(ISERROR(VLOOKUP(B58,'N PMRg 2020'!B:G,6,0)),"-",VLOOKUP(B58,'N PMRg 2020'!B:G,6,0)) -> - | L58: =IF(COUNTIF('N PMČRj 2020'!B:B,B58)=0,"-",COUNTIF('N PMČRj 2020'!B:B,B58)) -> - | M58: =IF(ISERROR(VLOOKUP(B58,'N PMČRj 2020'!B:G,6,0)),"-",VLOOKUP(B58,'N PMČRj 2020'!B:G,6,0)) -> -
A59: 6.6.6.3. | B59: prvních 5 soutěžících z posledního platného PMČRj mimo RV (+ 5 náhradníků)
B60: PMČRj 2019 - Jaroměř - Klub
A61: =MAX(A57:A59)+1 -> 47 | B61: Petr Valenta 94 | C61: =VLOOKUP(B61,Pilot!A:C,3,0) -> Kunovice | D61: =VLOOKUP(B61,Pilot!A:B,2,0) -> 1994 | E61: =VLOOKUP(B61,Pilot!A:E,5,0) -> M | F61: =VLOOKUP(B61,Pilot!A:F,6,0) ->  | G61: =A61 -> 47 | I61: =COUNTIF(B:B,B61) -> 1 | J61: =IF(COUNTIF('N PMRg 2020'!B:B,B61)=0,"-",COUNTIF('N PMRg 2020'!B:B,B61)) -> - | K61: =IF(ISERROR(VLOOKUP(B61,'N PMRg 2020'!B:G,6,0)),"-",VLOOKUP(B61,'N PMRg 2020'!B:G,6,0)) -> - | L61: =IF(COUNTIF('N PMČRj 2020'!B:B,B61)=0,"-",COUNTIF('N PMČRj 2020'!B:B,B61)) -> - | M61: =IF(ISERROR(VLOOKUP(B61,'N PMČRj 2020'!B:G,6,0)),"-",VLOOKUP(B61,'N PMČRj 2020'!B:G,6,0)) -> -
A62: =A61+1 -> 48 | B62: Vit Morkovsky | C62: =VLOOKUP(B62,Pilot!A:C,3,0) -> Polička | D62: =VLOOKUP(B62,Pilot!A:B,2,0) -> 2000 | E62: =VLOOKUP(B62,Pilot!A:E,5,0) -> M | F62: =VLOOKUP(B62,Pilot!A:F,6,0) -> Junior v roce 2020 | G62: 48 | I62: 1 | J62: =IF(COUNTIF('N PMRg 2020'!B:B,B62)=0,"-",COUNTIF('N PMRg 2020'!B:B,B62)) -> - | K62: =IF(ISERROR(VLOOKUP(B62,'N PMRg 2020'!B:G,6,0)),"-",VLOOKUP(B62,'N PMRg 2020'!B:G,6,0)) -> - | L62: =IF(COUNTIF('N PMČRj 2020'!B:B,B62)=0,"-",COUNTIF('N PMČRj 2020'!B:B,B62)) -> 1 | M62: =IF(ISERROR(VLOOKUP(B62,'N PMČRj 2020'!B:G,6,0)),"-",VLOOKUP(B62,'N PMČRj 2020'!B:G,6,0)) -> 9
A63: =A62+1 -> 49 | B63: David Rozporka | C63: =VLOOKUP(B63,Pilot!A:C,3,0) -> Hronov | D63: =VLOOKUP(B63,Pilot!A:B,2,0) -> 1994 | E63: =VLOOKUP(B63,Pilot!A:E,5,0) -> M | F63: =VLOOKUP(B63,Pilot!A:F,6,0) ->  | G63: 49 | I63: 1 | J63: =IF(COUNTIF('N PMRg 2020'!B:B,B63)=0,"-",COUNTIF('N PMRg 2020'!B:B,B63)) -> - | K63: =IF(ISERROR(VLOOKUP(B63,'N PMRg 2020'!B:G,6,0)),"-",VLOOKUP(B63,'N PMRg 2020'!B:G,6,0)) -> - | L63: =IF(COUNTIF('N PMČRj 2020'!B:B,B63)=0,"-",COUNTIF('N PMČRj 2020'!B:B,B63)) -> - | M63: =IF(ISERROR(VLOOKUP(B63,'N PMČRj 2020'!B:G,6,0)),"-",VLOOKUP(B63,'N PMČRj 2020'!B:G,6,0)) -> -
A64: =A63+1 -> 50 | B64: Vladimir Hammer | C64: =VLOOKUP(B64,Pilot!A:C,3,0) -> Klatovy | D64: =VLOOKUP(B64,Pilot!A:B,2,0) -> 2000 | E64: =VLOOKUP(B64,Pilot!A:E,5,0) -> M | F64: =VLOOKUP(B64,Pilot!A:F,6,0) -> Junior v roce 2020 | G64: 50 | I64: 1 | J64: =IF(COUNTIF('N PMRg 2020'!B:B,B64)=0,"-",COUNTIF('N PMRg 2020'!B:B,B64)) -> - | K64: =IF(ISERROR(VLOOKUP(B64,'N PMRg 2020'!B:G,6,0)),"-",VLOOKUP(B64,'N PMRg 2020'!B:G,6,0)) -> - | L64: =IF(COUNTIF('N PMČRj 2020'!B:B,B64)=0,"-",COUNTIF('N PMČRj 2020'!B:B,B64)) -> 1 | M64: =IF(ISERROR(VLOOKUP(B64,'N PMČRj 2020'!B:G,6,0)),"-",VLOOKUP(B64,'N PMČRj 2020'!B:G,6,0)) -> 10
A65: =A64+1 -> 51 | B65: Tomas Moravec | C65: =VLOOKUP(B65,Pilot!A:C,3,0) -> Žamberk | D65: =VLOOKUP(B65,Pilot!A:B,2,0) -> 2000 | E65: =VLOOKUP(B65,Pilot!A:E,5,0) -> M | F65: =VLOOKUP(B65,Pilot!A:F,6,0) -> Junior v roce 2020 | G65: 51 | I65: 1 | J65: =IF(COUNTIF('N PMRg 2020'!B:B,B65)=0,"-",COUNTIF('N PMRg 2020'!B:B,B65)) -> - | K65: =IF(ISERROR(VLOOKUP(B65,'N PMRg 2020'!B:G,6,0)),"-",VLOOKUP(B65,'N PMRg 2020'!B:G,6,0)) -> - | L65: =IF(COUNTIF('N PMČRj 2020'!B:B,B65)=0,"-",COUNTIF('N PMČRj 2020'!B:B,B65)) -> 1 | M65: =IF(ISERROR(VLOOKUP(B65,'N PMČRj 2020'!B:G,6,0)),"-",VLOOKUP(B65,'N PMČRj 2020'!B:G,6,0)) -> 11
A66: N1 | B66: Jan Beran | C66: =VLOOKUP(B66,Pilot!A:C,3,0) -> Kladno | D66: =VLOOKUP(B66,Pilot!A:B,2,0) -> 1999 | E66: =VLOOKUP(B66,Pilot!A:E,5,0) -> M | F66: =VLOOKUP(B66,Pilot!A:F,6,0) -> Junior v roce 2020 | G66: N1 | I66: 1 | J66: =IF(COUNTIF('N PMRg 2020'!B:B,B66)=0,"-",COUNTIF('N PMRg 2020'!B:B,B66)) -> - | K66: =IF(ISERROR(VLOOKUP(B66,'N PMRg 2020'!B:G,6,0)),"-",VLOOKUP(B66,'N PMRg 2020'!B:G,6,0)) -> - | L66: =IF(COUNTIF('N PMČRj 2020'!B:B,B66)=0,"-",COUNTIF('N PMČRj 2020'!B:B,B66)) -> 1 | M66: =IF(ISERROR(VLOOKUP(B66,'N PMČRj 2020'!B:G,6,0)),"-",VLOOKUP(B66,'N PMČRj 2020'!B:G,6,0)) -> 12
A67: N2 | B67: Tibor Hezina | C67: =VLOOKUP(B67,Pilot!A:C,3,0) -> Křižanov | D67: =VLOOKUP(B67,Pilot!A:B,2,0) -> 2002 | E67: =VLOOKUP(B67,Pilot!A:E,5,0) -> M | F67: =VLOOKUP(B67,Pilot!A:F,6,0) -> Junior v roce 2020 | G67: N2 | I67: 1 | J67: =IF(COUNTIF('N PMRg 2020'!B:B,B67)=0,"-",COUNTIF('N PMRg 2020'!B:B,B67)) -> - | K67: =IF(ISERROR(VLOOKUP(B67,'N PMRg 2020'!B:G,6,0)),"-",VLOOKUP(B67,'N PMRg 2020'!B:G,6,0)) -> - | L67: =IF(COUNTIF('N PMČRj 2020'!B:B,B67)=0,"-",COUNTIF('N PMČRj 2020'!B:B,B67)) -> 1 | M67: =IF(ISERROR(VLOOKUP(B67,'N PMČRj 2020'!B:G,6,0)),"-",VLOOKUP(B67,'N PMČRj 2020'!B:G,6,0)) -> 13
A68: N3 | B68: Marek Loukota | C68: =VLOOKUP(B68,Pilot!A:C,3,0) -> Letkov | D68: =VLOOKUP(B68,Pilot!A:B,2,0) -> 2000 | E68: =VLOOKUP(B68,Pilot!A:E,5,0) -> M | F68: =VLOOKUP(B68,Pilot!A:F,6,0) -> Junior v roce 2020 | G68: N3 | I68: 1 | J68: =IF(COUNTIF('N PMRg 2020'!B:B,B68)=0,"-",COUNTIF('N PMRg 2020'!B:B,B68)) -> - | K68: =IF(ISERROR(VLOOKUP(B68,'N PMRg 2020'!B:G,6,0)),"-",VLOOKUP(B68,'N PMRg 2020'!B:G,6,0)) -> - | L68: =IF(COUNTIF('N PMČRj 2020'!B:B,B68)=0,"-",COUNTIF('N PMČRj 2020'!B:B,B68)) -> 1 | M68: =IF(ISERROR(VLOOKUP(B68,'N PMČRj 2020'!B:G,6,0)),"-",VLOOKUP(B68,'N PMČRj 2020'!B:G,6,0)) -> 18
A69: N4 | B69: Jan Stastny | C69: =VLOOKUP(B69,Pilot!A:C,3,0) -> Medlánky | D69: =VLOOKUP(B69,Pilot!A:B,2,0) -> 2003 | E69: =VLOOKUP(B69,Pilot!A:E,5,0) -> M | F69: =VLOOKUP(B69,Pilot!A:F,6,0) -> Junior v roce 2020 | G69: N4 | I69: 1 | J69: =IF(COUNTIF('N PMRg 2020'!B:B,B69)=0,"-",COUNTIF('N PMRg 2020'!B:B,B69)) -> - | K69: =IF(ISERROR(VLOOKUP(B69,'N PMRg 2020'!B:G,6,0)),"-",VLOOKUP(B69,'N PMRg 2020'!B:G,6,0)) -> - | L69: =IF(COUNTIF('N PMČRj 2020'!B:B,B69)=0,"-",COUNTIF('N PMČRj 2020'!B:B,B69)) -> 1 | M69: =IF(ISERROR(VLOOKUP(B69,'N PMČRj 2020'!B:G,6,0)),"-",VLOOKUP(B69,'N PMČRj 2020'!B:G,6,0)) -> 16
A70: N5 | B70: - | C70: =VLOOKUP(B70,Pilot!A:C,3,0) ->  | D70: =VLOOKUP(B70,Pilot!A:B,2,0) ->  | E70: =VLOOKUP(B70,Pilot!A:E,5,0) ->  | F70: =VLOOKUP(B70,Pilot!A:F,6,0) ->  | G70: N5 | I70: 13 | J70: =IF(COUNTIF('N PMRg 2020'!B:B,B70)=0,"-",COUNTIF('N PMRg 2020'!B:B,B70)) -> 6 | K70: =IF(ISERROR(VLOOKUP(B70,'N PMRg 2020'!B:G,6,0)),"-",VLOOKUP(B70,'N PMRg 2020'!B:G,6,0)) -> - | L70: =IF(COUNTIF('N PMČRj 2020'!B:B,B70)=0,"-",COUNTIF('N PMČRj 2020'!B:B,B70)) -> 10 | M70: =IF(ISERROR(VLOOKUP(B70,'N PMČRj 2020'!B:G,6,0)),"-",VLOOKUP(B70,'N PMČRj 2020'!B:G,6,0)) -> -
A71: 6.6.6.4. | B71: 5 soutěžících může navrhnout PK podle jiných kritérií dle odstavce 9. (bez náhradníků)
A72: 79. | B72: Jan Hruska | C72: =VLOOKUP(B72,Pilot!A:C,3,0) -> Tábor | D72: =VLOOKUP(B72,Pilot!A:B,2,0) -> 1988 | E72: =VLOOKUP(B72,Pilot!A:E,5,0) -> M | F72: =VLOOKUP(B72,Pilot!A:F,6,0) ->  | G72: =A72 -> 79. | I72: =COUNTIF(B:B,B72) -> 1 | J72: =IF(COUNTIF('N PMRg 2020'!B:B,B72)=0,"-",COUNTIF('N PMRg 2020'!B:B,B72)) -> - | K72: =IF(ISERROR(VLOOKUP(B72,'N PMRg 2020'!B:G,6,0)),"-",VLOOKUP(B72,'N PMRg 2020'!B:G,6,0)) -> - | L72: =IF(COUNTIF('N PMČRj 2020'!B:B,B72)=0,"-",COUNTIF('N PMČRj 2020'!B:B,B72)) -> - | M72: =IF(ISERROR(VLOOKUP(B72,'N PMČRj 2020'!B:G,6,0)),"-",VLOOKUP(B72,'N PMČRj 2020'!B:G,6,0)) -> -
A73: 80. | B73: Jan Kotan | C73: =VLOOKUP(B73,Pilot!A:C,3,0) -> Letňany | D73: =VLOOKUP(B73,Pilot!A:B,2,0) -> 1982 | E73: =VLOOKUP(B73,Pilot!A:E,5,0) -> M | F73: =VLOOKUP(B73,Pilot!A:F,6,0) ->  | G73: =A73 -> 80. | I73: =COUNTIF(B:B,B73) -> 1 | J73: =IF(COUNTIF('N PMRg 2020'!B:B,B73)=0,"-",COUNTIF('N PMRg 2020'!B:B,B73)) -> - | K73: =IF(ISERROR(VLOOKUP(B73,'N PMRg 2020'!B:G,6,0)),"-",VLOOKUP(B73,'N PMRg 2020'!B:G,6,0)) -> - | L73: =IF(COUNTIF('N PMČRj 2020'!B:B,B73)=0,"-",COUNTIF('N PMČRj 2020'!B:B,B73)) -> - | M73: =IF(ISERROR(VLOOKUP(B73,'N PMČRj 2020'!B:G,6,0)),"-",VLOOKUP(B73,'N PMČRj 2020'!B:G,6,0)) -> -
A74: 81. | B74: Martin Picka | C74: =VLOOKUP(B74,Pilot!A:C,3,0) -> Tábor | D74: =VLOOKUP(B74,Pilot!A:B,2,0) -> 1974 | E74: =VLOOKUP(B74,Pilot!A:E,5,0) -> M | F74: =VLOOKUP(B74,Pilot!A:F,6,0) ->  | G74: =A74 -> 81. | I74: =COUNTIF(B:B,B74) -> 1 | J74: =IF(COUNTIF('N PMRg 2020'!B:B,B74)=0,"-",COUNTIF('N PMRg 2020'!B:B,B74)) -> - | K74: =IF(ISERROR(VLOOKUP(B74,'N PMRg 2020'!B:G,6,0)),"-",VLOOKUP(B74,'N PMRg 2020'!B:G,6,0)) -> - | L74: =IF(COUNTIF('N PMČRj 2020'!B:B,B74)=0,"-",COUNTIF('N PMČRj 2020'!B:B,B74)) -> - | M74: =IF(ISERROR(VLOOKUP(B74,'N PMČRj 2020'!B:G,6,0)),"-",VLOOKUP(B74,'N PMČRj 2020'!B:G,6,0)) -> -
A75: 82. | B75: Petr Bartak | C75: =VLOOKUP(B75,Pilot!A:C,3,0) -> Letkov | D75: =VLOOKUP(B75,Pilot!A:B,2,0) -> 1984 | E75: =VLOOKUP(B75,Pilot!A:E,5,0) -> M | F75: =VLOOKUP(B75,Pilot!A:F,6,0) ->  | G75: =A75 -> 82. | I75: =COUNTIF(B:B,B75) -> 1 | J75: =IF(COUNTIF('N PMRg 2020'!B:B,B75)=0,"-",COUNTIF('N PMRg 2020'!B:B,B75)) -> - | K75: =IF(ISERROR(VLOOKUP(B75,'N PMRg 2020'!B:G,6,0)),"-",VLOOKUP(B75,'N PMRg 2020'!B:G,6,0)) -> - | L75: =IF(COUNTIF('N PMČRj 2020'!B:B,B75)=0,"-",COUNTIF('N PMČRj 2020'!B:B,B75)) -> - | M75: =IF(ISERROR(VLOOKUP(B75,'N PMČRj 2020'!B:G,6,0)),"-",VLOOKUP(B75,'N PMČRj 2020'!B:G,6,0)) -> -
A76: 83. | B76: Vaclav Svoboda | C76: =VLOOKUP(B76,Pilot!A:C,3,0) -> Letkov | D76: =VLOOKUP(B76,Pilot!A:B,2,0) -> 1970 | E76: =VLOOKUP(B76,Pilot!A:E,5,0) -> M | F76: =VLOOKUP(B76,Pilot!A:F,6,0) ->  | G76: =A76 -> 83. | I76: =COUNTIF(B:B,B76) -> 1 | J76: =IF(COUNTIF('N PMRg 2020'!B:B,B76)=0,"-",COUNTIF('N PMRg 2020'!B:B,B76)) -> - | K76: =IF(ISERROR(VLOOKUP(B76,'N PMRg 2020'!B:G,6,0)),"-",VLOOKUP(B76,'N PMRg 2020'!B:G,6,0)) -> - | L76: =IF(COUNTIF('N PMČRj 2020'!B:B,B76)=0,"-",COUNTIF('N PMČRj 2020'!B:B,B76)) -> - | M76: =IF(ISERROR(VLOOKUP(B76,'N PMČRj 2020'!B:G,6,0)),"-",VLOOKUP(B76,'N PMČRj 2020'!B:G,6,0)) -> -
A77: 6.6.6.5. | B77: ostatní soutěžící z posledního platného PMRg v pořadí podle umístění, do naplnění celkového počtu nominovaných 80 dle 6.6.5. (+ 10 náhradníků)
A78: 6.6.6.6. | B78: Je-li PMRg pořádáno ve více třídách, a/nebo ve více regionech, pak jsou na PMČR nominováni soutěžící podle korigovaných bodů z jednotlivých tříd/regionů do naplnění celkového počtu nominovaných dle 6.6.5.
A79: 6.6.6.7. | B79: V případě neplatnosti některé ze soutěžních tříd posledního PMRg budou pro výpočet korigovaných bodů použity výsledky z posledního platného PMRg v dané třídě.
B80: PMRg 2019 - Vysoké Mýto - Korigované body
A81: =MAX(A61:A77)+1 -> 52 | B81: Vojtech Novotny | C81: =VLOOKUP(B81,Pilot!A:C,3,0) -> Kralupy | D81: =VLOOKUP(B81,Pilot!A:B,2,0) -> 1992 | E81: =VLOOKUP(B81,Pilot!A:E,5,0) -> M | F81: =VLOOKUP(B81,Pilot!A:F,6,0) ->  | G81: =A81 -> 52 | I81: =COUNTIF(B:B,B81) -> 1 | J81: =IF(COUNTIF('N PMRg 2020'!B:B,B81)=0,"-",COUNTIF('N PMRg 2020'!B:B,B81)) -> - | K81: =IF(ISERROR(VLOOKUP(B81,'N PMRg 2020'!B:G,6,0)),"-",VLOOKUP(B81,'N PMRg 2020'!B:G,6,0)) -> - | L81: =IF(COUNTIF('N PMČRj 2020'!B:B,B81)=0,"-",COUNTIF('N PMČRj 2020'!B:B,B81)) -> - | M81: =IF(ISERROR(VLOOKUP(B81,'N PMČRj 2020'!B:G,6,0)),"-",VLOOKUP(B81,'N PMČRj 2020'!B:G,6,0)) -> -
A82: =A81+1 -> 53 | B82: Jiri Stepanek | C82: =VLOOKUP(B82,Pilot!A:C,3,0) -> Moravská Třebová | D82: =VLOOKUP(B82,Pilot!A:B,2,0) -> 1956 | E82: =VLOOKUP(B82,Pilot!A:E,5,0) -> M | F82: =VLOOKUP(B82,Pilot!A:F,6,0) ->  | G82: 53 | I82: 1 | J82: =IF(COUNTIF('N PMRg 2020'!B:B,B82)=0,"-",COUNTIF('N PMRg 2020'!B:B,B82)) -> - | K82: =IF(ISERROR(VLOOKUP(B82,'N PMRg 2020'!B:G,6,0)),"-",VLOOKUP(B82,'N PMRg 2020'!B:G,6,0)) -> - | L82: =IF(COUNTIF('N PMČRj 2020'!B:B,B82)=0,"-",COUNTIF('N PMČRj 2020'!B:B,B82)) -> - | M82: =IF(ISERROR(VLOOKUP(B82,'N PMČRj 2020'!B:G,6,0)),"-",VLOOKUP(B82,'N PMČRj 2020'!B:G,6,0)) -> -
A83: =A82+1 -> 54 | B83: Zdenek Boruvka 54 | C83: =VLOOKUP(B83,Pilot!A:C,3,0) -> Jičín | D83: =VLOOKUP(B83,Pilot!A:B,2,0) -> 1954 | E83: =VLOOKUP(B83,Pilot!A:E,5,0) -> M | F83: =VLOOKUP(B83,Pilot!A:F,6,0) ->  | G83: 54 | I83: 1 | J83: =IF(COUNTIF('N PMRg 2020'!B:B,B83)=0,"-",COUNTIF('N PMRg 2020'!B:B,B83)) -> - | K83: =IF(ISERROR(VLOOKUP(B83,'N PMRg 2020'!B:G,6,0)),"-",VLOOKUP(B83,'N PMRg 2020'!B:G,6,0)) -> - | L83: =IF(COUNTIF('N PMČRj 2020'!B:B,B83)=0,"-",COUNTIF('N PMČRj 2020'!B:B,B83)) -> - | M83: =IF(ISERROR(VLOOKUP(B83,'N PMČRj 2020'!B:G,6,0)),"-",VLOOKUP(B83,'N PMČRj 2020'!B:G,6,0)) -> -
A84: =A83+1 -> 55 | B84: Jan Zahradka | C84: =VLOOKUP(B84,Pilot!A:C,3,0) -> Hodkovice | D84: =VLOOKUP(B84,Pilot!A:B,2,0) -> 1981 | E84: =VLOOKUP(B84,Pilot!A:E,5,0) -> M | F84: =VLOOKUP(B84,Pilot!A:F,6,0) ->  | G84: 55 | I84: 1 | J84: =IF(COUNTIF('N PMRg 2020'!B:B,B84)=0,"-",COUNTIF('N PMRg 2020'!B:B,B84)) -> - | K84: =IF(ISERROR(VLOOKUP(B84,'N PMRg 2020'!B:G,6,0)),"-",VLOOKUP(B84,'N PMRg 2020'!B:G,6,0)) -> - | L84: =IF(COUNTIF('N PMČRj 2020'!B:B,B84)=0,"-",COUNTIF('N PMČRj 2020'!B:B,B84)) -> - | M84: =IF(ISERROR(VLOOKUP(B84,'N PMČRj 2020'!B:G,6,0)),"-",VLOOKUP(B84,'N PMČRj 2020'!B:G,6,0)) -> -
A85: =A84+1 -> 56 | B85: Zdenek Boruvka 86 | C85: =VLOOKUP(B85,Pilot!A:C,3,0) -> Jičín | D85: =VLOOKUP(B85,Pilot!A:B,2,0) -> 1986 | E85: =VLOOKUP(B85,Pilot!A:E,5,0) -> M | F85: =VLOOKUP(B85,Pilot!A:F,6,0) ->  | G85: 56 | I85: 1 | J85: =IF(COUNTIF('N PMRg 2020'!B:B,B85)=0,"-",COUNTIF('N PMRg 2020'!B:B,B85)) -> - | K85: =IF(ISERROR(VLOOKUP(B85,'N PMRg 2020'!B:G,6,0)),"-",VLOOKUP(B85,'N PMRg 2020'!B:G,6,0)) -> - | L85: =IF(COUNTIF('N PMČRj 2020'!B:B,B85)=0,"-",COUNTIF('N PMČRj 2020'!B:B,B85)) -> - | M85: =IF(ISERROR(VLOOKUP(B85,'N PMČRj 2020'!B:G,6,0)),"-",VLOOKUP(B85,'N PMČRj 2020'!B:G,6,0)) -> -
A86: 57 | B86: Michal Krupicka | C86: =VLOOKUP(B86,Pilot!A:C,3,0) -> Most | D86: =VLOOKUP(B86,Pilot!A:B,2,0) -> 1975 | E86: =VLOOKUP(B86,Pilot!A:E,5,0) -> M | F86: =VLOOKUP(B86,Pilot!A:F,6,0) ->  | G86: 57 | I86: 1 | J86: =IF(COUNTIF('N PMRg 2020'!B:B,B86)=0,"-",COUNTIF('N PMRg 2020'!B:B,B86)) -> - | K86: =IF(ISERROR(VLOOKUP(B86,'N PMRg 2020'!B:G,6,0)),"-",VLOOKUP(B86,'N PMRg 2020'!B:G,6,0)) -> - | L86: =IF(COUNTIF('N PMČRj 2020'!B:B,B86)=0,"-",COUNTIF('N PMČRj 2020'!B:B,B86)) -> - | M86: =IF(ISERROR(VLOOKUP(B86,'N PMČRj 2020'!B:G,6,0)),"-",VLOOKUP(B86,'N PMČRj 2020'!B:G,6,0)) -> -
A87: 58 | B87: Jan Vavrin | C87: =VLOOKUP(B87,Pilot!A:C,3,0) -> Vysoké Mýto | D87: =VLOOKUP(B87,Pilot!A:B,2,0) -> 1987 | E87: =VLOOKUP(B87,Pilot!A:E,5,0) -> M | F87: =VLOOKUP(B87,Pilot!A:F,6,0) ->  | G87: 58 | I87: 1 | J87: =IF(COUNTIF('N PMRg 2020'!B:B,B87)=0,"-",COUNTIF('N PMRg 2020'!B:B,B87)) -> - | K87: =IF(ISERROR(VLOOKUP(B87,'N PMRg 2020'!B:G,6,0)),"-",VLOOKUP(B87,'N PMRg 2020'!B:G,6,0)) -> - | L87: =IF(COUNTIF('N PMČRj 2020'!B:B,B87)=0,"-",COUNTIF('N PMČRj 2020'!B:B,B87)) -> - | M87: =IF(ISERROR(VLOOKUP(B87,'N PMČRj 2020'!B:G,6,0)),"-",VLOOKUP(B87,'N PMČRj 2020'!B:G,6,0)) -> -
A88: 59 | B88: Miroslav Koci | C88: =VLOOKUP(B88,Pilot!A:C,3,0) -> Žamberk | D88: =VLOOKUP(B88,Pilot!A:B,2,0) -> 1961 | E88: =VLOOKUP(B88,Pilot!A:E,5,0) -> M | F88: =VLOOKUP(B88,Pilot!A:F,6,0) ->  | G88: 59 | I88: 1 | J88: =IF(COUNTIF('N PMRg 2020'!B:B,B88)=0,"-",COUNTIF('N PMRg 2020'!B:B,B88)) -> - | K88: =IF(ISERROR(VLOOKUP(B88,'N PMRg 2020'!B:G,6,0)),"-",VLOOKUP(B88,'N PMRg 2020'!B:G,6,0)) -> - | L88: =IF(COUNTIF('N PMČRj 2020'!B:B,B88)=0,"-",COUNTIF('N PMČRj 2020'!B:B,B88)) -> - | M88: =IF(ISERROR(VLOOKUP(B88,'N PMČRj 2020'!B:G,6,0)),"-",VLOOKUP(B88,'N PMČRj 2020'!B:G,6,0)) -> -
A89: 60 | B89: Vaclav Marel | C89: =VLOOKUP(B89,Pilot!A:C,3,0) -> Jaroměř | D89: =VLOOKUP(B89,Pilot!A:B,2,0) -> 1974 | E89: =VLOOKUP(B89,Pilot!A:E,5,0) -> M | F89: =VLOOKUP(B89,Pilot!A:F,6,0) ->  | G89: 60 | I89: 1 | J89: =IF(COUNTIF('N PMRg 2020'!B:B,B89)=0,"-",COUNTIF('N PMRg 2020'!B:B,B89)) -> - | K89: =IF(ISERROR(VLOOKUP(B89,'N PMRg 2020'!B:G,6,0)),"-",VLOOKUP(B89,'N PMRg 2020'!B:G,6,0)) -> - | L89: =IF(COUNTIF('N PMČRj 2020'!B:B,B89)=0,"-",COUNTIF('N PMČRj 2020'!B:B,B89)) -> - | M89: =IF(ISERROR(VLOOKUP(B89,'N PMČRj 2020'!B:G,6,0)),"-",VLOOKUP(B89,'N PMČRj 2020'!B:G,6,0)) -> -
A90: 61 | B90: Jindrich Hruska | C90: =VLOOKUP(B90,Pilot!A:C,3,0) -> Soběslav | D90: =VLOOKUP(B90,Pilot!A:B,2,0) -> 1986 | E90: =VLOOKUP(B90,Pilot!A:E,5,0) -> M | F90: =VLOOKUP(B90,Pilot!A:F,6,0) ->  | G90: 61 | I90: 1 | J90: =IF(COUNTIF('N PMRg 2020'!B:B,B90)=0,"-",COUNTIF('N PMRg 2020'!B:B,B90)) -> - | K90: =IF(ISERROR(VLOOKUP(B90,'N PMRg 2020'!B:G,6,0)),"-",VLOOKUP(B90,'N PMRg 2020'!B:G,6,0)) -> - | L90: =IF(COUNTIF('N PMČRj 2020'!B:B,B90)=0,"-",COUNTIF('N PMČRj 2020'!B:B,B90)) -> - | M90: =IF(ISERROR(VLOOKUP(B90,'N PMČRj 2020'!B:G,6,0)),"-",VLOOKUP(B90,'N PMČRj 2020'!B:G,6,0)) -> -
A91: 62 | B91: Jiri Slemr | C91: =VLOOKUP(B91,Pilot!A:C,3,0) -> Vysoké Mýto | D91: =VLOOKUP(B91,Pilot!A:B,2,0) -> 1979 | E91: =VLOOKUP(B91,Pilot!A:E,5,0) -> M | F91: =VLOOKUP(B91,Pilot!A:F,6,0) ->  | G91: 62 | I91: 1 | J91: =IF(COUNTIF('N PMRg 2020'!B:B,B91)=0,"-",COUNTIF('N PMRg 2020'!B:B,B91)) -> - | K91: =IF(ISERROR(VLOOKUP(B91,'N PMRg 2020'!B:G,6,0)),"-",VLOOKUP(B91,'N PMRg 2020'!B:G,6,0)) -> - | L91: =IF(COUNTIF('N PMČRj 2020'!B:B,B91)=0,"-",COUNTIF('N PMČRj 2020'!B:B,B91)) -> - | M91: =IF(ISERROR(VLOOKUP(B91,'N PMČRj 2020'!B:G,6,0)),"-",VLOOKUP(B91,'N PMČRj 2020'!B:G,6,0)) -> -
A92: 63 | B92: Lukas Plocek | C92: =VLOOKUP(B92,Pilot!A:C,3,0) -> Mladá Boleslav | D92: =VLOOKUP(B92,Pilot!A:B,2,0) -> 1990 | E92: =VLOOKUP(B92,Pilot!A:E,5,0) -> M | F92: =VLOOKUP(B92,Pilot!A:F,6,0) ->  | G92: 63 | I92: 1 | J92: =IF(COUNTIF('N PMRg 2020'!B:B,B92)=0,"-",COUNTIF('N PMRg 2020'!B:B,B92)) -> - | K92: =IF(ISERROR(VLOOKUP(B92,'N PMRg 2020'!B:G,6,0)),"-",VLOOKUP(B92,'N PMRg 2020'!B:G,6,0)) -> - | L92: =IF(COUNTIF('N PMČRj 2020'!B:B,B92)=0,"-",COUNTIF('N PMČRj 2020'!B:B,B92)) -> - | M92: =IF(ISERROR(VLOOKUP(B92,'N PMČRj 2020'!B:G,6,0)),"-",VLOOKUP(B92,'N PMČRj 2020'!B:G,6,0)) -> -
A93: 64 | B93: Pavlina Horackova | C93: =VLOOKUP(B93,Pilot!A:C,3,0) -> Šumperk | D93: =VLOOKUP(B93,Pilot!A:B,2,0) -> 1965 | E93: =VLOOKUP(B93,Pilot!A:E,5,0) -> F | F93: =VLOOKUP(B93,Pilot!A:F,6,0) ->  | G93: 64 | I93: 1 | J93: =IF(COUNTIF('N PMRg 2020'!B:B,B93)=0,"-",COUNTIF('N PMRg 2020'!B:B,B93)) -> - | K93: =IF(ISERROR(VLOOKUP(B93,'N PMRg 2020'!B:G,6,0)),"-",VLOOKUP(B93,'N PMRg 2020'!B:G,6,0)) -> - | L93: =IF(COUNTIF('N PMČRj 2020'!B:B,B93)=0,"-",COUNTIF('N PMČRj 2020'!B:B,B93)) -> - | M93: =IF(ISERROR(VLOOKUP(B93,'N PMČRj 2020'!B:G,6,0)),"-",VLOOKUP(B93,'N PMČRj 2020'!B:G,6,0)) -> -
A94: 65 | B94: Jan Smaha | C94: =VLOOKUP(B94,Pilot!A:C,3,0) -> Česká Lípa | D94: =VLOOKUP(B94,Pilot!A:B,2,0) -> 1958 | E94: =VLOOKUP(B94,Pilot!A:E,5,0) -> M | F94: =VLOOKUP(B94,Pilot!A:F,6,0) ->  | G94: 65 | I94: 1 | J94: =IF(COUNTIF('N PMRg 2020'!B:B,B94)=0,"-",COUNTIF('N PMRg 2020'!B:B,B94)) -> - | K94: =IF(ISERROR(VLOOKUP(B94,'N PMRg 2020'!B:G,6,0)),"-",VLOOKUP(B94,'N PMRg 2020'!B:G,6,0)) -> - | L94: =IF(COUNTIF('N PMČRj 2020'!B:B,B94)=0,"-",COUNTIF('N PMČRj 2020'!B:B,B94)) -> - | M94: =IF(ISERROR(VLOOKUP(B94,'N PMČRj 2020'!B:G,6,0)),"-",VLOOKUP(B94,'N PMČRj 2020'!B:G,6,0)) -> -
A95: 66 | B95: Martin Stepanek | C95: =VLOOKUP(B95,Pilot!A:C,3,0) -> Moravská Třebová | D95: =VLOOKUP(B95,Pilot!A:B,2,0) -> 1987 | E95: =VLOOKUP(B95,Pilot!A:E,5,0) -> M | F95: =VLOOKUP(B95,Pilot!A:F,6,0) ->  | G95: 66 | I95: 1 | J95: =IF(COUNTIF('N PMRg 2020'!B:B,B95)=0,"-",COUNTIF('N PMRg 2020'!B:B,B95)) -> - | K95: =IF(ISERROR(VLOOKUP(B95,'N PMRg 2020'!B:G,6,0)),"-",VLOOKUP(B95,'N PMRg 2020'!B:G,6,0)) -> - | L95: =IF(COUNTIF('N PMČRj 2020'!B:B,B95)=0,"-",COUNTIF('N PMČRj 2020'!B:B,B95)) -> - | M95: =IF(ISERROR(VLOOKUP(B95,'N PMČRj 2020'!B:G,6,0)),"-",VLOOKUP(B95,'N PMČRj 2020'!B:G,6,0)) -> -
A96: 67 | B96: Barbora Kubickova | C96: =VLOOKUP(B96,Pilot!A:C,3,0) -> Medlánky | D96: =VLOOKUP(B96,Pilot!A:B,2,0) -> 1993 | E96: =VLOOKUP(B96,Pilot!A:E,5,0) -> F | F96: =VLOOKUP(B96,Pilot!A:F,6,0) ->  | G96: 67 | I96: 1 | J96: =IF(COUNTIF('N PMRg 2020'!B:B,B96)=0,"-",COUNTIF('N PMRg 2020'!B:B,B96)) -> - | K96: =IF(ISERROR(VLOOKUP(B96,'N PMRg 2020'!B:G,6,0)),"-",VLOOKUP(B96,'N PMRg 2020'!B:G,6,0)) -> - | L96: =IF(COUNTIF('N PMČRj 2020'!B:B,B96)=0,"-",COUNTIF('N PMČRj 2020'!B:B,B96)) -> - | M96: =IF(ISERROR(VLOOKUP(B96,'N PMČRj 2020'!B:G,6,0)),"-",VLOOKUP(B96,'N PMČRj 2020'!B:G,6,0)) -> -
A97: 68 | B97: Lukas Maly | C97: =VLOOKUP(B97,Pilot!A:C,3,0) -> Vysoké Mýto | D97: =VLOOKUP(B97,Pilot!A:B,2,0) -> 1998 | E97: =VLOOKUP(B97,Pilot!A:E,5,0) -> M | F97: =VLOOKUP(B97,Pilot!A:F,6,0) -> Junior v roce 2020 | G97: 68 | I97: 1 | J97: =IF(COUNTIF('N PMRg 2020'!B:B,B97)=0,"-",COUNTIF('N PMRg 2020'!B:B,B97)) -> - | K97: =IF(ISERROR(VLOOKUP(B97,'N PMRg 2020'!B:G,6,0)),"-",VLOOKUP(B97,'N PMRg 2020'!B:G,6,0)) -> - | L97: =IF(COUNTIF('N PMČRj 2020'!B:B,B97)=0,"-",COUNTIF('N PMČRj 2020'!B:B,B97)) -> 1 | M97: =IF(ISERROR(VLOOKUP(B97,'N PMČRj 2020'!B:G,6,0)),"-",VLOOKUP(B97,'N PMČRj 2020'!B:G,6,0)) -> 14
A98: 69 | B98: Ladislav Jozsa | C98: =VLOOKUP(B98,Pilot!A:C,3,0) -> Medlánky | D98: =VLOOKUP(B98,Pilot!A:B,2,0) -> 1981 | E98: =VLOOKUP(B98,Pilot!A:E,5,0) -> M | F98: =VLOOKUP(B98,Pilot!A:F,6,0) ->  | G98: 69 | I98: 1 | J98: =IF(COUNTIF('N PMRg 2020'!B:B,B98)=0,"-",COUNTIF('N PMRg 2020'!B:B,B98)) -> - | K98: =IF(ISERROR(VLOOKUP(B98,'N PMRg 2020'!B:G,6,0)),"-",VLOOKUP(B98,'N PMRg 2020'!B:G,6,0)) -> - | L98: =IF(COUNTIF('N PMČRj 2020'!B:B,B98)=0,"-",COUNTIF('N PMČRj 2020'!B:B,B98)) -> - | M98: =IF(ISERROR(VLOOKUP(B98,'N PMČRj 2020'!B:G,6,0)),"-",VLOOKUP(B98,'N PMČRj 2020'!B:G,6,0)) -> -
A99: 70 | B99: Vaclav Zak | C99: =VLOOKUP(B99,Pilot!A:C,3,0) -> GAC Benešov | D99: =VLOOKUP(B99,Pilot!A:B,2,0) -> 1962 | E99: =VLOOKUP(B99,Pilot!A:E,5,0) -> M | F99: =VLOOKUP(B99,Pilot!A:F,6,0) ->  | G99: 70 | I99: 1 | J99: =IF(COUNTIF('N PMRg 2020'!B:B,B99)=0,"-",COUNTIF('N PMRg 2020'!B:B,B99)) -> - | K99: =IF(ISERROR(VLOOKUP(B99,'N PMRg 2020'!B:G,6,0)),"-",VLOOKUP(B99,'N PMRg 2020'!B:G,6,0)) -> - | L99: =IF(COUNTIF('N PMČRj 2020'!B:B,B99)=0,"-",COUNTIF('N PMČRj 2020'!B:B,B99)) -> - | M99: =IF(ISERROR(VLOOKUP(B99,'N PMČRj 2020'!B:G,6,0)),"-",VLOOKUP(B99,'N PMČRj 2020'!B:G,6,0)) -> -
A100: 71 | B100: Petr Frycek | C100: =VLOOKUP(B100,Pilot!A:C,3,0) -> Most | D100: =VLOOKUP(B100,Pilot!A:B,2,0) -> 1960 | E100: =VLOOKUP(B100,Pilot!A:E,5,0) -> M | F100: =VLOOKUP(B100,Pilot!A:F,6,0) ->  | G100: =A100 -> 71 | I100: 1 | J100: =IF(COUNTIF('N PMRg 2020'!B:B,B100)=0,"-",COUNTIF('N PMRg 2020'!B:B,B100)) -> - | K100: =IF(ISERROR(VLOOKUP(B100,'N PMRg 2020'!B:G,6,0)),"-",VLOOKUP(B100,'N PMRg 2020'!B:G,6,0)) -> - | L100: =IF(COUNTIF('N PMČRj 2020'!B:B,B100)=0,"-",COUNTIF('N PMČRj 2020'!B:B,B100)) -> - | M100: =IF(ISERROR(VLOOKUP(B100,'N PMČRj 2020'!B:G,6,0)),"-",VLOOKUP(B100,'N PMČRj 2020'!B:G,6,0)) -> -
A101: 72 | B101: Karel Knotek | C101: =VLOOKUP(B101,Pilot!A:C,3,0) -> Soběslav | D101: =VLOOKUP(B101,Pilot!A:B,2,0) -> 1961 | E101: =VLOOKUP(B101,Pilot!A:E,5,0) -> M | F101: =VLOOKUP(B101,Pilot!A:F,6,0) ->  | G101: 72 | I101: 1 | J101: =IF(COUNTIF('N PMRg 2020'!B:B,B101)=0,"-",COUNTIF('N PMRg 2020'!B:B,B101)) -> - | K101: =IF(ISERROR(VLOOKUP(B101,'N PMRg 2020'!B:G,6,0)),"-",VLOOKUP(B101,'N PMRg 2020'!B:G,6,0)) -> - | L101: =IF(COUNTIF('N PMČRj 2020'!B:B,B101)=0,"-",COUNTIF('N PMČRj 2020'!B:B,B101)) -> - | M101: =IF(ISERROR(VLOOKUP(B101,'N PMČRj 2020'!B:G,6,0)),"-",VLOOKUP(B101,'N PMČRj 2020'!B:G,6,0)) -> -
A102: 73 | B102: Slavomir Piskaty 58 | C102: =VLOOKUP(B102,Pilot!A:C,3,0) -> Kunovice | D102: =VLOOKUP(B102,Pilot!A:B,2,0) -> 1958 | E102: =VLOOKUP(B102,Pilot!A:E,5,0) -> M | F102: =VLOOKUP(B102,Pilot!A:F,6,0) ->  | G102: =A102 -> 73 | I102: 1 | J102: =IF(COUNTIF('N PMRg 2020'!B:B,B102)=0,"-",COUNTIF('N PMRg 2020'!B:B,B102)) -> - | K102: =IF(ISERROR(VLOOKUP(B102,'N PMRg 2020'!B:G,6,0)),"-",VLOOKUP(B102,'N PMRg 2020'!B:G,6,0)) -> - | L102: =IF(COUNTIF('N PMČRj 2020'!B:B,B102)=0,"-",COUNTIF('N PMČRj 2020'!B:B,B102)) -> - | M102: =IF(ISERROR(VLOOKUP(B102,'N PMČRj 2020'!B:G,6,0)),"-",VLOOKUP(B102,'N PMČRj 2020'!B:G,6,0)) -> -
A103: 74 | B103: Josef Hlusek | C103: =VLOOKUP(B103,Pilot!A:C,3,0) -> Kunovice | D103: =VLOOKUP(B103,Pilot!A:B,2,0) -> 1993 | E103: =VLOOKUP(B103,Pilot!A:E,5,0) -> M | F103: =VLOOKUP(B103,Pilot!A:F,6,0) ->  | G103: 74 | I103: 1 | J103: =IF(COUNTIF('N PMRg 2020'!B:B,B103)=0,"-",COUNTIF('N PMRg 2020'!B:B,B103)) -> - | K103: =IF(ISERROR(VLOOKUP(B103,'N PMRg 2020'!B:G,6,0)),"-",VLOOKUP(B103,'N PMRg 2020'!B:G,6,0)) -> - | L103: =IF(COUNTIF('N PMČRj 2020'!B:B,B103)=0,"-",COUNTIF('N PMČRj 2020'!B:B,B103)) -> - | M103: =IF(ISERROR(VLOOKUP(B103,'N PMČRj 2020'!B:G,6,0)),"-",VLOOKUP(B103,'N PMČRj 2020'!B:G,6,0)) -> -
A104: 75 | B104: Jan Florian | C104: =VLOOKUP(B104,Pilot!A:C,3,0) -> Zbraslavice | D104: =VLOOKUP(B104,Pilot!A:B,2,0) -> 1992 | E104: =VLOOKUP(B104,Pilot!A:E,5,0) -> M | F104: =VLOOKUP(B104,Pilot!A:F,6,0) ->  | G104: 75 | I104: 1 | J104: =IF(COUNTIF('N PMRg 2020'!B:B,B104)=0,"-",COUNTIF('N PMRg 2020'!B:B,B104)) -> - | K104: =IF(ISERROR(VLOOKUP(B104,'N PMRg 2020'!B:G,6,0)),"-",VLOOKUP(B104,'N PMRg 2020'!B:G,6,0)) -> - | L104: =IF(COUNTIF('N PMČRj 2020'!B:B,B104)=0,"-",COUNTIF('N PMČRj 2020'!B:B,B104)) -> - | M104: =IF(ISERROR(VLOOKUP(B104,'N PMČRj 2020'!B:G,6,0)),"-",VLOOKUP(B104,'N PMČRj 2020'!B:G,6,0)) -> -
A105: 76 | B105: Ladislav Prokes | C105: =VLOOKUP(B105,Pilot!A:C,3,0) -> Vrchlabí | D105: =VLOOKUP(B105,Pilot!A:B,2,0) -> 1954 | E105: =VLOOKUP(B105,Pilot!A:E,5,0) -> M | F105: =VLOOKUP(B105,Pilot!A:F,6,0) ->  | G105: 76 | I105: 1 | J105: =IF(COUNTIF('N PMRg 2020'!B:B,B105)=0,"-",COUNTIF('N PMRg 2020'!B:B,B105)) -> - | K105: =IF(ISERROR(VLOOKUP(B105,'N PMRg 2020'!B:G,6,0)),"-",VLOOKUP(B105,'N PMRg 2020'!B:G,6,0)) -> - | L105: =IF(COUNTIF('N PMČRj 2020'!B:B,B105)=0,"-",COUNTIF('N PMČRj 2020'!B:B,B105)) -> - | M105: =IF(ISERROR(VLOOKUP(B105,'N PMČRj 2020'!B:G,6,0)),"-",VLOOKUP(B105,'N PMČRj 2020'!B:G,6,0)) -> -
A106: 77 | B106: Petr Velek | C106: =VLOOKUP(B106,Pilot!A:C,3,0) -> GAC Benešov | D106: =VLOOKUP(B106,Pilot!A:B,2,0) -> 1975 | E106: =VLOOKUP(B106,Pilot!A:E,5,0) -> M | F106: =VLOOKUP(B106,Pilot!A:F,6,0) ->  | G106: 77 | I106: 1 | J106: =IF(COUNTIF('N PMRg 2020'!B:B,B106)=0,"-",COUNTIF('N PMRg 2020'!B:B,B106)) -> - | K106: =IF(ISERROR(VLOOKUP(B106,'N PMRg 2020'!B:G,6,0)),"-",VLOOKUP(B106,'N PMRg 2020'!B:G,6,0)) -> - | L106: =IF(COUNTIF('N PMČRj 2020'!B:B,B106)=0,"-",COUNTIF('N PMČRj 2020'!B:B,B106)) -> - | M106: =IF(ISERROR(VLOOKUP(B106,'N PMČRj 2020'!B:G,6,0)),"-",VLOOKUP(B106,'N PMČRj 2020'!B:G,6,0)) -> -
A107: 78 | B107: Kristina Santruckova | C107: =VLOOKUP(B107,Pilot!A:C,3,0) -> Podhořany | D107: =VLOOKUP(B107,Pilot!A:B,2,0) -> 1996 | E107: =VLOOKUP(B107,Pilot!A:E,5,0) -> F | F107: =VLOOKUP(B107,Pilot!A:F,6,0) -> Junior v roce 2020 | G107: 78 | I107: 1 | J107: =IF(COUNTIF('N PMRg 2020'!B:B,B107)=0,"-",COUNTIF('N PMRg 2020'!B:B,B107)) -> - | K107: =IF(ISERROR(VLOOKUP(B107,'N PMRg 2020'!B:G,6,0)),"-",VLOOKUP(B107,'N PMRg 2020'!B:G,6,0)) -> - | L107: =IF(COUNTIF('N PMČRj 2020'!B:B,B107)=0,"-",COUNTIF('N PMČRj 2020'!B:B,B107)) -> 1 | M107: =IF(ISERROR(VLOOKUP(B107,'N PMČRj 2020'!B:G,6,0)),"-",VLOOKUP(B107,'N PMČRj 2020'!B:G,6,0)) -> 21
A108: 79 | B108: - | C108: =VLOOKUP(B108,Pilot!A:C,3,0) ->  | D108: =VLOOKUP(B108,Pilot!A:B,2,0) ->  | E108: =VLOOKUP(B108,Pilot!A:E,5,0) ->  | F108: =VLOOKUP(B108,Pilot!A:F,6,0) ->  | G108: 79 | I108: 13 | J108: =IF(COUNTIF('N PMRg 2020'!B:B,B108)=0,"-",COUNTIF('N PMRg 2020'!B:B,B108)) -> 6 | K108: =IF(ISERROR(VLOOKUP(B108,'N PMRg 2020'!B:G,6,0)),"-",VLOOKUP(B108,'N PMRg 2020'!B:G,6,0)) -> - | L108: =IF(COUNTIF('N PMČRj 2020'!B:B,B108)=0,"-",COUNTIF('N PMČRj 2020'!B:B,B108)) -> 10 | M108: =IF(ISERROR(VLOOKUP(B108,'N PMČRj 2020'!B:G,6,0)),"-",VLOOKUP(B108,'N PMČRj 2020'!B:G,6,0)) -> -
A109: 80 | B109: - | C109: =VLOOKUP(B109,Pilot!A:C,3,0) ->  | D109: =VLOOKUP(B109,Pilot!A:B,2,0) ->  | E109: =VLOOKUP(B109,Pilot!A:E,5,0) ->  | F109: =VLOOKUP(B109,Pilot!A:F,6,0) ->  | G109: 80 | I109: 13 | J109: =IF(COUNTIF('N PMRg 2020'!B:B,B109)=0,"-",COUNTIF('N PMRg 2020'!B:B,B109)) -> 6 | K109: =IF(ISERROR(VLOOKUP(B109,'N PMRg 2020'!B:G,6,0)),"-",VLOOKUP(B109,'N PMRg 2020'!B:G,6,0)) -> - | L109: =IF(COUNTIF('N PMČRj 2020'!B:B,B109)=0,"-",COUNTIF('N PMČRj 2020'!B:B,B109)) -> 10 | M109: =IF(ISERROR(VLOOKUP(B109,'N PMČRj 2020'!B:G,6,0)),"-",VLOOKUP(B109,'N PMČRj 2020'!B:G,6,0)) -> -
A110: N1 | B110: - | C110: =VLOOKUP(B110,Pilot!A:C,3,0) ->  | D110: =VLOOKUP(B110,Pilot!A:B,2,0) ->  | E110: =VLOOKUP(B110,Pilot!A:E,5,0) ->  | F110: =VLOOKUP(B110,Pilot!A:F,6,0) ->  | G110: =A110 -> N1 | I110: 13 | J110: =IF(COUNTIF('N PMRg 2020'!B:B,B110)=0,"-",COUNTIF('N PMRg 2020'!B:B,B110)) -> 6 | K110: =IF(ISERROR(VLOOKUP(B110,'N PMRg 2020'!B:G,6,0)),"-",VLOOKUP(B110,'N PMRg 2020'!B:G,6,0)) -> - | L110: =IF(COUNTIF('N PMČRj 2020'!B:B,B110)=0,"-",COUNTIF('N PMČRj 2020'!B:B,B110)) -> 10 | M110: =IF(ISERROR(VLOOKUP(B110,'N PMČRj 2020'!B:G,6,0)),"-",VLOOKUP(B110,'N PMČRj 2020'!B:G,6,0)) -> -
A111: N2 | B111: - | C111: =VLOOKUP(B111,Pilot!A:C,3,0) ->  | D111: =VLOOKUP(B111,Pilot!A:B,2,0) ->  | E111: =VLOOKUP(B111,Pilot!A:E,5,0) ->  | F111: =VLOOKUP(B111,Pilot!A:F,6,0) ->  | G111: N2 | I111: 13 | J111: =IF(COUNTIF('N PMRg 2020'!B:B,B111)=0,"-",COUNTIF('N PMRg 2020'!B:B,B111)) -> 6 | K111: =IF(ISERROR(VLOOKUP(B111,'N PMRg 2020'!B:G,6,0)),"-",VLOOKUP(B111,'N PMRg 2020'!B:G,6,0)) -> - | L111: =IF(COUNTIF('N PMČRj 2020'!B:B,B111)=0,"-",COUNTIF('N PMČRj 2020'!B:B,B111)) -> 10 | M111: =IF(ISERROR(VLOOKUP(B111,'N PMČRj 2020'!B:G,6,0)),"-",VLOOKUP(B111,'N PMČRj 2020'!B:G,6,0)) -> -
A112: N3 | B112: - | C112: =VLOOKUP(B112,Pilot!A:C,3,0) ->  | D112: =VLOOKUP(B112,Pilot!A:B,2,0) ->  | E112: =VLOOKUP(B112,Pilot!A:E,5,0) ->  | F112: =VLOOKUP(B112,Pilot!A:F,6,0) ->  | G112: N3 | I112: 13 | J112: =IF(COUNTIF('N PMRg 2020'!B:B,B112)=0,"-",COUNTIF('N PMRg 2020'!B:B,B112)) -> 6 | K112: =IF(ISERROR(VLOOKUP(B112,'N PMRg 2020'!B:G,6,0)),"-",VLOOKUP(B112,'N PMRg 2020'!B:G,6,0)) -> - | L112: =IF(COUNTIF('N PMČRj 2020'!B:B,B112)=0,"-",COUNTIF('N PMČRj 2020'!B:B,B112)) -> 10 | M112: =IF(ISERROR(VLOOKUP(B112,'N PMČRj 2020'!B:G,6,0)),"-",VLOOKUP(B112,'N PMČRj 2020'!B:G,6,0)) -> -
A113: N4 | B113: - | C113: =VLOOKUP(B113,Pilot!A:C,3,0) ->  | D113: =VLOOKUP(B113,Pilot!A:B,2,0) ->  | E113: =VLOOKUP(B113,Pilot!A:E,5,0) ->  | F113: =VLOOKUP(B113,Pilot!A:F,6,0) ->  | G113: N4 | I113: 13 | J113: =IF(COUNTIF('N PMRg 2020'!B:B,B113)=0,"-",COUNTIF('N PMRg 2020'!B:B,B113)) -> 6 | K113: =IF(ISERROR(VLOOKUP(B113,'N PMRg 2020'!B:G,6,0)),"-",VLOOKUP(B113,'N PMRg 2020'!B:G,6,0)) -> - | L113: =IF(COUNTIF('N PMČRj 2020'!B:B,B113)=0,"-",COUNTIF('N PMČRj 2020'!B:B,B113)) -> 10 | M113: =IF(ISERROR(VLOOKUP(B113,'N PMČRj 2020'!B:G,6,0)),"-",VLOOKUP(B113,'N PMČRj 2020'!B:G,6,0)) -> -
A114: N5 | B114: - | C114: =VLOOKUP(B114,Pilot!A:C,3,0) ->  | D114: =VLOOKUP(B114,Pilot!A:B,2,0) ->  | E114: =VLOOKUP(B114,Pilot!A:E,5,0) ->  | F114: =VLOOKUP(B114,Pilot!A:F,6,0) ->  | G114: N5 | I114: 13 | J114: =IF(COUNTIF('N PMRg 2020'!B:B,B114)=0,"-",COUNTIF('N PMRg 2020'!B:B,B114)) -> 6 | K114: =IF(ISERROR(VLOOKUP(B114,'N PMRg 2020'!B:G,6,0)),"-",VLOOKUP(B114,'N PMRg 2020'!B:G,6,0)) -> - | L114: =IF(COUNTIF('N PMČRj 2020'!B:B,B114)=0,"-",COUNTIF('N PMČRj 2020'!B:B,B114)) -> 10 | M114: =IF(ISERROR(VLOOKUP(B114,'N PMČRj 2020'!B:G,6,0)),"-",VLOOKUP(B114,'N PMČRj 2020'!B:G,6,0)) -> -
A115: N6 | B115: - | C115: =VLOOKUP(B115,Pilot!A:C,3,0) ->  | D115: =VLOOKUP(B115,Pilot!A:B,2,0) ->  | E115: =VLOOKUP(B115,Pilot!A:E,5,0) ->  | F115: =VLOOKUP(B115,Pilot!A:F,6,0) ->  | G115: N6 | I115: 13 | J115: =IF(COUNTIF('N PMRg 2020'!B:B,B115)=0,"-",COUNTIF('N PMRg 2020'!B:B,B115)) -> 6 | K115: =IF(ISERROR(VLOOKUP(B115,'N PMRg 2020'!B:G,6,0)),"-",VLOOKUP(B115,'N PMRg 2020'!B:G,6,0)) -> - | L115: =IF(COUNTIF('N PMČRj 2020'!B:B,B115)=0,"-",COUNTIF('N PMČRj 2020'!B:B,B115)) -> 10 | M115: =IF(ISERROR(VLOOKUP(B115,'N PMČRj 2020'!B:G,6,0)),"-",VLOOKUP(B115,'N PMČRj 2020'!B:G,6,0)) -> -
A116: N7 | B116: - | C116: =VLOOKUP(B116,Pilot!A:C,3,0) ->  | D116: =VLOOKUP(B116,Pilot!A:B,2,0) ->  | E116: =VLOOKUP(B116,Pilot!A:E,5,0) ->  | F116: =VLOOKUP(B116,Pilot!A:F,6,0) ->  | G116: N7 | I116: 13 | J116: =IF(COUNTIF('N PMRg 2020'!B:B,B116)=0,"-",COUNTIF('N PMRg 2020'!B:B,B116)) -> 6 | K116: =IF(ISERROR(VLOOKUP(B116,'N PMRg 2020'!B:G,6,0)),"-",VLOOKUP(B116,'N PMRg 2020'!B:G,6,0)) -> - | L116: =IF(COUNTIF('N PMČRj 2020'!B:B,B116)=0,"-",COUNTIF('N PMČRj 2020'!B:B,B116)) -> 10 | M116: =IF(ISERROR(VLOOKUP(B116,'N PMČRj 2020'!B:G,6,0)),"-",VLOOKUP(B116,'N PMČRj 2020'!B:G,6,0)) -> -
A117: N8 | B117: - | C117: =VLOOKUP(B117,Pilot!A:C,3,0) ->  | D117: =VLOOKUP(B117,Pilot!A:B,2,0) ->  | E117: =VLOOKUP(B117,Pilot!A:E,5,0) ->  | F117: =VLOOKUP(B117,Pilot!A:F,6,0) ->  | G117: N8 | I117: 13 | J117: =IF(COUNTIF('N PMRg 2020'!B:B,B117)=0,"-",COUNTIF('N PMRg 2020'!B:B,B117)) -> 6 | K117: =IF(ISERROR(VLOOKUP(B117,'N PMRg 2020'!B:G,6,0)),"-",VLOOKUP(B117,'N PMRg 2020'!B:G,6,0)) -> - | L117: =IF(COUNTIF('N PMČRj 2020'!B:B,B117)=0,"-",COUNTIF('N PMČRj 2020'!B:B,B117)) -> 10 | M117: =IF(ISERROR(VLOOKUP(B117,'N PMČRj 2020'!B:G,6,0)),"-",VLOOKUP(B117,'N PMČRj 2020'!B:G,6,0)) -> -
A118: N9 | B118: - | C118: =VLOOKUP(B118,Pilot!A:C,3,0) ->  | D118: =VLOOKUP(B118,Pilot!A:B,2,0) ->  | E118: =VLOOKUP(B118,Pilot!A:E,5,0) ->  | F118: =VLOOKUP(B118,Pilot!A:F,6,0) ->  | G118: N9 | I118: 13 | J118: =IF(COUNTIF('N PMRg 2020'!B:B,B118)=0,"-",COUNTIF('N PMRg 2020'!B:B,B118)) -> 6 | K118: =IF(ISERROR(VLOOKUP(B118,'N PMRg 2020'!B:G,6,0)),"-",VLOOKUP(B118,'N PMRg 2020'!B:G,6,0)) -> - | L118: =IF(COUNTIF('N PMČRj 2020'!B:B,B118)=0,"-",COUNTIF('N PMČRj 2020'!B:B,B118)) -> 10 | M118: =IF(ISERROR(VLOOKUP(B118,'N PMČRj 2020'!B:G,6,0)),"-",VLOOKUP(B118,'N PMČRj 2020'!B:G,6,0)) -> -
A119: N10 | B119: - | C119: =VLOOKUP(B119,Pilot!A:C,3,0) ->  | D119: =VLOOKUP(B119,Pilot!A:B,2,0) ->  | E119: =VLOOKUP(B119,Pilot!A:E,5,0) ->  | F119: =VLOOKUP(B119,Pilot!A:F,6,0) ->  | G119: N10 | I119: 13 | J119: =IF(COUNTIF('N PMRg 2020'!B:B,B119)=0,"-",COUNTIF('N PMRg 2020'!B:B,B119)) -> 6 | K119: =IF(ISERROR(VLOOKUP(B119,'N PMRg 2020'!B:G,6,0)),"-",VLOOKUP(B119,'N PMRg 2020'!B:G,6,0)) -> - | L119: =IF(COUNTIF('N PMČRj 2020'!B:B,B119)=0,"-",COUNTIF('N PMČRj 2020'!B:B,B119)) -> 10 | M119: =IF(ISERROR(VLOOKUP(B119,'N PMČRj 2020'!B:G,6,0)),"-",VLOOKUP(B119,'N PMČRj 2020'!B:G,6,0)) -> -
A120: 6.6.7. | B120: Nominace zahraničních účastníků
B121: PMČR se mohou zúčastnit zahraniční účastníci pouze v případě, že nebude omezen počet řádně nominovaných soutěžících z ČR a soutěžící splňuje podmínky odstavce 6.1. a 6.6.1. SŘ.
B122: V případě pořádání společného PMČR s plachtařským mistrovstvím některého ze suverénních států může PK stanovit zvláštní pravidla pro nominaci.
A123: 6.6.8. | B123: Volná nominace
B124: Volnou nominaci je možné využít pouze v tom případě, že pilot na PMČR nepostupuje podle žádného z bodů odstavce 6.6.6.
B125: Umožňuje-li to kapacita pořádajícího letiště, mohou se z členů AeČR mimo řádně nominovaných do soutěže přihlásit také piloti/pilotky, kteří se:
A126: 6.6.8.1. | B126: v posledních 3 letech před rokem konání soutěže zúčastnili MS, ME, WAG nebo Světové Grand Prix jako velitel kluzáku,
A127: 6.6.8.2. | B127: umístili v aktuálním Všeobecném Žebříku do 100. místa,
A128: 6.6.8.3. | B128: Při větším počtu přihlášek, než je kapacita letiště Pořadatele, rozhoduje o přijetí do soutěže pořadí soutěžícího v aktuálním Všeobecném Žebříku s podmínkou zaplacení vkladu v termínu stanoveném Pořadatelem.
A131: Schváleno Plachtařskou komisí AeČR dne 1.3.2020 v Praze

Sheet N PMRg 2020
B1: Nominace na PMRg 2020 | H1: Kontrola: | I1: Počet | J1: Počet | K1: Nominace | L1: Počet | M1: Nominace | N1: M: | O1: F: | P1: M+F:
A2: No | B2: Jméno | C2: Aeroklub | D2: Rok narození | E2: M/F | F2: Junior | G2: No | I2: PMRg | J2: PMČR | K2: PMČR | L2: PMČRj | M2: PMČRj | N2: =COUNTIF(E:E,"M") -> 69 | O2: =COUNTIF(E:E,"F") -> 1 | P2: =N2+O2 -> 70 | Q2: S náhradníky
A3: 6.8.5. | B3: Nominace na PMRg (dle SŘ ZM8) | M3: Celkem řádně nominováno: | N3: =N2-COUNTIF(E75:E83,"M") -> 60 | O3: =O2-COUNTIF(E80:E83,"F") -> 1 | P3: =N3+O3 -> 61 | Q3: Bez náhradníků
B4: Na PMRg nominuje PK minimálně 60 pilotů/pilotek a příslušný počet náhradníků pro stanovená nominační kritéria.
B5: Na PMRg jsou nominováni:
A6: 6.8.5.1. | B6: všichni soutěžící z posledního platného PMČR, kteří nepostoupili na PMČR v roce konání PMRg (bez náhradníků)
B7: PMČR 2019 - Moravská Třebová - Klub
A8: 1 | B8: Petr Panek | C8: =VLOOKUP(B8,Pilot!A:C,3,0) -> Dvůr Králové | D8: =VLOOKUP(B8,Pilot!A:C,2,0) -> 1975 | E8: =VLOOKUP(B8,Pilot!A:E,5,0) -> M | F8: =VLOOKUP(B8,Pilot!A:F,6,0) ->  | G8: =A8 -> 1 | I8: =COUNTIF(B:B,B8) -> 1 | J8: =IF(COUNTIF('N PMČR 2020'!B:B,B8)=0,"-",COUNTIF('N PMČR 2020'!B:B,B8)) -> - | K8: =IF(ISERROR(VLOOKUP(B8,'N PMČR 2020'!B:G,6,0)),"-",VLOOKUP(B8,'N PMČR 2020'!B:G,6,0)) -> - | L8: =IF(COUNTIF('N PMČRj 2020'!B:B,B8)=0,"-",COUNTIF('N PMČRj 2020'!B:B,B8)) -> - | M8: =IF(ISERROR(VLOOKUP(B8,'N PMČRj 2020'!B:G,6,0)),"-",VLOOKUP(B8,'N PMČRj 2020'!B:G,6,0)) -> -
A9: =A8+1 -> 2 | B9: Jakub Kohn | C9: =VLOOKUP(B9,Pilot!A:C,3,0) -> Prostějov | D9: =VLOOKUP(B9,Pilot!A:C,2,0) -> 1992 | E9: =VLOOKUP(B9,Pilot!A:E,5,0) -> M | F9: =VLOOKUP(B9,Pilot!A:F,6,0) ->  | G9: 2 | I9: 1 | J9: =IF(COUNTIF('N PMČR 2020'!B:B,B9)=0,"-",COUNTIF('N PMČR 2020'!B:B,B9)) -> - | K9: =IF(ISERROR(VLOOKUP(B9,'N PMČR 2020'!B:G,6,0)),"-",VLOOKUP(B9,'N PMČR 2020'!B:G,6,0)) -> - | L9: =IF(COUNTIF('N PMČRj 2020'!B:B,B9)=0,"-",COUNTIF('N PMČRj 2020'!B:B,B9)) -> - | M9: =IF(ISERROR(VLOOKUP(B9,'N PMČRj 2020'!B:G,6,0)),"-",VLOOKUP(B9,'N PMČRj 2020'!B:G,6,0)) -> -
A10: 3 | B10: Frantisek Filandr | C10: =VLOOKUP(B10,Pilot!A:C,3,0) -> Most | D10: =VLOOKUP(B10,Pilot!A:C,2,0) -> 1956 | E10: =VLOOKUP(B10,Pilot!A:E,5,0) -> M | F10: =VLOOKUP(B10,Pilot!A:F,6,0) ->  | G10: 3 | I10: 1 | J10: =IF(COUNTIF('N PMČR 2020'!B:B,B10)=0,"-",COUNTIF('N PMČR 2020'!B:B,B10)) -> - | K10: =IF(ISERROR(VLOOKUP(B10,'N PMČR 2020'!B:G,6,0)),"-",VLOOKUP(B10,'N PMČR 2020'!B:G,6,0)) -> - | L10: =IF(COUNTIF('N PMČRj 2020'!B:B,B10)=0,"-",COUNTIF('N PMČRj 2020'!B:B,B10)) -> - | M10: =IF(ISERROR(VLOOKUP(B10,'N PMČRj 2020'!B:G,6,0)),"-",VLOOKUP(B10,'N PMČRj 2020'!B:G,6,0)) -> -
A11: 4 | B11: Lumir Motyka | C11: =VLOOKUP(B11,Pilot!A:C,3,0) -> Frýdlant | D11: =VLOOKUP(B11,Pilot!A:C,2,0) -> 1955 | E11: =VLOOKUP(B11,Pilot!A:E,5,0) -> M | F11: =VLOOKUP(B11,Pilot!A:F,6,0) ->  | G11: 4 | I11: 1 | J11: =IF(COUNTIF('N PMČR 2020'!B:B,B11)=0,"-",COUNTIF('N PMČR 2020'!B:B,B11)) -> - | K11: =IF(ISERROR(VLOOKUP(B11,'N PMČR 2020'!B:G,6,0)),"-",VLOOKUP(B11,'N PMČR 2020'!B:G,6,0)) -> - | L11: =IF(COUNTIF('N PMČRj 2020'!B:B,B11)=0,"-",COUNTIF('N PMČRj 2020'!B:B,B11)) -> - | M11: =IF(ISERROR(VLOOKUP(B11,'N PMČRj 2020'!B:G,6,0)),"-",VLOOKUP(B11,'N PMČRj 2020'!B:G,6,0)) -> -
A12: 5 | B12: Zdenek Balcarek | C12: =VLOOKUP(B12,Pilot!A:C,3,0) -> Kroměříž | D12: =VLOOKUP(B12,Pilot!A:C,2,0) -> 1967 | E12: =VLOOKUP(B12,Pilot!A:E,5,0) -> M | F12: =VLOOKUP(B12,Pilot!A:F,6,0) ->  | G12: 5 | I12: 1 | J12: =IF(COUNTIF('N PMČR 2020'!B:B,B12)=0,"-",COUNTIF('N PMČR 2020'!B:B,B12)) -> - | K12: =IF(ISERROR(VLOOKUP(B12,'N PMČR 2020'!B:G,6,0)),"-",VLOOKUP(B12,'N PMČR 2020'!B:G,6,0)) -> - | L12: =IF(COUNTIF('N PMČRj 2020'!B:B,B12)=0,"-",COUNTIF('N PMČRj 2020'!B:B,B12)) -> - | M12: =IF(ISERROR(VLOOKUP(B12,'N PMČRj 2020'!B:G,6,0)),"-",VLOOKUP(B12,'N PMČRj 2020'!B:G,6,0)) -> -
A13: 6 | B13: Marek Svancara | C13: =VLOOKUP(B13,Pilot!A:C,3,0) -> GAC Benešov | D13: =VLOOKUP(B13,Pilot!A:C,2,0) -> 1976 | E13: =VLOOKUP(B13,Pilot!A:E,5,0) -> M | F13: =VLOOKUP(B13,Pilot!A:F,6,0) ->  | G13: 6 | I13: 1 | J13: =IF(COUNTIF('N PMČR 2020'!B:B,B13)=0,"-",COUNTIF('N PMČR 2020'!B:B,B13)) -> - | K13: =IF(ISERROR(VLOOKUP(B13,'N PMČR 2020'!B:G,6,0)),"-",VLOOKUP(B13,'N PMČR 2020'!B:G,6,0)) -> - | L13: =IF(COUNTIF('N PMČRj 2020'!B:B,B13)=0,"-",COUNTIF('N PMČRj 2020'!B:B,B13)) -> - | M13: =IF(ISERROR(VLOOKUP(B13,'N PMČRj 2020'!B:G,6,0)),"-",VLOOKUP(B13,'N PMČRj 2020'!B:G,6,0)) -> -
A14: 7 | B14: Vojtech Hajek | C14: =VLOOKUP(B14,Pilot!A:C,3,0) -> Mladá Boleslav | D14: =VLOOKUP(B14,Pilot!A:C,2,0) -> 1987 | E14: =VLOOKUP(B14,Pilot!A:E,5,0) -> M | F14: =VLOOKUP(B14,Pilot!A:F,6,0) ->  | G14: =A14 -> 7 | I14: 1 | J14: =IF(COUNTIF('N PMČR 2020'!B:B,B14)=0,"-",COUNTIF('N PMČR 2020'!B:B,B14)) -> - | K14: =IF(ISERROR(VLOOKUP(B14,'N PMČR 2020'!B:G,6,0)),"-",VLOOKUP(B14,'N PMČR 2020'!B:G,6,0)) -> - | L14: =IF(COUNTIF('N PMČRj 2020'!B:B,B14)=0,"-",COUNTIF('N PMČRj 2020'!B:B,B14)) -> - | M14: =IF(ISERROR(VLOOKUP(B14,'N PMČRj 2020'!B:G,6,0)),"-",VLOOKUP(B14,'N PMČRj 2020'!B:G,6,0)) -> -
A15: 8 | B15: Ondrej Dvorak 98 | C15: =VLOOKUP(B15,Pilot!A:C,3,0) -> Mladá Boleslav | D15: =VLOOKUP(B15,Pilot!A:C,2,0) -> 1998 | E15: =VLOOKUP(B15,Pilot!A:E,5,0) -> M | F15: =VLOOKUP(B15,Pilot!A:F,6,0) -> Junior v roce 2020 | G15: =A15 -> 8 | I15: 1 | J15: =IF(COUNTIF('N PMČR 2020'!B:B,B15)=0,"-",COUNTIF('N PMČR 2020'!B:B,B15)) -> - | K15: =IF(ISERROR(VLOOKUP(B15,'N PMČR 2020'!B:G,6,0)),"-",VLOOKUP(B15,'N PMČR 2020'!B:G,6,0)) -> - | L15: =IF(COUNTIF('N PMČRj 2020'!B:B,B15)=0,"-",COUNTIF('N PMČRj 2020'!B:B,B15)) -> 1 | M15: =IF(ISERROR(VLOOKUP(B15,'N PMČRj 2020'!B:G,6,0)),"-",VLOOKUP(B15,'N PMČRj 2020'!B:G,6,0)) -> 8
B16: PMČR 2019 - Moravská Třbová - Kombi 15m
A17: =MAX(A8:A16)+1 -> 9 | B17: Jan Pavlik | C17: =VLOOKUP(B17,Pilot!A:C,3,0) -> Křižanov | D17: =VLOOKUP(B17,Pilot!A:C,2,0) -> 1987 | E17: =VLOOKUP(B17,Pilot!A:E,5,0) -> M | F17: =VLOOKUP(B17,Pilot!A:F,6,0) ->  | G17: =A17 -> 9 | I17: =COUNTIF(B:B,B17) -> 1 | J17: =IF(COUNTIF('N PMČR 2020'!B:B,B17)=0,"-",COUNTIF('N PMČR 2020'!B:B,B17)) -> - | K17: =IF(ISERROR(VLOOKUP(B17,'N PMČR 2020'!B:G,6,0)),"-",VLOOKUP(B17,'N PMČR 2020'!B:G,6,0)) -> - | L17: =IF(COUNTIF('N PMČRj 2020'!B:B,B17)=0,"-",COUNTIF('N PMČRj 2020'!B:B,B17)) -> - | M17: =IF(ISERROR(VLOOKUP(B17,'N PMČRj 2020'!B:G,6,0)),"-",VLOOKUP(B17,'N PMČRj 2020'!B:G,6,0)) -> -
A18: =A17+1 -> 10 | B18: Jan Boruvka | C18: =VLOOKUP(B18,Pilot!A:C,3,0) -> Jičín | D18: =VLOOKUP(B18,Pilot!A:C,2,0) -> 1984 | E18: =VLOOKUP(B18,Pilot!A:E,5,0) -> M | F18: =VLOOKUP(B18,Pilot!A:F,6,0) ->  | G18: =A18 -> 10 | I18: =COUNTIF(B:B,B18) -> 1 | J18: =IF(COUNTIF('N PMČR 2020'!B:B,B18)=0,"-",COUNTIF('N PMČR 2020'!B:B,B18)) -> - | K18: =IF(ISERROR(VLOOKUP(B18,'N PMČR 2020'!B:G,6,0)),"-",VLOOKUP(B18,'N PMČR 2020'!B:G,6,0)) -> - | L18: =IF(COUNTIF('N PMČRj 2020'!B:B,B18)=0,"-",COUNTIF('N PMČRj 2020'!B:B,B18)) -> - | M18: =IF(ISERROR(VLOOKUP(B18,'N PMČRj 2020'!B:G,6,0)),"-",VLOOKUP(B18,'N PMČRj 2020'!B:G,6,0)) -> -
A19: =A18+1 -> 11 | B19: Radek Zima 78 | C19: =VLOOKUP(B19,Pilot!A:C,3,0) -> Hodkovice | D19: =VLOOKUP(B19,Pilot!A:C,2,0) -> 1978 | E19: =VLOOKUP(B19,Pilot!A:E,5,0) -> M | F19: =VLOOKUP(B19,Pilot!A:F,6,0) ->  | G19: =A19 -> 11 | I19: =COUNTIF(B:B,B19) -> 1 | J19: =IF(COUNTIF('N PMČR 2020'!B:B,B19)=0,"-",COUNTIF('N PMČR 2020'!B:B,B19)) -> - | K19: =IF(ISERROR(VLOOKUP(B19,'N PMČR 2020'!B:G,6,0)),"-",VLOOKUP(B19,'N PMČR 2020'!B:G,6,0)) -> - | L19: =IF(COUNTIF('N PMČRj 2020'!B:B,B19)=0,"-",COUNTIF('N PMČRj 2020'!B:B,B19)) -> - | M19: =IF(ISERROR(VLOOKUP(B19,'N PMČRj 2020'!B:G,6,0)),"-",VLOOKUP(B19,'N PMČRj 2020'!B:G,6,0)) -> -
B20: PMČR 2019 - Moravská Třebová - Kombi Open
A21: =MAX(A17:A20)+1 -> 12 | B21: Jiri Steiger | C21: =VLOOKUP(B21,Pilot!A:C,3,0) -> Olomouc | D21: =VLOOKUP(B21,Pilot!A:C,2,0) -> 1969 | E21: =VLOOKUP(B21,Pilot!A:E,5,0) -> M | F21: =VLOOKUP(B21,Pilot!A:F,6,0) ->  | G21: =A21 -> 12 | I21: =COUNTIF(B:B,B21) -> 1 | J21: =IF(COUNTIF('N PMČR 2020'!B:B,B21)=0,"-",COUNTIF('N PMČR 2020'!B:B,B21)) -> - | K21: =IF(ISERROR(VLOOKUP(B21,'N PMČR 2020'!B:G,6,0)),"-",VLOOKUP(B21,'N PMČR 2020'!B:G,6,0)) -> - | L21: =IF(COUNTIF('N PMČRj 2020'!B:B,B21)=0,"-",COUNTIF('N PMČRj 2020'!B:B,B21)) -> - | M21: =IF(ISERROR(VLOOKUP(B21,'N PMČRj 2020'!B:G,6,0)),"-",VLOOKUP(B21,'N PMČRj 2020'!B:G,6,0)) -> -
A22: =A21+1 -> 13 | B22: Martin Hrivna | C22: =VLOOKUP(B22,Pilot!A:C,3,0) -> Zbraslavice | D22: =VLOOKUP(B22,Pilot!A:C,2,0) -> 1978 | E22: =VLOOKUP(B22,Pilot!A:E,5,0) -> M | F22: =VLOOKUP(B22,Pilot!A:F,6,0) ->  | G22: =A22 -> 13 | I22: =COUNTIF(B:B,B22) -> 1 | J22: =IF(COUNTIF('N PMČR 2020'!B:B,B22)=0,"-",COUNTIF('N PMČR 2020'!B:B,B22)) -> - | K22: =IF(ISERROR(VLOOKUP(B22,'N PMČR 2020'!B:G,6,0)),"-",VLOOKUP(B22,'N PMČR 2020'!B:G,6,0)) -> - | L22: =IF(COUNTIF('N PMČRj 2020'!B:B,B22)=0,"-",COUNTIF('N PMČRj 2020'!B:B,B22)) -> - | M22: =IF(ISERROR(VLOOKUP(B22,'N PMČRj 2020'!B:G,6,0)),"-",VLOOKUP(B22,'N PMČRj 2020'!B:G,6,0)) -> -
A23: 6.8.5.2. | B23: prvních 10 soutěžících z posledního platného PMRg, kteří nepostoupili na PMČR v roce konání PMRg, v pořadí podle korigovaných bodů ze všech tříd (bez náhradníků)
B24: V případě neplatnosti některé ze soutěžních tříd posledního PMRg budou pro výpočet korigovaných bodů použity výsledky z posledního platného PMRg v dané třídě.
B25: PMRg 2019 - Vysoké Mýto - Korigované body
A26: - | B26: - | D26: =VLOOKUP(B26,Pilot!A:C,2,0) ->  | E26: =VLOOKUP(B26,Pilot!A:E,5,0) ->  | F26: =VLOOKUP(B26,Pilot!A:F,6,0) ->  | G26: =A26 -> - | I26: =COUNTIF(B:B,B26) -> 6 | J26: =IF(COUNTIF('N PMČR 2020'!B:B,B26)=0,"-",COUNTIF('N PMČR 2020'!B:B,B26)) -> 13 | K26: =IF(ISERROR(VLOOKUP(B26,'N PMČR 2020'!B:G,6,0)),"-",VLOOKUP(B26,'N PMČR 2020'!B:G,6,0)) -> N5 | L26: =IF(COUNTIF('N PMČRj 2020'!B:B,B26)=0,"-",COUNTIF('N PMČRj 2020'!B:B,B26)) -> 10 | M26: =IF(ISERROR(VLOOKUP(B26,'N PMČRj 2020'!B:G,6,0)),"-",VLOOKUP(B26,'N PMČRj 2020'!B:G,6,0)) -> -
A27: 6.8.5.3. | B27: soutěžící z regionů Čechy 1, Čechy 2 a Morava v pořadí podle celkového umístění v CPS-INT předcházejícího roku konání PMRg do naplnění celkového počtu minimálně 60 nominovaných (+ 10 náhradníků)
A28: =MAX(A8:A27)+1 -> 14 | B28: Jan Habermann | C28: =VLOOKUP(B28,Pilot!A:C,3,0) -> Vlašim | D28: =VLOOKUP(B28,Pilot!A:C,2,0) -> 1975 | E28: =VLOOKUP(B28,Pilot!A:E,5,0) -> M | F28: =VLOOKUP(B28,Pilot!A:F,6,0) ->  | G28: =A28 -> 14 | I28: =COUNTIF(B:B,B28) -> 1 | J28: =IF(COUNTIF('N PMČR 2020'!B:B,B28)=0,"-",COUNTIF('N PMČR 2020'!B:B,B28)) -> - | K28: =IF(ISERROR(VLOOKUP(B28,'N PMČR 2020'!B:G,6,0)),"-",VLOOKUP(B28,'N PMČR 2020'!B:G,6,0)) -> - | L28: =IF(COUNTIF('N PMČRj 2020'!B:B,B28)=0,"-",COUNTIF('N PMČRj 2020'!B:B,B28)) -> - | M28: =IF(ISERROR(VLOOKUP(B28,'N PMČRj 2020'!B:G,6,0)),"-",VLOOKUP(B28,'N PMČRj 2020'!B:G,6,0)) -> -
A29: =A28+1 -> 15 | B29: Jan Pubec | C29: =VLOOKUP(B29,Pilot!A:C,3,0) -> Plzeň Bory | D29: =VLOOKUP(B29,Pilot!A:C,2,0) -> 1979 | E29: =VLOOKUP(B29,Pilot!A:E,5,0) -> M | F29: =VLOOKUP(B29,Pilot!A:F,6,0) ->  | G29: 15 | I29: 1 | J29: =IF(COUNTIF('N PMČR 2020'!B:B,B29)=0,"-",COUNTIF('N PMČR 2020'!B:B,B29)) -> - | K29: =IF(ISERROR(VLOOKUP(B29,'N PMČR 2020'!B:G,6,0)),"-",VLOOKUP(B29,'N PMČR 2020'!B:G,6,0)) -> - | L29: =IF(COUNTIF('N PMČRj 2020'!B:B,B29)=0,"-",COUNTIF('N PMČRj 2020'!B:B,B29)) -> - | M29: =IF(ISERROR(VLOOKUP(B29,'N PMČRj 2020'!B:G,6,0)),"-",VLOOKUP(B29,'N PMČRj 2020'!B:G,6,0)) -> -
A30: =A29+1 -> 16 | B30: Jan Kantor | C30: =VLOOKUP(B30,Pilot!A:C,3,0) -> Letňany | D30: =VLOOKUP(B30,Pilot!A:C,2,0) -> 1983 | E30: =VLOOKUP(B30,Pilot!A:E,5,0) -> M | F30: =VLOOKUP(B30,Pilot!A:F,6,0) ->  | G30: 16 | I30: 1 | J30: =IF(COUNTIF('N PMČR 2020'!B:B,B30)=0,"-",COUNTIF('N PMČR 2020'!B:B,B30)) -> - | K30: =IF(ISERROR(VLOOKUP(B30,'N PMČR 2020'!B:G,6,0)),"-",VLOOKUP(B30,'N PMČR 2020'!B:G,6,0)) -> - | L30: =IF(COUNTIF('N PMČRj 2020'!B:B,B30)=0,"-",COUNTIF('N PMČRj 2020'!B:B,B30)) -> - | M30: =IF(ISERROR(VLOOKUP(B30,'N PMČRj 2020'!B:G,6,0)),"-",VLOOKUP(B30,'N PMČRj 2020'!B:G,6,0)) -> -
A31: 17 | B31: Martin Chovan | C31: =VLOOKUP(B31,Pilot!A:C,3,0) -> Zbraslavice | D31: =VLOOKUP(B31,Pilot!A:C,2,0) -> 1973 | E31: =VLOOKUP(B31,Pilot!A:E,5,0) -> M | F31: =VLOOKUP(B31,Pilot!A:F,6,0) ->  | G31: 17 | I31: 1 | J31: =IF(COUNTIF('N PMČR 2020'!B:B,B31)=0,"-",COUNTIF('N PMČR 2020'!B:B,B31)) -> - | K31: =IF(ISERROR(VLOOKUP(B31,'N PMČR 2020'!B:G,6,0)),"-",VLOOKUP(B31,'N PMČR 2020'!B:G,6,0)) -> - | L31: =IF(COUNTIF('N PMČRj 2020'!B:B,B31)=0,"-",COUNTIF('N PMČRj 2020'!B:B,B31)) -> - | M31: =IF(ISERROR(VLOOKUP(B31,'N PMČRj 2020'!B:G,6,0)),"-",VLOOKUP(B31,'N PMČRj 2020'!B:G,6,0)) -> -
A32: 18 | B32: Petr Hofman | C32: =VLOOKUP(B32,Pilot!A:C,3,0) -> Letňany | D32: =VLOOKUP(B32,Pilot!A:C,2,0) -> 1984 | E32: =VLOOKUP(B32,Pilot!A:E,5,0) -> M | F32: =VLOOKUP(B32,Pilot!A:F,6,0) ->  | G32: 18 | I32: 1 | J32: =IF(COUNTIF('N PMČR 2020'!B:B,B32)=0,"-",COUNTIF('N PMČR 2020'!B:B,B32)) -> - | K32: =IF(ISERROR(VLOOKUP(B32,'N PMČR 2020'!B:G,6,0)),"-",VLOOKUP(B32,'N PMČR 2020'!B:G,6,0)) -> - | L32: =IF(COUNTIF('N PMČRj 2020'!B:B,B32)=0,"-",COUNTIF('N PMČRj 2020'!B:B,B32)) -> - | M32: =IF(ISERROR(VLOOKUP(B32,'N PMČRj 2020'!B:G,6,0)),"-",VLOOKUP(B32,'N PMČRj 2020'!B:G,6,0)) -> -
A33: 19 | B33: Michal Cechmanek | C33: =VLOOKUP(B33,Pilot!A:C,3,0) -> Luhačovice | D33: =VLOOKUP(B33,Pilot!A:C,2,0) -> 1978 | E33: =VLOOKUP(B33,Pilot!A:E,5,0) -> M | F33: =VLOOKUP(B33,Pilot!A:F,6,0) ->  | G33: 19 | I33: 1 | J33: =IF(COUNTIF('N PMČR 2020'!B:B,B33)=0,"-",COUNTIF('N PMČR 2020'!B:B,B33)) -> - | K33: =IF(ISERROR(VLOOKUP(B33,'N PMČR 2020'!B:G,6,0)),"-",VLOOKUP(B33,'N PMČR 2020'!B:G,6,0)) -> - | L33: =IF(COUNTIF('N PMČRj 2020'!B:B,B33)=0,"-",COUNTIF('N PMČRj 2020'!B:B,B33)) -> - | M33: =IF(ISERROR(VLOOKUP(B33,'N PMČRj 2020'!B:G,6,0)),"-",VLOOKUP(B33,'N PMČRj 2020'!B:G,6,0)) -> -
A34: 20 | B34: Ivo Burda | C34: =VLOOKUP(B34,Pilot!A:C,3,0) -> Zbraslavice | D34: =VLOOKUP(B34,Pilot!A:C,2,0) -> 1962 | E34: =VLOOKUP(B34,Pilot!A:E,5,0) -> M | F34: =VLOOKUP(B34,Pilot!A:F,6,0) ->  | G34: 20 | I34: 1 | J34: =IF(COUNTIF('N PMČR 2020'!B:B,B34)=0,"-",COUNTIF('N PMČR 2020'!B:B,B34)) -> - | K34: =IF(ISERROR(VLOOKUP(B34,'N PMČR 2020'!B:G,6,0)),"-",VLOOKUP(B34,'N PMČR 2020'!B:G,6,0)) -> - | L34: =IF(COUNTIF('N PMČRj 2020'!B:B,B34)=0,"-",COUNTIF('N PMČRj 2020'!B:B,B34)) -> - | M34: =IF(ISERROR(VLOOKUP(B34,'N PMČRj 2020'!B:G,6,0)),"-",VLOOKUP(B34,'N PMČRj 2020'!B:G,6,0)) -> -
A35: 21 | B35: Michal Kratochvil | C35: =VLOOKUP(B35,Pilot!A:C,3,0) -> Slaný | D35: =VLOOKUP(B35,Pilot!A:C,2,0) -> 1984 | E35: =VLOOKUP(B35,Pilot!A:E,5,0) -> M | F35: =VLOOKUP(B35,Pilot!A:F,6,0) ->  | G35: 21 | I35: 1 | J35: =IF(COUNTIF('N PMČR 2020'!B:B,B35)=0,"-",COUNTIF('N PMČR 2020'!B:B,B35)) -> - | K35: =IF(ISERROR(VLOOKUP(B35,'N PMČR 2020'!B:G,6,0)),"-",VLOOKUP(B35,'N PMČR 2020'!B:G,6,0)) -> - | L35: =IF(COUNTIF('N PMČRj 2020'!B:B,B35)=0,"-",COUNTIF('N PMČRj 2020'!B:B,B35)) -> - | M35: =IF(ISERROR(VLOOKUP(B35,'N PMČRj 2020'!B:G,6,0)),"-",VLOOKUP(B35,'N PMČRj 2020'!B:G,6,0)) -> -
A36: 22 | B36: Antonin Konicek | C36: =VLOOKUP(B36,Pilot!A:C,3,0) -> Kunovice | D36: =VLOOKUP(B36,Pilot!A:C,2,0) -> 1973 | E36: =VLOOKUP(B36,Pilot!A:E,5,0) -> M | F36: =VLOOKUP(B36,Pilot!A:F,6,0) ->  | G36: 22 | I36: 1 | J36: =IF(COUNTIF('N PMČR 2020'!B:B,B36)=0,"-",COUNTIF('N PMČR 2020'!B:B,B36)) -> - | K36: =IF(ISERROR(VLOOKUP(B36,'N PMČR 2020'!B:G,6,0)),"-",VLOOKUP(B36,'N PMČR 2020'!B:G,6,0)) -> - | L36: =IF(COUNTIF('N PMČRj 2020'!B:B,B36)=0,"-",COUNTIF('N PMČRj 2020'!B:B,B36)) -> - | M36: =IF(ISERROR(VLOOKUP(B36,'N PMČRj 2020'!B:G,6,0)),"-",VLOOKUP(B36,'N PMČRj 2020'!B:G,6,0)) -> -
A37: 23 | B37: Martin Piskacek | C37: =VLOOKUP(B37,Pilot!A:C,3,0) -> Křižanov | D37: =VLOOKUP(B37,Pilot!A:C,2,0) -> 1991 | E37: =VLOOKUP(B37,Pilot!A:E,5,0) -> M | F37: =VLOOKUP(B37,Pilot!A:F,6,0) ->  | G37: 23 | I37: 1 | J37: =IF(COUNTIF('N PMČR 2020'!B:B,B37)=0,"-",COUNTIF('N PMČR 2020'!B:B,B37)) -> - | K37: =IF(ISERROR(VLOOKUP(B37,'N PMČR 2020'!B:G,6,0)),"-",VLOOKUP(B37,'N PMČR 2020'!B:G,6,0)) -> - | L37: =IF(COUNTIF('N PMČRj 2020'!B:B,B37)=0,"-",COUNTIF('N PMČRj 2020'!B:B,B37)) -> - | M37: =IF(ISERROR(VLOOKUP(B37,'N PMČRj 2020'!B:G,6,0)),"-",VLOOKUP(B37,'N PMČRj 2020'!B:G,6,0)) -> -
A38: 24 | B38: Josef Busek | C38: =VLOOKUP(B38,Pilot!A:C,3,0) -> Hosín | D38: =VLOOKUP(B38,Pilot!A:C,2,0) -> 1967 | E38: =VLOOKUP(B38,Pilot!A:E,5,0) -> M | F38: =VLOOKUP(B38,Pilot!A:F,6,0) ->  | G38: 24 | I38: 1 | J38: =IF(COUNTIF('N PMČR 2020'!B:B,B38)=0,"-",COUNTIF('N PMČR 2020'!B:B,B38)) -> - | K38: =IF(ISERROR(VLOOKUP(B38,'N PMČR 2020'!B:G,6,0)),"-",VLOOKUP(B38,'N PMČR 2020'!B:G,6,0)) -> - | L38: =IF(COUNTIF('N PMČRj 2020'!B:B,B38)=0,"-",COUNTIF('N PMČRj 2020'!B:B,B38)) -> - | M38: =IF(ISERROR(VLOOKUP(B38,'N PMČRj 2020'!B:G,6,0)),"-",VLOOKUP(B38,'N PMČRj 2020'!B:G,6,0)) -> -
A39: 25 | B39: David Riha | C39: =VLOOKUP(B39,Pilot!A:C,3,0) -> Vlašim | D39: =VLOOKUP(B39,Pilot!A:C,2,0) -> 1983 | E39: =VLOOKUP(B39,Pilot!A:E,5,0) -> M | F39: =VLOOKUP(B39,Pilot!A:F,6,0) ->  | G39: 25 | I39: 1 | J39: =IF(COUNTIF('N PMČR 2020'!B:B,B39)=0,"-",COUNTIF('N PMČR 2020'!B:B,B39)) -> - | K39: =IF(ISERROR(VLOOKUP(B39,'N PMČR 2020'!B:G,6,0)),"-",VLOOKUP(B39,'N PMČR 2020'!B:G,6,0)) -> - | L39: =IF(COUNTIF('N PMČRj 2020'!B:B,B39)=0,"-",COUNTIF('N PMČRj 2020'!B:B,B39)) -> - | M39: =IF(ISERROR(VLOOKUP(B39,'N PMČRj 2020'!B:G,6,0)),"-",VLOOKUP(B39,'N PMČRj 2020'!B:G,6,0)) -> -
A40: 26 | B40: Frantisek Myska | C40: =VLOOKUP(B40,Pilot!A:C,3,0) -> Most | D40: =VLOOKUP(B40,Pilot!A:C,2,0) -> 1968 | E40: =VLOOKUP(B40,Pilot!A:E,5,0) -> M | F40: =VLOOKUP(B40,Pilot!A:F,6,0) ->  | G40: 26 | I40: 1 | J40: =IF(COUNTIF('N PMČR 2020'!B:B,B40)=0,"-",COUNTIF('N PMČR 2020'!B:B,B40)) -> - | K40: =IF(ISERROR(VLOOKUP(B40,'N PMČR 2020'!B:G,6,0)),"-",VLOOKUP(B40,'N PMČR 2020'!B:G,6,0)) -> - | L40: =IF(COUNTIF('N PMČRj 2020'!B:B,B40)=0,"-",COUNTIF('N PMČRj 2020'!B:B,B40)) -> - | M40: =IF(ISERROR(VLOOKUP(B40,'N PMČRj 2020'!B:G,6,0)),"-",VLOOKUP(B40,'N PMČRj 2020'!B:G,6,0)) -> -
A41: 27 | B41: David Popovsky | C41: =VLOOKUP(B41,Pilot!A:C,3,0) -> Rakovník | D41: =VLOOKUP(B41,Pilot!A:C,2,0) -> 1976 | E41: =VLOOKUP(B41,Pilot!A:E,5,0) -> M | F41: =VLOOKUP(B41,Pilot!A:F,6,0) ->  | G41: 27 | I41: 1 | J41: =IF(COUNTIF('N PMČR 2020'!B:B,B41)=0,"-",COUNTIF('N PMČR 2020'!B:B,B41)) -> - | K41: =IF(ISERROR(VLOOKUP(B41,'N PMČR 2020'!B:G,6,0)),"-",VLOOKUP(B41,'N PMČR 2020'!B:G,6,0)) -> - | L41: =IF(COUNTIF('N PMČRj 2020'!B:B,B41)=0,"-",COUNTIF('N PMČRj 2020'!B:B,B41)) -> - | M41: =IF(ISERROR(VLOOKUP(B41,'N PMČRj 2020'!B:G,6,0)),"-",VLOOKUP(B41,'N PMČRj 2020'!B:G,6,0)) -> -
A42: 28 | B42: Pavel Zima | C42: =VLOOKUP(B42,Pilot!A:C,3,0) -> Břeclav | D42: =VLOOKUP(B42,Pilot!A:C,2,0) -> 1979 | E42: =VLOOKUP(B42,Pilot!A:E,5,0) -> M | F42: =VLOOKUP(B42,Pilot!A:F,6,0) ->  | G42: 28 | I42: 1 | J42: =IF(COUNTIF('N PMČR 2020'!B:B,B42)=0,"-",COUNTIF('N PMČR 2020'!B:B,B42)) -> - | K42: =IF(ISERROR(VLOOKUP(B42,'N PMČR 2020'!B:G,6,0)),"-",VLOOKUP(B42,'N PMČR 2020'!B:G,6,0)) -> - | L42: =IF(COUNTIF('N PMČRj 2020'!B:B,B42)=0,"-",COUNTIF('N PMČRj 2020'!B:B,B42)) -> - | M42: =IF(ISERROR(VLOOKUP(B42,'N PMČRj 2020'!B:G,6,0)),"-",VLOOKUP(B42,'N PMČRj 2020'!B:G,6,0)) -> -
A43: 29 | B43: Milos Pajr | C43: =VLOOKUP(B43,Pilot!A:C,3,0) -> Jičín | D43: =VLOOKUP(B43,Pilot!A:C,2,0) -> 1966 | E43: =VLOOKUP(B43,Pilot!A:E,5,0) -> M | F43: =VLOOKUP(B43,Pilot!A:F,6,0) ->  | G43: 29 | I43: 1 | J43: =IF(COUNTIF('N PMČR 2020'!B:B,B43)=0,"-",COUNTIF('N PMČR 2020'!B:B,B43)) -> - | K43: =IF(ISERROR(VLOOKUP(B43,'N PMČR 2020'!B:G,6,0)),"-",VLOOKUP(B43,'N PMČR 2020'!B:G,6,0)) -> - | L43: =IF(COUNTIF('N PMČRj 2020'!B:B,B43)=0,"-",COUNTIF('N PMČRj 2020'!B:B,B43)) -> - | M43: =IF(ISERROR(VLOOKUP(B43,'N PMČRj 2020'!B:G,6,0)),"-",VLOOKUP(B43,'N PMČRj 2020'!B:G,6,0)) -> -
A44: 30 | B44: Antonin Bordovsky | C44: =VLOOKUP(B44,Pilot!A:C,3,0) -> Krnov | D44: =VLOOKUP(B44,Pilot!A:C,2,0) -> 1951 | E44: =VLOOKUP(B44,Pilot!A:E,5,0) -> M | F44: =VLOOKUP(B44,Pilot!A:F,6,0) ->  | G44: 30 | I44: 1 | J44: =IF(COUNTIF('N PMČR 2020'!B:B,B44)=0,"-",COUNTIF('N PMČR 2020'!B:B,B44)) -> - | K44: =IF(ISERROR(VLOOKUP(B44,'N PMČR 2020'!B:G,6,0)),"-",VLOOKUP(B44,'N PMČR 2020'!B:G,6,0)) -> - | L44: =IF(COUNTIF('N PMČRj 2020'!B:B,B44)=0,"-",COUNTIF('N PMČRj 2020'!B:B,B44)) -> - | M44: =IF(ISERROR(VLOOKUP(B44,'N PMČRj 2020'!B:G,6,0)),"-",VLOOKUP(B44,'N PMČRj 2020'!B:G,6,0)) -> -
A45: 31 | B45: Jan Dersak 69 | C45: =VLOOKUP(B45,Pilot!A:C,3,0) -> Kralupy | D45: =VLOOKUP(B45,Pilot!A:C,2,0) -> 1969 | E45: =VLOOKUP(B45,Pilot!A:E,5,0) -> M | F45: =VLOOKUP(B45,Pilot!A:F,6,0) ->  | G45: 31 | I45: 1 | J45: =IF(COUNTIF('N PMČR 2020'!B:B,B45)=0,"-",COUNTIF('N PMČR 2020'!B:B,B45)) -> - | K45: =IF(ISERROR(VLOOKUP(B45,'N PMČR 2020'!B:G,6,0)),"-",VLOOKUP(B45,'N PMČR 2020'!B:G,6,0)) -> - | L45: =IF(COUNTIF('N PMČRj 2020'!B:B,B45)=0,"-",COUNTIF('N PMČRj 2020'!B:B,B45)) -> - | M45: =IF(ISERROR(VLOOKUP(B45,'N PMČRj 2020'!B:G,6,0)),"-",VLOOKUP(B45,'N PMČRj 2020'!B:G,6,0)) -> -
A46: 32 | B46: Jiri Koudela | C46: =VLOOKUP(B46,Pilot!A:C,3,0) -> Vyškov | D46: =VLOOKUP(B46,Pilot!A:C,2,0) -> 1974 | E46: =VLOOKUP(B46,Pilot!A:E,5,0) -> M | F46: =VLOOKUP(B46,Pilot!A:F,6,0) ->  | G46: 32 | I46: 1 | J46: =IF(COUNTIF('N PMČR 2020'!B:B,B46)=0,"-",COUNTIF('N PMČR 2020'!B:B,B46)) -> - | K46: =IF(ISERROR(VLOOKUP(B46,'N PMČR 2020'!B:G,6,0)),"-",VLOOKUP(B46,'N PMČR 2020'!B:G,6,0)) -> - | L46: =IF(COUNTIF('N PMČRj 2020'!B:B,B46)=0,"-",COUNTIF('N PMČRj 2020'!B:B,B46)) -> - | M46: =IF(ISERROR(VLOOKUP(B46,'N PMČRj 2020'!B:G,6,0)),"-",VLOOKUP(B46,'N PMČRj 2020'!B:G,6,0)) -> -
A47: 33 | B47: Petr Starek | C47: =VLOOKUP(B47,Pilot!A:C,3,0) -> Zbraslavice | D47: =VLOOKUP(B47,Pilot!A:C,2,0) -> 1974 | E47: =VLOOKUP(B47,Pilot!A:E,5,0) -> M | F47: =VLOOKUP(B47,Pilot!A:F,6,0) ->  | G47: =A47 -> 33 | I47: 1 | J47: =IF(COUNTIF('N PMČR 2020'!B:B,B47)=0,"-",COUNTIF('N PMČR 2020'!B:B,B47)) -> - | K47: =IF(ISERROR(VLOOKUP(B47,'N PMČR 2020'!B:G,6,0)),"-",VLOOKUP(B47,'N PMČR 2020'!B:G,6,0)) -> - | L47: =IF(COUNTIF('N PMČRj 2020'!B:B,B47)=0,"-",COUNTIF('N PMČRj 2020'!B:B,B47)) -> - | M47: =IF(ISERROR(VLOOKUP(B47,'N PMČRj 2020'!B:G,6,0)),"-",VLOOKUP(B47,'N PMČRj 2020'!B:G,6,0)) -> -
A48: 34 | B48: Roman Jokl | C48: =VLOOKUP(B48,Pilot!A:C,3,0) -> Letkov | D48: =VLOOKUP(B48,Pilot!A:C,2,0) -> 1979 | E48: =VLOOKUP(B48,Pilot!A:E,5,0) -> M | F48: =VLOOKUP(B48,Pilot!A:F,6,0) ->  | G48: 34 | I48: 1 | J48: =IF(COUNTIF('N PMČR 2020'!B:B,B48)=0,"-",COUNTIF('N PMČR 2020'!B:B,B48)) -> - | K48: =IF(ISERROR(VLOOKUP(B48,'N PMČR 2020'!B:G,6,0)),"-",VLOOKUP(B48,'N PMČR 2020'!B:G,6,0)) -> - | L48: =IF(COUNTIF('N PMČRj 2020'!B:B,B48)=0,"-",COUNTIF('N PMČRj 2020'!B:B,B48)) -> - | M48: =IF(ISERROR(VLOOKUP(B48,'N PMČRj 2020'!B:G,6,0)),"-",VLOOKUP(B48,'N PMČRj 2020'!B:G,6,0)) -> -
A49: 35 | B49: Ondrej Bordovsky | C49: =VLOOKUP(B49,Pilot!A:C,3,0) -> Krnov | D49: =VLOOKUP(B49,Pilot!A:C,2,0) -> 1983 | E49: =VLOOKUP(B49,Pilot!A:E,5,0) -> M | F49: =VLOOKUP(B49,Pilot!A:F,6,0) ->  | G49: 35 | I49: 1 | J49: =IF(COUNTIF('N PMČR 2020'!B:B,B49)=0,"-",COUNTIF('N PMČR 2020'!B:B,B49)) -> - | K49: =IF(ISERROR(VLOOKUP(B49,'N PMČR 2020'!B:G,6,0)),"-",VLOOKUP(B49,'N PMČR 2020'!B:G,6,0)) -> - | L49: =IF(COUNTIF('N PMČRj 2020'!B:B,B49)=0,"-",COUNTIF('N PMČRj 2020'!B:B,B49)) -> - | M49: =IF(ISERROR(VLOOKUP(B49,'N PMČRj 2020'!B:G,6,0)),"-",VLOOKUP(B49,'N PMČRj 2020'!B:G,6,0)) -> -
A50: 36 | B50: Jan Horak | C50: =VLOOKUP(B50,Pilot!A:C,3,0) -> Zbraslavice | D50: =VLOOKUP(B50,Pilot!A:C,2,0) -> 1971 | E50: =VLOOKUP(B50,Pilot!A:E,5,0) -> M | F50: =VLOOKUP(B50,Pilot!A:F,6,0) ->  | G50: 36 | I50: 1 | J50: =IF(COUNTIF('N PMČR 2020'!B:B,B50)=0,"-",COUNTIF('N PMČR 2020'!B:B,B50)) -> - | K50: =IF(ISERROR(VLOOKUP(B50,'N PMČR 2020'!B:G,6,0)),"-",VLOOKUP(B50,'N PMČR 2020'!B:G,6,0)) -> - | L50: =IF(COUNTIF('N PMČRj 2020'!B:B,B50)=0,"-",COUNTIF('N PMČRj 2020'!B:B,B50)) -> - | M50: =IF(ISERROR(VLOOKUP(B50,'N PMČRj 2020'!B:G,6,0)),"-",VLOOKUP(B50,'N PMČRj 2020'!B:G,6,0)) -> -
A51: 37 | B51: Robert Sima | C51: =VLOOKUP(B51,Pilot!A:C,3,0) -> GAC Benešov | D51: =VLOOKUP(B51,Pilot!A:C,2,0) -> 1971 | E51: =VLOOKUP(B51,Pilot!A:E,5,0) -> M | F51: =VLOOKUP(B51,Pilot!A:F,6,0) ->  | G51: 37 | I51: 1 | J51: =IF(COUNTIF('N PMČR 2020'!B:B,B51)=0,"-",COUNTIF('N PMČR 2020'!B:B,B51)) -> - | K51: =IF(ISERROR(VLOOKUP(B51,'N PMČR 2020'!B:G,6,0)),"-",VLOOKUP(B51,'N PMČR 2020'!B:G,6,0)) -> - | L51: =IF(COUNTIF('N PMČRj 2020'!B:B,B51)=0,"-",COUNTIF('N PMČRj 2020'!B:B,B51)) -> - | M51: =IF(ISERROR(VLOOKUP(B51,'N PMČRj 2020'!B:G,6,0)),"-",VLOOKUP(B51,'N PMČRj 2020'!B:G,6,0)) -> -
A52: 38 | B52: Radek Hybl | C52: =VLOOKUP(B52,Pilot!A:C,3,0) -> Šumperk | D52: =VLOOKUP(B52,Pilot!A:C,2,0) -> 1980 | E52: =VLOOKUP(B52,Pilot!A:E,5,0) -> M | F52: =VLOOKUP(B52,Pilot!A:F,6,0) ->  | G52: 38 | I52: 1 | J52: =IF(COUNTIF('N PMČR 2020'!B:B,B52)=0,"-",COUNTIF('N PMČR 2020'!B:B,B52)) -> - | K52: =IF(ISERROR(VLOOKUP(B52,'N PMČR 2020'!B:G,6,0)),"-",VLOOKUP(B52,'N PMČR 2020'!B:G,6,0)) -> - | L52: =IF(COUNTIF('N PMČRj 2020'!B:B,B52)=0,"-",COUNTIF('N PMČRj 2020'!B:B,B52)) -> - | M52: =IF(ISERROR(VLOOKUP(B52,'N PMČRj 2020'!B:G,6,0)),"-",VLOOKUP(B52,'N PMČRj 2020'!B:G,6,0)) -> -
